Workbook

Sheet Layout (hidden)
C1: %,ATF,FACCOUNT | D1: %,ATF,FDESCR | E1: %,SPER01 | F1: %,SPER02 | G1: %,SPER03 | H1: %,SPER04 | I1: %,SPER05 | J1: %,SPER06 | K1: %,SPER07 | L1: %,SPER08 | M1: %,SPER09 | N1: %,SPER10 | O1: %,SPER11 | P1: %,SPER12
J3: Hilton Grand Vacations Management, LLC.
J4: Seawatch On-The-Beach Condominium Association, Inc
J5: ANNUAL BUDGET FOR THE PERIOD
D6: =BU!D15 -> 2100 | E6: (unit/weeks) | J6: JANUARY 1, 2019 THROUGH DECEMBER 31, 2019
B8: ******* | C8: ******* | D8: ***************************** | E8: *************** | F8: ************ | G8: ************ | H8: ************** | I8: *********** | J8: ************ | K8: *********** | L8: ************ | M8: ************ | N8: ************ | O8: ************ | P8: *********** | Q8: ************ | R8: *********
B9: DEPT | C9: ACCT # | D9: ACCOUNT DESCRIPTION | R9: PROJ
D10: ="YEAR: "&NV_YEAR4 -> YEAR: | E10: Jan | F10: FEB | G10: MAR | H10: APR | I10: MAY | J10: JUN | K10: JUL | L10: AUG | M10: SEP | N10: OCT | O10: NOV | P10: DEC | Q10: TOTAL | R10: TOTAL
B11: ******* | C11: ******* | D11: ***************************** | E11: *************** | F11: ************ | G11: ************ | H11: ************** | I11: *********** | J11: ************ | K11: *********** | L11: ************ | M11: ************ | N11: ************ | O11: ************ | P11: *********** | Q11: ************ | R11: *********
C13: REVENUE
B15: D19800 | C15: 458010 | D15: ASSOCIATION FEES
B17: FY18 | C17: PLANNING | D17: CURRENT BUDGET | E17: =SUMIFS(SMARTVIEW!H$5:H$1171,SMARTVIEW!$B$5:$B$1171,Layout!$B$15,SMARTVIEW!$C$5:$C$1171,Layout!$C$15,SMARTVIEW!$D$5:$D$1171,Layout!$C$17,SMARTVIEW!$F$5:$F$1171,Layout!$B$17) -> 114894.2028 | F17: =SUMIFS(SMARTVIEW!I$5:I$1171,SMARTVIEW!$B$5:$B$1171,Layout!$B$15,SMARTVIEW!$C$5:$C$1171,Layout!$C$15,SMARTVIEW!$D$5:$D$1171,Layout!$C$17,SMARTVIEW!$F$5:$F$1171,Layout!$B$17) -> 114894.0028 | G17: =SUMIFS(SMARTVIEW!J$5:J$1171,SMARTVIEW!$B$5:$B$1171,Layout!$B$15,SMARTVIEW!$C$5:$C$1171,Layout!$C$15,SMARTVIEW!$D$5:$D$1171,Layout!$C$17,SMARTVIEW!$F$5:$F$1171,Layout!$B$17) -> 114894.0028 | H17: =SUMIFS(SMARTVIEW!K$5:K$1171,SMARTVIEW!$B$5:$B$1171,Layout!$B$15,SMARTVIEW!$C$5:$C$1171,Layout!$C$15,SMARTVIEW!$D$5:$D$1171,Layout!$C$17,SMARTVIEW!$F$5:$F$1171,Layout!$B$17) -> 114894.0028 | I17: =SUMIFS(SMARTVIEW!L$5:L$1171,SMARTVIEW!$B$5:$B$1171,Layout!$B$15,SMARTVIEW!$C$5:$C$1171,Layout!$C$15,SMARTVIEW!$D$5:$D$1171,Layout!$C$17,SMARTVIEW!$F$5:$F$1171,Layout!$B$17) -> 114894.0028 | J17: =SUMIFS(SMARTVIEW!M$5:M$1171,SMARTVIEW!$B$5:$B$1171,Layout!$B$15,SMARTVIEW!$C$5:$C$1171,Layout!$C$15,SMARTVIEW!$D$5:$D$1171,Layout!$C$17,SMARTVIEW!$F$5:$F$1171,Layout!$B$17) -> 114894.0028 | K17: =SUMIFS(SMARTVIEW!N$5:N$1171,SMARTVIEW!$B$5:$B$1171,Layout!$B$15,SMARTVIEW!$C$5:$C$1171,Layout!$C$15,SMARTVIEW!$D$5:$D$1171,Layout!$C$17,SMARTVIEW!$F$5:$F$1171,Layout!$B$17) -> 114894.0028 | L17: =SUMIFS(SMARTVIEW!O$5:O$1171,SMARTVIEW!$B$5:$B$1171,Layout!$B$15,SMARTVIEW!$C$5:$C$1171,Layout!$C$15,SMARTVIEW!$D$5:$D$1171,Layout!$C$17,SMARTVIEW!$F$5:$F$1171,Layout!$B$17) -> 114894.0028 | M17: =SUMIFS(SMARTVIEW!P$5:P$1171,SMARTVIEW!$B$5:$B$1171,Layout!$B$15,SMARTVIEW!$C$5:$C$1171,Layout!$C$15,SMARTVIEW!$D$5:$D$1171,Layout!$C$17,SMARTVIEW!$F$5:$F$1171,Layout!$B$17) -> 114894.0028 | N17: =SUMIFS(SMARTVIEW!Q$5:Q$1171,SMARTVIEW!$B$5:$B$1171,Layout!$B$15,SMARTVIEW!$C$5:$C$1171,Layout!$C$15,SMARTVIEW!$D$5:$D$1171,Layout!$C$17,SMARTVIEW!$F$5:$F$1171,Layout!$B$17) -> 114894.0028 | O17: =SUMIFS(SMARTVIEW!R$5:R$1171,SMARTVIEW!$B$5:$B$1171,Layout!$B$15,SMARTVIEW!$C$5:$C$1171,Layout!$C$15,SMARTVIEW!$D$5:$D$1171,Layout!$C$17,SMARTVIEW!$F$5:$F$1171,Layout!$B$17) -> 114894.0028 | P17: =SUMIFS(SMARTVIEW!S$5:S$1171,SMARTVIEW!$B$5:$B$1171,Layout!$B$15,SMARTVIEW!$C$5:$C$1171,Layout!$C$15,SMARTVIEW!$D$5:$D$1171,Layout!$C$17,SMARTVIEW!$F$5:$F$1171,Layout!$B$17) -> 114894.0028 | Q17: =SUM(E17:P17) -> 1378728.234
B19: FY18 | C19: Actual | D19: CURRENT ACTUAL | E19: =SUMIFS(SMARTVIEW!H$5:H$1171,SMARTVIEW!$B$5:$B$1171,Layout!$B$15,SMARTVIEW!$C$5:$C$1171,Layout!$C$15,SMARTVIEW!$D$5:$D$1171,Layout!$C$19,SMARTVIEW!$F$5:$F$1171,Layout!$B$19) -> 114894.5 | F19: =SUMIFS(SMARTVIEW!I$5:I$1171,SMARTVIEW!$B$5:$B$1171,Layout!$B$15,SMARTVIEW!$C$5:$C$1171,Layout!$C$15,SMARTVIEW!$D$5:$D$1171,Layout!$C$19,SMARTVIEW!$F$5:$F$1171,Layout!$B$19) -> 114894.5 | G19: =SUMIFS(SMARTVIEW!J$5:J$1171,SMARTVIEW!$B$5:$B$1171,Layout!$B$15,SMARTVIEW!$C$5:$C$1171,Layout!$C$15,SMARTVIEW!$D$5:$D$1171,Layout!$C$19,SMARTVIEW!$F$5:$F$1171,Layout!$B$19) -> 114894.5 | H19: =SUMIFS(SMARTVIEW!K$5:K$1171,SMARTVIEW!$B$5:$B$1171,Layout!$B$15,SMARTVIEW!$C$5:$C$1171,Layout!$C$15,SMARTVIEW!$D$5:$D$1171,Layout!$C$19,SMARTVIEW!$F$5:$F$1171,Layout!$B$19) -> 114894.5 | I19: =SUMIFS(SMARTVIEW!L$5:L$1171,SMARTVIEW!$B$5:$B$1171,Layout!$B$15,SMARTVIEW!$C$5:$C$1171,Layout!$C$15,SMARTVIEW!$D$5:$D$1171,Layout!$C$19,SMARTVIEW!$F$5:$F$1171,Layout!$B$19) -> 114894.5 | J19: =SUMIFS(SMARTVIEW!M$5:M$1171,SMARTVIEW!$B$5:$B$1171,Layout!$B$15,SMARTVIEW!$C$5:$C$1171,Layout!$C$15,SMARTVIEW!$D$5:$D$1171,Layout!$C$19,SMARTVIEW!$F$5:$F$1171,Layout!$B$19) -> 114894.5 | K19: 114895 | L19: 114895 | M19: 114895 | N19: 114895 | O19: 114895 | P19: 114895 | Q19: =SUM(E19:P19) -> 1378737 | R19: =Q19 -> 1378737
B21: FY17 | C21: Actual | D21: PRIOR YEAR ACTUALS | E21: =SUMIFS(SMARTVIEW!H$5:H$1171,SMARTVIEW!$B$5:$B$1171,Layout!$B$15,SMARTVIEW!$C$5:$C$1171,Layout!$C$15,SMARTVIEW!$D$5:$D$1171,Layout!$C$21,SMARTVIEW!$F$5:$F$1171,Layout!$B$21) -> 112092.75 | F21: =SUMIFS(SMARTVIEW!I$5:I$1171,SMARTVIEW!$B$5:$B$1171,Layout!$B$15,SMARTVIEW!$C$5:$C$1171,Layout!$C$15,SMARTVIEW!$D$5:$D$1171,Layout!$C$21,SMARTVIEW!$F$5:$F$1171,Layout!$B$21) -> 112092.75 | G21: =SUMIFS(SMARTVIEW!J$5:J$1171,SMARTVIEW!$B$5:$B$1171,Layout!$B$15,SMARTVIEW!$C$5:$C$1171,Layout!$C$15,SMARTVIEW!$D$5:$D$1171,Layout!$C$21,SMARTVIEW!$F$5:$F$1171,Layout!$B$21) -> 112092.75 | H21: =SUMIFS(SMARTVIEW!K$5:K$1171,SMARTVIEW!$B$5:$B$1171,Layout!$B$15,SMARTVIEW!$C$5:$C$1171,Layout!$C$15,SMARTVIEW!$D$5:$D$1171,Layout!$C$21,SMARTVIEW!$F$5:$F$1171,Layout!$B$21) -> 112092.75 | I21: =SUMIFS(SMARTVIEW!L$5:L$1171,SMARTVIEW!$B$5:$B$1171,Layout!$B$15,SMARTVIEW!$C$5:$C$1171,Layout!$C$15,SMARTVIEW!$D$5:$D$1171,Layout!$C$21,SMARTVIEW!$F$5:$F$1171,Layout!$B$21) -> 112092.75 | J21: =SUMIFS(SMARTVIEW!M$5:M$1171,SMARTVIEW!$B$5:$B$1171,Layout!$B$15,SMARTVIEW!$C$5:$C$1171,Layout!$C$15,SMARTVIEW!$D$5:$D$1171,Layout!$C$21,SMARTVIEW!$F$5:$F$1171,Layout!$B$21) -> 112092.75 | K21: =SUMIFS(SMARTVIEW!N$5:N$1171,SMARTVIEW!$B$5:$B$1171,Layout!$B$15,SMARTVIEW!$C$5:$C$1171,Layout!$C$15,SMARTVIEW!$D$5:$D$1171,Layout!$C$21,SMARTVIEW!$F$5:$F$1171,Layout!$B$21) -> 112092.75 | L21: =SUMIFS(SMARTVIEW!O$5:O$1171,SMARTVIEW!$B$5:$B$1171,Layout!$B$15,SMARTVIEW!$C$5:$C$1171,Layout!$C$15,SMARTVIEW!$D$5:$D$1171,Layout!$C$21,SMARTVIEW!$F$5:$F$1171,Layout!$B$21) -> 112092.75 | M21: =SUMIFS(SMARTVIEW!P$5:P$1171,SMARTVIEW!$B$5:$B$1171,Layout!$B$15,SMARTVIEW!$C$5:$C$1171,Layout!$C$15,SMARTVIEW!$D$5:$D$1171,Layout!$C$21,SMARTVIEW!$F$5:$F$1171,Layout!$B$21) -> 112092.75 | N21: =SUMIFS(SMARTVIEW!Q$5:Q$1171,SMARTVIEW!$B$5:$B$1171,Layout!$B$15,SMARTVIEW!$C$5:$C$1171,Layout!$C$15,SMARTVIEW!$D$5:$D$1171,Layout!$C$21,SMARTVIEW!$F$5:$F$1171,Layout!$B$21) -> 112092.75 | O21: =SUMIFS(SMARTVIEW!R$5:R$1171,SMARTVIEW!$B$5:$B$1171,Layout!$B$15,SMARTVIEW!$C$5:$C$1171,Layout!$C$15,SMARTVIEW!$D$5:$D$1171,Layout!$C$21,SMARTVIEW!$F$5:$F$1171,Layout!$B$21) -> 112092.75 | P21: =SUMIFS(SMARTVIEW!S$5:S$1171,SMARTVIEW!$B$5:$B$1171,Layout!$B$15,SMARTVIEW!$C$5:$C$1171,Layout!$C$15,SMARTVIEW!$D$5:$D$1171,Layout!$C$21,SMARTVIEW!$F$5:$F$1171,Layout!$B$21) -> 112092.75 | Q21: =SUM(E21:P21) -> 1345113
S24: Enter Notes Below
B28: D9800 | C28: 458030 | D28: SPECIAL ASSESSMENT REVENUE
A30: %,R,FDEPTID,V19800,FACCOUNT,V458030,LBUD_USD | B30: FY18 | C30: PLANNING | D30: CURRENT BUDGET | E30: =SUMIFS(SMARTVIEW!H$5:H$1171,SMARTVIEW!$B$5:$B$1171,Layout!$B$28,SMARTVIEW!$C$5:$C$1171,Layout!$C$28,SMARTVIEW!$D$5:$D$1171,Layout!$C$30,SMARTVIEW!$F$5:$F$1171,Layout!$B$30) -> 0 | F30: =SUMIFS(SMARTVIEW!I$5:I$1171,SMARTVIEW!$B$5:$B$1171,Layout!$B$28,SMARTVIEW!$C$5:$C$1171,Layout!$C$28,SMARTVIEW!$D$5:$D$1171,Layout!$C$30,SMARTVIEW!$F$5:$F$1171,Layout!$B$30) -> 0 | G30: =SUMIFS(SMARTVIEW!J$5:J$1171,SMARTVIEW!$B$5:$B$1171,Layout!$B$28,SMARTVIEW!$C$5:$C$1171,Layout!$C$28,SMARTVIEW!$D$5:$D$1171,Layout!$C$30,SMARTVIEW!$F$5:$F$1171,Layout!$B$30) -> 0 | H30: =SUMIFS(SMARTVIEW!K$5:K$1171,SMARTVIEW!$B$5:$B$1171,Layout!$B$28,SMARTVIEW!$C$5:$C$1171,Layout!$C$28,SMARTVIEW!$D$5:$D$1171,Layout!$C$30,SMARTVIEW!$F$5:$F$1171,Layout!$B$30) -> 0 | I30: =SUMIFS(SMARTVIEW!L$5:L$1171,SMARTVIEW!$B$5:$B$1171,Layout!$B$28,SMARTVIEW!$C$5:$C$1171,Layout!$C$28,SMARTVIEW!$D$5:$D$1171,Layout!$C$30,SMARTVIEW!$F$5:$F$1171,Layout!$B$30) -> 0 | J30: =SUMIFS(SMARTVIEW!M$5:M$1171,SMARTVIEW!$B$5:$B$1171,Layout!$B$28,SMARTVIEW!$C$5:$C$1171,Layout!$C$28,SMARTVIEW!$D$5:$D$1171,Layout!$C$30,SMARTVIEW!$F$5:$F$1171,Layout!$B$30) -> 0 | K30: =SUMIFS(SMARTVIEW!N$5:N$1171,SMARTVIEW!$B$5:$B$1171,Layout!$B$28,SMARTVIEW!$C$5:$C$1171,Layout!$C$28,SMARTVIEW!$D$5:$D$1171,Layout!$C$30,SMARTVIEW!$F$5:$F$1171,Layout!$B$30) -> 0 | L30: =SUMIFS(SMARTVIEW!O$5:O$1171,SMARTVIEW!$B$5:$B$1171,Layout!$B$28,SMARTVIEW!$C$5:$C$1171,Layout!$C$28,SMARTVIEW!$D$5:$D$1171,Layout!$C$30,SMARTVIEW!$F$5:$F$1171,Layout!$B$30) -> 0 | M30: =SUMIFS(SMARTVIEW!P$5:P$1171,SMARTVIEW!$B$5:$B$1171,Layout!$B$28,SMARTVIEW!$C$5:$C$1171,Layout!$C$28,SMARTVIEW!$D$5:$D$1171,Layout!$C$30,SMARTVIEW!$F$5:$F$1171,Layout!$B$30) -> 0 | N30: =SUMIFS(SMARTVIEW!Q$5:Q$1171,SMARTVIEW!$B$5:$B$1171,Layout!$B$28,SMARTVIEW!$C$5:$C$1171,Layout!$C$28,SMARTVIEW!$D$5:$D$1171,Layout!$C$30,SMARTVIEW!$F$5:$F$1171,Layout!$B$30) -> 0 | O30: =SUMIFS(SMARTVIEW!R$5:R$1171,SMARTVIEW!$B$5:$B$1171,Layout!$B$28,SMARTVIEW!$C$5:$C$1171,Layout!$C$28,SMARTVIEW!$D$5:$D$1171,Layout!$C$30,SMARTVIEW!$F$5:$F$1171,Layout!$B$30) -> 0 | P30: =SUMIFS(SMARTVIEW!S$5:S$1171,SMARTVIEW!$B$5:$B$1171,Layout!$B$28,SMARTVIEW!$C$5:$C$1171,Layout!$C$28,SMARTVIEW!$D$5:$D$1171,Layout!$C$30,SMARTVIEW!$F$5:$F$1171,Layout!$B$30) -> 0 | Q30: =SUM(E30:P30) -> 0
A32: %,R,FDEPTID,V19800,FACCOUNT,V458030,LACT_USD | B32: FY18 | C32: Actual | D32: CURRENT ACTUAL | E32: =SUMIFS(SMARTVIEW!H$5:H$1171,SMARTVIEW!$B$5:$B$1171,Layout!$B$28,SMARTVIEW!$C$5:$C$1171,Layout!$C$28,SMARTVIEW!$D$5:$D$1171,Layout!$C$32,SMARTVIEW!$F$5:$F$1171,Layout!$B$32) -> 0 | F32: =SUMIFS(SMARTVIEW!I$5:I$1171,SMARTVIEW!$B$5:$B$1171,Layout!$B$28,SMARTVIEW!$C$5:$C$1171,Layout!$C$28,SMARTVIEW!$D$5:$D$1171,Layout!$C$32,SMARTVIEW!$F$5:$F$1171,Layout!$B$32) -> 0 | G32: =SUMIFS(SMARTVIEW!J$5:J$1171,SMARTVIEW!$B$5:$B$1171,Layout!$B$28,SMARTVIEW!$C$5:$C$1171,Layout!$C$28,SMARTVIEW!$D$5:$D$1171,Layout!$C$32,SMARTVIEW!$F$5:$F$1171,Layout!$B$32) -> 0 | H32: =SUMIFS(SMARTVIEW!K$5:K$1171,SMARTVIEW!$B$5:$B$1171,Layout!$B$28,SMARTVIEW!$C$5:$C$1171,Layout!$C$28,SMARTVIEW!$D$5:$D$1171,Layout!$C$32,SMARTVIEW!$F$5:$F$1171,Layout!$B$32) -> 0 | I32: =SUMIFS(SMARTVIEW!L$5:L$1171,SMARTVIEW!$B$5:$B$1171,Layout!$B$28,SMARTVIEW!$C$5:$C$1171,Layout!$C$28,SMARTVIEW!$D$5:$D$1171,Layout!$C$32,SMARTVIEW!$F$5:$F$1171,Layout!$B$32) -> 0 | J32: =SUMIFS(SMARTVIEW!M$5:M$1171,SMARTVIEW!$B$5:$B$1171,Layout!$B$28,SMARTVIEW!$C$5:$C$1171,Layout!$C$28,SMARTVIEW!$D$5:$D$1171,Layout!$C$32,SMARTVIEW!$F$5:$F$1171,Layout!$B$32) -> 0 | K32: =SUMIFS(SMARTVIEW!N$5:N$1171,SMARTVIEW!$B$5:$B$1171,Layout!$B$28,SMARTVIEW!$C$5:$C$1171,Layout!$C$28,SMARTVIEW!$D$5:$D$1171,Layout!$C$32,SMARTVIEW!$F$5:$F$1171,Layout!$B$32) -> 0 | L32: =SUMIFS(SMARTVIEW!O$5:O$1171,SMARTVIEW!$B$5:$B$1171,Layout!$B$28,SMARTVIEW!$C$5:$C$1171,Layout!$C$28,SMARTVIEW!$D$5:$D$1171,Layout!$C$32,SMARTVIEW!$F$5:$F$1171,Layout!$B$32) -> 0 | M32: =SUMIFS(SMARTVIEW!P$5:P$1171,SMARTVIEW!$B$5:$B$1171,Layout!$B$28,SMARTVIEW!$C$5:$C$1171,Layout!$C$28,SMARTVIEW!$D$5:$D$1171,Layout!$C$32,SMARTVIEW!$F$5:$F$1171,Layout!$B$32) -> 0 | N32: =SUMIFS(SMARTVIEW!Q$5:Q$1171,SMARTVIEW!$B$5:$B$1171,Layout!$B$28,SMARTVIEW!$C$5:$C$1171,Layout!$C$28,SMARTVIEW!$D$5:$D$1171,Layout!$C$32,SMARTVIEW!$F$5:$F$1171,Layout!$B$32) -> 0 | O32: =SUMIFS(SMARTVIEW!R$5:R$1171,SMARTVIEW!$B$5:$B$1171,Layout!$B$28,SMARTVIEW!$C$5:$C$1171,Layout!$C$28,SMARTVIEW!$D$5:$D$1171,Layout!$C$32,SMARTVIEW!$F$5:$F$1171,Layout!$B$32) -> 0 | P32: =SUMIFS(SMARTVIEW!S$5:S$1171,SMARTVIEW!$B$5:$B$1171,Layout!$B$28,SMARTVIEW!$C$5:$C$1171,Layout!$C$28,SMARTVIEW!$D$5:$D$1171,Layout!$C$32,SMARTVIEW!$F$5:$F$1171,Layout!$B$32) -> 0 | Q32: =SUM(E32:P32) -> 0 | R32: =Q32 -> 0
B34: FY17 | C34: Actual | D34: PRIOR YEAR ACTUALS | E34: =SUMIFS(SMARTVIEW!H$5:H$1171,SMARTVIEW!$B$5:$B$1171,Layout!$B$28,SMARTVIEW!$C$5:$C$1171,Layout!$C$28,SMARTVIEW!$D$5:$D$1171,Layout!$C$34,SMARTVIEW!$F$5:$F$1171,Layout!$B$34) -> 0 | F34: =SUMIFS(SMARTVIEW!I$5:I$1171,SMARTVIEW!$B$5:$B$1171,Layout!$B$28,SMARTVIEW!$C$5:$C$1171,Layout!$C$28,SMARTVIEW!$D$5:$D$1171,Layout!$C$34,SMARTVIEW!$F$5:$F$1171,Layout!$B$34) -> 0 | G34: =SUMIFS(SMARTVIEW!J$5:J$1171,SMARTVIEW!$B$5:$B$1171,Layout!$B$28,SMARTVIEW!$C$5:$C$1171,Layout!$C$28,SMARTVIEW!$D$5:$D$1171,Layout!$C$34,SMARTVIEW!$F$5:$F$1171,Layout!$B$34) -> 0 | H34: =SUMIFS(SMARTVIEW!K$5:K$1171,SMARTVIEW!$B$5:$B$1171,Layout!$B$28,SMARTVIEW!$C$5:$C$1171,Layout!$C$28,SMARTVIEW!$D$5:$D$1171,Layout!$C$34,SMARTVIEW!$F$5:$F$1171,Layout!$B$34) -> 0 | I34: =SUMIFS(SMARTVIEW!L$5:L$1171,SMARTVIEW!$B$5:$B$1171,Layout!$B$28,SMARTVIEW!$C$5:$C$1171,Layout!$C$28,SMARTVIEW!$D$5:$D$1171,Layout!$C$34,SMARTVIEW!$F$5:$F$1171,Layout!$B$34) -> 0 | J34: =SUMIFS(SMARTVIEW!M$5:M$1171,SMARTVIEW!$B$5:$B$1171,Layout!$B$28,SMARTVIEW!$C$5:$C$1171,Layout!$C$28,SMARTVIEW!$D$5:$D$1171,Layout!$C$34,SMARTVIEW!$F$5:$F$1171,Layout!$B$34) -> 0 | K34: =SUMIFS(SMARTVIEW!N$5:N$1171,SMARTVIEW!$B$5:$B$1171,Layout!$B$28,SMARTVIEW!$C$5:$C$1171,Layout!$C$28,SMARTVIEW!$D$5:$D$1171,Layout!$C$34,SMARTVIEW!$F$5:$F$1171,Layout!$B$34) -> 0 | L34: =SUMIFS(SMARTVIEW!O$5:O$1171,SMARTVIEW!$B$5:$B$1171,Layout!$B$28,SMARTVIEW!$C$5:$C$1171,Layout!$C$28,SMARTVIEW!$D$5:$D$1171,Layout!$C$34,SMARTVIEW!$F$5:$F$1171,Layout!$B$34) -> 0 | M34: =SUMIFS(SMARTVIEW!P$5:P$1171,SMARTVIEW!$B$5:$B$1171,Layout!$B$28,SMARTVIEW!$C$5:$C$1171,Layout!$C$28,SMARTVIEW!$D$5:$D$1171,Layout!$C$34,SMARTVIEW!$F$5:$F$1171,Layout!$B$34) -> 0 | N34: =SUMIFS(SMARTVIEW!Q$5:Q$1171,SMARTVIEW!$B$5:$B$1171,Layout!$B$28,SMARTVIEW!$C$5:$C$1171,Layout!$C$28,SMARTVIEW!$D$5:$D$1171,Layout!$C$34,SMARTVIEW!$F$5:$F$1171,Layout!$B$34) -> 0 | O34: =SUMIFS(SMARTVIEW!R$5:R$1171,SMARTVIEW!$B$5:$B$1171,Layout!$B$28,SMARTVIEW!$C$5:$C$1171,Layout!$C$28,SMARTVIEW!$D$5:$D$1171,Layout!$C$34,SMARTVIEW!$F$5:$F$1171,Layout!$B$34) -> 0 | P34: =SUMIFS(SMARTVIEW!S$5:S$1171,SMARTVIEW!$B$5:$B$1171,Layout!$B$28,SMARTVIEW!$C$5:$C$1171,Layout!$C$28,SMARTVIEW!$D$5:$D$1171,Layout!$C$34,SMARTVIEW!$F$5:$F$1171,Layout!$B$34) -> 0 | Q34: =SUM(E34:P34) -> 0
S37: Enter Notes Below
D38: FUTURE BUDGET | E38: 0 | F38: 0 | G38: 0 | H38: 0 | I38: 0 | J38: 0 | K38: 0 | L38: 0 | M38: 0 | N38: 0 | O38: 0 | P38: 0 | Q38: =SUM(E38:P38) -> 0
B42: D19800 | C42: 444230 | D42: OTHER REAL ESTATE REVENUE
A44: %,R,FDEPTID,V19800,FACCOUNT,V444230,LBUD_USD | B44: FY18 | C44: PLANNING | D44: CURRENT BUDGET | E44: =SUMIFS(SMARTVIEW!H$5:H$1171,SMARTVIEW!$B$5:$B$1171,Layout!$B$42,SMARTVIEW!$C$5:$C$1171,Layout!$C$42,SMARTVIEW!$D$5:$D$1171,Layout!$C$44,SMARTVIEW!$F$5:$F$1171,Layout!$B$44) -> 0 | F44: =SUMIFS(SMARTVIEW!I$5:I$1171,SMARTVIEW!$B$5:$B$1171,Layout!$B$42,SMARTVIEW!$C$5:$C$1171,Layout!$C$42,SMARTVIEW!$D$5:$D$1171,Layout!$C$44,SMARTVIEW!$F$5:$F$1171,Layout!$B$44) -> 0 | G44: =SUMIFS(SMARTVIEW!J$5:J$1171,SMARTVIEW!$B$5:$B$1171,Layout!$B$42,SMARTVIEW!$C$5:$C$1171,Layout!$C$42,SMARTVIEW!$D$5:$D$1171,Layout!$C$44,SMARTVIEW!$F$5:$F$1171,Layout!$B$44) -> 0 | H44: =SUMIFS(SMARTVIEW!K$5:K$1171,SMARTVIEW!$B$5:$B$1171,Layout!$B$42,SMARTVIEW!$C$5:$C$1171,Layout!$C$42,SMARTVIEW!$D$5:$D$1171,Layout!$C$44,SMARTVIEW!$F$5:$F$1171,Layout!$B$44) -> 0 | I44: =SUMIFS(SMARTVIEW!L$5:L$1171,SMARTVIEW!$B$5:$B$1171,Layout!$B$42,SMARTVIEW!$C$5:$C$1171,Layout!$C$42,SMARTVIEW!$D$5:$D$1171,Layout!$C$44,SMARTVIEW!$F$5:$F$1171,Layout!$B$44) -> 0 | J44: =SUMIFS(SMARTVIEW!M$5:M$1171,SMARTVIEW!$B$5:$B$1171,Layout!$B$42,SMARTVIEW!$C$5:$C$1171,Layout!$C$42,SMARTVIEW!$D$5:$D$1171,Layout!$C$44,SMARTVIEW!$F$5:$F$1171,Layout!$B$44) -> 0 | K44: =SUMIFS(SMARTVIEW!N$5:N$1171,SMARTVIEW!$B$5:$B$1171,Layout!$B$42,SMARTVIEW!$C$5:$C$1171,Layout!$C$42,SMARTVIEW!$D$5:$D$1171,Layout!$C$44,SMARTVIEW!$F$5:$F$1171,Layout!$B$44) -> 0 | L44: =SUMIFS(SMARTVIEW!O$5:O$1171,SMARTVIEW!$B$5:$B$1171,Layout!$B$42,SMARTVIEW!$C$5:$C$1171,Layout!$C$42,SMARTVIEW!$D$5:$D$1171,Layout!$C$44,SMARTVIEW!$F$5:$F$1171,Layout!$B$44) -> 0 | M44: =SUMIFS(SMARTVIEW!P$5:P$1171,SMARTVIEW!$B$5:$B$1171,Layout!$B$42,SMARTVIEW!$C$5:$C$1171,Layout!$C$42,SMARTVIEW!$D$5:$D$1171,Layout!$C$44,SMARTVIEW!$F$5:$F$1171,Layout!$B$44) -> 0 | N44: =SUMIFS(SMARTVIEW!Q$5:Q$1171,SMARTVIEW!$B$5:$B$1171,Layout!$B$42,SMARTVIEW!$C$5:$C$1171,Layout!$C$42,SMARTVIEW!$D$5:$D$1171,Layout!$C$44,SMARTVIEW!$F$5:$F$1171,Layout!$B$44) -> 0 | O44: =SUMIFS(SMARTVIEW!R$5:R$1171,SMARTVIEW!$B$5:$B$1171,Layout!$B$42,SMARTVIEW!$C$5:$C$1171,Layout!$C$42,SMARTVIEW!$D$5:$D$1171,Layout!$C$44,SMARTVIEW!$F$5:$F$1171,Layout!$B$44) -> 0 | P44: =SUMIFS(SMARTVIEW!S$5:S$1171,SMARTVIEW!$B$5:$B$1171,Layout!$B$42,SMARTVIEW!$C$5:$C$1171,Layout!$C$42,SMARTVIEW!$D$5:$D$1171,Layout!$C$44,SMARTVIEW!$F$5:$F$1171,Layout!$B$44) -> 0 | Q44: =SUM(E44:P44) -> 0
A46: %,R,FDEPTID,V19800,FACCOUNT,V444230,LACT_USD | B46: FY18 | C46: Actual | D46: CURRENT ACTUAL | E46: =SUMIFS(SMARTVIEW!H$5:H$1171,SMARTVIEW!$B$5:$B$1171,Layout!$B$42,SMARTVIEW!$C$5:$C$1171,Layout!$C$42,SMARTVIEW!$D$5:$D$1171,Layout!$C$46,SMARTVIEW!$F$5:$F$1171,Layout!$B$46) -> 0 | F46: =SUMIFS(SMARTVIEW!I$5:I$1171,SMARTVIEW!$B$5:$B$1171,Layout!$B$42,SMARTVIEW!$C$5:$C$1171,Layout!$C$42,SMARTVIEW!$D$5:$D$1171,Layout!$C$46,SMARTVIEW!$F$5:$F$1171,Layout!$B$46) -> 0 | G46: =SUMIFS(SMARTVIEW!J$5:J$1171,SMARTVIEW!$B$5:$B$1171,Layout!$B$42,SMARTVIEW!$C$5:$C$1171,Layout!$C$42,SMARTVIEW!$D$5:$D$1171,Layout!$C$46,SMARTVIEW!$F$5:$F$1171,Layout!$B$46) -> 0 | H46: =SUMIFS(SMARTVIEW!K$5:K$1171,SMARTVIEW!$B$5:$B$1171,Layout!$B$42,SMARTVIEW!$C$5:$C$1171,Layout!$C$42,SMARTVIEW!$D$5:$D$1171,Layout!$C$46,SMARTVIEW!$F$5:$F$1171,Layout!$B$46) -> 0 | I46: =SUMIFS(SMARTVIEW!L$5:L$1171,SMARTVIEW!$B$5:$B$1171,Layout!$B$42,SMARTVIEW!$C$5:$C$1171,Layout!$C$42,SMARTVIEW!$D$5:$D$1171,Layout!$C$46,SMARTVIEW!$F$5:$F$1171,Layout!$B$46) -> 0 | J46: =SUMIFS(SMARTVIEW!M$5:M$1171,SMARTVIEW!$B$5:$B$1171,Layout!$B$42,SMARTVIEW!$C$5:$C$1171,Layout!$C$42,SMARTVIEW!$D$5:$D$1171,Layout!$C$46,SMARTVIEW!$F$5:$F$1171,Layout!$B$46) -> 0 | K46: =SUMIFS(SMARTVIEW!N$5:N$1171,SMARTVIEW!$B$5:$B$1171,Layout!$B$42,SMARTVIEW!$C$5:$C$1171,Layout!$C$42,SMARTVIEW!$D$5:$D$1171,Layout!$C$46,SMARTVIEW!$F$5:$F$1171,Layout!$B$46) -> 0 | L46: =SUMIFS(SMARTVIEW!O$5:O$1171,SMARTVIEW!$B$5:$B$1171,Layout!$B$42,SMARTVIEW!$C$5:$C$1171,Layout!$C$42,SMARTVIEW!$D$5:$D$1171,Layout!$C$46,SMARTVIEW!$F$5:$F$1171,Layout!$B$46) -> 0 | M46: =SUMIFS(SMARTVIEW!P$5:P$1171,SMARTVIEW!$B$5:$B$1171,Layout!$B$42,SMARTVIEW!$C$5:$C$1171,Layout!$C$42,SMARTVIEW!$D$5:$D$1171,Layout!$C$46,SMARTVIEW!$F$5:$F$1171,Layout!$B$46) -> 0 | N46: =SUMIFS(SMARTVIEW!Q$5:Q$1171,SMARTVIEW!$B$5:$B$1171,Layout!$B$42,SMARTVIEW!$C$5:$C$1171,Layout!$C$42,SMARTVIEW!$D$5:$D$1171,Layout!$C$46,SMARTVIEW!$F$5:$F$1171,Layout!$B$46) -> 0 | O46: =SUMIFS(SMARTVIEW!R$5:R$1171,SMARTVIEW!$B$5:$B$1171,Layout!$B$42,SMARTVIEW!$C$5:$C$1171,Layout!$C$42,SMARTVIEW!$D$5:$D$1171,Layout!$C$46,SMARTVIEW!$F$5:$F$1171,Layout!$B$46) -> 0 | P46: =SUMIFS(SMARTVIEW!S$5:S$1171,SMARTVIEW!$B$5:$B$1171,Layout!$B$42,SMARTVIEW!$C$5:$C$1171,Layout!$C$42,SMARTVIEW!$D$5:$D$1171,Layout!$C$46,SMARTVIEW!$F$5:$F$1171,Layout!$B$46) -> 0 | Q46: =SUM(E46:P46) -> 0 | R46: =Q46 -> 0
B48: FY17 | C48: Actual | D48: PRIOR YEAR ACTUALS | E48: =SUMIFS(SMARTVIEW!H$5:H$1171,SMARTVIEW!$B$5:$B$1171,Layout!$B$42,SMARTVIEW!$C$5:$C$1171,Layout!$C$42,SMARTVIEW!$D$5:$D$1171,Layout!$C$48,SMARTVIEW!$F$5:$F$1171,Layout!$B$48) -> 0 | F48: =SUMIFS(SMARTVIEW!I$5:I$1171,SMARTVIEW!$B$5:$B$1171,Layout!$B$42,SMARTVIEW!$C$5:$C$1171,Layout!$C$42,SMARTVIEW!$D$5:$D$1171,Layout!$C$48,SMARTVIEW!$F$5:$F$1171,Layout!$B$48) -> 0 | G48: =SUMIFS(SMARTVIEW!J$5:J$1171,SMARTVIEW!$B$5:$B$1171,Layout!$B$42,SMARTVIEW!$C$5:$C$1171,Layout!$C$42,SMARTVIEW!$D$5:$D$1171,Layout!$C$48,SMARTVIEW!$F$5:$F$1171,Layout!$B$48) -> 0 | H48: =SUMIFS(SMARTVIEW!K$5:K$1171,SMARTVIEW!$B$5:$B$1171,Layout!$B$42,SMARTVIEW!$C$5:$C$1171,Layout!$C$42,SMARTVIEW!$D$5:$D$1171,Layout!$C$48,SMARTVIEW!$F$5:$F$1171,Layout!$B$48) -> 0 | I48: =SUMIFS(SMARTVIEW!L$5:L$1171,SMARTVIEW!$B$5:$B$1171,Layout!$B$42,SMARTVIEW!$C$5:$C$1171,Layout!$C$42,SMARTVIEW!$D$5:$D$1171,Layout!$C$48,SMARTVIEW!$F$5:$F$1171,Layout!$B$48) -> 0 | J48: =SUMIFS(SMARTVIEW!M$5:M$1171,SMARTVIEW!$B$5:$B$1171,Layout!$B$42,SMARTVIEW!$C$5:$C$1171,Layout!$C$42,SMARTVIEW!$D$5:$D$1171,Layout!$C$48,SMARTVIEW!$F$5:$F$1171,Layout!$B$48) -> 0 | K48: =SUMIFS(SMARTVIEW!N$5:N$1171,SMARTVIEW!$B$5:$B$1171,Layout!$B$42,SMARTVIEW!$C$5:$C$1171,Layout!$C$42,SMARTVIEW!$D$5:$D$1171,Layout!$C$48,SMARTVIEW!$F$5:$F$1171,Layout!$B$48) -> 0 | L48: =SUMIFS(SMARTVIEW!O$5:O$1171,SMARTVIEW!$B$5:$B$1171,Layout!$B$42,SMARTVIEW!$C$5:$C$1171,Layout!$C$42,SMARTVIEW!$D$5:$D$1171,Layout!$C$48,SMARTVIEW!$F$5:$F$1171,Layout!$B$48) -> 0 | M48: =SUMIFS(SMARTVIEW!P$5:P$1171,SMARTVIEW!$B$5:$B$1171,Layout!$B$42,SMARTVIEW!$C$5:$C$1171,Layout!$C$42,SMARTVIEW!$D$5:$D$1171,Layout!$C$48,SMARTVIEW!$F$5:$F$1171,Layout!$B$48) -> 0 | N48: =SUMIFS(SMARTVIEW!Q$5:Q$1171,SMARTVIEW!$B$5:$B$1171,Layout!$B$42,SMARTVIEW!$C$5:$C$1171,Layout!$C$42,SMARTVIEW!$D$5:$D$1171,Layout!$C$48,SMARTVIEW!$F$5:$F$1171,Layout!$B$48) -> 0 | O48: =SUMIFS(SMARTVIEW!R$5:R$1171,SMARTVIEW!$B$5:$B$1171,Layout!$B$42,SMARTVIEW!$C$5:$C$1171,Layout!$C$42,SMARTVIEW!$D$5:$D$1171,Layout!$C$48,SMARTVIEW!$F$5:$F$1171,Layout!$B$48) -> 0 | P48: =SUMIFS(SMARTVIEW!S$5:S$1171,SMARTVIEW!$B$5:$B$1171,Layout!$B$42,SMARTVIEW!$C$5:$C$1171,Layout!$C$42,SMARTVIEW!$D$5:$D$1171,Layout!$C$48,SMARTVIEW!$F$5:$F$1171,Layout!$B$48) -> 0 | Q48: =SUM(E48:P48) -> 0
S51: Enter Notes Below
D52: FUTURE BUDGET | E52: 0 | F52: 0 | G52: 0 | H52: 0 | I52: 0 | J52: 0 | K52: 0 | L52: 0 | M52: 0 | N52: 0 | O52: 0 | P52: 0 | Q52: =SUM(E52:P52) -> 0
B56: D19800 | C56: 458060 | D56: REAL ESTATE TAX FEE
A58: %,R,FDEPTID,V19800,FACCOUNT,V458060,LBUD_USD | B58: FY18 | C58: PLANNING | D58: CURRENT BUDGET | E58: =SUMIFS(SMARTVIEW!H$5:H$1171,SMARTVIEW!$B$5:$B$1171,Layout!$B$56,SMARTVIEW!$C$5:$C$1171,Layout!$C$56,SMARTVIEW!$D$5:$D$1171,Layout!$C$58,SMARTVIEW!$F$5:$F$1171,Layout!$B$58) -> 0 | F58: =SUMIFS(SMARTVIEW!I$5:I$1171,SMARTVIEW!$B$5:$B$1171,Layout!$B$56,SMARTVIEW!$C$5:$C$1171,Layout!$C$56,SMARTVIEW!$D$5:$D$1171,Layout!$C$58,SMARTVIEW!$F$5:$F$1171,Layout!$B$58) -> 0 | G58: =SUMIFS(SMARTVIEW!J$5:J$1171,SMARTVIEW!$B$5:$B$1171,Layout!$B$56,SMARTVIEW!$C$5:$C$1171,Layout!$C$56,SMARTVIEW!$D$5:$D$1171,Layout!$C$58,SMARTVIEW!$F$5:$F$1171,Layout!$B$58) -> 0 | H58: =SUMIFS(SMARTVIEW!K$5:K$1171,SMARTVIEW!$B$5:$B$1171,Layout!$B$56,SMARTVIEW!$C$5:$C$1171,Layout!$C$56,SMARTVIEW!$D$5:$D$1171,Layout!$C$58,SMARTVIEW!$F$5:$F$1171,Layout!$B$58) -> 0 | I58: =SUMIFS(SMARTVIEW!L$5:L$1171,SMARTVIEW!$B$5:$B$1171,Layout!$B$56,SMARTVIEW!$C$5:$C$1171,Layout!$C$56,SMARTVIEW!$D$5:$D$1171,Layout!$C$58,SMARTVIEW!$F$5:$F$1171,Layout!$B$58) -> 0 | J58: =SUMIFS(SMARTVIEW!M$5:M$1171,SMARTVIEW!$B$5:$B$1171,Layout!$B$56,SMARTVIEW!$C$5:$C$1171,Layout!$C$56,SMARTVIEW!$D$5:$D$1171,Layout!$C$58,SMARTVIEW!$F$5:$F$1171,Layout!$B$58) -> 0 | K58: =SUMIFS(SMARTVIEW!N$5:N$1171,SMARTVIEW!$B$5:$B$1171,Layout!$B$56,SMARTVIEW!$C$5:$C$1171,Layout!$C$56,SMARTVIEW!$D$5:$D$1171,Layout!$C$58,SMARTVIEW!$F$5:$F$1171,Layout!$B$58) -> 0 | L58: =SUMIFS(SMARTVIEW!O$5:O$1171,SMARTVIEW!$B$5:$B$1171,Layout!$B$56,SMARTVIEW!$C$5:$C$1171,Layout!$C$56,SMARTVIEW!$D$5:$D$1171,Layout!$C$58,SMARTVIEW!$F$5:$F$1171,Layout!$B$58) -> 0 | M58: =SUMIFS(SMARTVIEW!P$5:P$1171,SMARTVIEW!$B$5:$B$1171,Layout!$B$56,SMARTVIEW!$C$5:$C$1171,Layout!$C$56,SMARTVIEW!$D$5:$D$1171,Layout!$C$58,SMARTVIEW!$F$5:$F$1171,Layout!$B$58) -> 0 | N58: =SUMIFS(SMARTVIEW!Q$5:Q$1171,SMARTVIEW!$B$5:$B$1171,Layout!$B$56,SMARTVIEW!$C$5:$C$1171,Layout!$C$56,SMARTVIEW!$D$5:$D$1171,Layout!$C$58,SMARTVIEW!$F$5:$F$1171,Layout!$B$58) -> 0 | O58: =SUMIFS(SMARTVIEW!R$5:R$1171,SMARTVIEW!$B$5:$B$1171,Layout!$B$56,SMARTVIEW!$C$5:$C$1171,Layout!$C$56,SMARTVIEW!$D$5:$D$1171,Layout!$C$58,SMARTVIEW!$F$5:$F$1171,Layout!$B$58) -> 0 | P58: =SUMIFS(SMARTVIEW!S$5:S$1171,SMARTVIEW!$B$5:$B$1171,Layout!$B$56,SMARTVIEW!$C$5:$C$1171,Layout!$C$56,SMARTVIEW!$D$5:$D$1171,Layout!$C$58,SMARTVIEW!$F$5:$F$1171,Layout!$B$58) -> 0 | Q58: =SUM(E58:P58) -> 0
A60: %,R,FDEPTID,V19800,FACCOUNT,V458060,LACT_USD | B60: FY18 | C60: Actual | D60: CURRENT ACTUAL | E60: =SUMIFS(SMARTVIEW!H$5:H$1171,SMARTVIEW!$B$5:$B$1171,Layout!$B$56,SMARTVIEW!$C$5:$C$1171,Layout!$C$56,SMARTVIEW!$D$5:$D$1171,Layout!$C$60,SMARTVIEW!$F$5:$F$1171,Layout!$B$60) -> 0 | F60: =SUMIFS(SMARTVIEW!I$5:I$1171,SMARTVIEW!$B$5:$B$1171,Layout!$B$56,SMARTVIEW!$C$5:$C$1171,Layout!$C$56,SMARTVIEW!$D$5:$D$1171,Layout!$C$60,SMARTVIEW!$F$5:$F$1171,Layout!$B$60) -> 0 | G60: =SUMIFS(SMARTVIEW!J$5:J$1171,SMARTVIEW!$B$5:$B$1171,Layout!$B$56,SMARTVIEW!$C$5:$C$1171,Layout!$C$56,SMARTVIEW!$D$5:$D$1171,Layout!$C$60,SMARTVIEW!$F$5:$F$1171,Layout!$B$60) -> 0 | H60: =SUMIFS(SMARTVIEW!K$5:K$1171,SMARTVIEW!$B$5:$B$1171,Layout!$B$56,SMARTVIEW!$C$5:$C$1171,Layout!$C$56,SMARTVIEW!$D$5:$D$1171,Layout!$C$60,SMARTVIEW!$F$5:$F$1171,Layout!$B$60) -> 0 | I60: =SUMIFS(SMARTVIEW!L$5:L$1171,SMARTVIEW!$B$5:$B$1171,Layout!$B$56,SMARTVIEW!$C$5:$C$1171,Layout!$C$56,SMARTVIEW!$D$5:$D$1171,Layout!$C$60,SMARTVIEW!$F$5:$F$1171,Layout!$B$60) -> 0 | J60: =SUMIFS(SMARTVIEW!M$5:M$1171,SMARTVIEW!$B$5:$B$1171,Layout!$B$56,SMARTVIEW!$C$5:$C$1171,Layout!$C$56,SMARTVIEW!$D$5:$D$1171,Layout!$C$60,SMARTVIEW!$F$5:$F$1171,Layout!$B$60) -> 0 | K60: =SUMIFS(SMARTVIEW!N$5:N$1171,SMARTVIEW!$B$5:$B$1171,Layout!$B$56,SMARTVIEW!$C$5:$C$1171,Layout!$C$56,SMARTVIEW!$D$5:$D$1171,Layout!$C$60,SMARTVIEW!$F$5:$F$1171,Layout!$B$60) -> 0 | L60: =SUMIFS(SMARTVIEW!O$5:O$1171,SMARTVIEW!$B$5:$B$1171,Layout!$B$56,SMARTVIEW!$C$5:$C$1171,Layout!$C$56,SMARTVIEW!$D$5:$D$1171,Layout!$C$60,SMARTVIEW!$F$5:$F$1171,Layout!$B$60) -> 0 | M60: =SUMIFS(SMARTVIEW!P$5:P$1171,SMARTVIEW!$B$5:$B$1171,Layout!$B$56,SMARTVIEW!$C$5:$C$1171,Layout!$C$56,SMARTVIEW!$D$5:$D$1171,Layout!$C$60,SMARTVIEW!$F$5:$F$1171,Layout!$B$60) -> 0 | N60: =SUMIFS(SMARTVIEW!Q$5:Q$1171,SMARTVIEW!$B$5:$B$1171,Layout!$B$56,SMARTVIEW!$C$5:$C$1171,Layout!$C$56,SMARTVIEW!$D$5:$D$1171,Layout!$C$60,SMARTVIEW!$F$5:$F$1171,Layout!$B$60) -> 0 | O60: =SUMIFS(SMARTVIEW!R$5:R$1171,SMARTVIEW!$B$5:$B$1171,Layout!$B$56,SMARTVIEW!$C$5:$C$1171,Layout!$C$56,SMARTVIEW!$D$5:$D$1171,Layout!$C$60,SMARTVIEW!$F$5:$F$1171,Layout!$B$60) -> 0 | P60: =SUMIFS(SMARTVIEW!S$5:S$1171,SMARTVIEW!$B$5:$B$1171,Layout!$B$56,SMARTVIEW!$C$5:$C$1171,Layout!$C$56,SMARTVIEW!$D$5:$D$1171,Layout!$C$60,SMARTVIEW!$F$5:$F$1171,Layout!$B$60) -> 0 | Q60: =SUM(E60:P60) -> 0 | R60: =Q60 -> 0
B62: FY17 | C62: Actual | D62: PRIOR YEAR ACTUALS | E62: =SUMIFS(SMARTVIEW!H$5:H$1171,SMARTVIEW!$B$5:$B$1171,Layout!$B$56,SMARTVIEW!$C$5:$C$1171,Layout!$C$56,SMARTVIEW!$D$5:$D$1171,Layout!$C$62,SMARTVIEW!$F$5:$F$1171,Layout!$B$62) -> 0 | F62: =SUMIFS(SMARTVIEW!I$5:I$1171,SMARTVIEW!$B$5:$B$1171,Layout!$B$56,SMARTVIEW!$C$5:$C$1171,Layout!$C$56,SMARTVIEW!$D$5:$D$1171,Layout!$C$62,SMARTVIEW!$F$5:$F$1171,Layout!$B$62) -> 0 | G62: =SUMIFS(SMARTVIEW!J$5:J$1171,SMARTVIEW!$B$5:$B$1171,Layout!$B$56,SMARTVIEW!$C$5:$C$1171,Layout!$C$56,SMARTVIEW!$D$5:$D$1171,Layout!$C$62,SMARTVIEW!$F$5:$F$1171,Layout!$B$62) -> 0 | H62: =SUMIFS(SMARTVIEW!K$5:K$1171,SMARTVIEW!$B$5:$B$1171,Layout!$B$56,SMARTVIEW!$C$5:$C$1171,Layout!$C$56,SMARTVIEW!$D$5:$D$1171,Layout!$C$62,SMARTVIEW!$F$5:$F$1171,Layout!$B$62) -> 0 | I62: =SUMIFS(SMARTVIEW!L$5:L$1171,SMARTVIEW!$B$5:$B$1171,Layout!$B$56,SMARTVIEW!$C$5:$C$1171,Layout!$C$56,SMARTVIEW!$D$5:$D$1171,Layout!$C$62,SMARTVIEW!$F$5:$F$1171,Layout!$B$62) -> 0 | J62: =SUMIFS(SMARTVIEW!M$5:M$1171,SMARTVIEW!$B$5:$B$1171,Layout!$B$56,SMARTVIEW!$C$5:$C$1171,Layout!$C$56,SMARTVIEW!$D$5:$D$1171,Layout!$C$62,SMARTVIEW!$F$5:$F$1171,Layout!$B$62) -> 0 | K62: =SUMIFS(SMARTVIEW!N$5:N$1171,SMARTVIEW!$B$5:$B$1171,Layout!$B$56,SMARTVIEW!$C$5:$C$1171,Layout!$C$56,SMARTVIEW!$D$5:$D$1171,Layout!$C$62,SMARTVIEW!$F$5:$F$1171,Layout!$B$62) -> 0 | L62: =SUMIFS(SMARTVIEW!O$5:O$1171,SMARTVIEW!$B$5:$B$1171,Layout!$B$56,SMARTVIEW!$C$5:$C$1171,Layout!$C$56,SMARTVIEW!$D$5:$D$1171,Layout!$C$62,SMARTVIEW!$F$5:$F$1171,Layout!$B$62) -> 0 | M62: =SUMIFS(SMARTVIEW!P$5:P$1171,SMARTVIEW!$B$5:$B$1171,Layout!$B$56,SMARTVIEW!$C$5:$C$1171,Layout!$C$56,SMARTVIEW!$D$5:$D$1171,Layout!$C$62,SMARTVIEW!$F$5:$F$1171,Layout!$B$62) -> 0 | N62: =SUMIFS(SMARTVIEW!Q$5:Q$1171,SMARTVIEW!$B$5:$B$1171,Layout!$B$56,SMARTVIEW!$C$5:$C$1171,Layout!$C$56,SMARTVIEW!$D$5:$D$1171,Layout!$C$62,SMARTVIEW!$F$5:$F$1171,Layout!$B$62) -> 0 | O62: =SUMIFS(SMARTVIEW!R$5:R$1171,SMARTVIEW!$B$5:$B$1171,Layout!$B$56,SMARTVIEW!$C$5:$C$1171,Layout!$C$56,SMARTVIEW!$D$5:$D$1171,Layout!$C$62,SMARTVIEW!$F$5:$F$1171,Layout!$B$62) -> 0 | P62: =SUMIFS(SMARTVIEW!S$5:S$1171,SMARTVIEW!$B$5:$B$1171,Layout!$B$56,SMARTVIEW!$C$5:$C$1171,Layout!$C$56,SMARTVIEW!$D$5:$D$1171,Layout!$C$62,SMARTVIEW!$F$5:$F$1171,Layout!$B$62) -> 0 | Q62: =SUM(E62:P62) -> 0
S65: Enter Notes Below
D66: FUTURE BUDGET | E66: 0 | F66: 0 | G66: 0 | H66: 0 | I66: 0 | J66: 0 | K66: 0 | L66: 0 | M66: 0 | N66: 0 | O66: 0 | P66: 0 | Q66: =SUM(E66:P66) -> 0
B70: D19800 | C70: 458080 | D70: LATE FEE INCOME
A72: %,R,FDEPTID,V19800,FACCOUNT,V458080,LBUD_USD | B72: FY18 | C72: PLANNING | D72: CURRENT BUDGET | E72: =SUMIFS(SMARTVIEW!H$5:H$1171,SMARTVIEW!$B$5:$B$1171,Layout!$B$70,SMARTVIEW!$C$5:$C$1171,Layout!$C$70,SMARTVIEW!$D$5:$D$1171,Layout!$C$72,SMARTVIEW!$F$5:$F$1171,Layout!$B$72) -> 50 | F72: =SUMIFS(SMARTVIEW!I$5:I$1171,SMARTVIEW!$B$5:$B$1171,Layout!$B$70,SMARTVIEW!$C$5:$C$1171,Layout!$C$70,SMARTVIEW!$D$5:$D$1171,Layout!$C$72,SMARTVIEW!$F$5:$F$1171,Layout!$B$72) -> 700 | G72: =SUMIFS(SMARTVIEW!J$5:J$1171,SMARTVIEW!$B$5:$B$1171,Layout!$B$70,SMARTVIEW!$C$5:$C$1171,Layout!$C$70,SMARTVIEW!$D$5:$D$1171,Layout!$C$72,SMARTVIEW!$F$5:$F$1171,Layout!$B$72) -> 3000 | H72: =SUMIFS(SMARTVIEW!K$5:K$1171,SMARTVIEW!$B$5:$B$1171,Layout!$B$70,SMARTVIEW!$C$5:$C$1171,Layout!$C$70,SMARTVIEW!$D$5:$D$1171,Layout!$C$72,SMARTVIEW!$F$5:$F$1171,Layout!$B$72) -> 2000 | I72: =SUMIFS(SMARTVIEW!L$5:L$1171,SMARTVIEW!$B$5:$B$1171,Layout!$B$70,SMARTVIEW!$C$5:$C$1171,Layout!$C$70,SMARTVIEW!$D$5:$D$1171,Layout!$C$72,SMARTVIEW!$F$5:$F$1171,Layout!$B$72) -> 1000 | J72: =SUMIFS(SMARTVIEW!M$5:M$1171,SMARTVIEW!$B$5:$B$1171,Layout!$B$70,SMARTVIEW!$C$5:$C$1171,Layout!$C$70,SMARTVIEW!$D$5:$D$1171,Layout!$C$72,SMARTVIEW!$F$5:$F$1171,Layout!$B$72) -> 200 | K72: =SUMIFS(SMARTVIEW!N$5:N$1171,SMARTVIEW!$B$5:$B$1171,Layout!$B$70,SMARTVIEW!$C$5:$C$1171,Layout!$C$70,SMARTVIEW!$D$5:$D$1171,Layout!$C$72,SMARTVIEW!$F$5:$F$1171,Layout!$B$72) -> 100 | L72: =SUMIFS(SMARTVIEW!O$5:O$1171,SMARTVIEW!$B$5:$B$1171,Layout!$B$70,SMARTVIEW!$C$5:$C$1171,Layout!$C$70,SMARTVIEW!$D$5:$D$1171,Layout!$C$72,SMARTVIEW!$F$5:$F$1171,Layout!$B$72) -> 100 | M72: =SUMIFS(SMARTVIEW!P$5:P$1171,SMARTVIEW!$B$5:$B$1171,Layout!$B$70,SMARTVIEW!$C$5:$C$1171,Layout!$C$70,SMARTVIEW!$D$5:$D$1171,Layout!$C$72,SMARTVIEW!$F$5:$F$1171,Layout!$B$72) -> 100 | N72: =SUMIFS(SMARTVIEW!Q$5:Q$1171,SMARTVIEW!$B$5:$B$1171,Layout!$B$70,SMARTVIEW!$C$5:$C$1171,Layout!$C$70,SMARTVIEW!$D$5:$D$1171,Layout!$C$72,SMARTVIEW!$F$5:$F$1171,Layout!$B$72) -> 100 | O72: =SUMIFS(SMARTVIEW!R$5:R$1171,SMARTVIEW!$B$5:$B$1171,Layout!$B$70,SMARTVIEW!$C$5:$C$1171,Layout!$C$70,SMARTVIEW!$D$5:$D$1171,Layout!$C$72,SMARTVIEW!$F$5:$F$1171,Layout!$B$72) -> 100 | P72: =SUMIFS(SMARTVIEW!S$5:S$1171,SMARTVIEW!$B$5:$B$1171,Layout!$B$70,SMARTVIEW!$C$5:$C$1171,Layout!$C$70,SMARTVIEW!$D$5:$D$1171,Layout!$C$72,SMARTVIEW!$F$5:$F$1171,Layout!$B$72) -> 100 | Q72: =SUM(E72:P72) -> 7550
A74: %,R,FDEPTID,V19800,FACCOUNT,V458080,LACT_USD | B74: FY18 | C74: Actual | D74: CURRENT ACTUAL | E74: =SUMIFS(SMARTVIEW!H$5:H$1171,SMARTVIEW!$B$5:$B$1171,Layout!$B$70,SMARTVIEW!$C$5:$C$1171,Layout!$C$70,SMARTVIEW!$D$5:$D$1171,Layout!$C$74,SMARTVIEW!$F$5:$F$1171,Layout!$B$74) -> 27.87 | F74: =SUMIFS(SMARTVIEW!I$5:I$1171,SMARTVIEW!$B$5:$B$1171,Layout!$B$70,SMARTVIEW!$C$5:$C$1171,Layout!$C$70,SMARTVIEW!$D$5:$D$1171,Layout!$C$74,SMARTVIEW!$F$5:$F$1171,Layout!$B$74) -> 369 | G74: =SUMIFS(SMARTVIEW!J$5:J$1171,SMARTVIEW!$B$5:$B$1171,Layout!$B$70,SMARTVIEW!$C$5:$C$1171,Layout!$C$70,SMARTVIEW!$D$5:$D$1171,Layout!$C$74,SMARTVIEW!$F$5:$F$1171,Layout!$B$74) -> 5247.91 | H74: =SUMIFS(SMARTVIEW!K$5:K$1171,SMARTVIEW!$B$5:$B$1171,Layout!$B$70,SMARTVIEW!$C$5:$C$1171,Layout!$C$70,SMARTVIEW!$D$5:$D$1171,Layout!$C$74,SMARTVIEW!$F$5:$F$1171,Layout!$B$74) -> 1113.17 | I74: =SUMIFS(SMARTVIEW!L$5:L$1171,SMARTVIEW!$B$5:$B$1171,Layout!$B$70,SMARTVIEW!$C$5:$C$1171,Layout!$C$70,SMARTVIEW!$D$5:$D$1171,Layout!$C$74,SMARTVIEW!$F$5:$F$1171,Layout!$B$74) -> 498.92 | J74: =SUMIFS(SMARTVIEW!M$5:M$1171,SMARTVIEW!$B$5:$B$1171,Layout!$B$70,SMARTVIEW!$C$5:$C$1171,Layout!$C$70,SMARTVIEW!$D$5:$D$1171,Layout!$C$74,SMARTVIEW!$F$5:$F$1171,Layout!$B$74) -> 206.66 | K74: 102 | L74: 280 | M74: 100 | N74: 100 | O74: 100 | P74: 100 | Q74: =SUM(E74:P74) -> 8245.53 | R74: =Q74 -> 8245.53
B76: FY17 | C76: Actual | D76: PRIOR YEAR ACTUALS | E76: =SUMIFS(SMARTVIEW!H$5:H$1171,SMARTVIEW!$B$5:$B$1171,Layout!$B$70,SMARTVIEW!$C$5:$C$1171,Layout!$C$70,SMARTVIEW!$D$5:$D$1171,Layout!$C$76,SMARTVIEW!$F$5:$F$1171,Layout!$B$76) -> 434.02 | F76: =SUMIFS(SMARTVIEW!I$5:I$1171,SMARTVIEW!$B$5:$B$1171,Layout!$B$70,SMARTVIEW!$C$5:$C$1171,Layout!$C$70,SMARTVIEW!$D$5:$D$1171,Layout!$C$76,SMARTVIEW!$F$5:$F$1171,Layout!$B$76) -> 720.77 | G76: =SUMIFS(SMARTVIEW!J$5:J$1171,SMARTVIEW!$B$5:$B$1171,Layout!$B$70,SMARTVIEW!$C$5:$C$1171,Layout!$C$70,SMARTVIEW!$D$5:$D$1171,Layout!$C$76,SMARTVIEW!$F$5:$F$1171,Layout!$B$76) -> 2787.85 | H76: =SUMIFS(SMARTVIEW!K$5:K$1171,SMARTVIEW!$B$5:$B$1171,Layout!$B$70,SMARTVIEW!$C$5:$C$1171,Layout!$C$70,SMARTVIEW!$D$5:$D$1171,Layout!$C$76,SMARTVIEW!$F$5:$F$1171,Layout!$B$76) -> 1988.82 | I76: =SUMIFS(SMARTVIEW!L$5:L$1171,SMARTVIEW!$B$5:$B$1171,Layout!$B$70,SMARTVIEW!$C$5:$C$1171,Layout!$C$70,SMARTVIEW!$D$5:$D$1171,Layout!$C$76,SMARTVIEW!$F$5:$F$1171,Layout!$B$76) -> 1778.19 | J76: =SUMIFS(SMARTVIEW!M$5:M$1171,SMARTVIEW!$B$5:$B$1171,Layout!$B$70,SMARTVIEW!$C$5:$C$1171,Layout!$C$70,SMARTVIEW!$D$5:$D$1171,Layout!$C$76,SMARTVIEW!$F$5:$F$1171,Layout!$B$76) -> 256.56 | K76: =SUMIFS(SMARTVIEW!N$5:N$1171,SMARTVIEW!$B$5:$B$1171,Layout!$B$70,SMARTVIEW!$C$5:$C$1171,Layout!$C$70,SMARTVIEW!$D$5:$D$1171,Layout!$C$76,SMARTVIEW!$F$5:$F$1171,Layout!$B$76) -> 0 | L76: =SUMIFS(SMARTVIEW!O$5:O$1171,SMARTVIEW!$B$5:$B$1171,Layout!$B$70,SMARTVIEW!$C$5:$C$1171,Layout!$C$70,SMARTVIEW!$D$5:$D$1171,Layout!$C$76,SMARTVIEW!$F$5:$F$1171,Layout!$B$76) -> 0 | M76: =SUMIFS(SMARTVIEW!P$5:P$1171,SMARTVIEW!$B$5:$B$1171,Layout!$B$70,SMARTVIEW!$C$5:$C$1171,Layout!$C$70,SMARTVIEW!$D$5:$D$1171,Layout!$C$76,SMARTVIEW!$F$5:$F$1171,Layout!$B$76) -> 0 | N76: =SUMIFS(SMARTVIEW!Q$5:Q$1171,SMARTVIEW!$B$5:$B$1171,Layout!$B$70,SMARTVIEW!$C$5:$C$1171,Layout!$C$70,SMARTVIEW!$D$5:$D$1171,Layout!$C$76,SMARTVIEW!$F$5:$F$1171,Layout!$B$76) -> 0 | O76: =SUMIFS(SMARTVIEW!R$5:R$1171,SMARTVIEW!$B$5:$B$1171,Layout!$B$70,SMARTVIEW!$C$5:$C$1171,Layout!$C$70,SMARTVIEW!$D$5:$D$1171,Layout!$C$76,SMARTVIEW!$F$5:$F$1171,Layout!$B$76) -> 0 | P76: =SUMIFS(SMARTVIEW!S$5:S$1171,SMARTVIEW!$B$5:$B$1171,Layout!$B$70,SMARTVIEW!$C$5:$C$1171,Layout!$C$70,SMARTVIEW!$D$5:$D$1171,Layout!$C$76,SMARTVIEW!$F$5:$F$1171,Layout!$B$76) -> 0 | Q76: =SUM(E76:P76) -> 7966.21
S79: Enter Notes Below
D80: FUTURE BUDGET | E80: 0 | F80: =SUMIFS(SMARTVIEW!I$5:I$1171,SMARTVIEW!$B$5:$B$1171,Layout!$B$70,SMARTVIEW!$C$5:$C$1171,Layout!$C$70,SMARTVIEW!$D$5:$D$1171,Layout!$C$72,SMARTVIEW!$F$5:$F$1171,Layout!$B$72) -> 700 | G80: 3400 | H80: =SUMIFS(SMARTVIEW!K$5:K$1171,SMARTVIEW!$B$5:$B$1171,Layout!$B$70,SMARTVIEW!$C$5:$C$1171,Layout!$C$70,SMARTVIEW!$D$5:$D$1171,Layout!$C$72,SMARTVIEW!$F$5:$F$1171,Layout!$B$72) -> 2000 | I80: =SUMIFS(SMARTVIEW!L$5:L$1171,SMARTVIEW!$B$5:$B$1171,Layout!$B$70,SMARTVIEW!$C$5:$C$1171,Layout!$C$70,SMARTVIEW!$D$5:$D$1171,Layout!$C$72,SMARTVIEW!$F$5:$F$1171,Layout!$B$72) -> 1000 | J80: =SUMIFS(SMARTVIEW!M$5:M$1171,SMARTVIEW!$B$5:$B$1171,Layout!$B$70,SMARTVIEW!$C$5:$C$1171,Layout!$C$70,SMARTVIEW!$D$5:$D$1171,Layout!$C$72,SMARTVIEW!$F$5:$F$1171,Layout!$B$72) -> 200 | K80: =SUMIFS(SMARTVIEW!N$5:N$1171,SMARTVIEW!$B$5:$B$1171,Layout!$B$70,SMARTVIEW!$C$5:$C$1171,Layout!$C$70,SMARTVIEW!$D$5:$D$1171,Layout!$C$72,SMARTVIEW!$F$5:$F$1171,Layout!$B$72) -> 100 | L80: 200 | M80: =SUMIFS(SMARTVIEW!P$5:P$1171,SMARTVIEW!$B$5:$B$1171,Layout!$B$70,SMARTVIEW!$C$5:$C$1171,Layout!$C$70,SMARTVIEW!$D$5:$D$1171,Layout!$C$72,SMARTVIEW!$F$5:$F$1171,Layout!$B$72) -> 100 | N80: =SUMIFS(SMARTVIEW!Q$5:Q$1171,SMARTVIEW!$B$5:$B$1171,Layout!$B$70,SMARTVIEW!$C$5:$C$1171,Layout!$C$70,SMARTVIEW!$D$5:$D$1171,Layout!$C$72,SMARTVIEW!$F$5:$F$1171,Layout!$B$72) -> 100 | O80: =SUMIFS(SMARTVIEW!R$5:R$1171,SMARTVIEW!$B$5:$B$1171,Layout!$B$70,SMARTVIEW!$C$5:$C$1171,Layout!$C$70,SMARTVIEW!$D$5:$D$1171,Layout!$C$72,SMARTVIEW!$F$5:$F$1171,Layout!$B$72) -> 100 | P80: =SUMIFS(SMARTVIEW!S$5:S$1171,SMARTVIEW!$B$5:$B$1171,Layout!$B$70,SMARTVIEW!$C$5:$C$1171,Layout!$C$70,SMARTVIEW!$D$5:$D$1171,Layout!$C$72,SMARTVIEW!$F$5:$F$1171,Layout!$B$72) -> 100 | Q80: =SUM(E80:P80) -> 8000 | S80: Same as budgeted
B84: D19800 | C84: 458090 | D84: NSF INCOME
A86: %,R,FDEPTID,V19800,FACCOUNT,V458090,LBUD_USD | B86: FY18 | C86: PLANNING | D86: CURRENT BUDGET | E86: =SUMIFS(SMARTVIEW!H$5:H$1171,SMARTVIEW!$B$5:$B$1171,Layout!$B$84,SMARTVIEW!$C$5:$C$1171,Layout!$C$84,SMARTVIEW!$D$5:$D$1171,Layout!$C$86,SMARTVIEW!$F$5:$F$1171,Layout!$B$86) -> 0 | F86: =SUMIFS(SMARTVIEW!I$5:I$1171,SMARTVIEW!$B$5:$B$1171,Layout!$B$84,SMARTVIEW!$C$5:$C$1171,Layout!$C$84,SMARTVIEW!$D$5:$D$1171,Layout!$C$86,SMARTVIEW!$F$5:$F$1171,Layout!$B$86) -> 0 | G86: =SUMIFS(SMARTVIEW!J$5:J$1171,SMARTVIEW!$B$5:$B$1171,Layout!$B$84,SMARTVIEW!$C$5:$C$1171,Layout!$C$84,SMARTVIEW!$D$5:$D$1171,Layout!$C$86,SMARTVIEW!$F$5:$F$1171,Layout!$B$86) -> 0 | H86: =SUMIFS(SMARTVIEW!K$5:K$1171,SMARTVIEW!$B$5:$B$1171,Layout!$B$84,SMARTVIEW!$C$5:$C$1171,Layout!$C$84,SMARTVIEW!$D$5:$D$1171,Layout!$C$86,SMARTVIEW!$F$5:$F$1171,Layout!$B$86) -> 0 | I86: =SUMIFS(SMARTVIEW!L$5:L$1171,SMARTVIEW!$B$5:$B$1171,Layout!$B$84,SMARTVIEW!$C$5:$C$1171,Layout!$C$84,SMARTVIEW!$D$5:$D$1171,Layout!$C$86,SMARTVIEW!$F$5:$F$1171,Layout!$B$86) -> 0 | J86: =SUMIFS(SMARTVIEW!M$5:M$1171,SMARTVIEW!$B$5:$B$1171,Layout!$B$84,SMARTVIEW!$C$5:$C$1171,Layout!$C$84,SMARTVIEW!$D$5:$D$1171,Layout!$C$86,SMARTVIEW!$F$5:$F$1171,Layout!$B$86) -> 0 | K86: =SUMIFS(SMARTVIEW!N$5:N$1171,SMARTVIEW!$B$5:$B$1171,Layout!$B$84,SMARTVIEW!$C$5:$C$1171,Layout!$C$84,SMARTVIEW!$D$5:$D$1171,Layout!$C$86,SMARTVIEW!$F$5:$F$1171,Layout!$B$86) -> 0 | L86: =SUMIFS(SMARTVIEW!O$5:O$1171,SMARTVIEW!$B$5:$B$1171,Layout!$B$84,SMARTVIEW!$C$5:$C$1171,Layout!$C$84,SMARTVIEW!$D$5:$D$1171,Layout!$C$86,SMARTVIEW!$F$5:$F$1171,Layout!$B$86) -> 0 | M86: =SUMIFS(SMARTVIEW!P$5:P$1171,SMARTVIEW!$B$5:$B$1171,Layout!$B$84,SMARTVIEW!$C$5:$C$1171,Layout!$C$84,SMARTVIEW!$D$5:$D$1171,Layout!$C$86,SMARTVIEW!$F$5:$F$1171,Layout!$B$86) -> 0 | N86: =SUMIFS(SMARTVIEW!Q$5:Q$1171,SMARTVIEW!$B$5:$B$1171,Layout!$B$84,SMARTVIEW!$C$5:$C$1171,Layout!$C$84,SMARTVIEW!$D$5:$D$1171,Layout!$C$86,SMARTVIEW!$F$5:$F$1171,Layout!$B$86) -> 0 | O86: =SUMIFS(SMARTVIEW!R$5:R$1171,SMARTVIEW!$B$5:$B$1171,Layout!$B$84,SMARTVIEW!$C$5:$C$1171,Layout!$C$84,SMARTVIEW!$D$5:$D$1171,Layout!$C$86,SMARTVIEW!$F$5:$F$1171,Layout!$B$86) -> 0 | P86: =SUMIFS(SMARTVIEW!S$5:S$1171,SMARTVIEW!$B$5:$B$1171,Layout!$B$84,SMARTVIEW!$C$5:$C$1171,Layout!$C$84,SMARTVIEW!$D$5:$D$1171,Layout!$C$86,SMARTVIEW!$F$5:$F$1171,Layout!$B$86) -> 0 | Q86: =SUM(E86:P86) -> 0
A88: %,R,FDEPTID,V19800,FACCOUNT,V458090,LACT_USD | B88: FY18 | C88: Actual | D88: CURRENT ACTUAL | E88: =SUMIFS(SMARTVIEW!H$5:H$1171,SMARTVIEW!$B$5:$B$1171,Layout!$B$84,SMARTVIEW!$C$5:$C$1171,Layout!$C$84,SMARTVIEW!$D$5:$D$1171,Layout!$C$88,SMARTVIEW!$F$5:$F$1171,Layout!$B$88) -> 35 | F88: =SUMIFS(SMARTVIEW!I$5:I$1171,SMARTVIEW!$B$5:$B$1171,Layout!$B$84,SMARTVIEW!$C$5:$C$1171,Layout!$C$84,SMARTVIEW!$D$5:$D$1171,Layout!$C$88,SMARTVIEW!$F$5:$F$1171,Layout!$B$88) -> 0 | G88: =SUMIFS(SMARTVIEW!J$5:J$1171,SMARTVIEW!$B$5:$B$1171,Layout!$B$84,SMARTVIEW!$C$5:$C$1171,Layout!$C$84,SMARTVIEW!$D$5:$D$1171,Layout!$C$88,SMARTVIEW!$F$5:$F$1171,Layout!$B$88) -> 0 | H88: =SUMIFS(SMARTVIEW!K$5:K$1171,SMARTVIEW!$B$5:$B$1171,Layout!$B$84,SMARTVIEW!$C$5:$C$1171,Layout!$C$84,SMARTVIEW!$D$5:$D$1171,Layout!$C$88,SMARTVIEW!$F$5:$F$1171,Layout!$B$88) -> 0 | I88: =SUMIFS(SMARTVIEW!L$5:L$1171,SMARTVIEW!$B$5:$B$1171,Layout!$B$84,SMARTVIEW!$C$5:$C$1171,Layout!$C$84,SMARTVIEW!$D$5:$D$1171,Layout!$C$88,SMARTVIEW!$F$5:$F$1171,Layout!$B$88) -> 0 | J88: =SUMIFS(SMARTVIEW!M$5:M$1171,SMARTVIEW!$B$5:$B$1171,Layout!$B$84,SMARTVIEW!$C$5:$C$1171,Layout!$C$84,SMARTVIEW!$D$5:$D$1171,Layout!$C$88,SMARTVIEW!$F$5:$F$1171,Layout!$B$88) -> 0 | K88: =SUMIFS(SMARTVIEW!N$5:N$1171,SMARTVIEW!$B$5:$B$1171,Layout!$B$84,SMARTVIEW!$C$5:$C$1171,Layout!$C$84,SMARTVIEW!$D$5:$D$1171,Layout!$C$88,SMARTVIEW!$F$5:$F$1171,Layout!$B$88) -> 0 | L88: =SUMIFS(SMARTVIEW!O$5:O$1171,SMARTVIEW!$B$5:$B$1171,Layout!$B$84,SMARTVIEW!$C$5:$C$1171,Layout!$C$84,SMARTVIEW!$D$5:$D$1171,Layout!$C$88,SMARTVIEW!$F$5:$F$1171,Layout!$B$88) -> 0 | M88: =SUMIFS(SMARTVIEW!P$5:P$1171,SMARTVIEW!$B$5:$B$1171,Layout!$B$84,SMARTVIEW!$C$5:$C$1171,Layout!$C$84,SMARTVIEW!$D$5:$D$1171,Layout!$C$88,SMARTVIEW!$F$5:$F$1171,Layout!$B$88) -> 0 | N88: =SUMIFS(SMARTVIEW!Q$5:Q$1171,SMARTVIEW!$B$5:$B$1171,Layout!$B$84,SMARTVIEW!$C$5:$C$1171,Layout!$C$84,SMARTVIEW!$D$5:$D$1171,Layout!$C$88,SMARTVIEW!$F$5:$F$1171,Layout!$B$88) -> 0 | O88: =SUMIFS(SMARTVIEW!R$5:R$1171,SMARTVIEW!$B$5:$B$1171,Layout!$B$84,SMARTVIEW!$C$5:$C$1171,Layout!$C$84,SMARTVIEW!$D$5:$D$1171,Layout!$C$88,SMARTVIEW!$F$5:$F$1171,Layout!$B$88) -> 0 | P88: =SUMIFS(SMARTVIEW!S$5:S$1171,SMARTVIEW!$B$5:$B$1171,Layout!$B$84,SMARTVIEW!$C$5:$C$1171,Layout!$C$84,SMARTVIEW!$D$5:$D$1171,Layout!$C$88,SMARTVIEW!$F$5:$F$1171,Layout!$B$88) -> 0 | Q88: =SUM(E88:P88) -> 35 | R88: =Q88 -> 35
B90: FY17 | C90: Actual | D90: PRIOR YEAR ACTUALS | E90: =SUMIFS(SMARTVIEW!H$5:H$1171,SMARTVIEW!$B$5:$B$1171,Layout!$B$84,SMARTVIEW!$C$5:$C$1171,Layout!$C$84,SMARTVIEW!$D$5:$D$1171,Layout!$C$90,SMARTVIEW!$F$5:$F$1171,Layout!$B$90) -> 70 | F90: =SUMIFS(SMARTVIEW!I$5:I$1171,SMARTVIEW!$B$5:$B$1171,Layout!$B$84,SMARTVIEW!$C$5:$C$1171,Layout!$C$84,SMARTVIEW!$D$5:$D$1171,Layout!$C$90,SMARTVIEW!$F$5:$F$1171,Layout!$B$90) -> 0 | G90: =SUMIFS(SMARTVIEW!J$5:J$1171,SMARTVIEW!$B$5:$B$1171,Layout!$B$84,SMARTVIEW!$C$5:$C$1171,Layout!$C$84,SMARTVIEW!$D$5:$D$1171,Layout!$C$90,SMARTVIEW!$F$5:$F$1171,Layout!$B$90) -> 0 | H90: =SUMIFS(SMARTVIEW!K$5:K$1171,SMARTVIEW!$B$5:$B$1171,Layout!$B$84,SMARTVIEW!$C$5:$C$1171,Layout!$C$84,SMARTVIEW!$D$5:$D$1171,Layout!$C$90,SMARTVIEW!$F$5:$F$1171,Layout!$B$90) -> 0 | I90: =SUMIFS(SMARTVIEW!L$5:L$1171,SMARTVIEW!$B$5:$B$1171,Layout!$B$84,SMARTVIEW!$C$5:$C$1171,Layout!$C$84,SMARTVIEW!$D$5:$D$1171,Layout!$C$90,SMARTVIEW!$F$5:$F$1171,Layout!$B$90) -> 0 | J90: =SUMIFS(SMARTVIEW!M$5:M$1171,SMARTVIEW!$B$5:$B$1171,Layout!$B$84,SMARTVIEW!$C$5:$C$1171,Layout!$C$84,SMARTVIEW!$D$5:$D$1171,Layout!$C$90,SMARTVIEW!$F$5:$F$1171,Layout!$B$90) -> 0 | K90: =SUMIFS(SMARTVIEW!N$5:N$1171,SMARTVIEW!$B$5:$B$1171,Layout!$B$84,SMARTVIEW!$C$5:$C$1171,Layout!$C$84,SMARTVIEW!$D$5:$D$1171,Layout!$C$90,SMARTVIEW!$F$5:$F$1171,Layout!$B$90) -> 0 | L90: =SUMIFS(SMARTVIEW!O$5:O$1171,SMARTVIEW!$B$5:$B$1171,Layout!$B$84,SMARTVIEW!$C$5:$C$1171,Layout!$C$84,SMARTVIEW!$D$5:$D$1171,Layout!$C$90,SMARTVIEW!$F$5:$F$1171,Layout!$B$90) -> 0 | M90: =SUMIFS(SMARTVIEW!P$5:P$1171,SMARTVIEW!$B$5:$B$1171,Layout!$B$84,SMARTVIEW!$C$5:$C$1171,Layout!$C$84,SMARTVIEW!$D$5:$D$1171,Layout!$C$90,SMARTVIEW!$F$5:$F$1171,Layout!$B$90) -> 0 | N90: =SUMIFS(SMARTVIEW!Q$5:Q$1171,SMARTVIEW!$B$5:$B$1171,Layout!$B$84,SMARTVIEW!$C$5:$C$1171,Layout!$C$84,SMARTVIEW!$D$5:$D$1171,Layout!$C$90,SMARTVIEW!$F$5:$F$1171,Layout!$B$90) -> 0 | O90: =SUMIFS(SMARTVIEW!R$5:R$1171,SMARTVIEW!$B$5:$B$1171,Layout!$B$84,SMARTVIEW!$C$5:$C$1171,Layout!$C$84,SMARTVIEW!$D$5:$D$1171,Layout!$C$90,SMARTVIEW!$F$5:$F$1171,Layout!$B$90) -> 0 | P90: =SUMIFS(SMARTVIEW!S$5:S$1171,SMARTVIEW!$B$5:$B$1171,Layout!$B$84,SMARTVIEW!$C$5:$C$1171,Layout!$C$84,SMARTVIEW!$D$5:$D$1171,Layout!$C$90,SMARTVIEW!$F$5:$F$1171,Layout!$B$90) -> 0 | Q90: =SUM(E90:P90) -> 70
S93: Enter Notes Below
D94: FUTURE BUDGET | E94: 0 | F94: 0 | G94: 0 | H94: 0 | I94: 0 | J94: 0 | K94: 0 | L94: 0 | M94: 0 | N94: 0 | O94: 0 | P94: 0 | Q94: =SUM(E94:P94) -> 0
B98: D19800 | C98: 458100 | D98: INTEREST INCOME
A100: %,R,FDEPTID,V19800,FACCOUNT,V458100,LBUD_USD | B100: FY18 | C100: PLANNING | D100: CURRENT BUDGET | E100: =SUMIFS(SMARTVIEW!H$5:H$1171,SMARTVIEW!$B$5:$B$1171,Layout!$B$98,SMARTVIEW!$C$5:$C$1171,Layout!$C$98,SMARTVIEW!$D$5:$D$1171,Layout!$C$100,SMARTVIEW!$F$5:$F$1171,Layout!$B$100) -> 0 | F100: =SUMIFS(SMARTVIEW!I$5:I$1171,SMARTVIEW!$B$5:$B$1171,Layout!$B$98,SMARTVIEW!$C$5:$C$1171,Layout!$C$98,SMARTVIEW!$D$5:$D$1171,Layout!$C$100,SMARTVIEW!$F$5:$F$1171,Layout!$B$100) -> 0 | G100: =SUMIFS(SMARTVIEW!J$5:J$1171,SMARTVIEW!$B$5:$B$1171,Layout!$B$98,SMARTVIEW!$C$5:$C$1171,Layout!$C$98,SMARTVIEW!$D$5:$D$1171,Layout!$C$100,SMARTVIEW!$F$5:$F$1171,Layout!$B$100) -> 0 | H100: =SUMIFS(SMARTVIEW!K$5:K$1171,SMARTVIEW!$B$5:$B$1171,Layout!$B$98,SMARTVIEW!$C$5:$C$1171,Layout!$C$98,SMARTVIEW!$D$5:$D$1171,Layout!$C$100,SMARTVIEW!$F$5:$F$1171,Layout!$B$100) -> 0 | I100: =SUMIFS(SMARTVIEW!L$5:L$1171,SMARTVIEW!$B$5:$B$1171,Layout!$B$98,SMARTVIEW!$C$5:$C$1171,Layout!$C$98,SMARTVIEW!$D$5:$D$1171,Layout!$C$100,SMARTVIEW!$F$5:$F$1171,Layout!$B$100) -> 0 | J100: =SUMIFS(SMARTVIEW!M$5:M$1171,SMARTVIEW!$B$5:$B$1171,Layout!$B$98,SMARTVIEW!$C$5:$C$1171,Layout!$C$98,SMARTVIEW!$D$5:$D$1171,Layout!$C$100,SMARTVIEW!$F$5:$F$1171,Layout!$B$100) -> 0 | K100: =SUMIFS(SMARTVIEW!N$5:N$1171,SMARTVIEW!$B$5:$B$1171,Layout!$B$98,SMARTVIEW!$C$5:$C$1171,Layout!$C$98,SMARTVIEW!$D$5:$D$1171,Layout!$C$100,SMARTVIEW!$F$5:$F$1171,Layout!$B$100) -> 0 | L100: =SUMIFS(SMARTVIEW!O$5:O$1171,SMARTVIEW!$B$5:$B$1171,Layout!$B$98,SMARTVIEW!$C$5:$C$1171,Layout!$C$98,SMARTVIEW!$D$5:$D$1171,Layout!$C$100,SMARTVIEW!$F$5:$F$1171,Layout!$B$100) -> 0 | M100: =SUMIFS(SMARTVIEW!P$5:P$1171,SMARTVIEW!$B$5:$B$1171,Layout!$B$98,SMARTVIEW!$C$5:$C$1171,Layout!$C$98,SMARTVIEW!$D$5:$D$1171,Layout!$C$100,SMARTVIEW!$F$5:$F$1171,Layout!$B$100) -> 0 | N100: =SUMIFS(SMARTVIEW!Q$5:Q$1171,SMARTVIEW!$B$5:$B$1171,Layout!$B$98,SMARTVIEW!$C$5:$C$1171,Layout!$C$98,SMARTVIEW!$D$5:$D$1171,Layout!$C$100,SMARTVIEW!$F$5:$F$1171,Layout!$B$100) -> 0 | O100: =SUMIFS(SMARTVIEW!R$5:R$1171,SMARTVIEW!$B$5:$B$1171,Layout!$B$98,SMARTVIEW!$C$5:$C$1171,Layout!$C$98,SMARTVIEW!$D$5:$D$1171,Layout!$C$100,SMARTVIEW!$F$5:$F$1171,Layout!$B$100) -> 0 | P100: =SUMIFS(SMARTVIEW!S$5:S$1171,SMARTVIEW!$B$5:$B$1171,Layout!$B$98,SMARTVIEW!$C$5:$C$1171,Layout!$C$98,SMARTVIEW!$D$5:$D$1171,Layout!$C$100,SMARTVIEW!$F$5:$F$1171,Layout!$B$100) -> 0 | Q100: =SUM(E100:P100) -> 0
A102: %,R,FDEPTID,V19800,FACCOUNT,V458100,LACT_USD | B102: FY18 | C102: Actual | D102: CURRENT ACTUAL | E102: =SUMIFS(SMARTVIEW!H$5:H$1171,SMARTVIEW!$B$5:$B$1171,Layout!$B$98,SMARTVIEW!$C$5:$C$1171,Layout!$C$98,SMARTVIEW!$D$5:$D$1171,Layout!$C$102,SMARTVIEW!$F$5:$F$1171,Layout!$B$102) -> 456.02 | F102: =SUMIFS(SMARTVIEW!I$5:I$1171,SMARTVIEW!$B$5:$B$1171,Layout!$B$98,SMARTVIEW!$C$5:$C$1171,Layout!$C$98,SMARTVIEW!$D$5:$D$1171,Layout!$C$102,SMARTVIEW!$F$5:$F$1171,Layout!$B$102) -> 551.22 | G102: =SUMIFS(SMARTVIEW!J$5:J$1171,SMARTVIEW!$B$5:$B$1171,Layout!$B$98,SMARTVIEW!$C$5:$C$1171,Layout!$C$98,SMARTVIEW!$D$5:$D$1171,Layout!$C$102,SMARTVIEW!$F$5:$F$1171,Layout!$B$102) -> 1155.62 | H102: =SUMIFS(SMARTVIEW!K$5:K$1171,SMARTVIEW!$B$5:$B$1171,Layout!$B$98,SMARTVIEW!$C$5:$C$1171,Layout!$C$98,SMARTVIEW!$D$5:$D$1171,Layout!$C$102,SMARTVIEW!$F$5:$F$1171,Layout!$B$102) -> 1766.35 | I102: =SUMIFS(SMARTVIEW!L$5:L$1171,SMARTVIEW!$B$5:$B$1171,Layout!$B$98,SMARTVIEW!$C$5:$C$1171,Layout!$C$98,SMARTVIEW!$D$5:$D$1171,Layout!$C$102,SMARTVIEW!$F$5:$F$1171,Layout!$B$102) -> 1141.77 | J102: =SUMIFS(SMARTVIEW!M$5:M$1171,SMARTVIEW!$B$5:$B$1171,Layout!$B$98,SMARTVIEW!$C$5:$C$1171,Layout!$C$98,SMARTVIEW!$D$5:$D$1171,Layout!$C$102,SMARTVIEW!$F$5:$F$1171,Layout!$B$102) -> 1362.57 | K102: 578 | L102: 527 | M102: 534 | N102: 400 | O102: 300 | P102: 200 | Q102: =SUM(E102:P102) -> 8972.55 | R102: =Q102 -> 8972.55
B104: FY17 | C104: Actual | D104: PRIOR YEAR ACTUALS | E104: =SUMIFS(SMARTVIEW!H$5:H$1171,SMARTVIEW!$B$5:$B$1171,Layout!$B$98,SMARTVIEW!$C$5:$C$1171,Layout!$C$98,SMARTVIEW!$D$5:$D$1171,Layout!$C$104,SMARTVIEW!$F$5:$F$1171,Layout!$B$104) -> 0 | F104: =SUMIFS(SMARTVIEW!I$5:I$1171,SMARTVIEW!$B$5:$B$1171,Layout!$B$98,SMARTVIEW!$C$5:$C$1171,Layout!$C$98,SMARTVIEW!$D$5:$D$1171,Layout!$C$104,SMARTVIEW!$F$5:$F$1171,Layout!$B$104) -> 106.74 | G104: =SUMIFS(SMARTVIEW!J$5:J$1171,SMARTVIEW!$B$5:$B$1171,Layout!$B$98,SMARTVIEW!$C$5:$C$1171,Layout!$C$98,SMARTVIEW!$D$5:$D$1171,Layout!$C$104,SMARTVIEW!$F$5:$F$1171,Layout!$B$104) -> 364.85 | H104: =SUMIFS(SMARTVIEW!K$5:K$1171,SMARTVIEW!$B$5:$B$1171,Layout!$B$98,SMARTVIEW!$C$5:$C$1171,Layout!$C$98,SMARTVIEW!$D$5:$D$1171,Layout!$C$104,SMARTVIEW!$F$5:$F$1171,Layout!$B$104) -> 329.31 | I104: =SUMIFS(SMARTVIEW!L$5:L$1171,SMARTVIEW!$B$5:$B$1171,Layout!$B$98,SMARTVIEW!$C$5:$C$1171,Layout!$C$98,SMARTVIEW!$D$5:$D$1171,Layout!$C$104,SMARTVIEW!$F$5:$F$1171,Layout!$B$104) -> 717.83 | J104: =SUMIFS(SMARTVIEW!M$5:M$1171,SMARTVIEW!$B$5:$B$1171,Layout!$B$98,SMARTVIEW!$C$5:$C$1171,Layout!$C$98,SMARTVIEW!$D$5:$D$1171,Layout!$C$104,SMARTVIEW!$F$5:$F$1171,Layout!$B$104) -> 725.8 | K104: =SUMIFS(SMARTVIEW!N$5:N$1171,SMARTVIEW!$B$5:$B$1171,Layout!$B$98,SMARTVIEW!$C$5:$C$1171,Layout!$C$98,SMARTVIEW!$D$5:$D$1171,Layout!$C$104,SMARTVIEW!$F$5:$F$1171,Layout!$B$104) -> 351.28 | L104: =SUMIFS(SMARTVIEW!O$5:O$1171,SMARTVIEW!$B$5:$B$1171,Layout!$B$98,SMARTVIEW!$C$5:$C$1171,Layout!$C$98,SMARTVIEW!$D$5:$D$1171,Layout!$C$104,SMARTVIEW!$F$5:$F$1171,Layout!$B$104) -> 785.8 | M104: =SUMIFS(SMARTVIEW!P$5:P$1171,SMARTVIEW!$B$5:$B$1171,Layout!$B$98,SMARTVIEW!$C$5:$C$1171,Layout!$C$98,SMARTVIEW!$D$5:$D$1171,Layout!$C$104,SMARTVIEW!$F$5:$F$1171,Layout!$B$104) -> 300.71 | N104: =SUMIFS(SMARTVIEW!Q$5:Q$1171,SMARTVIEW!$B$5:$B$1171,Layout!$B$98,SMARTVIEW!$C$5:$C$1171,Layout!$C$98,SMARTVIEW!$D$5:$D$1171,Layout!$C$104,SMARTVIEW!$F$5:$F$1171,Layout!$B$104) -> 55.88 | O104: =SUMIFS(SMARTVIEW!R$5:R$1171,SMARTVIEW!$B$5:$B$1171,Layout!$B$98,SMARTVIEW!$C$5:$C$1171,Layout!$C$98,SMARTVIEW!$D$5:$D$1171,Layout!$C$104,SMARTVIEW!$F$5:$F$1171,Layout!$B$104) -> 95.37 | P104: =SUMIFS(SMARTVIEW!S$5:S$1171,SMARTVIEW!$B$5:$B$1171,Layout!$B$98,SMARTVIEW!$C$5:$C$1171,Layout!$C$98,SMARTVIEW!$D$5:$D$1171,Layout!$C$104,SMARTVIEW!$F$5:$F$1171,Layout!$B$104) -> 69.96 | Q104: =SUM(E104:P104) -> 3903.53
S107: Enter Notes Below
D108: FUTURE BUDGET | E108: 500 | F108: 500 | G108: 1000 | H108: 1200 | I108: 1000 | J108: 1000 | K108: 600 | L108: 500 | M108: 500 | N108: 400 | O108: 300 | P108: 500 | Q108: =SUM(E108:P108) -> 8000 | S108: Budgeted based on projected actuals, but being conservative
B112: D19800 | C112: 458110 | D112: DIVIDEND INCOME
A114: %,R,FDEPTID,V19800,FACCOUNT,V458110,LBUD_USD | B114: FY18 | C114: PLANNING | D114: CURRENT BUDGET | E114: =SUMIFS(SMARTVIEW!H$5:H$1171,SMARTVIEW!$B$5:$B$1171,Layout!$B$112,SMARTVIEW!$C$5:$C$1171,Layout!$C$112,SMARTVIEW!$D$5:$D$1171,Layout!$C$114,SMARTVIEW!$F$5:$F$1171,Layout!$B$114) -> 0 | F114: =SUMIFS(SMARTVIEW!I$5:I$1171,SMARTVIEW!$B$5:$B$1171,Layout!$B$112,SMARTVIEW!$C$5:$C$1171,Layout!$C$112,SMARTVIEW!$D$5:$D$1171,Layout!$C$114,SMARTVIEW!$F$5:$F$1171,Layout!$B$114) -> 0 | G114: =SUMIFS(SMARTVIEW!J$5:J$1171,SMARTVIEW!$B$5:$B$1171,Layout!$B$112,SMARTVIEW!$C$5:$C$1171,Layout!$C$112,SMARTVIEW!$D$5:$D$1171,Layout!$C$114,SMARTVIEW!$F$5:$F$1171,Layout!$B$114) -> 0 | H114: =SUMIFS(SMARTVIEW!K$5:K$1171,SMARTVIEW!$B$5:$B$1171,Layout!$B$112,SMARTVIEW!$C$5:$C$1171,Layout!$C$112,SMARTVIEW!$D$5:$D$1171,Layout!$C$114,SMARTVIEW!$F$5:$F$1171,Layout!$B$114) -> 0 | I114: =SUMIFS(SMARTVIEW!L$5:L$1171,SMARTVIEW!$B$5:$B$1171,Layout!$B$112,SMARTVIEW!$C$5:$C$1171,Layout!$C$112,SMARTVIEW!$D$5:$D$1171,Layout!$C$114,SMARTVIEW!$F$5:$F$1171,Layout!$B$114) -> 0 | J114: =SUMIFS(SMARTVIEW!M$5:M$1171,SMARTVIEW!$B$5:$B$1171,Layout!$B$112,SMARTVIEW!$C$5:$C$1171,Layout!$C$112,SMARTVIEW!$D$5:$D$1171,Layout!$C$114,SMARTVIEW!$F$5:$F$1171,Layout!$B$114) -> 0 | K114: =SUMIFS(SMARTVIEW!N$5:N$1171,SMARTVIEW!$B$5:$B$1171,Layout!$B$112,SMARTVIEW!$C$5:$C$1171,Layout!$C$112,SMARTVIEW!$D$5:$D$1171,Layout!$C$114,SMARTVIEW!$F$5:$F$1171,Layout!$B$114) -> 0 | L114: =SUMIFS(SMARTVIEW!O$5:O$1171,SMARTVIEW!$B$5:$B$1171,Layout!$B$112,SMARTVIEW!$C$5:$C$1171,Layout!$C$112,SMARTVIEW!$D$5:$D$1171,Layout!$C$114,SMARTVIEW!$F$5:$F$1171,Layout!$B$114) -> 0 | M114: =SUMIFS(SMARTVIEW!P$5:P$1171,SMARTVIEW!$B$5:$B$1171,Layout!$B$112,SMARTVIEW!$C$5:$C$1171,Layout!$C$112,SMARTVIEW!$D$5:$D$1171,Layout!$C$114,SMARTVIEW!$F$5:$F$1171,Layout!$B$114) -> 0 | N114: =SUMIFS(SMARTVIEW!Q$5:Q$1171,SMARTVIEW!$B$5:$B$1171,Layout!$B$112,SMARTVIEW!$C$5:$C$1171,Layout!$C$112,SMARTVIEW!$D$5:$D$1171,Layout!$C$114,SMARTVIEW!$F$5:$F$1171,Layout!$B$114) -> 0 | O114: =SUMIFS(SMARTVIEW!R$5:R$1171,SMARTVIEW!$B$5:$B$1171,Layout!$B$112,SMARTVIEW!$C$5:$C$1171,Layout!$C$112,SMARTVIEW!$D$5:$D$1171,Layout!$C$114,SMARTVIEW!$F$5:$F$1171,Layout!$B$114) -> 0 | P114: =SUMIFS(SMARTVIEW!S$5:S$1171,SMARTVIEW!$B$5:$B$1171,Layout!$B$112,SMARTVIEW!$C$5:$C$1171,Layout!$C$112,SMARTVIEW!$D$5:$D$1171,Layout!$C$114,SMARTVIEW!$F$5:$F$1171,Layout!$B$114) -> 0 | Q114: =SUM(E114:P114) -> 0
A116: %,R,FDEPTID,V19800,FACCOUNT,V458110,LACT_USD | B116: FY18 | C116: Actual | D116: CURRENT ACTUAL | E116: =SUMIFS(SMARTVIEW!H$5:H$1171,SMARTVIEW!$B$5:$B$1171,Layout!$B$112,SMARTVIEW!$C$5:$C$1171,Layout!$C$112,SMARTVIEW!$D$5:$D$1171,Layout!$C$116,SMARTVIEW!$F$5:$F$1171,Layout!$B$116) -> 0 | F116: =SUMIFS(SMARTVIEW!I$5:I$1171,SMARTVIEW!$B$5:$B$1171,Layout!$B$112,SMARTVIEW!$C$5:$C$1171,Layout!$C$112,SMARTVIEW!$D$5:$D$1171,Layout!$C$116,SMARTVIEW!$F$5:$F$1171,Layout!$B$116) -> 0 | G116: =SUMIFS(SMARTVIEW!J$5:J$1171,SMARTVIEW!$B$5:$B$1171,Layout!$B$112,SMARTVIEW!$C$5:$C$1171,Layout!$C$112,SMARTVIEW!$D$5:$D$1171,Layout!$C$116,SMARTVIEW!$F$5:$F$1171,Layout!$B$116) -> 0 | H116: =SUMIFS(SMARTVIEW!K$5:K$1171,SMARTVIEW!$B$5:$B$1171,Layout!$B$112,SMARTVIEW!$C$5:$C$1171,Layout!$C$112,SMARTVIEW!$D$5:$D$1171,Layout!$C$116,SMARTVIEW!$F$5:$F$1171,Layout!$B$116) -> 0 | I116: =SUMIFS(SMARTVIEW!L$5:L$1171,SMARTVIEW!$B$5:$B$1171,Layout!$B$112,SMARTVIEW!$C$5:$C$1171,Layout!$C$112,SMARTVIEW!$D$5:$D$1171,Layout!$C$116,SMARTVIEW!$F$5:$F$1171,Layout!$B$116) -> 0 | J116: =SUMIFS(SMARTVIEW!M$5:M$1171,SMARTVIEW!$B$5:$B$1171,Layout!$B$112,SMARTVIEW!$C$5:$C$1171,Layout!$C$112,SMARTVIEW!$D$5:$D$1171,Layout!$C$116,SMARTVIEW!$F$5:$F$1171,Layout!$B$116) -> 0 | K116: =SUMIFS(SMARTVIEW!N$5:N$1171,SMARTVIEW!$B$5:$B$1171,Layout!$B$112,SMARTVIEW!$C$5:$C$1171,Layout!$C$112,SMARTVIEW!$D$5:$D$1171,Layout!$C$116,SMARTVIEW!$F$5:$F$1171,Layout!$B$116) -> 0 | L116: =SUMIFS(SMARTVIEW!O$5:O$1171,SMARTVIEW!$B$5:$B$1171,Layout!$B$112,SMARTVIEW!$C$5:$C$1171,Layout!$C$112,SMARTVIEW!$D$5:$D$1171,Layout!$C$116,SMARTVIEW!$F$5:$F$1171,Layout!$B$116) -> 0 | M116: =SUMIFS(SMARTVIEW!P$5:P$1171,SMARTVIEW!$B$5:$B$1171,Layout!$B$112,SMARTVIEW!$C$5:$C$1171,Layout!$C$112,SMARTVIEW!$D$5:$D$1171,Layout!$C$116,SMARTVIEW!$F$5:$F$1171,Layout!$B$116) -> 0 | N116: =SUMIFS(SMARTVIEW!Q$5:Q$1171,SMARTVIEW!$B$5:$B$1171,Layout!$B$112,SMARTVIEW!$C$5:$C$1171,Layout!$C$112,SMARTVIEW!$D$5:$D$1171,Layout!$C$116,SMARTVIEW!$F$5:$F$1171,Layout!$B$116) -> 0 | O116: =SUMIFS(SMARTVIEW!R$5:R$1171,SMARTVIEW!$B$5:$B$1171,Layout!$B$112,SMARTVIEW!$C$5:$C$1171,Layout!$C$112,SMARTVIEW!$D$5:$D$1171,Layout!$C$116,SMARTVIEW!$F$5:$F$1171,Layout!$B$116) -> 0 | P116: =SUMIFS(SMARTVIEW!S$5:S$1171,SMARTVIEW!$B$5:$B$1171,Layout!$B$112,SMARTVIEW!$C$5:$C$1171,Layout!$C$112,SMARTVIEW!$D$5:$D$1171,Layout!$C$116,SMARTVIEW!$F$5:$F$1171,Layout!$B$116) -> 0 | Q116: =SUM(E116:P116) -> 0 | R116: =Q116 -> 0
B118: FY17 | C118: Actual | D118: PRIOR YEAR ACTUALS | E118: =SUMIFS(SMARTVIEW!H$5:H$1171,SMARTVIEW!$B$5:$B$1171,Layout!$B$112,SMARTVIEW!$C$5:$C$1171,Layout!$C$112,SMARTVIEW!$D$5:$D$1171,Layout!$C$118,SMARTVIEW!$F$5:$F$1171,Layout!$B$118) -> 0 | F118: =SUMIFS(SMARTVIEW!I$5:I$1171,SMARTVIEW!$B$5:$B$1171,Layout!$B$112,SMARTVIEW!$C$5:$C$1171,Layout!$C$112,SMARTVIEW!$D$5:$D$1171,Layout!$C$118,SMARTVIEW!$F$5:$F$1171,Layout!$B$118) -> 0 | G118: =SUMIFS(SMARTVIEW!J$5:J$1171,SMARTVIEW!$B$5:$B$1171,Layout!$B$112,SMARTVIEW!$C$5:$C$1171,Layout!$C$112,SMARTVIEW!$D$5:$D$1171,Layout!$C$118,SMARTVIEW!$F$5:$F$1171,Layout!$B$118) -> 0 | H118: =SUMIFS(SMARTVIEW!K$5:K$1171,SMARTVIEW!$B$5:$B$1171,Layout!$B$112,SMARTVIEW!$C$5:$C$1171,Layout!$C$112,SMARTVIEW!$D$5:$D$1171,Layout!$C$118,SMARTVIEW!$F$5:$F$1171,Layout!$B$118) -> 0 | I118: =SUMIFS(SMARTVIEW!L$5:L$1171,SMARTVIEW!$B$5:$B$1171,Layout!$B$112,SMARTVIEW!$C$5:$C$1171,Layout!$C$112,SMARTVIEW!$D$5:$D$1171,Layout!$C$118,SMARTVIEW!$F$5:$F$1171,Layout!$B$118) -> 0 | J118: =SUMIFS(SMARTVIEW!M$5:M$1171,SMARTVIEW!$B$5:$B$1171,Layout!$B$112,SMARTVIEW!$C$5:$C$1171,Layout!$C$112,SMARTVIEW!$D$5:$D$1171,Layout!$C$118,SMARTVIEW!$F$5:$F$1171,Layout!$B$118) -> 0 | K118: =SUMIFS(SMARTVIEW!N$5:N$1171,SMARTVIEW!$B$5:$B$1171,Layout!$B$112,SMARTVIEW!$C$5:$C$1171,Layout!$C$112,SMARTVIEW!$D$5:$D$1171,Layout!$C$118,SMARTVIEW!$F$5:$F$1171,Layout!$B$118) -> 0 | L118: =SUMIFS(SMARTVIEW!O$5:O$1171,SMARTVIEW!$B$5:$B$1171,Layout!$B$112,SMARTVIEW!$C$5:$C$1171,Layout!$C$112,SMARTVIEW!$D$5:$D$1171,Layout!$C$118,SMARTVIEW!$F$5:$F$1171,Layout!$B$118) -> 0 | M118: =SUMIFS(SMARTVIEW!P$5:P$1171,SMARTVIEW!$B$5:$B$1171,Layout!$B$112,SMARTVIEW!$C$5:$C$1171,Layout!$C$112,SMARTVIEW!$D$5:$D$1171,Layout!$C$118,SMARTVIEW!$F$5:$F$1171,Layout!$B$118) -> 0 | N118: =SUMIFS(SMARTVIEW!Q$5:Q$1171,SMARTVIEW!$B$5:$B$1171,Layout!$B$112,SMARTVIEW!$C$5:$C$1171,Layout!$C$112,SMARTVIEW!$D$5:$D$1171,Layout!$C$118,SMARTVIEW!$F$5:$F$1171,Layout!$B$118) -> 0 | O118: =SUMIFS(SMARTVIEW!R$5:R$1171,SMARTVIEW!$B$5:$B$1171,Layout!$B$112,SMARTVIEW!$C$5:$C$1171,Layout!$C$112,SMARTVIEW!$D$5:$D$1171,Layout!$C$118,SMARTVIEW!$F$5:$F$1171,Layout!$B$118) -> 0 | P118: =SUMIFS(SMARTVIEW!S$5:S$1171,SMARTVIEW!$B$5:$B$1171,Layout!$B$112,SMARTVIEW!$C$5:$C$1171,Layout!$C$112,SMARTVIEW!$D$5:$D$1171,Layout!$C$118,SMARTVIEW!$F$5:$F$1171,Layout!$B$118) -> 0 | Q118: =SUM(E118:P118) -> 0
S121: Enter Notes Below
D122: FUTURE BUDGET | E122: 0 | F122: 0 | G122: 0 | H122: 0 | I122: 0 | J122: 0 | K122: 0 | L122: 0 | M122: 0 | N122: 0 | O122: 0 | P122: 0 | Q122: =SUM(E122:P122) -> 0
B126: D19800 | C126: 458150 | D126: SUPPORT AREA 1 OFFICE
A128: %,R,FDEPTID,V19800,FACCOUNT,V458150,LBUD_USD | B128: FY18 | C128: PLANNING | D128: CURRENT BUDGET | E128: =SUMIFS(SMARTVIEW!H$5:H$1171,SMARTVIEW!$B$5:$B$1171,Layout!$B$126,SMARTVIEW!$C$5:$C$1171,Layout!$C$126,SMARTVIEW!$D$5:$D$1171,Layout!$C$128,SMARTVIEW!$F$5:$F$1171,Layout!$B$128) -> 0 | F128: =SUMIFS(SMARTVIEW!I$5:I$1171,SMARTVIEW!$B$5:$B$1171,Layout!$B$126,SMARTVIEW!$C$5:$C$1171,Layout!$C$126,SMARTVIEW!$D$5:$D$1171,Layout!$C$128,SMARTVIEW!$F$5:$F$1171,Layout!$B$128) -> 0 | G128: =SUMIFS(SMARTVIEW!J$5:J$1171,SMARTVIEW!$B$5:$B$1171,Layout!$B$126,SMARTVIEW!$C$5:$C$1171,Layout!$C$126,SMARTVIEW!$D$5:$D$1171,Layout!$C$128,SMARTVIEW!$F$5:$F$1171,Layout!$B$128) -> 0 | H128: =SUMIFS(SMARTVIEW!K$5:K$1171,SMARTVIEW!$B$5:$B$1171,Layout!$B$126,SMARTVIEW!$C$5:$C$1171,Layout!$C$126,SMARTVIEW!$D$5:$D$1171,Layout!$C$128,SMARTVIEW!$F$5:$F$1171,Layout!$B$128) -> 0 | I128: =SUMIFS(SMARTVIEW!L$5:L$1171,SMARTVIEW!$B$5:$B$1171,Layout!$B$126,SMARTVIEW!$C$5:$C$1171,Layout!$C$126,SMARTVIEW!$D$5:$D$1171,Layout!$C$128,SMARTVIEW!$F$5:$F$1171,Layout!$B$128) -> 0 | J128: =SUMIFS(SMARTVIEW!M$5:M$1171,SMARTVIEW!$B$5:$B$1171,Layout!$B$126,SMARTVIEW!$C$5:$C$1171,Layout!$C$126,SMARTVIEW!$D$5:$D$1171,Layout!$C$128,SMARTVIEW!$F$5:$F$1171,Layout!$B$128) -> 0 | K128: =SUMIFS(SMARTVIEW!N$5:N$1171,SMARTVIEW!$B$5:$B$1171,Layout!$B$126,SMARTVIEW!$C$5:$C$1171,Layout!$C$126,SMARTVIEW!$D$5:$D$1171,Layout!$C$128,SMARTVIEW!$F$5:$F$1171,Layout!$B$128) -> 0 | L128: =SUMIFS(SMARTVIEW!O$5:O$1171,SMARTVIEW!$B$5:$B$1171,Layout!$B$126,SMARTVIEW!$C$5:$C$1171,Layout!$C$126,SMARTVIEW!$D$5:$D$1171,Layout!$C$128,SMARTVIEW!$F$5:$F$1171,Layout!$B$128) -> 0 | M128: =SUMIFS(SMARTVIEW!P$5:P$1171,SMARTVIEW!$B$5:$B$1171,Layout!$B$126,SMARTVIEW!$C$5:$C$1171,Layout!$C$126,SMARTVIEW!$D$5:$D$1171,Layout!$C$128,SMARTVIEW!$F$5:$F$1171,Layout!$B$128) -> 0 | N128: =SUMIFS(SMARTVIEW!Q$5:Q$1171,SMARTVIEW!$B$5:$B$1171,Layout!$B$126,SMARTVIEW!$C$5:$C$1171,Layout!$C$126,SMARTVIEW!$D$5:$D$1171,Layout!$C$128,SMARTVIEW!$F$5:$F$1171,Layout!$B$128) -> 0 | O128: =SUMIFS(SMARTVIEW!R$5:R$1171,SMARTVIEW!$B$5:$B$1171,Layout!$B$126,SMARTVIEW!$C$5:$C$1171,Layout!$C$126,SMARTVIEW!$D$5:$D$1171,Layout!$C$128,SMARTVIEW!$F$5:$F$1171,Layout!$B$128) -> 0 | P128: =SUMIFS(SMARTVIEW!S$5:S$1171,SMARTVIEW!$B$5:$B$1171,Layout!$B$126,SMARTVIEW!$C$5:$C$1171,Layout!$C$126,SMARTVIEW!$D$5:$D$1171,Layout!$C$128,SMARTVIEW!$F$5:$F$1171,Layout!$B$128) -> 0 | Q128: =SUM(E128:P128) -> 0
A130: %,R,FDEPTID,V19800,FACCOUNT,V458150,LACT_USD | B130: FY18 | C130: Actual | D130: CURRENT ACTUAL | E130: =SUMIFS(SMARTVIEW!H$5:H$1171,SMARTVIEW!$B$5:$B$1171,Layout!$B$126,SMARTVIEW!$C$5:$C$1171,Layout!$C$126,SMARTVIEW!$D$5:$D$1171,Layout!$C$130,SMARTVIEW!$F$5:$F$1171,Layout!$B$130) -> 0 | F130: =SUMIFS(SMARTVIEW!I$5:I$1171,SMARTVIEW!$B$5:$B$1171,Layout!$B$126,SMARTVIEW!$C$5:$C$1171,Layout!$C$126,SMARTVIEW!$D$5:$D$1171,Layout!$C$130,SMARTVIEW!$F$5:$F$1171,Layout!$B$130) -> 0 | G130: =SUMIFS(SMARTVIEW!J$5:J$1171,SMARTVIEW!$B$5:$B$1171,Layout!$B$126,SMARTVIEW!$C$5:$C$1171,Layout!$C$126,SMARTVIEW!$D$5:$D$1171,Layout!$C$130,SMARTVIEW!$F$5:$F$1171,Layout!$B$130) -> 0 | H130: =SUMIFS(SMARTVIEW!K$5:K$1171,SMARTVIEW!$B$5:$B$1171,Layout!$B$126,SMARTVIEW!$C$5:$C$1171,Layout!$C$126,SMARTVIEW!$D$5:$D$1171,Layout!$C$130,SMARTVIEW!$F$5:$F$1171,Layout!$B$130) -> 0 | I130: =SUMIFS(SMARTVIEW!L$5:L$1171,SMARTVIEW!$B$5:$B$1171,Layout!$B$126,SMARTVIEW!$C$5:$C$1171,Layout!$C$126,SMARTVIEW!$D$5:$D$1171,Layout!$C$130,SMARTVIEW!$F$5:$F$1171,Layout!$B$130) -> 0 | J130: =SUMIFS(SMARTVIEW!M$5:M$1171,SMARTVIEW!$B$5:$B$1171,Layout!$B$126,SMARTVIEW!$C$5:$C$1171,Layout!$C$126,SMARTVIEW!$D$5:$D$1171,Layout!$C$130,SMARTVIEW!$F$5:$F$1171,Layout!$B$130) -> 0 | K130: =SUMIFS(SMARTVIEW!N$5:N$1171,SMARTVIEW!$B$5:$B$1171,Layout!$B$126,SMARTVIEW!$C$5:$C$1171,Layout!$C$126,SMARTVIEW!$D$5:$D$1171,Layout!$C$130,SMARTVIEW!$F$5:$F$1171,Layout!$B$130) -> 0 | L130: =SUMIFS(SMARTVIEW!O$5:O$1171,SMARTVIEW!$B$5:$B$1171,Layout!$B$126,SMARTVIEW!$C$5:$C$1171,Layout!$C$126,SMARTVIEW!$D$5:$D$1171,Layout!$C$130,SMARTVIEW!$F$5:$F$1171,Layout!$B$130) -> 0 | M130: =SUMIFS(SMARTVIEW!P$5:P$1171,SMARTVIEW!$B$5:$B$1171,Layout!$B$126,SMARTVIEW!$C$5:$C$1171,Layout!$C$126,SMARTVIEW!$D$5:$D$1171,Layout!$C$130,SMARTVIEW!$F$5:$F$1171,Layout!$B$130) -> 0 | N130: =SUMIFS(SMARTVIEW!Q$5:Q$1171,SMARTVIEW!$B$5:$B$1171,Layout!$B$126,SMARTVIEW!$C$5:$C$1171,Layout!$C$126,SMARTVIEW!$D$5:$D$1171,Layout!$C$130,SMARTVIEW!$F$5:$F$1171,Layout!$B$130) -> 0 | O130: =SUMIFS(SMARTVIEW!R$5:R$1171,SMARTVIEW!$B$5:$B$1171,Layout!$B$126,SMARTVIEW!$C$5:$C$1171,Layout!$C$126,SMARTVIEW!$D$5:$D$1171,Layout!$C$130,SMARTVIEW!$F$5:$F$1171,Layout!$B$130) -> 0 | P130: =SUMIFS(SMARTVIEW!S$5:S$1171,SMARTVIEW!$B$5:$B$1171,Layout!$B$126,SMARTVIEW!$C$5:$C$1171,Layout!$C$126,SMARTVIEW!$D$5:$D$1171,Layout!$C$130,SMARTVIEW!$F$5:$F$1171,Layout!$B$130) -> 0 | Q130: =SUM(E130:P130) -> 0 | R130: =Q130 -> 0
B132: FY17 | C132: Actual | D132: PRIOR YEAR ACTUALS | E132: =SUMIFS(SMARTVIEW!H$5:H$1171,SMARTVIEW!$B$5:$B$1171,Layout!$B$126,SMARTVIEW!$C$5:$C$1171,Layout!$C$126,SMARTVIEW!$D$5:$D$1171,Layout!$C$132,SMARTVIEW!$F$5:$F$1171,Layout!$B$132) -> 0 | F132: =SUMIFS(SMARTVIEW!I$5:I$1171,SMARTVIEW!$B$5:$B$1171,Layout!$B$126,SMARTVIEW!$C$5:$C$1171,Layout!$C$126,SMARTVIEW!$D$5:$D$1171,Layout!$C$132,SMARTVIEW!$F$5:$F$1171,Layout!$B$132) -> 0 | G132: =SUMIFS(SMARTVIEW!J$5:J$1171,SMARTVIEW!$B$5:$B$1171,Layout!$B$126,SMARTVIEW!$C$5:$C$1171,Layout!$C$126,SMARTVIEW!$D$5:$D$1171,Layout!$C$132,SMARTVIEW!$F$5:$F$1171,Layout!$B$132) -> 0 | H132: =SUMIFS(SMARTVIEW!K$5:K$1171,SMARTVIEW!$B$5:$B$1171,Layout!$B$126,SMARTVIEW!$C$5:$C$1171,Layout!$C$126,SMARTVIEW!$D$5:$D$1171,Layout!$C$132,SMARTVIEW!$F$5:$F$1171,Layout!$B$132) -> 0 | I132: =SUMIFS(SMARTVIEW!L$5:L$1171,SMARTVIEW!$B$5:$B$1171,Layout!$B$126,SMARTVIEW!$C$5:$C$1171,Layout!$C$126,SMARTVIEW!$D$5:$D$1171,Layout!$C$132,SMARTVIEW!$F$5:$F$1171,Layout!$B$132) -> 0 | J132: =SUMIFS(SMARTVIEW!M$5:M$1171,SMARTVIEW!$B$5:$B$1171,Layout!$B$126,SMARTVIEW!$C$5:$C$1171,Layout!$C$126,SMARTVIEW!$D$5:$D$1171,Layout!$C$132,SMARTVIEW!$F$5:$F$1171,Layout!$B$132) -> 0 | K132: =SUMIFS(SMARTVIEW!N$5:N$1171,SMARTVIEW!$B$5:$B$1171,Layout!$B$126,SMARTVIEW!$C$5:$C$1171,Layout!$C$126,SMARTVIEW!$D$5:$D$1171,Layout!$C$132,SMARTVIEW!$F$5:$F$1171,Layout!$B$132) -> 0 | L132: =SUMIFS(SMARTVIEW!O$5:O$1171,SMARTVIEW!$B$5:$B$1171,Layout!$B$126,SMARTVIEW!$C$5:$C$1171,Layout!$C$126,SMARTVIEW!$D$5:$D$1171,Layout!$C$132,SMARTVIEW!$F$5:$F$1171,Layout!$B$132) -> 0 | M132: =SUMIFS(SMARTVIEW!P$5:P$1171,SMARTVIEW!$B$5:$B$1171,Layout!$B$126,SMARTVIEW!$C$5:$C$1171,Layout!$C$126,SMARTVIEW!$D$5:$D$1171,Layout!$C$132,SMARTVIEW!$F$5:$F$1171,Layout!$B$132) -> 0 | N132: =SUMIFS(SMARTVIEW!Q$5:Q$1171,SMARTVIEW!$B$5:$B$1171,Layout!$B$126,SMARTVIEW!$C$5:$C$1171,Layout!$C$126,SMARTVIEW!$D$5:$D$1171,Layout!$C$132,SMARTVIEW!$F$5:$F$1171,Layout!$B$132) -> 0 | O132: =SUMIFS(SMARTVIEW!R$5:R$1171,SMARTVIEW!$B$5:$B$1171,Layout!$B$126,SMARTVIEW!$C$5:$C$1171,Layout!$C$126,SMARTVIEW!$D$5:$D$1171,Layout!$C$132,SMARTVIEW!$F$5:$F$1171,Layout!$B$132) -> 0 | P132: =SUMIFS(SMARTVIEW!S$5:S$1171,SMARTVIEW!$B$5:$B$1171,Layout!$B$126,SMARTVIEW!$C$5:$C$1171,Layout!$C$126,SMARTVIEW!$D$5:$D$1171,Layout!$C$132,SMARTVIEW!$F$5:$F$1171,Layout!$B$132) -> 0 | Q132: =SUM(E132:P132) -> 0
S135: Enter Notes Below
D136: FUTURE BUDGET | E136: 0 | F136: 0 | G136: 0 | H136: 0 | I136: 0 | J136: 0 | K136: 0 | L136: 0 | M136: 0 | N136: 0 | O136: 0 | P136: 0 | Q136: =SUM(E136:P136) -> 0
B140: D19800 | C140: 458140 | D140: SALES RENT INCOME
A142: %,R,FDEPTID,V19800,FACCOUNT,V458140,LBUD_USD | B142: FY18 | C142: PLANNING | D142: CURRENT BUDGET | E142: =SUMIFS(SMARTVIEW!H$5:H$1171,SMARTVIEW!$B$5:$B$1171,Layout!$B$140,SMARTVIEW!$C$5:$C$1171,Layout!$C$140,SMARTVIEW!$D$5:$D$1171,Layout!$C$142,SMARTVIEW!$F$5:$F$1171,Layout!$B$142) -> 729 | F142: =SUMIFS(SMARTVIEW!I$5:I$1171,SMARTVIEW!$B$5:$B$1171,Layout!$B$140,SMARTVIEW!$C$5:$C$1171,Layout!$C$140,SMARTVIEW!$D$5:$D$1171,Layout!$C$142,SMARTVIEW!$F$5:$F$1171,Layout!$B$142) -> 729 | G142: =SUMIFS(SMARTVIEW!J$5:J$1171,SMARTVIEW!$B$5:$B$1171,Layout!$B$140,SMARTVIEW!$C$5:$C$1171,Layout!$C$140,SMARTVIEW!$D$5:$D$1171,Layout!$C$142,SMARTVIEW!$F$5:$F$1171,Layout!$B$142) -> 729 | H142: =SUMIFS(SMARTVIEW!K$5:K$1171,SMARTVIEW!$B$5:$B$1171,Layout!$B$140,SMARTVIEW!$C$5:$C$1171,Layout!$C$140,SMARTVIEW!$D$5:$D$1171,Layout!$C$142,SMARTVIEW!$F$5:$F$1171,Layout!$B$142) -> 729 | I142: =SUMIFS(SMARTVIEW!L$5:L$1171,SMARTVIEW!$B$5:$B$1171,Layout!$B$140,SMARTVIEW!$C$5:$C$1171,Layout!$C$140,SMARTVIEW!$D$5:$D$1171,Layout!$C$142,SMARTVIEW!$F$5:$F$1171,Layout!$B$142) -> 729 | J142: =SUMIFS(SMARTVIEW!M$5:M$1171,SMARTVIEW!$B$5:$B$1171,Layout!$B$140,SMARTVIEW!$C$5:$C$1171,Layout!$C$140,SMARTVIEW!$D$5:$D$1171,Layout!$C$142,SMARTVIEW!$F$5:$F$1171,Layout!$B$142) -> 729 | K142: =SUMIFS(SMARTVIEW!N$5:N$1171,SMARTVIEW!$B$5:$B$1171,Layout!$B$140,SMARTVIEW!$C$5:$C$1171,Layout!$C$140,SMARTVIEW!$D$5:$D$1171,Layout!$C$142,SMARTVIEW!$F$5:$F$1171,Layout!$B$142) -> 729 | L142: =SUMIFS(SMARTVIEW!O$5:O$1171,SMARTVIEW!$B$5:$B$1171,Layout!$B$140,SMARTVIEW!$C$5:$C$1171,Layout!$C$140,SMARTVIEW!$D$5:$D$1171,Layout!$C$142,SMARTVIEW!$F$5:$F$1171,Layout!$B$142) -> 729 | M142: =SUMIFS(SMARTVIEW!P$5:P$1171,SMARTVIEW!$B$5:$B$1171,Layout!$B$140,SMARTVIEW!$C$5:$C$1171,Layout!$C$140,SMARTVIEW!$D$5:$D$1171,Layout!$C$142,SMARTVIEW!$F$5:$F$1171,Layout!$B$142) -> 729 | N142: =SUMIFS(SMARTVIEW!Q$5:Q$1171,SMARTVIEW!$B$5:$B$1171,Layout!$B$140,SMARTVIEW!$C$5:$C$1171,Layout!$C$140,SMARTVIEW!$D$5:$D$1171,Layout!$C$142,SMARTVIEW!$F$5:$F$1171,Layout!$B$142) -> 729 | O142: =SUMIFS(SMARTVIEW!R$5:R$1171,SMARTVIEW!$B$5:$B$1171,Layout!$B$140,SMARTVIEW!$C$5:$C$1171,Layout!$C$140,SMARTVIEW!$D$5:$D$1171,Layout!$C$142,SMARTVIEW!$F$5:$F$1171,Layout!$B$142) -> 729 | P142: =SUMIFS(SMARTVIEW!S$5:S$1171,SMARTVIEW!$B$5:$B$1171,Layout!$B$140,SMARTVIEW!$C$5:$C$1171,Layout!$C$140,SMARTVIEW!$D$5:$D$1171,Layout!$C$142,SMARTVIEW!$F$5:$F$1171,Layout!$B$142) -> 727 | Q142: =SUM(E142:P142) -> 8746
A144: %,R,FDEPTID,V19800,FACCOUNT,V458140,LACT_USD | B144: FY18 | C144: Actual | D144: CURRENT ACTUAL | E144: =SUMIFS(SMARTVIEW!H$5:H$1171,SMARTVIEW!$B$5:$B$1171,Layout!$B$140,SMARTVIEW!$C$5:$C$1171,Layout!$C$140,SMARTVIEW!$D$5:$D$1171,Layout!$C$144,SMARTVIEW!$F$5:$F$1171,Layout!$B$144) -> 729 | F144: =SUMIFS(SMARTVIEW!I$5:I$1171,SMARTVIEW!$B$5:$B$1171,Layout!$B$140,SMARTVIEW!$C$5:$C$1171,Layout!$C$140,SMARTVIEW!$D$5:$D$1171,Layout!$C$144,SMARTVIEW!$F$5:$F$1171,Layout!$B$144) -> 729 | G144: =SUMIFS(SMARTVIEW!J$5:J$1171,SMARTVIEW!$B$5:$B$1171,Layout!$B$140,SMARTVIEW!$C$5:$C$1171,Layout!$C$140,SMARTVIEW!$D$5:$D$1171,Layout!$C$144,SMARTVIEW!$F$5:$F$1171,Layout!$B$144) -> 729 | H144: =SUMIFS(SMARTVIEW!K$5:K$1171,SMARTVIEW!$B$5:$B$1171,Layout!$B$140,SMARTVIEW!$C$5:$C$1171,Layout!$C$140,SMARTVIEW!$D$5:$D$1171,Layout!$C$144,SMARTVIEW!$F$5:$F$1171,Layout!$B$144) -> 729 | I144: =SUMIFS(SMARTVIEW!L$5:L$1171,SMARTVIEW!$B$5:$B$1171,Layout!$B$140,SMARTVIEW!$C$5:$C$1171,Layout!$C$140,SMARTVIEW!$D$5:$D$1171,Layout!$C$144,SMARTVIEW!$F$5:$F$1171,Layout!$B$144) -> 729 | J144: =SUMIFS(SMARTVIEW!M$5:M$1171,SMARTVIEW!$B$5:$B$1171,Layout!$B$140,SMARTVIEW!$C$5:$C$1171,Layout!$C$140,SMARTVIEW!$D$5:$D$1171,Layout!$C$144,SMARTVIEW!$F$5:$F$1171,Layout!$B$144) -> 729 | K144: =SUMIFS(SMARTVIEW!N$5:N$1171,SMARTVIEW!$B$5:$B$1171,Layout!$B$140,SMARTVIEW!$C$5:$C$1171,Layout!$C$140,SMARTVIEW!$D$5:$D$1171,Layout!$C$142,SMARTVIEW!$F$5:$F$1171,Layout!$B$142) -> 729 | L144: =SUMIFS(SMARTVIEW!O$5:O$1171,SMARTVIEW!$B$5:$B$1171,Layout!$B$140,SMARTVIEW!$C$5:$C$1171,Layout!$C$140,SMARTVIEW!$D$5:$D$1171,Layout!$C$142,SMARTVIEW!$F$5:$F$1171,Layout!$B$142) -> 729 | M144: =SUMIFS(SMARTVIEW!P$5:P$1171,SMARTVIEW!$B$5:$B$1171,Layout!$B$140,SMARTVIEW!$C$5:$C$1171,Layout!$C$140,SMARTVIEW!$D$5:$D$1171,Layout!$C$142,SMARTVIEW!$F$5:$F$1171,Layout!$B$142) -> 729 | N144: =SUMIFS(SMARTVIEW!Q$5:Q$1171,SMARTVIEW!$B$5:$B$1171,Layout!$B$140,SMARTVIEW!$C$5:$C$1171,Layout!$C$140,SMARTVIEW!$D$5:$D$1171,Layout!$C$142,SMARTVIEW!$F$5:$F$1171,Layout!$B$142) -> 729 | O144: =SUMIFS(SMARTVIEW!R$5:R$1171,SMARTVIEW!$B$5:$B$1171,Layout!$B$140,SMARTVIEW!$C$5:$C$1171,Layout!$C$140,SMARTVIEW!$D$5:$D$1171,Layout!$C$142,SMARTVIEW!$F$5:$F$1171,Layout!$B$142) -> 729 | P144: =SUMIFS(SMARTVIEW!S$5:S$1171,SMARTVIEW!$B$5:$B$1171,Layout!$B$140,SMARTVIEW!$C$5:$C$1171,Layout!$C$140,SMARTVIEW!$D$5:$D$1171,Layout!$C$142,SMARTVIEW!$F$5:$F$1171,Layout!$B$142) -> 727 | Q144: =SUM(E144:P144) -> 8746 | R144: =Q144 -> 8746
B146: FY17 | C146: Actual | D146: PRIOR YEAR ACTUALS | E146: =SUMIFS(SMARTVIEW!H$5:H$1171,SMARTVIEW!$B$5:$B$1171,Layout!$B$140,SMARTVIEW!$C$5:$C$1171,Layout!$C$140,SMARTVIEW!$D$5:$D$1171,Layout!$C$146,SMARTVIEW!$F$5:$F$1171,Layout!$B$146) -> 729 | F146: =SUMIFS(SMARTVIEW!I$5:I$1171,SMARTVIEW!$B$5:$B$1171,Layout!$B$140,SMARTVIEW!$C$5:$C$1171,Layout!$C$140,SMARTVIEW!$D$5:$D$1171,Layout!$C$146,SMARTVIEW!$F$5:$F$1171,Layout!$B$146) -> 729 | G146: =SUMIFS(SMARTVIEW!J$5:J$1171,SMARTVIEW!$B$5:$B$1171,Layout!$B$140,SMARTVIEW!$C$5:$C$1171,Layout!$C$140,SMARTVIEW!$D$5:$D$1171,Layout!$C$146,SMARTVIEW!$F$5:$F$1171,Layout!$B$146) -> 729 | H146: =SUMIFS(SMARTVIEW!K$5:K$1171,SMARTVIEW!$B$5:$B$1171,Layout!$B$140,SMARTVIEW!$C$5:$C$1171,Layout!$C$140,SMARTVIEW!$D$5:$D$1171,Layout!$C$146,SMARTVIEW!$F$5:$F$1171,Layout!$B$146) -> 729 | I146: =SUMIFS(SMARTVIEW!L$5:L$1171,SMARTVIEW!$B$5:$B$1171,Layout!$B$140,SMARTVIEW!$C$5:$C$1171,Layout!$C$140,SMARTVIEW!$D$5:$D$1171,Layout!$C$146,SMARTVIEW!$F$5:$F$1171,Layout!$B$146) -> 729 | J146: =SUMIFS(SMARTVIEW!M$5:M$1171,SMARTVIEW!$B$5:$B$1171,Layout!$B$140,SMARTVIEW!$C$5:$C$1171,Layout!$C$140,SMARTVIEW!$D$5:$D$1171,Layout!$C$146,SMARTVIEW!$F$5:$F$1171,Layout!$B$146) -> 729 | K146: =SUMIFS(SMARTVIEW!N$5:N$1171,SMARTVIEW!$B$5:$B$1171,Layout!$B$140,SMARTVIEW!$C$5:$C$1171,Layout!$C$140,SMARTVIEW!$D$5:$D$1171,Layout!$C$146,SMARTVIEW!$F$5:$F$1171,Layout!$B$146) -> 729 | L146: =SUMIFS(SMARTVIEW!O$5:O$1171,SMARTVIEW!$B$5:$B$1171,Layout!$B$140,SMARTVIEW!$C$5:$C$1171,Layout!$C$140,SMARTVIEW!$D$5:$D$1171,Layout!$C$146,SMARTVIEW!$F$5:$F$1171,Layout!$B$146) -> 729 | M146: =SUMIFS(SMARTVIEW!P$5:P$1171,SMARTVIEW!$B$5:$B$1171,Layout!$B$140,SMARTVIEW!$C$5:$C$1171,Layout!$C$140,SMARTVIEW!$D$5:$D$1171,Layout!$C$146,SMARTVIEW!$F$5:$F$1171,Layout!$B$146) -> 729 | N146: =SUMIFS(SMARTVIEW!Q$5:Q$1171,SMARTVIEW!$B$5:$B$1171,Layout!$B$140,SMARTVIEW!$C$5:$C$1171,Layout!$C$140,SMARTVIEW!$D$5:$D$1171,Layout!$C$146,SMARTVIEW!$F$5:$F$1171,Layout!$B$146) -> 729 | O146: =SUMIFS(SMARTVIEW!R$5:R$1171,SMARTVIEW!$B$5:$B$1171,Layout!$B$140,SMARTVIEW!$C$5:$C$1171,Layout!$C$140,SMARTVIEW!$D$5:$D$1171,Layout!$C$146,SMARTVIEW!$F$5:$F$1171,Layout!$B$146) -> 729 | P146: =SUMIFS(SMARTVIEW!S$5:S$1171,SMARTVIEW!$B$5:$B$1171,Layout!$B$140,SMARTVIEW!$C$5:$C$1171,Layout!$C$140,SMARTVIEW!$D$5:$D$1171,Layout!$C$146,SMARTVIEW!$F$5:$F$1171,Layout!$B$146) -> 729 | Q146: =SUM(E146:P146) -> 8748
S149: Enter Notes Below
D150: FUTURE BUDGET | E150: =SUMIFS(SMARTVIEW!H$5:H$1171,SMARTVIEW!$B$5:$B$1171,Layout!$B$140,SMARTVIEW!$C$5:$C$1171,Layout!$C$140,SMARTVIEW!$D$5:$D$1171,Layout!$C$142,SMARTVIEW!$F$5:$F$1171,Layout!$B$142) -> 729 | F150: =SUMIFS(SMARTVIEW!I$5:I$1171,SMARTVIEW!$B$5:$B$1171,Layout!$B$140,SMARTVIEW!$C$5:$C$1171,Layout!$C$140,SMARTVIEW!$D$5:$D$1171,Layout!$C$142,SMARTVIEW!$F$5:$F$1171,Layout!$B$142) -> 729 | G150: =SUMIFS(SMARTVIEW!J$5:J$1171,SMARTVIEW!$B$5:$B$1171,Layout!$B$140,SMARTVIEW!$C$5:$C$1171,Layout!$C$140,SMARTVIEW!$D$5:$D$1171,Layout!$C$142,SMARTVIEW!$F$5:$F$1171,Layout!$B$142) -> 729 | H150: =SUMIFS(SMARTVIEW!K$5:K$1171,SMARTVIEW!$B$5:$B$1171,Layout!$B$140,SMARTVIEW!$C$5:$C$1171,Layout!$C$140,SMARTVIEW!$D$5:$D$1171,Layout!$C$142,SMARTVIEW!$F$5:$F$1171,Layout!$B$142) -> 729 | I150: =SUMIFS(SMARTVIEW!L$5:L$1171,SMARTVIEW!$B$5:$B$1171,Layout!$B$140,SMARTVIEW!$C$5:$C$1171,Layout!$C$140,SMARTVIEW!$D$5:$D$1171,Layout!$C$142,SMARTVIEW!$F$5:$F$1171,Layout!$B$142) -> 729 | J150: =SUMIFS(SMARTVIEW!M$5:M$1171,SMARTVIEW!$B$5:$B$1171,Layout!$B$140,SMARTVIEW!$C$5:$C$1171,Layout!$C$140,SMARTVIEW!$D$5:$D$1171,Layout!$C$142,SMARTVIEW!$F$5:$F$1171,Layout!$B$142) -> 729 | K150: =SUMIFS(SMARTVIEW!N$5:N$1171,SMARTVIEW!$B$5:$B$1171,Layout!$B$140,SMARTVIEW!$C$5:$C$1171,Layout!$C$140,SMARTVIEW!$D$5:$D$1171,Layout!$C$142,SMARTVIEW!$F$5:$F$1171,Layout!$B$142) -> 729 | L150: =SUMIFS(SMARTVIEW!O$5:O$1171,SMARTVIEW!$B$5:$B$1171,Layout!$B$140,SMARTVIEW!$C$5:$C$1171,Layout!$C$140,SMARTVIEW!$D$5:$D$1171,Layout!$C$142,SMARTVIEW!$F$5:$F$1171,Layout!$B$142) -> 729 | M150: =SUMIFS(SMARTVIEW!P$5:P$1171,SMARTVIEW!$B$5:$B$1171,Layout!$B$140,SMARTVIEW!$C$5:$C$1171,Layout!$C$140,SMARTVIEW!$D$5:$D$1171,Layout!$C$142,SMARTVIEW!$F$5:$F$1171,Layout!$B$142) -> 729 | N150: =SUMIFS(SMARTVIEW!Q$5:Q$1171,SMARTVIEW!$B$5:$B$1171,Layout!$B$140,SMARTVIEW!$C$5:$C$1171,Layout!$C$140,SMARTVIEW!$D$5:$D$1171,Layout!$C$142,SMARTVIEW!$F$5:$F$1171,Layout!$B$142) -> 729 | O150: =SUMIFS(SMARTVIEW!R$5:R$1171,SMARTVIEW!$B$5:$B$1171,Layout!$B$140,SMARTVIEW!$C$5:$C$1171,Layout!$C$140,SMARTVIEW!$D$5:$D$1171,Layout!$C$142,SMARTVIEW!$F$5:$F$1171,Layout!$B$142) -> 729 | P150: =SUMIFS(SMARTVIEW!S$5:S$1171,SMARTVIEW!$B$5:$B$1171,Layout!$B$140,SMARTVIEW!$C$5:$C$1171,Layout!$C$140,SMARTVIEW!$D$5:$D$1171,Layout!$C$142,SMARTVIEW!$F$5:$F$1171,Layout!$B$142) -> 727 | Q150: =SUM(E150:P150) -> 8746 | S150: Same as budgeted
B154: D19800 | C154: 458160 | D154: SUPPORT AREA 2 RETAIL
A156: %,R,FDEPTID,V19800,FACCOUNT,V458160,LBUD_USD | B156: FY18 | C156: PLANNING | D156: CURRENT BUDGET | E156: =SUMIFS(SMARTVIEW!H$5:H$1171,SMARTVIEW!$B$5:$B$1171,Layout!$B$154,SMARTVIEW!$C$5:$C$1171,Layout!$C$154,SMARTVIEW!$D$5:$D$1171,Layout!$C$156,SMARTVIEW!$F$5:$F$1171,Layout!$B$156) -> 0 | F156: =SUMIFS(SMARTVIEW!I$5:I$1171,SMARTVIEW!$B$5:$B$1171,Layout!$B$154,SMARTVIEW!$C$5:$C$1171,Layout!$C$154,SMARTVIEW!$D$5:$D$1171,Layout!$C$156,SMARTVIEW!$F$5:$F$1171,Layout!$B$156) -> 0 | G156: =SUMIFS(SMARTVIEW!J$5:J$1171,SMARTVIEW!$B$5:$B$1171,Layout!$B$154,SMARTVIEW!$C$5:$C$1171,Layout!$C$154,SMARTVIEW!$D$5:$D$1171,Layout!$C$156,SMARTVIEW!$F$5:$F$1171,Layout!$B$156) -> 0 | H156: =SUMIFS(SMARTVIEW!K$5:K$1171,SMARTVIEW!$B$5:$B$1171,Layout!$B$154,SMARTVIEW!$C$5:$C$1171,Layout!$C$154,SMARTVIEW!$D$5:$D$1171,Layout!$C$156,SMARTVIEW!$F$5:$F$1171,Layout!$B$156) -> 0 | I156: =SUMIFS(SMARTVIEW!L$5:L$1171,SMARTVIEW!$B$5:$B$1171,Layout!$B$154,SMARTVIEW!$C$5:$C$1171,Layout!$C$154,SMARTVIEW!$D$5:$D$1171,Layout!$C$156,SMARTVIEW!$F$5:$F$1171,Layout!$B$156) -> 0 | J156: =SUMIFS(SMARTVIEW!M$5:M$1171,SMARTVIEW!$B$5:$B$1171,Layout!$B$154,SMARTVIEW!$C$5:$C$1171,Layout!$C$154,SMARTVIEW!$D$5:$D$1171,Layout!$C$156,SMARTVIEW!$F$5:$F$1171,Layout!$B$156) -> 0 | K156: =SUMIFS(SMARTVIEW!N$5:N$1171,SMARTVIEW!$B$5:$B$1171,Layout!$B$154,SMARTVIEW!$C$5:$C$1171,Layout!$C$154,SMARTVIEW!$D$5:$D$1171,Layout!$C$156,SMARTVIEW!$F$5:$F$1171,Layout!$B$156) -> 0 | L156: =SUMIFS(SMARTVIEW!O$5:O$1171,SMARTVIEW!$B$5:$B$1171,Layout!$B$154,SMARTVIEW!$C$5:$C$1171,Layout!$C$154,SMARTVIEW!$D$5:$D$1171,Layout!$C$156,SMARTVIEW!$F$5:$F$1171,Layout!$B$156) -> 0 | M156: =SUMIFS(SMARTVIEW!P$5:P$1171,SMARTVIEW!$B$5:$B$1171,Layout!$B$154,SMARTVIEW!$C$5:$C$1171,Layout!$C$154,SMARTVIEW!$D$5:$D$1171,Layout!$C$156,SMARTVIEW!$F$5:$F$1171,Layout!$B$156) -> 0 | N156: =SUMIFS(SMARTVIEW!Q$5:Q$1171,SMARTVIEW!$B$5:$B$1171,Layout!$B$154,SMARTVIEW!$C$5:$C$1171,Layout!$C$154,SMARTVIEW!$D$5:$D$1171,Layout!$C$156,SMARTVIEW!$F$5:$F$1171,Layout!$B$156) -> 0 | O156: =SUMIFS(SMARTVIEW!R$5:R$1171,SMARTVIEW!$B$5:$B$1171,Layout!$B$154,SMARTVIEW!$C$5:$C$1171,Layout!$C$154,SMARTVIEW!$D$5:$D$1171,Layout!$C$156,SMARTVIEW!$F$5:$F$1171,Layout!$B$156) -> 0 | P156: =SUMIFS(SMARTVIEW!S$5:S$1171,SMARTVIEW!$B$5:$B$1171,Layout!$B$154,SMARTVIEW!$C$5:$C$1171,Layout!$C$154,SMARTVIEW!$D$5:$D$1171,Layout!$C$156,SMARTVIEW!$F$5:$F$1171,Layout!$B$156) -> 0 | Q156: =SUM(E156:P156) -> 0
A158: %,R,FDEPTID,V19800,FACCOUNT,V458160,LACT_USD | B158: FY18 | C158: Actual | D158: CURRENT ACTUAL | E158: =SUMIFS(SMARTVIEW!H$5:H$1171,SMARTVIEW!$B$5:$B$1171,Layout!$B$154,SMARTVIEW!$C$5:$C$1171,Layout!$C$154,SMARTVIEW!$D$5:$D$1171,Layout!$C$158,SMARTVIEW!$F$5:$F$1171,Layout!$B$158) -> 0 | F158: =SUMIFS(SMARTVIEW!I$5:I$1171,SMARTVIEW!$B$5:$B$1171,Layout!$B$154,SMARTVIEW!$C$5:$C$1171,Layout!$C$154,SMARTVIEW!$D$5:$D$1171,Layout!$C$158,SMARTVIEW!$F$5:$F$1171,Layout!$B$158) -> 0 | G158: =SUMIFS(SMARTVIEW!J$5:J$1171,SMARTVIEW!$B$5:$B$1171,Layout!$B$154,SMARTVIEW!$C$5:$C$1171,Layout!$C$154,SMARTVIEW!$D$5:$D$1171,Layout!$C$158,SMARTVIEW!$F$5:$F$1171,Layout!$B$158) -> 0 | H158: =SUMIFS(SMARTVIEW!K$5:K$1171,SMARTVIEW!$B$5:$B$1171,Layout!$B$154,SMARTVIEW!$C$5:$C$1171,Layout!$C$154,SMARTVIEW!$D$5:$D$1171,Layout!$C$158,SMARTVIEW!$F$5:$F$1171,Layout!$B$158) -> 0 | I158: =SUMIFS(SMARTVIEW!L$5:L$1171,SMARTVIEW!$B$5:$B$1171,Layout!$B$154,SMARTVIEW!$C$5:$C$1171,Layout!$C$154,SMARTVIEW!$D$5:$D$1171,Layout!$C$158,SMARTVIEW!$F$5:$F$1171,Layout!$B$158) -> 0 | J158: =SUMIFS(SMARTVIEW!M$5:M$1171,SMARTVIEW!$B$5:$B$1171,Layout!$B$154,SMARTVIEW!$C$5:$C$1171,Layout!$C$154,SMARTVIEW!$D$5:$D$1171,Layout!$C$158,SMARTVIEW!$F$5:$F$1171,Layout!$B$158) -> 0 | K158: =SUMIFS(SMARTVIEW!N$5:N$1171,SMARTVIEW!$B$5:$B$1171,Layout!$B$154,SMARTVIEW!$C$5:$C$1171,Layout!$C$154,SMARTVIEW!$D$5:$D$1171,Layout!$C$158,SMARTVIEW!$F$5:$F$1171,Layout!$B$158) -> 0 | L158: =SUMIFS(SMARTVIEW!O$5:O$1171,SMARTVIEW!$B$5:$B$1171,Layout!$B$154,SMARTVIEW!$C$5:$C$1171,Layout!$C$154,SMARTVIEW!$D$5:$D$1171,Layout!$C$158,SMARTVIEW!$F$5:$F$1171,Layout!$B$158) -> 0 | M158: =SUMIFS(SMARTVIEW!P$5:P$1171,SMARTVIEW!$B$5:$B$1171,Layout!$B$154,SMARTVIEW!$C$5:$C$1171,Layout!$C$154,SMARTVIEW!$D$5:$D$1171,Layout!$C$158,SMARTVIEW!$F$5:$F$1171,Layout!$B$158) -> 0 | N158: =SUMIFS(SMARTVIEW!Q$5:Q$1171,SMARTVIEW!$B$5:$B$1171,Layout!$B$154,SMARTVIEW!$C$5:$C$1171,Layout!$C$154,SMARTVIEW!$D$5:$D$1171,Layout!$C$158,SMARTVIEW!$F$5:$F$1171,Layout!$B$158) -> 0 | O158: =SUMIFS(SMARTVIEW!R$5:R$1171,SMARTVIEW!$B$5:$B$1171,Layout!$B$154,SMARTVIEW!$C$5:$C$1171,Layout!$C$154,SMARTVIEW!$D$5:$D$1171,Layout!$C$158,SMARTVIEW!$F$5:$F$1171,Layout!$B$158) -> 0 | P158: =SUMIFS(SMARTVIEW!S$5:S$1171,SMARTVIEW!$B$5:$B$1171,Layout!$B$154,SMARTVIEW!$C$5:$C$1171,Layout!$C$154,SMARTVIEW!$D$5:$D$1171,Layout!$C$158,SMARTVIEW!$F$5:$F$1171,Layout!$B$158) -> 0 | Q158: =SUM(E158:P158) -> 0 | R158: =Q158 -> 0
B160: FY17 | C160: Actual | D160: PRIOR YEAR ACTUALS | E160: =SUMIFS(SMARTVIEW!H$5:H$1171,SMARTVIEW!$B$5:$B$1171,Layout!$B$154,SMARTVIEW!$C$5:$C$1171,Layout!$C$154,SMARTVIEW!$D$5:$D$1171,Layout!$C$160,SMARTVIEW!$F$5:$F$1171,Layout!$B$160) -> 0 | F160: =SUMIFS(SMARTVIEW!I$5:I$1171,SMARTVIEW!$B$5:$B$1171,Layout!$B$154,SMARTVIEW!$C$5:$C$1171,Layout!$C$154,SMARTVIEW!$D$5:$D$1171,Layout!$C$160,SMARTVIEW!$F$5:$F$1171,Layout!$B$160) -> 0 | G160: =SUMIFS(SMARTVIEW!J$5:J$1171,SMARTVIEW!$B$5:$B$1171,Layout!$B$154,SMARTVIEW!$C$5:$C$1171,Layout!$C$154,SMARTVIEW!$D$5:$D$1171,Layout!$C$160,SMARTVIEW!$F$5:$F$1171,Layout!$B$160) -> 0 | H160: =SUMIFS(SMARTVIEW!K$5:K$1171,SMARTVIEW!$B$5:$B$1171,Layout!$B$154,SMARTVIEW!$C$5:$C$1171,Layout!$C$154,SMARTVIEW!$D$5:$D$1171,Layout!$C$160,SMARTVIEW!$F$5:$F$1171,Layout!$B$160) -> 0 | I160: =SUMIFS(SMARTVIEW!L$5:L$1171,SMARTVIEW!$B$5:$B$1171,Layout!$B$154,SMARTVIEW!$C$5:$C$1171,Layout!$C$154,SMARTVIEW!$D$5:$D$1171,Layout!$C$160,SMARTVIEW!$F$5:$F$1171,Layout!$B$160) -> 0 | J160: =SUMIFS(SMARTVIEW!M$5:M$1171,SMARTVIEW!$B$5:$B$1171,Layout!$B$154,SMARTVIEW!$C$5:$C$1171,Layout!$C$154,SMARTVIEW!$D$5:$D$1171,Layout!$C$160,SMARTVIEW!$F$5:$F$1171,Layout!$B$160) -> 0 | K160: =SUMIFS(SMARTVIEW!N$5:N$1171,SMARTVIEW!$B$5:$B$1171,Layout!$B$154,SMARTVIEW!$C$5:$C$1171,Layout!$C$154,SMARTVIEW!$D$5:$D$1171,Layout!$C$160,SMARTVIEW!$F$5:$F$1171,Layout!$B$160) -> 0 | L160: =SUMIFS(SMARTVIEW!O$5:O$1171,SMARTVIEW!$B$5:$B$1171,Layout!$B$154,SMARTVIEW!$C$5:$C$1171,Layout!$C$154,SMARTVIEW!$D$5:$D$1171,Layout!$C$160,SMARTVIEW!$F$5:$F$1171,Layout!$B$160) -> 0 | M160: =SUMIFS(SMARTVIEW!P$5:P$1171,SMARTVIEW!$B$5:$B$1171,Layout!$B$154,SMARTVIEW!$C$5:$C$1171,Layout!$C$154,SMARTVIEW!$D$5:$D$1171,Layout!$C$160,SMARTVIEW!$F$5:$F$1171,Layout!$B$160) -> 0 | N160: =SUMIFS(SMARTVIEW!Q$5:Q$1171,SMARTVIEW!$B$5:$B$1171,Layout!$B$154,SMARTVIEW!$C$5:$C$1171,Layout!$C$154,SMARTVIEW!$D$5:$D$1171,Layout!$C$160,SMARTVIEW!$F$5:$F$1171,Layout!$B$160) -> 0 | O160: =SUMIFS(SMARTVIEW!R$5:R$1171,SMARTVIEW!$B$5:$B$1171,Layout!$B$154,SMARTVIEW!$C$5:$C$1171,Layout!$C$154,SMARTVIEW!$D$5:$D$1171,Layout!$C$160,SMARTVIEW!$F$5:$F$1171,Layout!$B$160) -> 0 | P160: =SUMIFS(SMARTVIEW!S$5:S$1171,SMARTVIEW!$B$5:$B$1171,Layout!$B$154,SMARTVIEW!$C$5:$C$1171,Layout!$C$154,SMARTVIEW!$D$5:$D$1171,Layout!$C$160,SMARTVIEW!$F$5:$F$1171,Layout!$B$160) -> 0 | Q160: =SUM(E160:P160) -> 0
S163: Enter Notes Below
D164: FUTURE BUDGET | E164: 0 | F164: 0 | G164: 0 | H164: 0 | I164: 0 | J164: 0 | K164: 0 | L164: 0 | M164: 0 | N164: 0 | O164: 0 | P164: 0 | Q164: =SUM(E164:P164) -> 0
B168: D19800 | C168: 458170 | D168: SUPPORT AREA 3 POOL BAR
A170: %,R,FDEPTID,V19800,FACCOUNT,V458170,LBUD_USD | B170: FY18 | C170: PLANNING | D170: CURRENT BUDGET | E170: =SUMIFS(SMARTVIEW!H$5:H$1171,SMARTVIEW!$B$5:$B$1171,Layout!$B$168,SMARTVIEW!$C$5:$C$1171,Layout!$C$168,SMARTVIEW!$D$5:$D$1171,Layout!$C$170,SMARTVIEW!$F$5:$F$1171,Layout!$B$170) -> 0 | F170: =SUMIFS(SMARTVIEW!I$5:I$1171,SMARTVIEW!$B$5:$B$1171,Layout!$B$168,SMARTVIEW!$C$5:$C$1171,Layout!$C$168,SMARTVIEW!$D$5:$D$1171,Layout!$C$170,SMARTVIEW!$F$5:$F$1171,Layout!$B$170) -> 0 | G170: =SUMIFS(SMARTVIEW!J$5:J$1171,SMARTVIEW!$B$5:$B$1171,Layout!$B$168,SMARTVIEW!$C$5:$C$1171,Layout!$C$168,SMARTVIEW!$D$5:$D$1171,Layout!$C$170,SMARTVIEW!$F$5:$F$1171,Layout!$B$170) -> 0 | H170: =SUMIFS(SMARTVIEW!K$5:K$1171,SMARTVIEW!$B$5:$B$1171,Layout!$B$168,SMARTVIEW!$C$5:$C$1171,Layout!$C$168,SMARTVIEW!$D$5:$D$1171,Layout!$C$170,SMARTVIEW!$F$5:$F$1171,Layout!$B$170) -> 0 | I170: =SUMIFS(SMARTVIEW!L$5:L$1171,SMARTVIEW!$B$5:$B$1171,Layout!$B$168,SMARTVIEW!$C$5:$C$1171,Layout!$C$168,SMARTVIEW!$D$5:$D$1171,Layout!$C$170,SMARTVIEW!$F$5:$F$1171,Layout!$B$170) -> 0 | J170: =SUMIFS(SMARTVIEW!M$5:M$1171,SMARTVIEW!$B$5:$B$1171,Layout!$B$168,SMARTVIEW!$C$5:$C$1171,Layout!$C$168,SMARTVIEW!$D$5:$D$1171,Layout!$C$170,SMARTVIEW!$F$5:$F$1171,Layout!$B$170) -> 0 | K170: =SUMIFS(SMARTVIEW!N$5:N$1171,SMARTVIEW!$B$5:$B$1171,Layout!$B$168,SMARTVIEW!$C$5:$C$1171,Layout!$C$168,SMARTVIEW!$D$5:$D$1171,Layout!$C$170,SMARTVIEW!$F$5:$F$1171,Layout!$B$170) -> 0 | L170: =SUMIFS(SMARTVIEW!O$5:O$1171,SMARTVIEW!$B$5:$B$1171,Layout!$B$168,SMARTVIEW!$C$5:$C$1171,Layout!$C$168,SMARTVIEW!$D$5:$D$1171,Layout!$C$170,SMARTVIEW!$F$5:$F$1171,Layout!$B$170) -> 0 | M170: =SUMIFS(SMARTVIEW!P$5:P$1171,SMARTVIEW!$B$5:$B$1171,Layout!$B$168,SMARTVIEW!$C$5:$C$1171,Layout!$C$168,SMARTVIEW!$D$5:$D$1171,Layout!$C$170,SMARTVIEW!$F$5:$F$1171,Layout!$B$170) -> 0 | N170: =SUMIFS(SMARTVIEW!Q$5:Q$1171,SMARTVIEW!$B$5:$B$1171,Layout!$B$168,SMARTVIEW!$C$5:$C$1171,Layout!$C$168,SMARTVIEW!$D$5:$D$1171,Layout!$C$170,SMARTVIEW!$F$5:$F$1171,Layout!$B$170) -> 0 | O170: =SUMIFS(SMARTVIEW!R$5:R$1171,SMARTVIEW!$B$5:$B$1171,Layout!$B$168,SMARTVIEW!$C$5:$C$1171,Layout!$C$168,SMARTVIEW!$D$5:$D$1171,Layout!$C$170,SMARTVIEW!$F$5:$F$1171,Layout!$B$170) -> 0 | P170: =SUMIFS(SMARTVIEW!S$5:S$1171,SMARTVIEW!$B$5:$B$1171,Layout!$B$168,SMARTVIEW!$C$5:$C$1171,Layout!$C$168,SMARTVIEW!$D$5:$D$1171,Layout!$C$170,SMARTVIEW!$F$5:$F$1171,Layout!$B$170) -> 0 | Q170: =SUM(E170:P170) -> 0
A172: %,R,FDEPTID,V19800,FACCOUNT,V458170,LACT_USD | B172: FY18 | C172: Actual | D172: CURRENT ACTUAL | E172: =SUMIFS(SMARTVIEW!H$5:H$1171,SMARTVIEW!$B$5:$B$1171,Layout!$B$168,SMARTVIEW!$C$5:$C$1171,Layout!$C$168,SMARTVIEW!$D$5:$D$1171,Layout!$C$172,SMARTVIEW!$F$5:$F$1171,Layout!$B$172) -> 0 | F172: =SUMIFS(SMARTVIEW!I$5:I$1171,SMARTVIEW!$B$5:$B$1171,Layout!$B$168,SMARTVIEW!$C$5:$C$1171,Layout!$C$168,SMARTVIEW!$D$5:$D$1171,Layout!$C$172,SMARTVIEW!$F$5:$F$1171,Layout!$B$172) -> 0 | G172: =SUMIFS(SMARTVIEW!J$5:J$1171,SMARTVIEW!$B$5:$B$1171,Layout!$B$168,SMARTVIEW!$C$5:$C$1171,Layout!$C$168,SMARTVIEW!$D$5:$D$1171,Layout!$C$172,SMARTVIEW!$F$5:$F$1171,Layout!$B$172) -> 0 | H172: =SUMIFS(SMARTVIEW!K$5:K$1171,SMARTVIEW!$B$5:$B$1171,Layout!$B$168,SMARTVIEW!$C$5:$C$1171,Layout!$C$168,SMARTVIEW!$D$5:$D$1171,Layout!$C$172,SMARTVIEW!$F$5:$F$1171,Layout!$B$172) -> 0 | I172: =SUMIFS(SMARTVIEW!L$5:L$1171,SMARTVIEW!$B$5:$B$1171,Layout!$B$168,SMARTVIEW!$C$5:$C$1171,Layout!$C$168,SMARTVIEW!$D$5:$D$1171,Layout!$C$172,SMARTVIEW!$F$5:$F$1171,Layout!$B$172) -> 0 | J172: =SUMIFS(SMARTVIEW!M$5:M$1171,SMARTVIEW!$B$5:$B$1171,Layout!$B$168,SMARTVIEW!$C$5:$C$1171,Layout!$C$168,SMARTVIEW!$D$5:$D$1171,Layout!$C$172,SMARTVIEW!$F$5:$F$1171,Layout!$B$172) -> 0 | K172: =SUMIFS(SMARTVIEW!N$5:N$1171,SMARTVIEW!$B$5:$B$1171,Layout!$B$168,SMARTVIEW!$C$5:$C$1171,Layout!$C$168,SMARTVIEW!$D$5:$D$1171,Layout!$C$172,SMARTVIEW!$F$5:$F$1171,Layout!$B$172) -> 0 | L172: =SUMIFS(SMARTVIEW!O$5:O$1171,SMARTVIEW!$B$5:$B$1171,Layout!$B$168,SMARTVIEW!$C$5:$C$1171,Layout!$C$168,SMARTVIEW!$D$5:$D$1171,Layout!$C$172,SMARTVIEW!$F$5:$F$1171,Layout!$B$172) -> 0 | M172: =SUMIFS(SMARTVIEW!P$5:P$1171,SMARTVIEW!$B$5:$B$1171,Layout!$B$168,SMARTVIEW!$C$5:$C$1171,Layout!$C$168,SMARTVIEW!$D$5:$D$1171,Layout!$C$172,SMARTVIEW!$F$5:$F$1171,Layout!$B$172) -> 0 | N172: =SUMIFS(SMARTVIEW!Q$5:Q$1171,SMARTVIEW!$B$5:$B$1171,Layout!$B$168,SMARTVIEW!$C$5:$C$1171,Layout!$C$168,SMARTVIEW!$D$5:$D$1171,Layout!$C$172,SMARTVIEW!$F$5:$F$1171,Layout!$B$172) -> 0 | O172: =SUMIFS(SMARTVIEW!R$5:R$1171,SMARTVIEW!$B$5:$B$1171,Layout!$B$168,SMARTVIEW!$C$5:$C$1171,Layout!$C$168,SMARTVIEW!$D$5:$D$1171,Layout!$C$172,SMARTVIEW!$F$5:$F$1171,Layout!$B$172) -> 0 | P172: =SUMIFS(SMARTVIEW!S$5:S$1171,SMARTVIEW!$B$5:$B$1171,Layout!$B$168,SMARTVIEW!$C$5:$C$1171,Layout!$C$168,SMARTVIEW!$D$5:$D$1171,Layout!$C$172,SMARTVIEW!$F$5:$F$1171,Layout!$B$172) -> 0 | Q172: =SUM(E172:P172) -> 0 | R172: =Q172 -> 0
B174: FY17 | C174: Actual | D174: PRIOR YEAR ACTUALS | E174: =SUMIFS(SMARTVIEW!H$5:H$1171,SMARTVIEW!$B$5:$B$1171,Layout!$B$168,SMARTVIEW!$C$5:$C$1171,Layout!$C$168,SMARTVIEW!$D$5:$D$1171,Layout!$C$174,SMARTVIEW!$F$5:$F$1171,Layout!$B$174) -> 0 | F174: =SUMIFS(SMARTVIEW!I$5:I$1171,SMARTVIEW!$B$5:$B$1171,Layout!$B$168,SMARTVIEW!$C$5:$C$1171,Layout!$C$168,SMARTVIEW!$D$5:$D$1171,Layout!$C$174,SMARTVIEW!$F$5:$F$1171,Layout!$B$174) -> 0 | G174: =SUMIFS(SMARTVIEW!J$5:J$1171,SMARTVIEW!$B$5:$B$1171,Layout!$B$168,SMARTVIEW!$C$5:$C$1171,Layout!$C$168,SMARTVIEW!$D$5:$D$1171,Layout!$C$174,SMARTVIEW!$F$5:$F$1171,Layout!$B$174) -> 0 | H174: =SUMIFS(SMARTVIEW!K$5:K$1171,SMARTVIEW!$B$5:$B$1171,Layout!$B$168,SMARTVIEW!$C$5:$C$1171,Layout!$C$168,SMARTVIEW!$D$5:$D$1171,Layout!$C$174,SMARTVIEW!$F$5:$F$1171,Layout!$B$174) -> 0 | I174: =SUMIFS(SMARTVIEW!L$5:L$1171,SMARTVIEW!$B$5:$B$1171,Layout!$B$168,SMARTVIEW!$C$5:$C$1171,Layout!$C$168,SMARTVIEW!$D$5:$D$1171,Layout!$C$174,SMARTVIEW!$F$5:$F$1171,Layout!$B$174) -> 0 | J174: =SUMIFS(SMARTVIEW!M$5:M$1171,SMARTVIEW!$B$5:$B$1171,Layout!$B$168,SMARTVIEW!$C$5:$C$1171,Layout!$C$168,SMARTVIEW!$D$5:$D$1171,Layout!$C$174,SMARTVIEW!$F$5:$F$1171,Layout!$B$174) -> 0 | K174: =SUMIFS(SMARTVIEW!N$5:N$1171,SMARTVIEW!$B$5:$B$1171,Layout!$B$168,SMARTVIEW!$C$5:$C$1171,Layout!$C$168,SMARTVIEW!$D$5:$D$1171,Layout!$C$174,SMARTVIEW!$F$5:$F$1171,Layout!$B$174) -> 0 | L174: =SUMIFS(SMARTVIEW!O$5:O$1171,SMARTVIEW!$B$5:$B$1171,Layout!$B$168,SMARTVIEW!$C$5:$C$1171,Layout!$C$168,SMARTVIEW!$D$5:$D$1171,Layout!$C$174,SMARTVIEW!$F$5:$F$1171,Layout!$B$174) -> 0 | M174: =SUMIFS(SMARTVIEW!P$5:P$1171,SMARTVIEW!$B$5:$B$1171,Layout!$B$168,SMARTVIEW!$C$5:$C$1171,Layout!$C$168,SMARTVIEW!$D$5:$D$1171,Layout!$C$174,SMARTVIEW!$F$5:$F$1171,Layout!$B$174) -> 0 | N174: =SUMIFS(SMARTVIEW!Q$5:Q$1171,SMARTVIEW!$B$5:$B$1171,Layout!$B$168,SMARTVIEW!$C$5:$C$1171,Layout!$C$168,SMARTVIEW!$D$5:$D$1171,Layout!$C$174,SMARTVIEW!$F$5:$F$1171,Layout!$B$174) -> 0 | O174: =SUMIFS(SMARTVIEW!R$5:R$1171,SMARTVIEW!$B$5:$B$1171,Layout!$B$168,SMARTVIEW!$C$5:$C$1171,Layout!$C$168,SMARTVIEW!$D$5:$D$1171,Layout!$C$174,SMARTVIEW!$F$5:$F$1171,Layout!$B$174) -> 0 | P174: =SUMIFS(SMARTVIEW!S$5:S$1171,SMARTVIEW!$B$5:$B$1171,Layout!$B$168,SMARTVIEW!$C$5:$C$1171,Layout!$C$168,SMARTVIEW!$D$5:$D$1171,Layout!$C$174,SMARTVIEW!$F$5:$F$1171,Layout!$B$174) -> 0 | Q174: =SUM(E174:P174) -> 0
S177: Enter Notes Below
D178: FUTURE BUDGET | E178: 0 | F178: 0 | G178: 0 | H178: 0 | I178: 0 | J178: 0 | K178: 0 | L178: 0 | M178: 0 | N178: 0 | O178: 0 | P178: 0 | Q178: =SUM(E178:P178) -> 0
B182: D19800 | C182: 458180 | D182: SUPPORT AREA 4 LOBBY BAR
A184: %,R,FDEPTID,V19800,FACCOUNT,V458180,LBUD_USD | B184: FY18 | C184: PLANNING | D184: CURRENT BUDGET | E184: =SUMIFS(SMARTVIEW!H$5:H$1171,SMARTVIEW!$B$5:$B$1171,Layout!$B$182,SMARTVIEW!$C$5:$C$1171,Layout!$C$182,SMARTVIEW!$D$5:$D$1171,Layout!$C$184,SMARTVIEW!$F$5:$F$1171,Layout!$B$184) -> 0 | F184: =SUMIFS(SMARTVIEW!I$5:I$1171,SMARTVIEW!$B$5:$B$1171,Layout!$B$182,SMARTVIEW!$C$5:$C$1171,Layout!$C$182,SMARTVIEW!$D$5:$D$1171,Layout!$C$184,SMARTVIEW!$F$5:$F$1171,Layout!$B$184) -> 0 | G184: =SUMIFS(SMARTVIEW!J$5:J$1171,SMARTVIEW!$B$5:$B$1171,Layout!$B$182,SMARTVIEW!$C$5:$C$1171,Layout!$C$182,SMARTVIEW!$D$5:$D$1171,Layout!$C$184,SMARTVIEW!$F$5:$F$1171,Layout!$B$184) -> 0 | H184: =SUMIFS(SMARTVIEW!K$5:K$1171,SMARTVIEW!$B$5:$B$1171,Layout!$B$182,SMARTVIEW!$C$5:$C$1171,Layout!$C$182,SMARTVIEW!$D$5:$D$1171,Layout!$C$184,SMARTVIEW!$F$5:$F$1171,Layout!$B$184) -> 0 | I184: =SUMIFS(SMARTVIEW!L$5:L$1171,SMARTVIEW!$B$5:$B$1171,Layout!$B$182,SMARTVIEW!$C$5:$C$1171,Layout!$C$182,SMARTVIEW!$D$5:$D$1171,Layout!$C$184,SMARTVIEW!$F$5:$F$1171,Layout!$B$184) -> 0 | J184: =SUMIFS(SMARTVIEW!M$5:M$1171,SMARTVIEW!$B$5:$B$1171,Layout!$B$182,SMARTVIEW!$C$5:$C$1171,Layout!$C$182,SMARTVIEW!$D$5:$D$1171,Layout!$C$184,SMARTVIEW!$F$5:$F$1171,Layout!$B$184) -> 0 | K184: =SUMIFS(SMARTVIEW!N$5:N$1171,SMARTVIEW!$B$5:$B$1171,Layout!$B$182,SMARTVIEW!$C$5:$C$1171,Layout!$C$182,SMARTVIEW!$D$5:$D$1171,Layout!$C$184,SMARTVIEW!$F$5:$F$1171,Layout!$B$184) -> 0 | L184: =SUMIFS(SMARTVIEW!O$5:O$1171,SMARTVIEW!$B$5:$B$1171,Layout!$B$182,SMARTVIEW!$C$5:$C$1171,Layout!$C$182,SMARTVIEW!$D$5:$D$1171,Layout!$C$184,SMARTVIEW!$F$5:$F$1171,Layout!$B$184) -> 0 | M184: =SUMIFS(SMARTVIEW!P$5:P$1171,SMARTVIEW!$B$5:$B$1171,Layout!$B$182,SMARTVIEW!$C$5:$C$1171,Layout!$C$182,SMARTVIEW!$D$5:$D$1171,Layout!$C$184,SMARTVIEW!$F$5:$F$1171,Layout!$B$184) -> 0 | N184: =SUMIFS(SMARTVIEW!Q$5:Q$1171,SMARTVIEW!$B$5:$B$1171,Layout!$B$182,SMARTVIEW!$C$5:$C$1171,Layout!$C$182,SMARTVIEW!$D$5:$D$1171,Layout!$C$184,SMARTVIEW!$F$5:$F$1171,Layout!$B$184) -> 0 | O184: =SUMIFS(SMARTVIEW!R$5:R$1171,SMARTVIEW!$B$5:$B$1171,Layout!$B$182,SMARTVIEW!$C$5:$C$1171,Layout!$C$182,SMARTVIEW!$D$5:$D$1171,Layout!$C$184,SMARTVIEW!$F$5:$F$1171,Layout!$B$184) -> 0 | P184: =SUMIFS(SMARTVIEW!S$5:S$1171,SMARTVIEW!$B$5:$B$1171,Layout!$B$182,SMARTVIEW!$C$5:$C$1171,Layout!$C$182,SMARTVIEW!$D$5:$D$1171,Layout!$C$184,SMARTVIEW!$F$5:$F$1171,Layout!$B$184) -> 0 | Q184: =SUM(E184:P184) -> 0
A186: %,R,FDEPTID,V19800,FACCOUNT,V458180,LACT_USD | B186: FY18 | C186: Actual | D186: CURRENT ACTUAL | E186: =SUMIFS(SMARTVIEW!H$5:H$1171,SMARTVIEW!$B$5:$B$1171,Layout!$B$182,SMARTVIEW!$C$5:$C$1171,Layout!$C$182,SMARTVIEW!$D$5:$D$1171,Layout!$C$186,SMARTVIEW!$F$5:$F$1171,Layout!$B$186) -> 0 | F186: =SUMIFS(SMARTVIEW!I$5:I$1171,SMARTVIEW!$B$5:$B$1171,Layout!$B$182,SMARTVIEW!$C$5:$C$1171,Layout!$C$182,SMARTVIEW!$D$5:$D$1171,Layout!$C$186,SMARTVIEW!$F$5:$F$1171,Layout!$B$186) -> 0 | G186: =SUMIFS(SMARTVIEW!J$5:J$1171,SMARTVIEW!$B$5:$B$1171,Layout!$B$182,SMARTVIEW!$C$5:$C$1171,Layout!$C$182,SMARTVIEW!$D$5:$D$1171,Layout!$C$186,SMARTVIEW!$F$5:$F$1171,Layout!$B$186) -> 0 | H186: =SUMIFS(SMARTVIEW!K$5:K$1171,SMARTVIEW!$B$5:$B$1171,Layout!$B$182,SMARTVIEW!$C$5:$C$1171,Layout!$C$182,SMARTVIEW!$D$5:$D$1171,Layout!$C$186,SMARTVIEW!$F$5:$F$1171,Layout!$B$186) -> 0 | I186: =SUMIFS(SMARTVIEW!L$5:L$1171,SMARTVIEW!$B$5:$B$1171,Layout!$B$182,SMARTVIEW!$C$5:$C$1171,Layout!$C$182,SMARTVIEW!$D$5:$D$1171,Layout!$C$186,SMARTVIEW!$F$5:$F$1171,Layout!$B$186) -> 0 | J186: =SUMIFS(SMARTVIEW!M$5:M$1171,SMARTVIEW!$B$5:$B$1171,Layout!$B$182,SMARTVIEW!$C$5:$C$1171,Layout!$C$182,SMARTVIEW!$D$5:$D$1171,Layout!$C$186,SMARTVIEW!$F$5:$F$1171,Layout!$B$186) -> 0 | K186: =SUMIFS(SMARTVIEW!N$5:N$1171,SMARTVIEW!$B$5:$B$1171,Layout!$B$182,SMARTVIEW!$C$5:$C$1171,Layout!$C$182,SMARTVIEW!$D$5:$D$1171,Layout!$C$186,SMARTVIEW!$F$5:$F$1171,Layout!$B$186) -> 0 | L186: =SUMIFS(SMARTVIEW!O$5:O$1171,SMARTVIEW!$B$5:$B$1171,Layout!$B$182,SMARTVIEW!$C$5:$C$1171,Layout!$C$182,SMARTVIEW!$D$5:$D$1171,Layout!$C$186,SMARTVIEW!$F$5:$F$1171,Layout!$B$186) -> 0 | M186: =SUMIFS(SMARTVIEW!P$5:P$1171,SMARTVIEW!$B$5:$B$1171,Layout!$B$182,SMARTVIEW!$C$5:$C$1171,Layout!$C$182,SMARTVIEW!$D$5:$D$1171,Layout!$C$186,SMARTVIEW!$F$5:$F$1171,Layout!$B$186) -> 0 | N186: =SUMIFS(SMARTVIEW!Q$5:Q$1171,SMARTVIEW!$B$5:$B$1171,Layout!$B$182,SMARTVIEW!$C$5:$C$1171,Layout!$C$182,SMARTVIEW!$D$5:$D$1171,Layout!$C$186,SMARTVIEW!$F$5:$F$1171,Layout!$B$186) -> 0 | O186: =SUMIFS(SMARTVIEW!R$5:R$1171,SMARTVIEW!$B$5:$B$1171,Layout!$B$182,SMARTVIEW!$C$5:$C$1171,Layout!$C$182,SMARTVIEW!$D$5:$D$1171,Layout!$C$186,SMARTVIEW!$F$5:$F$1171,Layout!$B$186) -> 0 | P186: =SUMIFS(SMARTVIEW!S$5:S$1171,SMARTVIEW!$B$5:$B$1171,Layout!$B$182,SMARTVIEW!$C$5:$C$1171,Layout!$C$182,SMARTVIEW!$D$5:$D$1171,Layout!$C$186,SMARTVIEW!$F$5:$F$1171,Layout!$B$186) -> 0 | Q186: =SUM(E186:P186) -> 0 | R186: =Q186 -> 0
B188: FY17 | C188: Actual | D188: PRIOR YEAR ACTUALS | E188: =SUMIFS(SMARTVIEW!H$5:H$1171,SMARTVIEW!$B$5:$B$1171,Layout!$B$182,SMARTVIEW!$C$5:$C$1171,Layout!$C$182,SMARTVIEW!$D$5:$D$1171,Layout!$C$188,SMARTVIEW!$F$5:$F$1171,Layout!$B$188) -> 0 | F188: =SUMIFS(SMARTVIEW!I$5:I$1171,SMARTVIEW!$B$5:$B$1171,Layout!$B$182,SMARTVIEW!$C$5:$C$1171,Layout!$C$182,SMARTVIEW!$D$5:$D$1171,Layout!$C$188,SMARTVIEW!$F$5:$F$1171,Layout!$B$188) -> 0 | G188: =SUMIFS(SMARTVIEW!J$5:J$1171,SMARTVIEW!$B$5:$B$1171,Layout!$B$182,SMARTVIEW!$C$5:$C$1171,Layout!$C$182,SMARTVIEW!$D$5:$D$1171,Layout!$C$188,SMARTVIEW!$F$5:$F$1171,Layout!$B$188) -> 0 | H188: =SUMIFS(SMARTVIEW!K$5:K$1171,SMARTVIEW!$B$5:$B$1171,Layout!$B$182,SMARTVIEW!$C$5:$C$1171,Layout!$C$182,SMARTVIEW!$D$5:$D$1171,Layout!$C$188,SMARTVIEW!$F$5:$F$1171,Layout!$B$188) -> 0 | I188: =SUMIFS(SMARTVIEW!L$5:L$1171,SMARTVIEW!$B$5:$B$1171,Layout!$B$182,SMARTVIEW!$C$5:$C$1171,Layout!$C$182,SMARTVIEW!$D$5:$D$1171,Layout!$C$188,SMARTVIEW!$F$5:$F$1171,Layout!$B$188) -> 0 | J188: =SUMIFS(SMARTVIEW!M$5:M$1171,SMARTVIEW!$B$5:$B$1171,Layout!$B$182,SMARTVIEW!$C$5:$C$1171,Layout!$C$182,SMARTVIEW!$D$5:$D$1171,Layout!$C$188,SMARTVIEW!$F$5:$F$1171,Layout!$B$188) -> 0 | K188: =SUMIFS(SMARTVIEW!N$5:N$1171,SMARTVIEW!$B$5:$B$1171,Layout!$B$182,SMARTVIEW!$C$5:$C$1171,Layout!$C$182,SMARTVIEW!$D$5:$D$1171,Layout!$C$188,SMARTVIEW!$F$5:$F$1171,Layout!$B$188) -> 0 | L188: =SUMIFS(SMARTVIEW!O$5:O$1171,SMARTVIEW!$B$5:$B$1171,Layout!$B$182,SMARTVIEW!$C$5:$C$1171,Layout!$C$182,SMARTVIEW!$D$5:$D$1171,Layout!$C$188,SMARTVIEW!$F$5:$F$1171,Layout!$B$188) -> 0 | M188: =SUMIFS(SMARTVIEW!P$5:P$1171,SMARTVIEW!$B$5:$B$1171,Layout!$B$182,SMARTVIEW!$C$5:$C$1171,Layout!$C$182,SMARTVIEW!$D$5:$D$1171,Layout!$C$188,SMARTVIEW!$F$5:$F$1171,Layout!$B$188) -> 0 | N188: =SUMIFS(SMARTVIEW!Q$5:Q$1171,SMARTVIEW!$B$5:$B$1171,Layout!$B$182,SMARTVIEW!$C$5:$C$1171,Layout!$C$182,SMARTVIEW!$D$5:$D$1171,Layout!$C$188,SMARTVIEW!$F$5:$F$1171,Layout!$B$188) -> 0 | O188: =SUMIFS(SMARTVIEW!R$5:R$1171,SMARTVIEW!$B$5:$B$1171,Layout!$B$182,SMARTVIEW!$C$5:$C$1171,Layout!$C$182,SMARTVIEW!$D$5:$D$1171,Layout!$C$188,SMARTVIEW!$F$5:$F$1171,Layout!$B$188) -> 0 | P188: =SUMIFS(SMARTVIEW!S$5:S$1171,SMARTVIEW!$B$5:$B$1171,Layout!$B$182,SMARTVIEW!$C$5:$C$1171,Layout!$C$182,SMARTVIEW!$D$5:$D$1171,Layout!$C$188,SMARTVIEW!$F$5:$F$1171,Layout!$B$188) -> 0 | Q188: =SUM(E188:P188) -> 0
S191: Enter Notes Below
D192: FUTURE BUDGET | E192: 0 | F192: 0 | G192: 0 | H192: 0 | I192: 0 | J192: 0 | K192: 0 | L192: 0 | M192: 0 | N192: 0 | O192: 0 | P192: 0 | Q192: =SUM(E192:P192) -> 0
B196: D19800 | C196: 458190 | D196: SUPPORT AREA 5 DELI
A198: %,R,FDEPTID,V19800,FACCOUNT,V458190,LBUD_USD | B198: FY18 | C198: PLANNING | D198: CURRENT BUDGET | E198: =SUMIFS(SMARTVIEW!H$5:H$1171,SMARTVIEW!$B$5:$B$1171,Layout!$B$196,SMARTVIEW!$C$5:$C$1171,Layout!$C$196,SMARTVIEW!$D$5:$D$1171,Layout!$C$198,SMARTVIEW!$F$5:$F$1171,Layout!$B$198) -> 0 | F198: =SUMIFS(SMARTVIEW!I$5:I$1171,SMARTVIEW!$B$5:$B$1171,Layout!$B$196,SMARTVIEW!$C$5:$C$1171,Layout!$C$196,SMARTVIEW!$D$5:$D$1171,Layout!$C$198,SMARTVIEW!$F$5:$F$1171,Layout!$B$198) -> 0 | G198: =SUMIFS(SMARTVIEW!J$5:J$1171,SMARTVIEW!$B$5:$B$1171,Layout!$B$196,SMARTVIEW!$C$5:$C$1171,Layout!$C$196,SMARTVIEW!$D$5:$D$1171,Layout!$C$198,SMARTVIEW!$F$5:$F$1171,Layout!$B$198) -> 0 | H198: =SUMIFS(SMARTVIEW!K$5:K$1171,SMARTVIEW!$B$5:$B$1171,Layout!$B$196,SMARTVIEW!$C$5:$C$1171,Layout!$C$196,SMARTVIEW!$D$5:$D$1171,Layout!$C$198,SMARTVIEW!$F$5:$F$1171,Layout!$B$198) -> 0 | I198: =SUMIFS(SMARTVIEW!L$5:L$1171,SMARTVIEW!$B$5:$B$1171,Layout!$B$196,SMARTVIEW!$C$5:$C$1171,Layout!$C$196,SMARTVIEW!$D$5:$D$1171,Layout!$C$198,SMARTVIEW!$F$5:$F$1171,Layout!$B$198) -> 0 | J198: =SUMIFS(SMARTVIEW!M$5:M$1171,SMARTVIEW!$B$5:$B$1171,Layout!$B$196,SMARTVIEW!$C$5:$C$1171,Layout!$C$196,SMARTVIEW!$D$5:$D$1171,Layout!$C$198,SMARTVIEW!$F$5:$F$1171,Layout!$B$198) -> 0 | K198: =SUMIFS(SMARTVIEW!N$5:N$1171,SMARTVIEW!$B$5:$B$1171,Layout!$B$196,SMARTVIEW!$C$5:$C$1171,Layout!$C$196,SMARTVIEW!$D$5:$D$1171,Layout!$C$198,SMARTVIEW!$F$5:$F$1171,Layout!$B$198) -> 0 | L198: =SUMIFS(SMARTVIEW!O$5:O$1171,SMARTVIEW!$B$5:$B$1171,Layout!$B$196,SMARTVIEW!$C$5:$C$1171,Layout!$C$196,SMARTVIEW!$D$5:$D$1171,Layout!$C$198,SMARTVIEW!$F$5:$F$1171,Layout!$B$198) -> 0 | M198: =SUMIFS(SMARTVIEW!P$5:P$1171,SMARTVIEW!$B$5:$B$1171,Layout!$B$196,SMARTVIEW!$C$5:$C$1171,Layout!$C$196,SMARTVIEW!$D$5:$D$1171,Layout!$C$198,SMARTVIEW!$F$5:$F$1171,Layout!$B$198) -> 0 | N198: =SUMIFS(SMARTVIEW!Q$5:Q$1171,SMARTVIEW!$B$5:$B$1171,Layout!$B$196,SMARTVIEW!$C$5:$C$1171,Layout!$C$196,SMARTVIEW!$D$5:$D$1171,Layout!$C$198,SMARTVIEW!$F$5:$F$1171,Layout!$B$198) -> 0 | O198: =SUMIFS(SMARTVIEW!R$5:R$1171,SMARTVIEW!$B$5:$B$1171,Layout!$B$196,SMARTVIEW!$C$5:$C$1171,Layout!$C$196,SMARTVIEW!$D$5:$D$1171,Layout!$C$198,SMARTVIEW!$F$5:$F$1171,Layout!$B$198) -> 0 | P198: =SUMIFS(SMARTVIEW!S$5:S$1171,SMARTVIEW!$B$5:$B$1171,Layout!$B$196,SMARTVIEW!$C$5:$C$1171,Layout!$C$196,SMARTVIEW!$D$5:$D$1171,Layout!$C$198,SMARTVIEW!$F$5:$F$1171,Layout!$B$198) -> 0 | Q198: =SUM(E198:P198) -> 0
A200: %,R,FDEPTID,V19800,FACCOUNT,V458190,LACT_USD | B200: FY18 | C200: Actual | D200: CURRENT ACTUAL | E200: =SUMIFS(SMARTVIEW!H$5:H$1171,SMARTVIEW!$B$5:$B$1171,Layout!$B$196,SMARTVIEW!$C$5:$C$1171,Layout!$C$196,SMARTVIEW!$D$5:$D$1171,Layout!$C$200,SMARTVIEW!$F$5:$F$1171,Layout!$B$200) -> 0 | F200: =SUMIFS(SMARTVIEW!I$5:I$1171,SMARTVIEW!$B$5:$B$1171,Layout!$B$196,SMARTVIEW!$C$5:$C$1171,Layout!$C$196,SMARTVIEW!$D$5:$D$1171,Layout!$C$200,SMARTVIEW!$F$5:$F$1171,Layout!$B$200) -> 0 | G200: =SUMIFS(SMARTVIEW!J$5:J$1171,SMARTVIEW!$B$5:$B$1171,Layout!$B$196,SMARTVIEW!$C$5:$C$1171,Layout!$C$196,SMARTVIEW!$D$5:$D$1171,Layout!$C$200,SMARTVIEW!$F$5:$F$1171,Layout!$B$200) -> 0 | H200: =SUMIFS(SMARTVIEW!K$5:K$1171,SMARTVIEW!$B$5:$B$1171,Layout!$B$196,SMARTVIEW!$C$5:$C$1171,Layout!$C$196,SMARTVIEW!$D$5:$D$1171,Layout!$C$200,SMARTVIEW!$F$5:$F$1171,Layout!$B$200) -> 0 | I200: =SUMIFS(SMARTVIEW!L$5:L$1171,SMARTVIEW!$B$5:$B$1171,Layout!$B$196,SMARTVIEW!$C$5:$C$1171,Layout!$C$196,SMARTVIEW!$D$5:$D$1171,Layout!$C$200,SMARTVIEW!$F$5:$F$1171,Layout!$B$200) -> 0 | J200: =SUMIFS(SMARTVIEW!M$5:M$1171,SMARTVIEW!$B$5:$B$1171,Layout!$B$196,SMARTVIEW!$C$5:$C$1171,Layout!$C$196,SMARTVIEW!$D$5:$D$1171,Layout!$C$200,SMARTVIEW!$F$5:$F$1171,Layout!$B$200) -> 0 | K200: =SUMIFS(SMARTVIEW!N$5:N$1171,SMARTVIEW!$B$5:$B$1171,Layout!$B$196,SMARTVIEW!$C$5:$C$1171,Layout!$C$196,SMARTVIEW!$D$5:$D$1171,Layout!$C$200,SMARTVIEW!$F$5:$F$1171,Layout!$B$200) -> 0 | L200: =SUMIFS(SMARTVIEW!O$5:O$1171,SMARTVIEW!$B$5:$B$1171,Layout!$B$196,SMARTVIEW!$C$5:$C$1171,Layout!$C$196,SMARTVIEW!$D$5:$D$1171,Layout!$C$200,SMARTVIEW!$F$5:$F$1171,Layout!$B$200) -> 0 | M200: =SUMIFS(SMARTVIEW!P$5:P$1171,SMARTVIEW!$B$5:$B$1171,Layout!$B$196,SMARTVIEW!$C$5:$C$1171,Layout!$C$196,SMARTVIEW!$D$5:$D$1171,Layout!$C$200,SMARTVIEW!$F$5:$F$1171,Layout!$B$200) -> 0 | N200: =SUMIFS(SMARTVIEW!Q$5:Q$1171,SMARTVIEW!$B$5:$B$1171,Layout!$B$196,SMARTVIEW!$C$5:$C$1171,Layout!$C$196,SMARTVIEW!$D$5:$D$1171,Layout!$C$200,SMARTVIEW!$F$5:$F$1171,Layout!$B$200) -> 0 | O200: =SUMIFS(SMARTVIEW!R$5:R$1171,SMARTVIEW!$B$5:$B$1171,Layout!$B$196,SMARTVIEW!$C$5:$C$1171,Layout!$C$196,SMARTVIEW!$D$5:$D$1171,Layout!$C$200,SMARTVIEW!$F$5:$F$1171,Layout!$B$200) -> 0 | P200: =SUMIFS(SMARTVIEW!S$5:S$1171,SMARTVIEW!$B$5:$B$1171,Layout!$B$196,SMARTVIEW!$C$5:$C$1171,Layout!$C$196,SMARTVIEW!$D$5:$D$1171,Layout!$C$200,SMARTVIEW!$F$5:$F$1171,Layout!$B$200) -> 0 | Q200: =SUM(E200:P200) -> 0 | R200: =Q200 -> 0
B202: FY17 | C202: Actual | D202: PRIOR YEAR ACTUALS | E202: =SUMIFS(SMARTVIEW!H$5:H$1171,SMARTVIEW!$B$5:$B$1171,Layout!$B$196,SMARTVIEW!$C$5:$C$1171,Layout!$C$196,SMARTVIEW!$D$5:$D$1171,Layout!$C$202,SMARTVIEW!$F$5:$F$1171,Layout!$B$202) -> 0 | F202: =SUMIFS(SMARTVIEW!I$5:I$1171,SMARTVIEW!$B$5:$B$1171,Layout!$B$196,SMARTVIEW!$C$5:$C$1171,Layout!$C$196,SMARTVIEW!$D$5:$D$1171,Layout!$C$202,SMARTVIEW!$F$5:$F$1171,Layout!$B$202) -> 0 | G202: =SUMIFS(SMARTVIEW!J$5:J$1171,SMARTVIEW!$B$5:$B$1171,Layout!$B$196,SMARTVIEW!$C$5:$C$1171,Layout!$C$196,SMARTVIEW!$D$5:$D$1171,Layout!$C$202,SMARTVIEW!$F$5:$F$1171,Layout!$B$202) -> 0 | H202: =SUMIFS(SMARTVIEW!K$5:K$1171,SMARTVIEW!$B$5:$B$1171,Layout!$B$196,SMARTVIEW!$C$5:$C$1171,Layout!$C$196,SMARTVIEW!$D$5:$D$1171,Layout!$C$202,SMARTVIEW!$F$5:$F$1171,Layout!$B$202) -> 0 | I202: =SUMIFS(SMARTVIEW!L$5:L$1171,SMARTVIEW!$B$5:$B$1171,Layout!$B$196,SMARTVIEW!$C$5:$C$1171,Layout!$C$196,SMARTVIEW!$D$5:$D$1171,Layout!$C$202,SMARTVIEW!$F$5:$F$1171,Layout!$B$202) -> 0 | J202: =SUMIFS(SMARTVIEW!M$5:M$1171,SMARTVIEW!$B$5:$B$1171,Layout!$B$196,SMARTVIEW!$C$5:$C$1171,Layout!$C$196,SMARTVIEW!$D$5:$D$1171,Layout!$C$202,SMARTVIEW!$F$5:$F$1171,Layout!$B$202) -> 0 | K202: =SUMIFS(SMARTVIEW!N$5:N$1171,SMARTVIEW!$B$5:$B$1171,Layout!$B$196,SMARTVIEW!$C$5:$C$1171,Layout!$C$196,SMARTVIEW!$D$5:$D$1171,Layout!$C$202,SMARTVIEW!$F$5:$F$1171,Layout!$B$202) -> 0 | L202: =SUMIFS(SMARTVIEW!O$5:O$1171,SMARTVIEW!$B$5:$B$1171,Layout!$B$196,SMARTVIEW!$C$5:$C$1171,Layout!$C$196,SMARTVIEW!$D$5:$D$1171,Layout!$C$202,SMARTVIEW!$F$5:$F$1171,Layout!$B$202) -> 0 | M202: =SUMIFS(SMARTVIEW!P$5:P$1171,SMARTVIEW!$B$5:$B$1171,Layout!$B$196,SMARTVIEW!$C$5:$C$1171,Layout!$C$196,SMARTVIEW!$D$5:$D$1171,Layout!$C$202,SMARTVIEW!$F$5:$F$1171,Layout!$B$202) -> 0 | N202: =SUMIFS(SMARTVIEW!Q$5:Q$1171,SMARTVIEW!$B$5:$B$1171,Layout!$B$196,SMARTVIEW!$C$5:$C$1171,Layout!$C$196,SMARTVIEW!$D$5:$D$1171,Layout!$C$202,SMARTVIEW!$F$5:$F$1171,Layout!$B$202) -> 0 | O202: =SUMIFS(SMARTVIEW!R$5:R$1171,SMARTVIEW!$B$5:$B$1171,Layout!$B$196,SMARTVIEW!$C$5:$C$1171,Layout!$C$196,SMARTVIEW!$D$5:$D$1171,Layout!$C$202,SMARTVIEW!$F$5:$F$1171,Layout!$B$202) -> 0 | P202: =SUMIFS(SMARTVIEW!S$5:S$1171,SMARTVIEW!$B$5:$B$1171,Layout!$B$196,SMARTVIEW!$C$5:$C$1171,Layout!$C$196,SMARTVIEW!$D$5:$D$1171,Layout!$C$202,SMARTVIEW!$F$5:$F$1171,Layout!$B$202) -> 0 | Q202: =SUM(E202:P202) -> 0
S205: Enter Notes Below
D206: FUTURE BUDGET | E206: 0 | F206: 0 | G206: 0 | H206: 0 | I206: 0 | J206: 0 | K206: 0 | L206: 0 | M206: 0 | N206: 0 | O206: 0 | P206: 0 | Q206: =SUM(E206:P206) -> 0
B210: D19800 | C210: 458200 | D210: VENDING INCOME
A212: %,R,FDEPTID,V19800,FACCOUNT,V458200,LBUD_USD | B212: FY18 | C212: PLANNING | D212: CURRENT BUDGET | E212: =SUMIFS(SMARTVIEW!H$5:H$1171,SMARTVIEW!$B$5:$B$1171,Layout!$B$210,SMARTVIEW!$C$5:$C$1171,Layout!$C$210,SMARTVIEW!$D$5:$D$1171,Layout!$C$212,SMARTVIEW!$F$5:$F$1171,Layout!$B$212) -> 50 | F212: =SUMIFS(SMARTVIEW!I$5:I$1171,SMARTVIEW!$B$5:$B$1171,Layout!$B$210,SMARTVIEW!$C$5:$C$1171,Layout!$C$210,SMARTVIEW!$D$5:$D$1171,Layout!$C$212,SMARTVIEW!$F$5:$F$1171,Layout!$B$212) -> 50 | G212: =SUMIFS(SMARTVIEW!J$5:J$1171,SMARTVIEW!$B$5:$B$1171,Layout!$B$210,SMARTVIEW!$C$5:$C$1171,Layout!$C$210,SMARTVIEW!$D$5:$D$1171,Layout!$C$212,SMARTVIEW!$F$5:$F$1171,Layout!$B$212) -> 50 | H212: =SUMIFS(SMARTVIEW!K$5:K$1171,SMARTVIEW!$B$5:$B$1171,Layout!$B$210,SMARTVIEW!$C$5:$C$1171,Layout!$C$210,SMARTVIEW!$D$5:$D$1171,Layout!$C$212,SMARTVIEW!$F$5:$F$1171,Layout!$B$212) -> 50 | I212: =SUMIFS(SMARTVIEW!L$5:L$1171,SMARTVIEW!$B$5:$B$1171,Layout!$B$210,SMARTVIEW!$C$5:$C$1171,Layout!$C$210,SMARTVIEW!$D$5:$D$1171,Layout!$C$212,SMARTVIEW!$F$5:$F$1171,Layout!$B$212) -> 50 | J212: =SUMIFS(SMARTVIEW!M$5:M$1171,SMARTVIEW!$B$5:$B$1171,Layout!$B$210,SMARTVIEW!$C$5:$C$1171,Layout!$C$210,SMARTVIEW!$D$5:$D$1171,Layout!$C$212,SMARTVIEW!$F$5:$F$1171,Layout!$B$212) -> 200 | K212: =SUMIFS(SMARTVIEW!N$5:N$1171,SMARTVIEW!$B$5:$B$1171,Layout!$B$210,SMARTVIEW!$C$5:$C$1171,Layout!$C$210,SMARTVIEW!$D$5:$D$1171,Layout!$C$212,SMARTVIEW!$F$5:$F$1171,Layout!$B$212) -> 200 | L212: =SUMIFS(SMARTVIEW!O$5:O$1171,SMARTVIEW!$B$5:$B$1171,Layout!$B$210,SMARTVIEW!$C$5:$C$1171,Layout!$C$210,SMARTVIEW!$D$5:$D$1171,Layout!$C$212,SMARTVIEW!$F$5:$F$1171,Layout!$B$212) -> 150 | M212: =SUMIFS(SMARTVIEW!P$5:P$1171,SMARTVIEW!$B$5:$B$1171,Layout!$B$210,SMARTVIEW!$C$5:$C$1171,Layout!$C$210,SMARTVIEW!$D$5:$D$1171,Layout!$C$212,SMARTVIEW!$F$5:$F$1171,Layout!$B$212) -> 50 | N212: =SUMIFS(SMARTVIEW!Q$5:Q$1171,SMARTVIEW!$B$5:$B$1171,Layout!$B$210,SMARTVIEW!$C$5:$C$1171,Layout!$C$210,SMARTVIEW!$D$5:$D$1171,Layout!$C$212,SMARTVIEW!$F$5:$F$1171,Layout!$B$212) -> 50 | O212: =SUMIFS(SMARTVIEW!R$5:R$1171,SMARTVIEW!$B$5:$B$1171,Layout!$B$210,SMARTVIEW!$C$5:$C$1171,Layout!$C$210,SMARTVIEW!$D$5:$D$1171,Layout!$C$212,SMARTVIEW!$F$5:$F$1171,Layout!$B$212) -> 50 | P212: =SUMIFS(SMARTVIEW!S$5:S$1171,SMARTVIEW!$B$5:$B$1171,Layout!$B$210,SMARTVIEW!$C$5:$C$1171,Layout!$C$210,SMARTVIEW!$D$5:$D$1171,Layout!$C$212,SMARTVIEW!$F$5:$F$1171,Layout!$B$212) -> 50 | Q212: =SUM(E212:P212) -> 1000
A214: %,R,FDEPTID,V19800,FACCOUNT,V458200,LACT_USD | B214: FY18 | C214: Actual | D214: CURRENT ACTUAL | E214: =SUMIFS(SMARTVIEW!H$5:H$1171,SMARTVIEW!$B$5:$B$1171,Layout!$B$210,SMARTVIEW!$C$5:$C$1171,Layout!$C$210,SMARTVIEW!$D$5:$D$1171,Layout!$C$214,SMARTVIEW!$F$5:$F$1171,Layout!$B$214) -> 0 | F214: =SUMIFS(SMARTVIEW!I$5:I$1171,SMARTVIEW!$B$5:$B$1171,Layout!$B$210,SMARTVIEW!$C$5:$C$1171,Layout!$C$210,SMARTVIEW!$D$5:$D$1171,Layout!$C$214,SMARTVIEW!$F$5:$F$1171,Layout!$B$214) -> 60 | G214: =SUMIFS(SMARTVIEW!J$5:J$1171,SMARTVIEW!$B$5:$B$1171,Layout!$B$210,SMARTVIEW!$C$5:$C$1171,Layout!$C$210,SMARTVIEW!$D$5:$D$1171,Layout!$C$214,SMARTVIEW!$F$5:$F$1171,Layout!$B$214) -> 135 | H214: =SUMIFS(SMARTVIEW!K$5:K$1171,SMARTVIEW!$B$5:$B$1171,Layout!$B$210,SMARTVIEW!$C$5:$C$1171,Layout!$C$210,SMARTVIEW!$D$5:$D$1171,Layout!$C$214,SMARTVIEW!$F$5:$F$1171,Layout!$B$214) -> 39 | I214: =SUMIFS(SMARTVIEW!L$5:L$1171,SMARTVIEW!$B$5:$B$1171,Layout!$B$210,SMARTVIEW!$C$5:$C$1171,Layout!$C$210,SMARTVIEW!$D$5:$D$1171,Layout!$C$214,SMARTVIEW!$F$5:$F$1171,Layout!$B$214) -> 40 | J214: =SUMIFS(SMARTVIEW!M$5:M$1171,SMARTVIEW!$B$5:$B$1171,Layout!$B$210,SMARTVIEW!$C$5:$C$1171,Layout!$C$210,SMARTVIEW!$D$5:$D$1171,Layout!$C$214,SMARTVIEW!$F$5:$F$1171,Layout!$B$214) -> 133 | K214: 157 | L214: 150 | M214: 50 | N214: 136 | O214: 50 | P214: 50 | Q214: =SUM(E214:P214) -> 1000 | R214: =Q214 -> 1000
B216: FY17 | C216: Actual | D216: PRIOR YEAR ACTUALS | E216: =SUMIFS(SMARTVIEW!H$5:H$1171,SMARTVIEW!$B$5:$B$1171,Layout!$B$210,SMARTVIEW!$C$5:$C$1171,Layout!$C$210,SMARTVIEW!$D$5:$D$1171,Layout!$C$216,SMARTVIEW!$F$5:$F$1171,Layout!$B$216) -> 0 | F216: =SUMIFS(SMARTVIEW!I$5:I$1171,SMARTVIEW!$B$5:$B$1171,Layout!$B$210,SMARTVIEW!$C$5:$C$1171,Layout!$C$210,SMARTVIEW!$D$5:$D$1171,Layout!$C$216,SMARTVIEW!$F$5:$F$1171,Layout!$B$216) -> 0 | G216: =SUMIFS(SMARTVIEW!J$5:J$1171,SMARTVIEW!$B$5:$B$1171,Layout!$B$210,SMARTVIEW!$C$5:$C$1171,Layout!$C$210,SMARTVIEW!$D$5:$D$1171,Layout!$C$216,SMARTVIEW!$F$5:$F$1171,Layout!$B$216) -> 73 | H216: =SUMIFS(SMARTVIEW!K$5:K$1171,SMARTVIEW!$B$5:$B$1171,Layout!$B$210,SMARTVIEW!$C$5:$C$1171,Layout!$C$210,SMARTVIEW!$D$5:$D$1171,Layout!$C$216,SMARTVIEW!$F$5:$F$1171,Layout!$B$216) -> 140 | I216: =SUMIFS(SMARTVIEW!L$5:L$1171,SMARTVIEW!$B$5:$B$1171,Layout!$B$210,SMARTVIEW!$C$5:$C$1171,Layout!$C$210,SMARTVIEW!$D$5:$D$1171,Layout!$C$216,SMARTVIEW!$F$5:$F$1171,Layout!$B$216) -> 29 | J216: =SUMIFS(SMARTVIEW!M$5:M$1171,SMARTVIEW!$B$5:$B$1171,Layout!$B$210,SMARTVIEW!$C$5:$C$1171,Layout!$C$210,SMARTVIEW!$D$5:$D$1171,Layout!$C$216,SMARTVIEW!$F$5:$F$1171,Layout!$B$216) -> 106 | K216: =SUMIFS(SMARTVIEW!N$5:N$1171,SMARTVIEW!$B$5:$B$1171,Layout!$B$210,SMARTVIEW!$C$5:$C$1171,Layout!$C$210,SMARTVIEW!$D$5:$D$1171,Layout!$C$216,SMARTVIEW!$F$5:$F$1171,Layout!$B$216) -> 250 | L216: =SUMIFS(SMARTVIEW!O$5:O$1171,SMARTVIEW!$B$5:$B$1171,Layout!$B$210,SMARTVIEW!$C$5:$C$1171,Layout!$C$210,SMARTVIEW!$D$5:$D$1171,Layout!$C$216,SMARTVIEW!$F$5:$F$1171,Layout!$B$216) -> 37 | M216: =SUMIFS(SMARTVIEW!P$5:P$1171,SMARTVIEW!$B$5:$B$1171,Layout!$B$210,SMARTVIEW!$C$5:$C$1171,Layout!$C$210,SMARTVIEW!$D$5:$D$1171,Layout!$C$216,SMARTVIEW!$F$5:$F$1171,Layout!$B$216) -> 43 | N216: =SUMIFS(SMARTVIEW!Q$5:Q$1171,SMARTVIEW!$B$5:$B$1171,Layout!$B$210,SMARTVIEW!$C$5:$C$1171,Layout!$C$210,SMARTVIEW!$D$5:$D$1171,Layout!$C$216,SMARTVIEW!$F$5:$F$1171,Layout!$B$216) -> 53 | O216: =SUMIFS(SMARTVIEW!R$5:R$1171,SMARTVIEW!$B$5:$B$1171,Layout!$B$210,SMARTVIEW!$C$5:$C$1171,Layout!$C$210,SMARTVIEW!$D$5:$D$1171,Layout!$C$216,SMARTVIEW!$F$5:$F$1171,Layout!$B$216) -> 0 | P216: =SUMIFS(SMARTVIEW!S$5:S$1171,SMARTVIEW!$B$5:$B$1171,Layout!$B$210,SMARTVIEW!$C$5:$C$1171,Layout!$C$210,SMARTVIEW!$D$5:$D$1171,Layout!$C$216,SMARTVIEW!$F$5:$F$1171,Layout!$B$216) -> 35 | Q216: =SUM(E216:P216) -> 766
S219: Enter Notes Below
D220: FUTURE BUDGET | E220: =SUMIFS(SMARTVIEW!H$5:H$1171,SMARTVIEW!$B$5:$B$1171,Layout!$B$210,SMARTVIEW!$C$5:$C$1171,Layout!$C$210,SMARTVIEW!$D$5:$D$1171,Layout!$C$212,SMARTVIEW!$F$5:$F$1171,Layout!$B$212) -> 50 | F220: =SUMIFS(SMARTVIEW!I$5:I$1171,SMARTVIEW!$B$5:$B$1171,Layout!$B$210,SMARTVIEW!$C$5:$C$1171,Layout!$C$210,SMARTVIEW!$D$5:$D$1171,Layout!$C$212,SMARTVIEW!$F$5:$F$1171,Layout!$B$212) -> 50 | G220: =SUMIFS(SMARTVIEW!J$5:J$1171,SMARTVIEW!$B$5:$B$1171,Layout!$B$210,SMARTVIEW!$C$5:$C$1171,Layout!$C$210,SMARTVIEW!$D$5:$D$1171,Layout!$C$212,SMARTVIEW!$F$5:$F$1171,Layout!$B$212) -> 50 | H220: =SUMIFS(SMARTVIEW!K$5:K$1171,SMARTVIEW!$B$5:$B$1171,Layout!$B$210,SMARTVIEW!$C$5:$C$1171,Layout!$C$210,SMARTVIEW!$D$5:$D$1171,Layout!$C$212,SMARTVIEW!$F$5:$F$1171,Layout!$B$212) -> 50 | I220: =SUMIFS(SMARTVIEW!L$5:L$1171,SMARTVIEW!$B$5:$B$1171,Layout!$B$210,SMARTVIEW!$C$5:$C$1171,Layout!$C$210,SMARTVIEW!$D$5:$D$1171,Layout!$C$212,SMARTVIEW!$F$5:$F$1171,Layout!$B$212) -> 50 | J220: =SUMIFS(SMARTVIEW!M$5:M$1171,SMARTVIEW!$B$5:$B$1171,Layout!$B$210,SMARTVIEW!$C$5:$C$1171,Layout!$C$210,SMARTVIEW!$D$5:$D$1171,Layout!$C$212,SMARTVIEW!$F$5:$F$1171,Layout!$B$212) -> 200 | K220: =SUMIFS(SMARTVIEW!N$5:N$1171,SMARTVIEW!$B$5:$B$1171,Layout!$B$210,SMARTVIEW!$C$5:$C$1171,Layout!$C$210,SMARTVIEW!$D$5:$D$1171,Layout!$C$212,SMARTVIEW!$F$5:$F$1171,Layout!$B$212) -> 200 | L220: =SUMIFS(SMARTVIEW!O$5:O$1171,SMARTVIEW!$B$5:$B$1171,Layout!$B$210,SMARTVIEW!$C$5:$C$1171,Layout!$C$210,SMARTVIEW!$D$5:$D$1171,Layout!$C$212,SMARTVIEW!$F$5:$F$1171,Layout!$B$212) -> 150 | M220: =SUMIFS(SMARTVIEW!P$5:P$1171,SMARTVIEW!$B$5:$B$1171,Layout!$B$210,SMARTVIEW!$C$5:$C$1171,Layout!$C$210,SMARTVIEW!$D$5:$D$1171,Layout!$C$212,SMARTVIEW!$F$5:$F$1171,Layout!$B$212) -> 50 | N220: =SUMIFS(SMARTVIEW!Q$5:Q$1171,SMARTVIEW!$B$5:$B$1171,Layout!$B$210,SMARTVIEW!$C$5:$C$1171,Layout!$C$210,SMARTVIEW!$D$5:$D$1171,Layout!$C$212,SMARTVIEW!$F$5:$F$1171,Layout!$B$212) -> 50 | O220: =SUMIFS(SMARTVIEW!R$5:R$1171,SMARTVIEW!$B$5:$B$1171,Layout!$B$210,SMARTVIEW!$C$5:$C$1171,Layout!$C$210,SMARTVIEW!$D$5:$D$1171,Layout!$C$212,SMARTVIEW!$F$5:$F$1171,Layout!$B$212) -> 50 | P220: =SUMIFS(SMARTVIEW!S$5:S$1171,SMARTVIEW!$B$5:$B$1171,Layout!$B$210,SMARTVIEW!$C$5:$C$1171,Layout!$C$210,SMARTVIEW!$D$5:$D$1171,Layout!$C$212,SMARTVIEW!$F$5:$F$1171,Layout!$B$212) -> 50 | Q220: =SUM(E220:P220) -> 1000 | S220: Same as budgeted
B222: h
B224: D19800 | C224: 458210 | D224: CONCESSION INCOME
A226: %,R,FDEPTID,V19800,FACCOUNT,V458210,LBUD_USD | B226: FY18 | C226: PLANNING | D226: CURRENT BUDGET | E226: =SUMIFS(SMARTVIEW!H$5:H$1171,SMARTVIEW!$B$5:$B$1171,Layout!$B$224,SMARTVIEW!$C$5:$C$1171,Layout!$C$224,SMARTVIEW!$D$5:$D$1171,Layout!$C$226,SMARTVIEW!$F$5:$F$1171,Layout!$B$226) -> 0 | F226: =SUMIFS(SMARTVIEW!I$5:I$1171,SMARTVIEW!$B$5:$B$1171,Layout!$B$224,SMARTVIEW!$C$5:$C$1171,Layout!$C$224,SMARTVIEW!$D$5:$D$1171,Layout!$C$226,SMARTVIEW!$F$5:$F$1171,Layout!$B$226) -> 0 | G226: =SUMIFS(SMARTVIEW!J$5:J$1171,SMARTVIEW!$B$5:$B$1171,Layout!$B$224,SMARTVIEW!$C$5:$C$1171,Layout!$C$224,SMARTVIEW!$D$5:$D$1171,Layout!$C$226,SMARTVIEW!$F$5:$F$1171,Layout!$B$226) -> 0 | H226: =SUMIFS(SMARTVIEW!K$5:K$1171,SMARTVIEW!$B$5:$B$1171,Layout!$B$224,SMARTVIEW!$C$5:$C$1171,Layout!$C$224,SMARTVIEW!$D$5:$D$1171,Layout!$C$226,SMARTVIEW!$F$5:$F$1171,Layout!$B$226) -> 0 | I226: =SUMIFS(SMARTVIEW!L$5:L$1171,SMARTVIEW!$B$5:$B$1171,Layout!$B$224,SMARTVIEW!$C$5:$C$1171,Layout!$C$224,SMARTVIEW!$D$5:$D$1171,Layout!$C$226,SMARTVIEW!$F$5:$F$1171,Layout!$B$226) -> 0 | J226: =SUMIFS(SMARTVIEW!M$5:M$1171,SMARTVIEW!$B$5:$B$1171,Layout!$B$224,SMARTVIEW!$C$5:$C$1171,Layout!$C$224,SMARTVIEW!$D$5:$D$1171,Layout!$C$226,SMARTVIEW!$F$5:$F$1171,Layout!$B$226) -> 0 | K226: =SUMIFS(SMARTVIEW!N$5:N$1171,SMARTVIEW!$B$5:$B$1171,Layout!$B$224,SMARTVIEW!$C$5:$C$1171,Layout!$C$224,SMARTVIEW!$D$5:$D$1171,Layout!$C$226,SMARTVIEW!$F$5:$F$1171,Layout!$B$226) -> 0 | L226: =SUMIFS(SMARTVIEW!O$5:O$1171,SMARTVIEW!$B$5:$B$1171,Layout!$B$224,SMARTVIEW!$C$5:$C$1171,Layout!$C$224,SMARTVIEW!$D$5:$D$1171,Layout!$C$226,SMARTVIEW!$F$5:$F$1171,Layout!$B$226) -> 0 | M226: =SUMIFS(SMARTVIEW!P$5:P$1171,SMARTVIEW!$B$5:$B$1171,Layout!$B$224,SMARTVIEW!$C$5:$C$1171,Layout!$C$224,SMARTVIEW!$D$5:$D$1171,Layout!$C$226,SMARTVIEW!$F$5:$F$1171,Layout!$B$226) -> 0 | N226: =SUMIFS(SMARTVIEW!Q$5:Q$1171,SMARTVIEW!$B$5:$B$1171,Layout!$B$224,SMARTVIEW!$C$5:$C$1171,Layout!$C$224,SMARTVIEW!$D$5:$D$1171,Layout!$C$226,SMARTVIEW!$F$5:$F$1171,Layout!$B$226) -> 0 | O226: =SUMIFS(SMARTVIEW!R$5:R$1171,SMARTVIEW!$B$5:$B$1171,Layout!$B$224,SMARTVIEW!$C$5:$C$1171,Layout!$C$224,SMARTVIEW!$D$5:$D$1171,Layout!$C$226,SMARTVIEW!$F$5:$F$1171,Layout!$B$226) -> 0 | P226: =SUMIFS(SMARTVIEW!S$5:S$1171,SMARTVIEW!$B$5:$B$1171,Layout!$B$224,SMARTVIEW!$C$5:$C$1171,Layout!$C$224,SMARTVIEW!$D$5:$D$1171,Layout!$C$226,SMARTVIEW!$F$5:$F$1171,Layout!$B$226) -> 0 | Q226: =SUM(E226:P226) -> 0
A228: %,R,FDEPTID,V19800,FACCOUNT,V458210,LACT_USD | B228: FY18 | C228: Actual | D228: CURRENT ACTUAL | E228: =SUMIFS(SMARTVIEW!H$5:H$1171,SMARTVIEW!$B$5:$B$1171,Layout!$B$224,SMARTVIEW!$C$5:$C$1171,Layout!$C$224,SMARTVIEW!$D$5:$D$1171,Layout!$C$228,SMARTVIEW!$F$5:$F$1171,Layout!$B$228) -> 0 | F228: =SUMIFS(SMARTVIEW!I$5:I$1171,SMARTVIEW!$B$5:$B$1171,Layout!$B$224,SMARTVIEW!$C$5:$C$1171,Layout!$C$224,SMARTVIEW!$D$5:$D$1171,Layout!$C$228,SMARTVIEW!$F$5:$F$1171,Layout!$B$228) -> 0 | G228: =SUMIFS(SMARTVIEW!J$5:J$1171,SMARTVIEW!$B$5:$B$1171,Layout!$B$224,SMARTVIEW!$C$5:$C$1171,Layout!$C$224,SMARTVIEW!$D$5:$D$1171,Layout!$C$228,SMARTVIEW!$F$5:$F$1171,Layout!$B$228) -> 0 | H228: =SUMIFS(SMARTVIEW!K$5:K$1171,SMARTVIEW!$B$5:$B$1171,Layout!$B$224,SMARTVIEW!$C$5:$C$1171,Layout!$C$224,SMARTVIEW!$D$5:$D$1171,Layout!$C$228,SMARTVIEW!$F$5:$F$1171,Layout!$B$228) -> 0 | I228: =SUMIFS(SMARTVIEW!L$5:L$1171,SMARTVIEW!$B$5:$B$1171,Layout!$B$224,SMARTVIEW!$C$5:$C$1171,Layout!$C$224,SMARTVIEW!$D$5:$D$1171,Layout!$C$228,SMARTVIEW!$F$5:$F$1171,Layout!$B$228) -> 0 | J228: =SUMIFS(SMARTVIEW!M$5:M$1171,SMARTVIEW!$B$5:$B$1171,Layout!$B$224,SMARTVIEW!$C$5:$C$1171,Layout!$C$224,SMARTVIEW!$D$5:$D$1171,Layout!$C$228,SMARTVIEW!$F$5:$F$1171,Layout!$B$228) -> 0 | K228: =SUMIFS(SMARTVIEW!N$5:N$1171,SMARTVIEW!$B$5:$B$1171,Layout!$B$224,SMARTVIEW!$C$5:$C$1171,Layout!$C$224,SMARTVIEW!$D$5:$D$1171,Layout!$C$228,SMARTVIEW!$F$5:$F$1171,Layout!$B$228) -> 0 | L228: =SUMIFS(SMARTVIEW!O$5:O$1171,SMARTVIEW!$B$5:$B$1171,Layout!$B$224,SMARTVIEW!$C$5:$C$1171,Layout!$C$224,SMARTVIEW!$D$5:$D$1171,Layout!$C$228,SMARTVIEW!$F$5:$F$1171,Layout!$B$228) -> 0 | M228: =SUMIFS(SMARTVIEW!P$5:P$1171,SMARTVIEW!$B$5:$B$1171,Layout!$B$224,SMARTVIEW!$C$5:$C$1171,Layout!$C$224,SMARTVIEW!$D$5:$D$1171,Layout!$C$228,SMARTVIEW!$F$5:$F$1171,Layout!$B$228) -> 0 | N228: =SUMIFS(SMARTVIEW!Q$5:Q$1171,SMARTVIEW!$B$5:$B$1171,Layout!$B$224,SMARTVIEW!$C$5:$C$1171,Layout!$C$224,SMARTVIEW!$D$5:$D$1171,Layout!$C$228,SMARTVIEW!$F$5:$F$1171,Layout!$B$228) -> 0 | O228: =SUMIFS(SMARTVIEW!R$5:R$1171,SMARTVIEW!$B$5:$B$1171,Layout!$B$224,SMARTVIEW!$C$5:$C$1171,Layout!$C$224,SMARTVIEW!$D$5:$D$1171,Layout!$C$228,SMARTVIEW!$F$5:$F$1171,Layout!$B$228) -> 0 | P228: =SUMIFS(SMARTVIEW!S$5:S$1171,SMARTVIEW!$B$5:$B$1171,Layout!$B$224,SMARTVIEW!$C$5:$C$1171,Layout!$C$224,SMARTVIEW!$D$5:$D$1171,Layout!$C$228,SMARTVIEW!$F$5:$F$1171,Layout!$B$228) -> 0 | Q228: =SUM(E228:P228) -> 0 | R228: =Q228 -> 0
B230: FY17 | C230: Actual | D230: PRIOR YEAR ACTUALS | E230: =SUMIFS(SMARTVIEW!H$5:H$1171,SMARTVIEW!$B$5:$B$1171,Layout!$B$224,SMARTVIEW!$C$5:$C$1171,Layout!$C$224,SMARTVIEW!$D$5:$D$1171,Layout!$C$230,SMARTVIEW!$F$5:$F$1171,Layout!$B$230) -> 0 | F230: =SUMIFS(SMARTVIEW!I$5:I$1171,SMARTVIEW!$B$5:$B$1171,Layout!$B$224,SMARTVIEW!$C$5:$C$1171,Layout!$C$224,SMARTVIEW!$D$5:$D$1171,Layout!$C$230,SMARTVIEW!$F$5:$F$1171,Layout!$B$230) -> 0 | G230: =SUMIFS(SMARTVIEW!J$5:J$1171,SMARTVIEW!$B$5:$B$1171,Layout!$B$224,SMARTVIEW!$C$5:$C$1171,Layout!$C$224,SMARTVIEW!$D$5:$D$1171,Layout!$C$230,SMARTVIEW!$F$5:$F$1171,Layout!$B$230) -> 0 | H230: =SUMIFS(SMARTVIEW!K$5:K$1171,SMARTVIEW!$B$5:$B$1171,Layout!$B$224,SMARTVIEW!$C$5:$C$1171,Layout!$C$224,SMARTVIEW!$D$5:$D$1171,Layout!$C$230,SMARTVIEW!$F$5:$F$1171,Layout!$B$230) -> 0 | I230: =SUMIFS(SMARTVIEW!L$5:L$1171,SMARTVIEW!$B$5:$B$1171,Layout!$B$224,SMARTVIEW!$C$5:$C$1171,Layout!$C$224,SMARTVIEW!$D$5:$D$1171,Layout!$C$230,SMARTVIEW!$F$5:$F$1171,Layout!$B$230) -> 0 | J230: =SUMIFS(SMARTVIEW!M$5:M$1171,SMARTVIEW!$B$5:$B$1171,Layout!$B$224,SMARTVIEW!$C$5:$C$1171,Layout!$C$224,SMARTVIEW!$D$5:$D$1171,Layout!$C$230,SMARTVIEW!$F$5:$F$1171,Layout!$B$230) -> 0 | K230: =SUMIFS(SMARTVIEW!N$5:N$1171,SMARTVIEW!$B$5:$B$1171,Layout!$B$224,SMARTVIEW!$C$5:$C$1171,Layout!$C$224,SMARTVIEW!$D$5:$D$1171,Layout!$C$230,SMARTVIEW!$F$5:$F$1171,Layout!$B$230) -> 0 | L230: =SUMIFS(SMARTVIEW!O$5:O$1171,SMARTVIEW!$B$5:$B$1171,Layout!$B$224,SMARTVIEW!$C$5:$C$1171,Layout!$C$224,SMARTVIEW!$D$5:$D$1171,Layout!$C$230,SMARTVIEW!$F$5:$F$1171,Layout!$B$230) -> 0 | M230: =SUMIFS(SMARTVIEW!P$5:P$1171,SMARTVIEW!$B$5:$B$1171,Layout!$B$224,SMARTVIEW!$C$5:$C$1171,Layout!$C$224,SMARTVIEW!$D$5:$D$1171,Layout!$C$230,SMARTVIEW!$F$5:$F$1171,Layout!$B$230) -> 0 | N230: =SUMIFS(SMARTVIEW!Q$5:Q$1171,SMARTVIEW!$B$5:$B$1171,Layout!$B$224,SMARTVIEW!$C$5:$C$1171,Layout!$C$224,SMARTVIEW!$D$5:$D$1171,Layout!$C$230,SMARTVIEW!$F$5:$F$1171,Layout!$B$230) -> 0 | O230: =SUMIFS(SMARTVIEW!R$5:R$1171,SMARTVIEW!$B$5:$B$1171,Layout!$B$224,SMARTVIEW!$C$5:$C$1171,Layout!$C$224,SMARTVIEW!$D$5:$D$1171,Layout!$C$230,SMARTVIEW!$F$5:$F$1171,Layout!$B$230) -> 0 | P230: =SUMIFS(SMARTVIEW!S$5:S$1171,SMARTVIEW!$B$5:$B$1171,Layout!$B$224,SMARTVIEW!$C$5:$C$1171,Layout!$C$224,SMARTVIEW!$D$5:$D$1171,Layout!$C$230,SMARTVIEW!$F$5:$F$1171,Layout!$B$230) -> 0 | Q230: =SUM(E230:P230) -> 0
S233: Enter Notes Below
D234: FUTURE BUDGET | E234: 0 | F234: 0 | G234: 0 | H234: 0 | I234: 0 | J234: 0 | K234: 0 | L234: 0 | M234: 0 | N234: 0 | O234: 0 | P234: 0 | Q234: =SUM(E234:P234) -> 0
B238: D19800 | C238: 458380 | D238: WEEK 53 INCOME
A240: %,R,FDEPTID,V19800,FACCOUNT,V458380,LBUD_USD | B240: FY18 | C240: PLANNING | D240: CURRENT BUDGET | E240: =SUMIFS(SMARTVIEW!H$5:H$1171,SMARTVIEW!$B$5:$B$1171,Layout!$B$238,SMARTVIEW!$C$5:$C$1171,Layout!$C$238,SMARTVIEW!$D$5:$D$1171,Layout!$C$240,SMARTVIEW!$F$5:$F$1171,Layout!$B$240) -> 0 | F240: =SUMIFS(SMARTVIEW!I$5:I$1171,SMARTVIEW!$B$5:$B$1171,Layout!$B$238,SMARTVIEW!$C$5:$C$1171,Layout!$C$238,SMARTVIEW!$D$5:$D$1171,Layout!$C$240,SMARTVIEW!$F$5:$F$1171,Layout!$B$240) -> 0 | G240: =SUMIFS(SMARTVIEW!J$5:J$1171,SMARTVIEW!$B$5:$B$1171,Layout!$B$238,SMARTVIEW!$C$5:$C$1171,Layout!$C$238,SMARTVIEW!$D$5:$D$1171,Layout!$C$240,SMARTVIEW!$F$5:$F$1171,Layout!$B$240) -> 0 | H240: =SUMIFS(SMARTVIEW!K$5:K$1171,SMARTVIEW!$B$5:$B$1171,Layout!$B$238,SMARTVIEW!$C$5:$C$1171,Layout!$C$238,SMARTVIEW!$D$5:$D$1171,Layout!$C$240,SMARTVIEW!$F$5:$F$1171,Layout!$B$240) -> 0 | I240: =SUMIFS(SMARTVIEW!L$5:L$1171,SMARTVIEW!$B$5:$B$1171,Layout!$B$238,SMARTVIEW!$C$5:$C$1171,Layout!$C$238,SMARTVIEW!$D$5:$D$1171,Layout!$C$240,SMARTVIEW!$F$5:$F$1171,Layout!$B$240) -> 0 | J240: =SUMIFS(SMARTVIEW!M$5:M$1171,SMARTVIEW!$B$5:$B$1171,Layout!$B$238,SMARTVIEW!$C$5:$C$1171,Layout!$C$238,SMARTVIEW!$D$5:$D$1171,Layout!$C$240,SMARTVIEW!$F$5:$F$1171,Layout!$B$240) -> 0 | K240: =SUMIFS(SMARTVIEW!N$5:N$1171,SMARTVIEW!$B$5:$B$1171,Layout!$B$238,SMARTVIEW!$C$5:$C$1171,Layout!$C$238,SMARTVIEW!$D$5:$D$1171,Layout!$C$240,SMARTVIEW!$F$5:$F$1171,Layout!$B$240) -> 0 | L240: =SUMIFS(SMARTVIEW!O$5:O$1171,SMARTVIEW!$B$5:$B$1171,Layout!$B$238,SMARTVIEW!$C$5:$C$1171,Layout!$C$238,SMARTVIEW!$D$5:$D$1171,Layout!$C$240,SMARTVIEW!$F$5:$F$1171,Layout!$B$240) -> 0 | M240: =SUMIFS(SMARTVIEW!P$5:P$1171,SMARTVIEW!$B$5:$B$1171,Layout!$B$238,SMARTVIEW!$C$5:$C$1171,Layout!$C$238,SMARTVIEW!$D$5:$D$1171,Layout!$C$240,SMARTVIEW!$F$5:$F$1171,Layout!$B$240) -> 0 | N240: =SUMIFS(SMARTVIEW!Q$5:Q$1171,SMARTVIEW!$B$5:$B$1171,Layout!$B$238,SMARTVIEW!$C$5:$C$1171,Layout!$C$238,SMARTVIEW!$D$5:$D$1171,Layout!$C$240,SMARTVIEW!$F$5:$F$1171,Layout!$B$240) -> 0 | O240: =SUMIFS(SMARTVIEW!R$5:R$1171,SMARTVIEW!$B$5:$B$1171,Layout!$B$238,SMARTVIEW!$C$5:$C$1171,Layout!$C$238,SMARTVIEW!$D$5:$D$1171,Layout!$C$240,SMARTVIEW!$F$5:$F$1171,Layout!$B$240) -> 0 | P240: =SUMIFS(SMARTVIEW!S$5:S$1171,SMARTVIEW!$B$5:$B$1171,Layout!$B$238,SMARTVIEW!$C$5:$C$1171,Layout!$C$238,SMARTVIEW!$D$5:$D$1171,Layout!$C$240,SMARTVIEW!$F$5:$F$1171,Layout!$B$240) -> 0 | Q240: =SUM(E240:P240) -> 0
A242: %,R,FDEPTID,V19800,FACCOUNT,V458380,LACT_USD | B242: FY18 | C242: Actual | D242: CURRENT ACTUAL | E242: =SUMIFS(SMARTVIEW!H$5:H$1171,SMARTVIEW!$B$5:$B$1171,Layout!$B$238,SMARTVIEW!$C$5:$C$1171,Layout!$C$238,SMARTVIEW!$D$5:$D$1171,Layout!$C$242,SMARTVIEW!$F$5:$F$1171,Layout!$B$242) -> 0 | F242: =SUMIFS(SMARTVIEW!I$5:I$1171,SMARTVIEW!$B$5:$B$1171,Layout!$B$238,SMARTVIEW!$C$5:$C$1171,Layout!$C$238,SMARTVIEW!$D$5:$D$1171,Layout!$C$242,SMARTVIEW!$F$5:$F$1171,Layout!$B$242) -> 0 | G242: =SUMIFS(SMARTVIEW!J$5:J$1171,SMARTVIEW!$B$5:$B$1171,Layout!$B$238,SMARTVIEW!$C$5:$C$1171,Layout!$C$238,SMARTVIEW!$D$5:$D$1171,Layout!$C$242,SMARTVIEW!$F$5:$F$1171,Layout!$B$242) -> 0 | H242: =SUMIFS(SMARTVIEW!K$5:K$1171,SMARTVIEW!$B$5:$B$1171,Layout!$B$238,SMARTVIEW!$C$5:$C$1171,Layout!$C$238,SMARTVIEW!$D$5:$D$1171,Layout!$C$242,SMARTVIEW!$F$5:$F$1171,Layout!$B$242) -> 0 | I242: =SUMIFS(SMARTVIEW!L$5:L$1171,SMARTVIEW!$B$5:$B$1171,Layout!$B$238,SMARTVIEW!$C$5:$C$1171,Layout!$C$238,SMARTVIEW!$D$5:$D$1171,Layout!$C$242,SMARTVIEW!$F$5:$F$1171,Layout!$B$242) -> 0 | J242: =SUMIFS(SMARTVIEW!M$5:M$1171,SMARTVIEW!$B$5:$B$1171,Layout!$B$238,SMARTVIEW!$C$5:$C$1171,Layout!$C$238,SMARTVIEW!$D$5:$D$1171,Layout!$C$242,SMARTVIEW!$F$5:$F$1171,Layout!$B$242) -> 0 | K242: =SUMIFS(SMARTVIEW!N$5:N$1171,SMARTVIEW!$B$5:$B$1171,Layout!$B$238,SMARTVIEW!$C$5:$C$1171,Layout!$C$238,SMARTVIEW!$D$5:$D$1171,Layout!$C$242,SMARTVIEW!$F$5:$F$1171,Layout!$B$242) -> 0 | L242: =SUMIFS(SMARTVIEW!O$5:O$1171,SMARTVIEW!$B$5:$B$1171,Layout!$B$238,SMARTVIEW!$C$5:$C$1171,Layout!$C$238,SMARTVIEW!$D$5:$D$1171,Layout!$C$242,SMARTVIEW!$F$5:$F$1171,Layout!$B$242) -> 0 | M242: =SUMIFS(SMARTVIEW!P$5:P$1171,SMARTVIEW!$B$5:$B$1171,Layout!$B$238,SMARTVIEW!$C$5:$C$1171,Layout!$C$238,SMARTVIEW!$D$5:$D$1171,Layout!$C$242,SMARTVIEW!$F$5:$F$1171,Layout!$B$242) -> 0 | N242: =SUMIFS(SMARTVIEW!Q$5:Q$1171,SMARTVIEW!$B$5:$B$1171,Layout!$B$238,SMARTVIEW!$C$5:$C$1171,Layout!$C$238,SMARTVIEW!$D$5:$D$1171,Layout!$C$242,SMARTVIEW!$F$5:$F$1171,Layout!$B$242) -> 0 | O242: =SUMIFS(SMARTVIEW!R$5:R$1171,SMARTVIEW!$B$5:$B$1171,Layout!$B$238,SMARTVIEW!$C$5:$C$1171,Layout!$C$238,SMARTVIEW!$D$5:$D$1171,Layout!$C$242,SMARTVIEW!$F$5:$F$1171,Layout!$B$242) -> 0 | P242: =SUMIFS(SMARTVIEW!S$5:S$1171,SMARTVIEW!$B$5:$B$1171,Layout!$B$238,SMARTVIEW!$C$5:$C$1171,Layout!$C$238,SMARTVIEW!$D$5:$D$1171,Layout!$C$242,SMARTVIEW!$F$5:$F$1171,Layout!$B$242) -> 0 | Q242: =SUM(E242:P242) -> 0 | R242: =Q242 -> 0
B244: FY17 | C244: Actual | D244: PRIOR YEAR ACTUALS | E244: =SUMIFS(SMARTVIEW!H$5:H$1171,SMARTVIEW!$B$5:$B$1171,Layout!$B$238,SMARTVIEW!$C$5:$C$1171,Layout!$C$238,SMARTVIEW!$D$5:$D$1171,Layout!$C$244,SMARTVIEW!$F$5:$F$1171,Layout!$B$244) -> 0 | F244: =SUMIFS(SMARTVIEW!I$5:I$1171,SMARTVIEW!$B$5:$B$1171,Layout!$B$238,SMARTVIEW!$C$5:$C$1171,Layout!$C$238,SMARTVIEW!$D$5:$D$1171,Layout!$C$244,SMARTVIEW!$F$5:$F$1171,Layout!$B$244) -> 0 | G244: =SUMIFS(SMARTVIEW!J$5:J$1171,SMARTVIEW!$B$5:$B$1171,Layout!$B$238,SMARTVIEW!$C$5:$C$1171,Layout!$C$238,SMARTVIEW!$D$5:$D$1171,Layout!$C$244,SMARTVIEW!$F$5:$F$1171,Layout!$B$244) -> 0 | H244: =SUMIFS(SMARTVIEW!K$5:K$1171,SMARTVIEW!$B$5:$B$1171,Layout!$B$238,SMARTVIEW!$C$5:$C$1171,Layout!$C$238,SMARTVIEW!$D$5:$D$1171,Layout!$C$244,SMARTVIEW!$F$5:$F$1171,Layout!$B$244) -> 0 | I244: =SUMIFS(SMARTVIEW!L$5:L$1171,SMARTVIEW!$B$5:$B$1171,Layout!$B$238,SMARTVIEW!$C$5:$C$1171,Layout!$C$238,SMARTVIEW!$D$5:$D$1171,Layout!$C$244,SMARTVIEW!$F$5:$F$1171,Layout!$B$244) -> 0 | J244: =SUMIFS(SMARTVIEW!M$5:M$1171,SMARTVIEW!$B$5:$B$1171,Layout!$B$238,SMARTVIEW!$C$5:$C$1171,Layout!$C$238,SMARTVIEW!$D$5:$D$1171,Layout!$C$244,SMARTVIEW!$F$5:$F$1171,Layout!$B$244) -> 0 | K244: =SUMIFS(SMARTVIEW!N$5:N$1171,SMARTVIEW!$B$5:$B$1171,Layout!$B$238,SMARTVIEW!$C$5:$C$1171,Layout!$C$238,SMARTVIEW!$D$5:$D$1171,Layout!$C$244,SMARTVIEW!$F$5:$F$1171,Layout!$B$244) -> 0 | L244: =SUMIFS(SMARTVIEW!O$5:O$1171,SMARTVIEW!$B$5:$B$1171,Layout!$B$238,SMARTVIEW!$C$5:$C$1171,Layout!$C$238,SMARTVIEW!$D$5:$D$1171,Layout!$C$244,SMARTVIEW!$F$5:$F$1171,Layout!$B$244) -> 0 | M244: =SUMIFS(SMARTVIEW!P$5:P$1171,SMARTVIEW!$B$5:$B$1171,Layout!$B$238,SMARTVIEW!$C$5:$C$1171,Layout!$C$238,SMARTVIEW!$D$5:$D$1171,Layout!$C$244,SMARTVIEW!$F$5:$F$1171,Layout!$B$244) -> 0 | N244: =SUMIFS(SMARTVIEW!Q$5:Q$1171,SMARTVIEW!$B$5:$B$1171,Layout!$B$238,SMARTVIEW!$C$5:$C$1171,Layout!$C$238,SMARTVIEW!$D$5:$D$1171,Layout!$C$244,SMARTVIEW!$F$5:$F$1171,Layout!$B$244) -> 0 | O244: =SUMIFS(SMARTVIEW!R$5:R$1171,SMARTVIEW!$B$5:$B$1171,Layout!$B$238,SMARTVIEW!$C$5:$C$1171,Layout!$C$238,SMARTVIEW!$D$5:$D$1171,Layout!$C$244,SMARTVIEW!$F$5:$F$1171,Layout!$B$244) -> 0 | P244: =SUMIFS(SMARTVIEW!S$5:S$1171,SMARTVIEW!$B$5:$B$1171,Layout!$B$238,SMARTVIEW!$C$5:$C$1171,Layout!$C$238,SMARTVIEW!$D$5:$D$1171,Layout!$C$244,SMARTVIEW!$F$5:$F$1171,Layout!$B$244) -> 0 | Q244: =SUM(E244:P244) -> 0
S247: Enter Notes Below
D248: FUTURE BUDGET | E248: 0 | F248: 0 | G248: 0 | H248: 0 | I248: 0 | J248: 0 | K248: 0 | L248: 0 | M248: 0 | N248: 0 | O248: 0 | P248: 0 | Q248: =SUM(E248:P248) -> 0
B252: D19800 | C252: 458230 | D252: ACTIVITIES REVENUE
A254: %,R,FDEPTID,V19800,FACCOUNT,V458230,LBUD_USD | B254: FY18 | C254: PLANNING | D254: CURRENT BUDGET | E254: =SUMIFS(SMARTVIEW!H$5:H$1171,SMARTVIEW!$B$5:$B$1171,Layout!$B$252,SMARTVIEW!$C$5:$C$1171,Layout!$C$252,SMARTVIEW!$D$5:$D$1171,Layout!$C$254,SMARTVIEW!$F$5:$F$1171,Layout!$B$254) -> 0 | F254: =SUMIFS(SMARTVIEW!I$5:I$1171,SMARTVIEW!$B$5:$B$1171,Layout!$B$252,SMARTVIEW!$C$5:$C$1171,Layout!$C$252,SMARTVIEW!$D$5:$D$1171,Layout!$C$254,SMARTVIEW!$F$5:$F$1171,Layout!$B$254) -> 0 | G254: =SUMIFS(SMARTVIEW!J$5:J$1171,SMARTVIEW!$B$5:$B$1171,Layout!$B$252,SMARTVIEW!$C$5:$C$1171,Layout!$C$252,SMARTVIEW!$D$5:$D$1171,Layout!$C$254,SMARTVIEW!$F$5:$F$1171,Layout!$B$254) -> 0 | H254: =SUMIFS(SMARTVIEW!K$5:K$1171,SMARTVIEW!$B$5:$B$1171,Layout!$B$252,SMARTVIEW!$C$5:$C$1171,Layout!$C$252,SMARTVIEW!$D$5:$D$1171,Layout!$C$254,SMARTVIEW!$F$5:$F$1171,Layout!$B$254) -> 0 | I254: =SUMIFS(SMARTVIEW!L$5:L$1171,SMARTVIEW!$B$5:$B$1171,Layout!$B$252,SMARTVIEW!$C$5:$C$1171,Layout!$C$252,SMARTVIEW!$D$5:$D$1171,Layout!$C$254,SMARTVIEW!$F$5:$F$1171,Layout!$B$254) -> 0 | J254: =SUMIFS(SMARTVIEW!M$5:M$1171,SMARTVIEW!$B$5:$B$1171,Layout!$B$252,SMARTVIEW!$C$5:$C$1171,Layout!$C$252,SMARTVIEW!$D$5:$D$1171,Layout!$C$254,SMARTVIEW!$F$5:$F$1171,Layout!$B$254) -> 0 | K254: =SUMIFS(SMARTVIEW!N$5:N$1171,SMARTVIEW!$B$5:$B$1171,Layout!$B$252,SMARTVIEW!$C$5:$C$1171,Layout!$C$252,SMARTVIEW!$D$5:$D$1171,Layout!$C$254,SMARTVIEW!$F$5:$F$1171,Layout!$B$254) -> 0 | L254: =SUMIFS(SMARTVIEW!O$5:O$1171,SMARTVIEW!$B$5:$B$1171,Layout!$B$252,SMARTVIEW!$C$5:$C$1171,Layout!$C$252,SMARTVIEW!$D$5:$D$1171,Layout!$C$254,SMARTVIEW!$F$5:$F$1171,Layout!$B$254) -> 0 | M254: =SUMIFS(SMARTVIEW!P$5:P$1171,SMARTVIEW!$B$5:$B$1171,Layout!$B$252,SMARTVIEW!$C$5:$C$1171,Layout!$C$252,SMARTVIEW!$D$5:$D$1171,Layout!$C$254,SMARTVIEW!$F$5:$F$1171,Layout!$B$254) -> 0 | N254: =SUMIFS(SMARTVIEW!Q$5:Q$1171,SMARTVIEW!$B$5:$B$1171,Layout!$B$252,SMARTVIEW!$C$5:$C$1171,Layout!$C$252,SMARTVIEW!$D$5:$D$1171,Layout!$C$254,SMARTVIEW!$F$5:$F$1171,Layout!$B$254) -> 0 | O254: =SUMIFS(SMARTVIEW!R$5:R$1171,SMARTVIEW!$B$5:$B$1171,Layout!$B$252,SMARTVIEW!$C$5:$C$1171,Layout!$C$252,SMARTVIEW!$D$5:$D$1171,Layout!$C$254,SMARTVIEW!$F$5:$F$1171,Layout!$B$254) -> 0 | P254: =SUMIFS(SMARTVIEW!S$5:S$1171,SMARTVIEW!$B$5:$B$1171,Layout!$B$252,SMARTVIEW!$C$5:$C$1171,Layout!$C$252,SMARTVIEW!$D$5:$D$1171,Layout!$C$254,SMARTVIEW!$F$5:$F$1171,Layout!$B$254) -> 0 | Q254: =SUM(E254:P254) -> 0
A256: %,R,FDEPTID,V19800,FACCOUNT,V458230,LACT_USD | B256: FY18 | C256: Actual | D256: CURRENT ACTUAL | E256: =SUMIFS(SMARTVIEW!H$5:H$1171,SMARTVIEW!$B$5:$B$1171,Layout!$B$252,SMARTVIEW!$C$5:$C$1171,Layout!$C$252,SMARTVIEW!$D$5:$D$1171,Layout!$C$256,SMARTVIEW!$F$5:$F$1171,Layout!$B$256) -> 0 | F256: =SUMIFS(SMARTVIEW!I$5:I$1171,SMARTVIEW!$B$5:$B$1171,Layout!$B$252,SMARTVIEW!$C$5:$C$1171,Layout!$C$252,SMARTVIEW!$D$5:$D$1171,Layout!$C$256,SMARTVIEW!$F$5:$F$1171,Layout!$B$256) -> 0 | G256: =SUMIFS(SMARTVIEW!J$5:J$1171,SMARTVIEW!$B$5:$B$1171,Layout!$B$252,SMARTVIEW!$C$5:$C$1171,Layout!$C$252,SMARTVIEW!$D$5:$D$1171,Layout!$C$256,SMARTVIEW!$F$5:$F$1171,Layout!$B$256) -> 0 | H256: =SUMIFS(SMARTVIEW!K$5:K$1171,SMARTVIEW!$B$5:$B$1171,Layout!$B$252,SMARTVIEW!$C$5:$C$1171,Layout!$C$252,SMARTVIEW!$D$5:$D$1171,Layout!$C$256,SMARTVIEW!$F$5:$F$1171,Layout!$B$256) -> 0 | I256: =SUMIFS(SMARTVIEW!L$5:L$1171,SMARTVIEW!$B$5:$B$1171,Layout!$B$252,SMARTVIEW!$C$5:$C$1171,Layout!$C$252,SMARTVIEW!$D$5:$D$1171,Layout!$C$256,SMARTVIEW!$F$5:$F$1171,Layout!$B$256) -> 0 | J256: =SUMIFS(SMARTVIEW!M$5:M$1171,SMARTVIEW!$B$5:$B$1171,Layout!$B$252,SMARTVIEW!$C$5:$C$1171,Layout!$C$252,SMARTVIEW!$D$5:$D$1171,Layout!$C$256,SMARTVIEW!$F$5:$F$1171,Layout!$B$256) -> 0 | K256: =SUMIFS(SMARTVIEW!N$5:N$1171,SMARTVIEW!$B$5:$B$1171,Layout!$B$252,SMARTVIEW!$C$5:$C$1171,Layout!$C$252,SMARTVIEW!$D$5:$D$1171,Layout!$C$256,SMARTVIEW!$F$5:$F$1171,Layout!$B$256) -> 0 | L256: =SUMIFS(SMARTVIEW!O$5:O$1171,SMARTVIEW!$B$5:$B$1171,Layout!$B$252,SMARTVIEW!$C$5:$C$1171,Layout!$C$252,SMARTVIEW!$D$5:$D$1171,Layout!$C$256,SMARTVIEW!$F$5:$F$1171,Layout!$B$256) -> 0 | M256: =SUMIFS(SMARTVIEW!P$5:P$1171,SMARTVIEW!$B$5:$B$1171,Layout!$B$252,SMARTVIEW!$C$5:$C$1171,Layout!$C$252,SMARTVIEW!$D$5:$D$1171,Layout!$C$256,SMARTVIEW!$F$5:$F$1171,Layout!$B$256) -> 0 | N256: =SUMIFS(SMARTVIEW!Q$5:Q$1171,SMARTVIEW!$B$5:$B$1171,Layout!$B$252,SMARTVIEW!$C$5:$C$1171,Layout!$C$252,SMARTVIEW!$D$5:$D$1171,Layout!$C$256,SMARTVIEW!$F$5:$F$1171,Layout!$B$256) -> 0 | O256: =SUMIFS(SMARTVIEW!R$5:R$1171,SMARTVIEW!$B$5:$B$1171,Layout!$B$252,SMARTVIEW!$C$5:$C$1171,Layout!$C$252,SMARTVIEW!$D$5:$D$1171,Layout!$C$256,SMARTVIEW!$F$5:$F$1171,Layout!$B$256) -> 0 | P256: =SUMIFS(SMARTVIEW!S$5:S$1171,SMARTVIEW!$B$5:$B$1171,Layout!$B$252,SMARTVIEW!$C$5:$C$1171,Layout!$C$252,SMARTVIEW!$D$5:$D$1171,Layout!$C$256,SMARTVIEW!$F$5:$F$1171,Layout!$B$256) -> 0 | Q256: =SUM(E256:P256) -> 0 | R256: =Q256 -> 0
B258: FY17 | C258: Actual | D258: PRIOR YEAR ACTUALS | E258: =SUMIFS(SMARTVIEW!H$5:H$1171,SMARTVIEW!$B$5:$B$1171,Layout!$B$252,SMARTVIEW!$C$5:$C$1171,Layout!$C$252,SMARTVIEW!$D$5:$D$1171,Layout!$C$258,SMARTVIEW!$F$5:$F$1171,Layout!$B$258) -> 0 | F258: =SUMIFS(SMARTVIEW!I$5:I$1171,SMARTVIEW!$B$5:$B$1171,Layout!$B$252,SMARTVIEW!$C$5:$C$1171,Layout!$C$252,SMARTVIEW!$D$5:$D$1171,Layout!$C$258,SMARTVIEW!$F$5:$F$1171,Layout!$B$258) -> 0 | G258: =SUMIFS(SMARTVIEW!J$5:J$1171,SMARTVIEW!$B$5:$B$1171,Layout!$B$252,SMARTVIEW!$C$5:$C$1171,Layout!$C$252,SMARTVIEW!$D$5:$D$1171,Layout!$C$258,SMARTVIEW!$F$5:$F$1171,Layout!$B$258) -> 0 | H258: =SUMIFS(SMARTVIEW!K$5:K$1171,SMARTVIEW!$B$5:$B$1171,Layout!$B$252,SMARTVIEW!$C$5:$C$1171,Layout!$C$252,SMARTVIEW!$D$5:$D$1171,Layout!$C$258,SMARTVIEW!$F$5:$F$1171,Layout!$B$258) -> 0 | I258: =SUMIFS(SMARTVIEW!L$5:L$1171,SMARTVIEW!$B$5:$B$1171,Layout!$B$252,SMARTVIEW!$C$5:$C$1171,Layout!$C$252,SMARTVIEW!$D$5:$D$1171,Layout!$C$258,SMARTVIEW!$F$5:$F$1171,Layout!$B$258) -> 0 | J258: =SUMIFS(SMARTVIEW!M$5:M$1171,SMARTVIEW!$B$5:$B$1171,Layout!$B$252,SMARTVIEW!$C$5:$C$1171,Layout!$C$252,SMARTVIEW!$D$5:$D$1171,Layout!$C$258,SMARTVIEW!$F$5:$F$1171,Layout!$B$258) -> 0 | K258: =SUMIFS(SMARTVIEW!N$5:N$1171,SMARTVIEW!$B$5:$B$1171,Layout!$B$252,SMARTVIEW!$C$5:$C$1171,Layout!$C$252,SMARTVIEW!$D$5:$D$1171,Layout!$C$258,SMARTVIEW!$F$5:$F$1171,Layout!$B$258) -> 0 | L258: =SUMIFS(SMARTVIEW!O$5:O$1171,SMARTVIEW!$B$5:$B$1171,Layout!$B$252,SMARTVIEW!$C$5:$C$1171,Layout!$C$252,SMARTVIEW!$D$5:$D$1171,Layout!$C$258,SMARTVIEW!$F$5:$F$1171,Layout!$B$258) -> 0 | M258: =SUMIFS(SMARTVIEW!P$5:P$1171,SMARTVIEW!$B$5:$B$1171,Layout!$B$252,SMARTVIEW!$C$5:$C$1171,Layout!$C$252,SMARTVIEW!$D$5:$D$1171,Layout!$C$258,SMARTVIEW!$F$5:$F$1171,Layout!$B$258) -> 0 | N258: =SUMIFS(SMARTVIEW!Q$5:Q$1171,SMARTVIEW!$B$5:$B$1171,Layout!$B$252,SMARTVIEW!$C$5:$C$1171,Layout!$C$252,SMARTVIEW!$D$5:$D$1171,Layout!$C$258,SMARTVIEW!$F$5:$F$1171,Layout!$B$258) -> 0 | O258: =SUMIFS(SMARTVIEW!R$5:R$1171,SMARTVIEW!$B$5:$B$1171,Layout!$B$252,SMARTVIEW!$C$5:$C$1171,Layout!$C$252,SMARTVIEW!$D$5:$D$1171,Layout!$C$258,SMARTVIEW!$F$5:$F$1171,Layout!$B$258) -> 0 | P258: =SUMIFS(SMARTVIEW!S$5:S$1171,SMARTVIEW!$B$5:$B$1171,Layout!$B$252,SMARTVIEW!$C$5:$C$1171,Layout!$C$252,SMARTVIEW!$D$5:$D$1171,Layout!$C$258,SMARTVIEW!$F$5:$F$1171,Layout!$B$258) -> 0 | Q258: =SUM(E258:P258) -> 0
S261: Enter Notes Below
D262: FUTURE BUDGET | E262: 0 | F262: 0 | G262: 0 | H262: 0 | I262: 0 | J262: 0 | K262: 0 | L262: 0 | M262: 0 | N262: 0 | O262: 0 | P262: 0 | Q262: =SUM(E262:P262) -> 0
B266: D19800 | C266: 458240 | D266: SUBSIDY INCOME
A268: %,R,FDEPTID,V19800,FACCOUNT,V458240,LBUD_USD | B268: FY18 | C268: PLANNING | D268: CURRENT BUDGET | E268: =SUMIFS(SMARTVIEW!H$5:H$1171,SMARTVIEW!$B$5:$B$1171,Layout!$B$266,SMARTVIEW!$C$5:$C$1171,Layout!$C$266,SMARTVIEW!$D$5:$D$1171,Layout!$C$268,SMARTVIEW!$F$5:$F$1171,Layout!$B$268) -> 0 | F268: =SUMIFS(SMARTVIEW!I$5:I$1171,SMARTVIEW!$B$5:$B$1171,Layout!$B$266,SMARTVIEW!$C$5:$C$1171,Layout!$C$266,SMARTVIEW!$D$5:$D$1171,Layout!$C$268,SMARTVIEW!$F$5:$F$1171,Layout!$B$268) -> 0 | G268: =SUMIFS(SMARTVIEW!J$5:J$1171,SMARTVIEW!$B$5:$B$1171,Layout!$B$266,SMARTVIEW!$C$5:$C$1171,Layout!$C$266,SMARTVIEW!$D$5:$D$1171,Layout!$C$268,SMARTVIEW!$F$5:$F$1171,Layout!$B$268) -> 0 | H268: =SUMIFS(SMARTVIEW!K$5:K$1171,SMARTVIEW!$B$5:$B$1171,Layout!$B$266,SMARTVIEW!$C$5:$C$1171,Layout!$C$266,SMARTVIEW!$D$5:$D$1171,Layout!$C$268,SMARTVIEW!$F$5:$F$1171,Layout!$B$268) -> 0 | I268: =SUMIFS(SMARTVIEW!L$5:L$1171,SMARTVIEW!$B$5:$B$1171,Layout!$B$266,SMARTVIEW!$C$5:$C$1171,Layout!$C$266,SMARTVIEW!$D$5:$D$1171,Layout!$C$268,SMARTVIEW!$F$5:$F$1171,Layout!$B$268) -> 0 | J268: =SUMIFS(SMARTVIEW!M$5:M$1171,SMARTVIEW!$B$5:$B$1171,Layout!$B$266,SMARTVIEW!$C$5:$C$1171,Layout!$C$266,SMARTVIEW!$D$5:$D$1171,Layout!$C$268,SMARTVIEW!$F$5:$F$1171,Layout!$B$268) -> 0 | K268: =SUMIFS(SMARTVIEW!N$5:N$1171,SMARTVIEW!$B$5:$B$1171,Layout!$B$266,SMARTVIEW!$C$5:$C$1171,Layout!$C$266,SMARTVIEW!$D$5:$D$1171,Layout!$C$268,SMARTVIEW!$F$5:$F$1171,Layout!$B$268) -> 0 | L268: =SUMIFS(SMARTVIEW!O$5:O$1171,SMARTVIEW!$B$5:$B$1171,Layout!$B$266,SMARTVIEW!$C$5:$C$1171,Layout!$C$266,SMARTVIEW!$D$5:$D$1171,Layout!$C$268,SMARTVIEW!$F$5:$F$1171,Layout!$B$268) -> 0 | M268: =SUMIFS(SMARTVIEW!P$5:P$1171,SMARTVIEW!$B$5:$B$1171,Layout!$B$266,SMARTVIEW!$C$5:$C$1171,Layout!$C$266,SMARTVIEW!$D$5:$D$1171,Layout!$C$268,SMARTVIEW!$F$5:$F$1171,Layout!$B$268) -> 0 | N268: =SUMIFS(SMARTVIEW!Q$5:Q$1171,SMARTVIEW!$B$5:$B$1171,Layout!$B$266,SMARTVIEW!$C$5:$C$1171,Layout!$C$266,SMARTVIEW!$D$5:$D$1171,Layout!$C$268,SMARTVIEW!$F$5:$F$1171,Layout!$B$268) -> 0 | O268: =SUMIFS(SMARTVIEW!R$5:R$1171,SMARTVIEW!$B$5:$B$1171,Layout!$B$266,SMARTVIEW!$C$5:$C$1171,Layout!$C$266,SMARTVIEW!$D$5:$D$1171,Layout!$C$268,SMARTVIEW!$F$5:$F$1171,Layout!$B$268) -> 0 | P268: =SUMIFS(SMARTVIEW!S$5:S$1171,SMARTVIEW!$B$5:$B$1171,Layout!$B$266,SMARTVIEW!$C$5:$C$1171,Layout!$C$266,SMARTVIEW!$D$5:$D$1171,Layout!$C$268,SMARTVIEW!$F$5:$F$1171,Layout!$B$268) -> 0 | Q268: =SUM(E268:P268) -> 0
A270: %,R,FDEPTID,V19800,FACCOUNT,V458240,LACT_USD | B270: FY18 | C270: Actual | D270: CURRENT ACTUAL | E270: =SUMIFS(SMARTVIEW!H$5:H$1171,SMARTVIEW!$B$5:$B$1171,Layout!$B$266,SMARTVIEW!$C$5:$C$1171,Layout!$C$266,SMARTVIEW!$D$5:$D$1171,Layout!$C$270,SMARTVIEW!$F$5:$F$1171,Layout!$B$270) -> 0 | F270: =SUMIFS(SMARTVIEW!I$5:I$1171,SMARTVIEW!$B$5:$B$1171,Layout!$B$266,SMARTVIEW!$C$5:$C$1171,Layout!$C$266,SMARTVIEW!$D$5:$D$1171,Layout!$C$270,SMARTVIEW!$F$5:$F$1171,Layout!$B$270) -> 0 | G270: =SUMIFS(SMARTVIEW!J$5:J$1171,SMARTVIEW!$B$5:$B$1171,Layout!$B$266,SMARTVIEW!$C$5:$C$1171,Layout!$C$266,SMARTVIEW!$D$5:$D$1171,Layout!$C$270,SMARTVIEW!$F$5:$F$1171,Layout!$B$270) -> 0 | H270: =SUMIFS(SMARTVIEW!K$5:K$1171,SMARTVIEW!$B$5:$B$1171,Layout!$B$266,SMARTVIEW!$C$5:$C$1171,Layout!$C$266,SMARTVIEW!$D$5:$D$1171,Layout!$C$270,SMARTVIEW!$F$5:$F$1171,Layout!$B$270) -> 0 | I270: =SUMIFS(SMARTVIEW!L$5:L$1171,SMARTVIEW!$B$5:$B$1171,Layout!$B$266,SMARTVIEW!$C$5:$C$1171,Layout!$C$266,SMARTVIEW!$D$5:$D$1171,Layout!$C$270,SMARTVIEW!$F$5:$F$1171,Layout!$B$270) -> 0 | J270: =SUMIFS(SMARTVIEW!M$5:M$1171,SMARTVIEW!$B$5:$B$1171,Layout!$B$266,SMARTVIEW!$C$5:$C$1171,Layout!$C$266,SMARTVIEW!$D$5:$D$1171,Layout!$C$270,SMARTVIEW!$F$5:$F$1171,Layout!$B$270) -> 0 | K270: =SUMIFS(SMARTVIEW!N$5:N$1171,SMARTVIEW!$B$5:$B$1171,Layout!$B$266,SMARTVIEW!$C$5:$C$1171,Layout!$C$266,SMARTVIEW!$D$5:$D$1171,Layout!$C$270,SMARTVIEW!$F$5:$F$1171,Layout!$B$270) -> 0 | L270: =SUMIFS(SMARTVIEW!O$5:O$1171,SMARTVIEW!$B$5:$B$1171,Layout!$B$266,SMARTVIEW!$C$5:$C$1171,Layout!$C$266,SMARTVIEW!$D$5:$D$1171,Layout!$C$270,SMARTVIEW!$F$5:$F$1171,Layout!$B$270) -> 0 | M270: =SUMIFS(SMARTVIEW!P$5:P$1171,SMARTVIEW!$B$5:$B$1171,Layout!$B$266,SMARTVIEW!$C$5:$C$1171,Layout!$C$266,SMARTVIEW!$D$5:$D$1171,Layout!$C$270,SMARTVIEW!$F$5:$F$1171,Layout!$B$270) -> 0 | N270: =SUMIFS(SMARTVIEW!Q$5:Q$1171,SMARTVIEW!$B$5:$B$1171,Layout!$B$266,SMARTVIEW!$C$5:$C$1171,Layout!$C$266,SMARTVIEW!$D$5:$D$1171,Layout!$C$270,SMARTVIEW!$F$5:$F$1171,Layout!$B$270) -> 0 | O270: =SUMIFS(SMARTVIEW!R$5:R$1171,SMARTVIEW!$B$5:$B$1171,Layout!$B$266,SMARTVIEW!$C$5:$C$1171,Layout!$C$266,SMARTVIEW!$D$5:$D$1171,Layout!$C$270,SMARTVIEW!$F$5:$F$1171,Layout!$B$270) -> 0 | P270: =SUMIFS(SMARTVIEW!S$5:S$1171,SMARTVIEW!$B$5:$B$1171,Layout!$B$266,SMARTVIEW!$C$5:$C$1171,Layout!$C$266,SMARTVIEW!$D$5:$D$1171,Layout!$C$270,SMARTVIEW!$F$5:$F$1171,Layout!$B$270) -> 0 | Q270: =SUM(E270:P270) -> 0 | R270: =Q270 -> 0
B272: FY17 | C272: Actual | D272: PRIOR YEAR ACTUALS | E272: =SUMIFS(SMARTVIEW!H$5:H$1171,SMARTVIEW!$B$5:$B$1171,Layout!$B$266,SMARTVIEW!$C$5:$C$1171,Layout!$C$266,SMARTVIEW!$D$5:$D$1171,Layout!$C$272,SMARTVIEW!$F$5:$F$1171,Layout!$B$272) -> 0 | F272: =SUMIFS(SMARTVIEW!I$5:I$1171,SMARTVIEW!$B$5:$B$1171,Layout!$B$266,SMARTVIEW!$C$5:$C$1171,Layout!$C$266,SMARTVIEW!$D$5:$D$1171,Layout!$C$272,SMARTVIEW!$F$5:$F$1171,Layout!$B$272) -> 0 | G272: =SUMIFS(SMARTVIEW!J$5:J$1171,SMARTVIEW!$B$5:$B$1171,Layout!$B$266,SMARTVIEW!$C$5:$C$1171,Layout!$C$266,SMARTVIEW!$D$5:$D$1171,Layout!$C$272,SMARTVIEW!$F$5:$F$1171,Layout!$B$272) -> 0 | H272: =SUMIFS(SMARTVIEW!K$5:K$1171,SMARTVIEW!$B$5:$B$1171,Layout!$B$266,SMARTVIEW!$C$5:$C$1171,Layout!$C$266,SMARTVIEW!$D$5:$D$1171,Layout!$C$272,SMARTVIEW!$F$5:$F$1171,Layout!$B$272) -> 0 | I272: =SUMIFS(SMARTVIEW!L$5:L$1171,SMARTVIEW!$B$5:$B$1171,Layout!$B$266,SMARTVIEW!$C$5:$C$1171,Layout!$C$266,SMARTVIEW!$D$5:$D$1171,Layout!$C$272,SMARTVIEW!$F$5:$F$1171,Layout!$B$272) -> 0 | J272: =SUMIFS(SMARTVIEW!M$5:M$1171,SMARTVIEW!$B$5:$B$1171,Layout!$B$266,SMARTVIEW!$C$5:$C$1171,Layout!$C$266,SMARTVIEW!$D$5:$D$1171,Layout!$C$272,SMARTVIEW!$F$5:$F$1171,Layout!$B$272) -> 0 | K272: =SUMIFS(SMARTVIEW!N$5:N$1171,SMARTVIEW!$B$5:$B$1171,Layout!$B$266,SMARTVIEW!$C$5:$C$1171,Layout!$C$266,SMARTVIEW!$D$5:$D$1171,Layout!$C$272,SMARTVIEW!$F$5:$F$1171,Layout!$B$272) -> 0 | L272: =SUMIFS(SMARTVIEW!O$5:O$1171,SMARTVIEW!$B$5:$B$1171,Layout!$B$266,SMARTVIEW!$C$5:$C$1171,Layout!$C$266,SMARTVIEW!$D$5:$D$1171,Layout!$C$272,SMARTVIEW!$F$5:$F$1171,Layout!$B$272) -> 0 | M272: =SUMIFS(SMARTVIEW!P$5:P$1171,SMARTVIEW!$B$5:$B$1171,Layout!$B$266,SMARTVIEW!$C$5:$C$1171,Layout!$C$266,SMARTVIEW!$D$5:$D$1171,Layout!$C$272,SMARTVIEW!$F$5:$F$1171,Layout!$B$272) -> 0 | N272: =SUMIFS(SMARTVIEW!Q$5:Q$1171,SMARTVIEW!$B$5:$B$1171,Layout!$B$266,SMARTVIEW!$C$5:$C$1171,Layout!$C$266,SMARTVIEW!$D$5:$D$1171,Layout!$C$272,SMARTVIEW!$F$5:$F$1171,Layout!$B$272) -> 0 | O272: =SUMIFS(SMARTVIEW!R$5:R$1171,SMARTVIEW!$B$5:$B$1171,Layout!$B$266,SMARTVIEW!$C$5:$C$1171,Layout!$C$266,SMARTVIEW!$D$5:$D$1171,Layout!$C$272,SMARTVIEW!$F$5:$F$1171,Layout!$B$272) -> 0 | P272: =SUMIFS(SMARTVIEW!S$5:S$1171,SMARTVIEW!$B$5:$B$1171,Layout!$B$266,SMARTVIEW!$C$5:$C$1171,Layout!$C$266,SMARTVIEW!$D$5:$D$1171,Layout!$C$272,SMARTVIEW!$F$5:$F$1171,Layout!$B$272) -> 0 | Q272: =SUM(E272:P272) -> 0
S275: Enter Notes Below
D276: FUTURE BUDGET | E276: 0 | F276: 0 | G276: 0 | H276: 0 | I276: 0 | J276: 0 | K276: 0 | L276: 0 | M276: 0 | N276: 0 | O276: 0 | P276: 0 | Q276: =SUM(E276:P276) -> 0
B280: D19800 | C280: 458270 | D280: FLEX RESERVATION FEES
A282: %,R,FDEPTID,V19800,FACCOUNT,V458270,LBUD_USD | B282: FY18 | C282: PLANNING | D282: CURRENT BUDGET | E282: =SUMIFS(SMARTVIEW!H$5:H$1171,SMARTVIEW!$B$5:$B$1171,Layout!$B$280,SMARTVIEW!$C$5:$C$1171,Layout!$C$280,SMARTVIEW!$D$5:$D$1171,Layout!$C$282,SMARTVIEW!$F$5:$F$1171,Layout!$B$282) -> 0 | F282: =SUMIFS(SMARTVIEW!I$5:I$1171,SMARTVIEW!$B$5:$B$1171,Layout!$B$280,SMARTVIEW!$C$5:$C$1171,Layout!$C$280,SMARTVIEW!$D$5:$D$1171,Layout!$C$282,SMARTVIEW!$F$5:$F$1171,Layout!$B$282) -> 0 | G282: =SUMIFS(SMARTVIEW!J$5:J$1171,SMARTVIEW!$B$5:$B$1171,Layout!$B$280,SMARTVIEW!$C$5:$C$1171,Layout!$C$280,SMARTVIEW!$D$5:$D$1171,Layout!$C$282,SMARTVIEW!$F$5:$F$1171,Layout!$B$282) -> 0 | H282: =SUMIFS(SMARTVIEW!K$5:K$1171,SMARTVIEW!$B$5:$B$1171,Layout!$B$280,SMARTVIEW!$C$5:$C$1171,Layout!$C$280,SMARTVIEW!$D$5:$D$1171,Layout!$C$282,SMARTVIEW!$F$5:$F$1171,Layout!$B$282) -> 0 | I282: =SUMIFS(SMARTVIEW!L$5:L$1171,SMARTVIEW!$B$5:$B$1171,Layout!$B$280,SMARTVIEW!$C$5:$C$1171,Layout!$C$280,SMARTVIEW!$D$5:$D$1171,Layout!$C$282,SMARTVIEW!$F$5:$F$1171,Layout!$B$282) -> 0 | J282: =SUMIFS(SMARTVIEW!M$5:M$1171,SMARTVIEW!$B$5:$B$1171,Layout!$B$280,SMARTVIEW!$C$5:$C$1171,Layout!$C$280,SMARTVIEW!$D$5:$D$1171,Layout!$C$282,SMARTVIEW!$F$5:$F$1171,Layout!$B$282) -> 0 | K282: =SUMIFS(SMARTVIEW!N$5:N$1171,SMARTVIEW!$B$5:$B$1171,Layout!$B$280,SMARTVIEW!$C$5:$C$1171,Layout!$C$280,SMARTVIEW!$D$5:$D$1171,Layout!$C$282,SMARTVIEW!$F$5:$F$1171,Layout!$B$282) -> 0 | L282: =SUMIFS(SMARTVIEW!O$5:O$1171,SMARTVIEW!$B$5:$B$1171,Layout!$B$280,SMARTVIEW!$C$5:$C$1171,Layout!$C$280,SMARTVIEW!$D$5:$D$1171,Layout!$C$282,SMARTVIEW!$F$5:$F$1171,Layout!$B$282) -> 0 | M282: =SUMIFS(SMARTVIEW!P$5:P$1171,SMARTVIEW!$B$5:$B$1171,Layout!$B$280,SMARTVIEW!$C$5:$C$1171,Layout!$C$280,SMARTVIEW!$D$5:$D$1171,Layout!$C$282,SMARTVIEW!$F$5:$F$1171,Layout!$B$282) -> 0 | N282: =SUMIFS(SMARTVIEW!Q$5:Q$1171,SMARTVIEW!$B$5:$B$1171,Layout!$B$280,SMARTVIEW!$C$5:$C$1171,Layout!$C$280,SMARTVIEW!$D$5:$D$1171,Layout!$C$282,SMARTVIEW!$F$5:$F$1171,Layout!$B$282) -> 0 | O282: =SUMIFS(SMARTVIEW!R$5:R$1171,SMARTVIEW!$B$5:$B$1171,Layout!$B$280,SMARTVIEW!$C$5:$C$1171,Layout!$C$280,SMARTVIEW!$D$5:$D$1171,Layout!$C$282,SMARTVIEW!$F$5:$F$1171,Layout!$B$282) -> 0 | P282: =SUMIFS(SMARTVIEW!S$5:S$1171,SMARTVIEW!$B$5:$B$1171,Layout!$B$280,SMARTVIEW!$C$5:$C$1171,Layout!$C$280,SMARTVIEW!$D$5:$D$1171,Layout!$C$282,SMARTVIEW!$F$5:$F$1171,Layout!$B$282) -> 0 | Q282: =SUM(E282:P282) -> 0
A284: %,R,FDEPTID,V19800,FACCOUNT,V458270,LACT_USD | B284: FY18 | C284: Actual | D284: CURRENT ACTUAL | E284: =SUMIFS(SMARTVIEW!H$5:H$1171,SMARTVIEW!$B$5:$B$1171,Layout!$B$280,SMARTVIEW!$C$5:$C$1171,Layout!$C$280,SMARTVIEW!$D$5:$D$1171,Layout!$C$284,SMARTVIEW!$F$5:$F$1171,Layout!$B$284) -> 0 | F284: =SUMIFS(SMARTVIEW!I$5:I$1171,SMARTVIEW!$B$5:$B$1171,Layout!$B$280,SMARTVIEW!$C$5:$C$1171,Layout!$C$280,SMARTVIEW!$D$5:$D$1171,Layout!$C$284,SMARTVIEW!$F$5:$F$1171,Layout!$B$284) -> 0 | G284: =SUMIFS(SMARTVIEW!J$5:J$1171,SMARTVIEW!$B$5:$B$1171,Layout!$B$280,SMARTVIEW!$C$5:$C$1171,Layout!$C$280,SMARTVIEW!$D$5:$D$1171,Layout!$C$284,SMARTVIEW!$F$5:$F$1171,Layout!$B$284) -> 0 | H284: =SUMIFS(SMARTVIEW!K$5:K$1171,SMARTVIEW!$B$5:$B$1171,Layout!$B$280,SMARTVIEW!$C$5:$C$1171,Layout!$C$280,SMARTVIEW!$D$5:$D$1171,Layout!$C$284,SMARTVIEW!$F$5:$F$1171,Layout!$B$284) -> 0 | I284: =SUMIFS(SMARTVIEW!L$5:L$1171,SMARTVIEW!$B$5:$B$1171,Layout!$B$280,SMARTVIEW!$C$5:$C$1171,Layout!$C$280,SMARTVIEW!$D$5:$D$1171,Layout!$C$284,SMARTVIEW!$F$5:$F$1171,Layout!$B$284) -> 0 | J284: =SUMIFS(SMARTVIEW!M$5:M$1171,SMARTVIEW!$B$5:$B$1171,Layout!$B$280,SMARTVIEW!$C$5:$C$1171,Layout!$C$280,SMARTVIEW!$D$5:$D$1171,Layout!$C$284,SMARTVIEW!$F$5:$F$1171,Layout!$B$284) -> 0 | K284: =SUMIFS(SMARTVIEW!N$5:N$1171,SMARTVIEW!$B$5:$B$1171,Layout!$B$280,SMARTVIEW!$C$5:$C$1171,Layout!$C$280,SMARTVIEW!$D$5:$D$1171,Layout!$C$284,SMARTVIEW!$F$5:$F$1171,Layout!$B$284) -> 0 | L284: =SUMIFS(SMARTVIEW!O$5:O$1171,SMARTVIEW!$B$5:$B$1171,Layout!$B$280,SMARTVIEW!$C$5:$C$1171,Layout!$C$280,SMARTVIEW!$D$5:$D$1171,Layout!$C$284,SMARTVIEW!$F$5:$F$1171,Layout!$B$284) -> 0 | M284: =SUMIFS(SMARTVIEW!P$5:P$1171,SMARTVIEW!$B$5:$B$1171,Layout!$B$280,SMARTVIEW!$C$5:$C$1171,Layout!$C$280,SMARTVIEW!$D$5:$D$1171,Layout!$C$284,SMARTVIEW!$F$5:$F$1171,Layout!$B$284) -> 0 | N284: =SUMIFS(SMARTVIEW!Q$5:Q$1171,SMARTVIEW!$B$5:$B$1171,Layout!$B$280,SMARTVIEW!$C$5:$C$1171,Layout!$C$280,SMARTVIEW!$D$5:$D$1171,Layout!$C$284,SMARTVIEW!$F$5:$F$1171,Layout!$B$284) -> 0 | O284: =SUMIFS(SMARTVIEW!R$5:R$1171,SMARTVIEW!$B$5:$B$1171,Layout!$B$280,SMARTVIEW!$C$5:$C$1171,Layout!$C$280,SMARTVIEW!$D$5:$D$1171,Layout!$C$284,SMARTVIEW!$F$5:$F$1171,Layout!$B$284) -> 0 | P284: =SUMIFS(SMARTVIEW!S$5:S$1171,SMARTVIEW!$B$5:$B$1171,Layout!$B$280,SMARTVIEW!$C$5:$C$1171,Layout!$C$280,SMARTVIEW!$D$5:$D$1171,Layout!$C$284,SMARTVIEW!$F$5:$F$1171,Layout!$B$284) -> 0 | Q284: =SUM(E284:P284) -> 0 | R284: =Q284 -> 0
B286: FY17 | C286: Actual | D286: PRIOR YEAR ACTUALS | E286: =SUMIFS(SMARTVIEW!H$5:H$1171,SMARTVIEW!$B$5:$B$1171,Layout!$B$280,SMARTVIEW!$C$5:$C$1171,Layout!$C$280,SMARTVIEW!$D$5:$D$1171,Layout!$C$286,SMARTVIEW!$F$5:$F$1171,Layout!$B$286) -> 0 | F286: =SUMIFS(SMARTVIEW!I$5:I$1171,SMARTVIEW!$B$5:$B$1171,Layout!$B$280,SMARTVIEW!$C$5:$C$1171,Layout!$C$280,SMARTVIEW!$D$5:$D$1171,Layout!$C$286,SMARTVIEW!$F$5:$F$1171,Layout!$B$286) -> 0 | G286: =SUMIFS(SMARTVIEW!J$5:J$1171,SMARTVIEW!$B$5:$B$1171,Layout!$B$280,SMARTVIEW!$C$5:$C$1171,Layout!$C$280,SMARTVIEW!$D$5:$D$1171,Layout!$C$286,SMARTVIEW!$F$5:$F$1171,Layout!$B$286) -> 0 | H286: =SUMIFS(SMARTVIEW!K$5:K$1171,SMARTVIEW!$B$5:$B$1171,Layout!$B$280,SMARTVIEW!$C$5:$C$1171,Layout!$C$280,SMARTVIEW!$D$5:$D$1171,Layout!$C$286,SMARTVIEW!$F$5:$F$1171,Layout!$B$286) -> 0 | I286: =SUMIFS(SMARTVIEW!L$5:L$1171,SMARTVIEW!$B$5:$B$1171,Layout!$B$280,SMARTVIEW!$C$5:$C$1171,Layout!$C$280,SMARTVIEW!$D$5:$D$1171,Layout!$C$286,SMARTVIEW!$F$5:$F$1171,Layout!$B$286) -> 0 | J286: =SUMIFS(SMARTVIEW!M$5:M$1171,SMARTVIEW!$B$5:$B$1171,Layout!$B$280,SMARTVIEW!$C$5:$C$1171,Layout!$C$280,SMARTVIEW!$D$5:$D$1171,Layout!$C$286,SMARTVIEW!$F$5:$F$1171,Layout!$B$286) -> 0 | K286: =SUMIFS(SMARTVIEW!N$5:N$1171,SMARTVIEW!$B$5:$B$1171,Layout!$B$280,SMARTVIEW!$C$5:$C$1171,Layout!$C$280,SMARTVIEW!$D$5:$D$1171,Layout!$C$286,SMARTVIEW!$F$5:$F$1171,Layout!$B$286) -> 0 | L286: =SUMIFS(SMARTVIEW!O$5:O$1171,SMARTVIEW!$B$5:$B$1171,Layout!$B$280,SMARTVIEW!$C$5:$C$1171,Layout!$C$280,SMARTVIEW!$D$5:$D$1171,Layout!$C$286,SMARTVIEW!$F$5:$F$1171,Layout!$B$286) -> 0 | M286: =SUMIFS(SMARTVIEW!P$5:P$1171,SMARTVIEW!$B$5:$B$1171,Layout!$B$280,SMARTVIEW!$C$5:$C$1171,Layout!$C$280,SMARTVIEW!$D$5:$D$1171,Layout!$C$286,SMARTVIEW!$F$5:$F$1171,Layout!$B$286) -> 0 | N286: =SUMIFS(SMARTVIEW!Q$5:Q$1171,SMARTVIEW!$B$5:$B$1171,Layout!$B$280,SMARTVIEW!$C$5:$C$1171,Layout!$C$280,SMARTVIEW!$D$5:$D$1171,Layout!$C$286,SMARTVIEW!$F$5:$F$1171,Layout!$B$286) -> 0 | O286: =SUMIFS(SMARTVIEW!R$5:R$1171,SMARTVIEW!$B$5:$B$1171,Layout!$B$280,SMARTVIEW!$C$5:$C$1171,Layout!$C$280,SMARTVIEW!$D$5:$D$1171,Layout!$C$286,SMARTVIEW!$F$5:$F$1171,Layout!$B$286) -> 0 | P286: =SUMIFS(SMARTVIEW!S$5:S$1171,SMARTVIEW!$B$5:$B$1171,Layout!$B$280,SMARTVIEW!$C$5:$C$1171,Layout!$C$280,SMARTVIEW!$D$5:$D$1171,Layout!$C$286,SMARTVIEW!$F$5:$F$1171,Layout!$B$286) -> 0 | Q286: =SUM(E286:P286) -> 0
S289: Enter Notes Below
D290: FUTURE BUDGET | E290: 0 | F290: 0 | G290: 0 | H290: 0 | I290: 0 | J290: 0 | K290: 0 | L290: 0 | M290: 0 | N290: 0 | O290: 0 | P290: 0 | Q290: =SUM(E290:P290) -> 0
B294: D19800 | C294: 458340 | D294: SUPPORT AREA SPA
A296: %,R,FDEPTID,V19800,FACCOUNT,V458340,LBUD_USD | B296: FY18 | C296: PLANNING | D296: CURRENT BUDGET | E296: =SUMIFS(SMARTVIEW!H$5:H$1171,SMARTVIEW!$B$5:$B$1171,Layout!$B$294,SMARTVIEW!$C$5:$C$1171,Layout!$C$294,SMARTVIEW!$D$5:$D$1171,Layout!$C$296,SMARTVIEW!$F$5:$F$1171,Layout!$B$296) -> 0 | F296: =SUMIFS(SMARTVIEW!I$5:I$1171,SMARTVIEW!$B$5:$B$1171,Layout!$B$294,SMARTVIEW!$C$5:$C$1171,Layout!$C$294,SMARTVIEW!$D$5:$D$1171,Layout!$C$296,SMARTVIEW!$F$5:$F$1171,Layout!$B$296) -> 0 | G296: =SUMIFS(SMARTVIEW!J$5:J$1171,SMARTVIEW!$B$5:$B$1171,Layout!$B$294,SMARTVIEW!$C$5:$C$1171,Layout!$C$294,SMARTVIEW!$D$5:$D$1171,Layout!$C$296,SMARTVIEW!$F$5:$F$1171,Layout!$B$296) -> 0 | H296: =SUMIFS(SMARTVIEW!K$5:K$1171,SMARTVIEW!$B$5:$B$1171,Layout!$B$294,SMARTVIEW!$C$5:$C$1171,Layout!$C$294,SMARTVIEW!$D$5:$D$1171,Layout!$C$296,SMARTVIEW!$F$5:$F$1171,Layout!$B$296) -> 0 | I296: =SUMIFS(SMARTVIEW!L$5:L$1171,SMARTVIEW!$B$5:$B$1171,Layout!$B$294,SMARTVIEW!$C$5:$C$1171,Layout!$C$294,SMARTVIEW!$D$5:$D$1171,Layout!$C$296,SMARTVIEW!$F$5:$F$1171,Layout!$B$296) -> 0 | J296: =SUMIFS(SMARTVIEW!M$5:M$1171,SMARTVIEW!$B$5:$B$1171,Layout!$B$294,SMARTVIEW!$C$5:$C$1171,Layout!$C$294,SMARTVIEW!$D$5:$D$1171,Layout!$C$296,SMARTVIEW!$F$5:$F$1171,Layout!$B$296) -> 0 | K296: =SUMIFS(SMARTVIEW!N$5:N$1171,SMARTVIEW!$B$5:$B$1171,Layout!$B$294,SMARTVIEW!$C$5:$C$1171,Layout!$C$294,SMARTVIEW!$D$5:$D$1171,Layout!$C$296,SMARTVIEW!$F$5:$F$1171,Layout!$B$296) -> 0 | L296: =SUMIFS(SMARTVIEW!O$5:O$1171,SMARTVIEW!$B$5:$B$1171,Layout!$B$294,SMARTVIEW!$C$5:$C$1171,Layout!$C$294,SMARTVIEW!$D$5:$D$1171,Layout!$C$296,SMARTVIEW!$F$5:$F$1171,Layout!$B$296) -> 0 | M296: =SUMIFS(SMARTVIEW!P$5:P$1171,SMARTVIEW!$B$5:$B$1171,Layout!$B$294,SMARTVIEW!$C$5:$C$1171,Layout!$C$294,SMARTVIEW!$D$5:$D$1171,Layout!$C$296,SMARTVIEW!$F$5:$F$1171,Layout!$B$296) -> 0 | N296: =SUMIFS(SMARTVIEW!Q$5:Q$1171,SMARTVIEW!$B$5:$B$1171,Layout!$B$294,SMARTVIEW!$C$5:$C$1171,Layout!$C$294,SMARTVIEW!$D$5:$D$1171,Layout!$C$296,SMARTVIEW!$F$5:$F$1171,Layout!$B$296) -> 0 | O296: =SUMIFS(SMARTVIEW!R$5:R$1171,SMARTVIEW!$B$5:$B$1171,Layout!$B$294,SMARTVIEW!$C$5:$C$1171,Layout!$C$294,SMARTVIEW!$D$5:$D$1171,Layout!$C$296,SMARTVIEW!$F$5:$F$1171,Layout!$B$296) -> 0 | P296: =SUMIFS(SMARTVIEW!S$5:S$1171,SMARTVIEW!$B$5:$B$1171,Layout!$B$294,SMARTVIEW!$C$5:$C$1171,Layout!$C$294,SMARTVIEW!$D$5:$D$1171,Layout!$C$296,SMARTVIEW!$F$5:$F$1171,Layout!$B$296) -> 0 | Q296: =SUM(E296:P296) -> 0
A298: %,R,FDEPTID,V19800,FACCOUNT,V458340,LACT_USD | B298: FY18 | C298: Actual | D298: CURRENT ACTUAL | E298: =SUMIFS(SMARTVIEW!H$5:H$1171,SMARTVIEW!$B$5:$B$1171,Layout!$B$294,SMARTVIEW!$C$5:$C$1171,Layout!$C$294,SMARTVIEW!$D$5:$D$1171,Layout!$C$298,SMARTVIEW!$F$5:$F$1171,Layout!$B$298) -> 0 | F298: =SUMIFS(SMARTVIEW!I$5:I$1171,SMARTVIEW!$B$5:$B$1171,Layout!$B$294,SMARTVIEW!$C$5:$C$1171,Layout!$C$294,SMARTVIEW!$D$5:$D$1171,Layout!$C$298,SMARTVIEW!$F$5:$F$1171,Layout!$B$298) -> 0 | G298: =SUMIFS(SMARTVIEW!J$5:J$1171,SMARTVIEW!$B$5:$B$1171,Layout!$B$294,SMARTVIEW!$C$5:$C$1171,Layout!$C$294,SMARTVIEW!$D$5:$D$1171,Layout!$C$298,SMARTVIEW!$F$5:$F$1171,Layout!$B$298) -> 0 | H298: =SUMIFS(SMARTVIEW!K$5:K$1171,SMARTVIEW!$B$5:$B$1171,Layout!$B$294,SMARTVIEW!$C$5:$C$1171,Layout!$C$294,SMARTVIEW!$D$5:$D$1171,Layout!$C$298,SMARTVIEW!$F$5:$F$1171,Layout!$B$298) -> 0 | I298: =SUMIFS(SMARTVIEW!L$5:L$1171,SMARTVIEW!$B$5:$B$1171,Layout!$B$294,SMARTVIEW!$C$5:$C$1171,Layout!$C$294,SMARTVIEW!$D$5:$D$1171,Layout!$C$298,SMARTVIEW!$F$5:$F$1171,Layout!$B$298) -> 0 | J298: =SUMIFS(SMARTVIEW!M$5:M$1171,SMARTVIEW!$B$5:$B$1171,Layout!$B$294,SMARTVIEW!$C$5:$C$1171,Layout!$C$294,SMARTVIEW!$D$5:$D$1171,Layout!$C$298,SMARTVIEW!$F$5:$F$1171,Layout!$B$298) -> 0 | K298: =SUMIFS(SMARTVIEW!N$5:N$1171,SMARTVIEW!$B$5:$B$1171,Layout!$B$294,SMARTVIEW!$C$5:$C$1171,Layout!$C$294,SMARTVIEW!$D$5:$D$1171,Layout!$C$298,SMARTVIEW!$F$5:$F$1171,Layout!$B$298) -> 0 | L298: =SUMIFS(SMARTVIEW!O$5:O$1171,SMARTVIEW!$B$5:$B$1171,Layout!$B$294,SMARTVIEW!$C$5:$C$1171,Layout!$C$294,SMARTVIEW!$D$5:$D$1171,Layout!$C$298,SMARTVIEW!$F$5:$F$1171,Layout!$B$298) -> 0 | M298: =SUMIFS(SMARTVIEW!P$5:P$1171,SMARTVIEW!$B$5:$B$1171,Layout!$B$294,SMARTVIEW!$C$5:$C$1171,Layout!$C$294,SMARTVIEW!$D$5:$D$1171,Layout!$C$298,SMARTVIEW!$F$5:$F$1171,Layout!$B$298) -> 0 | N298: =SUMIFS(SMARTVIEW!Q$5:Q$1171,SMARTVIEW!$B$5:$B$1171,Layout!$B$294,SMARTVIEW!$C$5:$C$1171,Layout!$C$294,SMARTVIEW!$D$5:$D$1171,Layout!$C$298,SMARTVIEW!$F$5:$F$1171,Layout!$B$298) -> 0 | O298: =SUMIFS(SMARTVIEW!R$5:R$1171,SMARTVIEW!$B$5:$B$1171,Layout!$B$294,SMARTVIEW!$C$5:$C$1171,Layout!$C$294,SMARTVIEW!$D$5:$D$1171,Layout!$C$298,SMARTVIEW!$F$5:$F$1171,Layout!$B$298) -> 0 | P298: =SUMIFS(SMARTVIEW!S$5:S$1171,SMARTVIEW!$B$5:$B$1171,Layout!$B$294,SMARTVIEW!$C$5:$C$1171,Layout!$C$294,SMARTVIEW!$D$5:$D$1171,Layout!$C$298,SMARTVIEW!$F$5:$F$1171,Layout!$B$298) -> 0 | Q298: =SUM(E298:P298) -> 0 | R298: =Q298 -> 0
B300: FY17 | C300: Actual | D300: PRIOR YEAR ACTUALS | E300: =SUMIFS(SMARTVIEW!H$5:H$1171,SMARTVIEW!$B$5:$B$1171,Layout!$B$294,SMARTVIEW!$C$5:$C$1171,Layout!$C$294,SMARTVIEW!$D$5:$D$1171,Layout!$C$300,SMARTVIEW!$F$5:$F$1171,Layout!$B$300) -> 0 | F300: =SUMIFS(SMARTVIEW!I$5:I$1171,SMARTVIEW!$B$5:$B$1171,Layout!$B$294,SMARTVIEW!$C$5:$C$1171,Layout!$C$294,SMARTVIEW!$D$5:$D$1171,Layout!$C$300,SMARTVIEW!$F$5:$F$1171,Layout!$B$300) -> 0 | G300: =SUMIFS(SMARTVIEW!J$5:J$1171,SMARTVIEW!$B$5:$B$1171,Layout!$B$294,SMARTVIEW!$C$5:$C$1171,Layout!$C$294,SMARTVIEW!$D$5:$D$1171,Layout!$C$300,SMARTVIEW!$F$5:$F$1171,Layout!$B$300) -> 0 | H300: =SUMIFS(SMARTVIEW!K$5:K$1171,SMARTVIEW!$B$5:$B$1171,Layout!$B$294,SMARTVIEW!$C$5:$C$1171,Layout!$C$294,SMARTVIEW!$D$5:$D$1171,Layout!$C$300,SMARTVIEW!$F$5:$F$1171,Layout!$B$300) -> 0 | I300: =SUMIFS(SMARTVIEW!L$5:L$1171,SMARTVIEW!$B$5:$B$1171,Layout!$B$294,SMARTVIEW!$C$5:$C$1171,Layout!$C$294,SMARTVIEW!$D$5:$D$1171,Layout!$C$300,SMARTVIEW!$F$5:$F$1171,Layout!$B$300) -> 0 | J300: =SUMIFS(SMARTVIEW!M$5:M$1171,SMARTVIEW!$B$5:$B$1171,Layout!$B$294,SMARTVIEW!$C$5:$C$1171,Layout!$C$294,SMARTVIEW!$D$5:$D$1171,Layout!$C$300,SMARTVIEW!$F$5:$F$1171,Layout!$B$300) -> 0 | K300: =SUMIFS(SMARTVIEW!N$5:N$1171,SMARTVIEW!$B$5:$B$1171,Layout!$B$294,SMARTVIEW!$C$5:$C$1171,Layout!$C$294,SMARTVIEW!$D$5:$D$1171,Layout!$C$300,SMARTVIEW!$F$5:$F$1171,Layout!$B$300) -> 0 | L300: =SUMIFS(SMARTVIEW!O$5:O$1171,SMARTVIEW!$B$5:$B$1171,Layout!$B$294,SMARTVIEW!$C$5:$C$1171,Layout!$C$294,SMARTVIEW!$D$5:$D$1171,Layout!$C$300,SMARTVIEW!$F$5:$F$1171,Layout!$B$300) -> 0 | M300: =SUMIFS(SMARTVIEW!P$5:P$1171,SMARTVIEW!$B$5:$B$1171,Layout!$B$294,SMARTVIEW!$C$5:$C$1171,Layout!$C$294,SMARTVIEW!$D$5:$D$1171,Layout!$C$300,SMARTVIEW!$F$5:$F$1171,Layout!$B$300) -> 0 | N300: =SUMIFS(SMARTVIEW!Q$5:Q$1171,SMARTVIEW!$B$5:$B$1171,Layout!$B$294,SMARTVIEW!$C$5:$C$1171,Layout!$C$294,SMARTVIEW!$D$5:$D$1171,Layout!$C$300,SMARTVIEW!$F$5:$F$1171,Layout!$B$300) -> 0 | O300: =SUMIFS(SMARTVIEW!R$5:R$1171,SMARTVIEW!$B$5:$B$1171,Layout!$B$294,SMARTVIEW!$C$5:$C$1171,Layout!$C$294,SMARTVIEW!$D$5:$D$1171,Layout!$C$300,SMARTVIEW!$F$5:$F$1171,Layout!$B$300) -> 0 | P300: =SUMIFS(SMARTVIEW!S$5:S$1171,SMARTVIEW!$B$5:$B$1171,Layout!$B$294,SMARTVIEW!$C$5:$C$1171,Layout!$C$294,SMARTVIEW!$D$5:$D$1171,Layout!$C$300,SMARTVIEW!$F$5:$F$1171,Layout!$B$300) -> 0 | Q300: =SUM(E300:P300) -> 0
S303: Enter Notes Below
D304: FUTURE BUDGET | E304: 0 | F304: 0 | G304: 0 | H304: 0 | I304: 0 | J304: 0 | K304: 0 | L304: 0 | M304: 0 | N304: 0 | O304: 0 | P304: 0 | Q304: =SUM(E304:P304) -> 0
B308: D19800 | C308: 458350 | D308: INSURANCE PROCEEDS
A310: %,R,FDEPTID,V19800,FACCOUNT,V458350,LBUD_USD | B310: FY18 | C310: PLANNING | D310: CURRENT BUDGET | E310: =SUMIFS(SMARTVIEW!H$5:H$1171,SMARTVIEW!$B$5:$B$1171,Layout!$B$308,SMARTVIEW!$C$5:$C$1171,Layout!$C$308,SMARTVIEW!$D$5:$D$1171,Layout!$C$310,SMARTVIEW!$F$5:$F$1171,Layout!$B$310) -> 0 | F310: =SUMIFS(SMARTVIEW!I$5:I$1171,SMARTVIEW!$B$5:$B$1171,Layout!$B$308,SMARTVIEW!$C$5:$C$1171,Layout!$C$308,SMARTVIEW!$D$5:$D$1171,Layout!$C$310,SMARTVIEW!$F$5:$F$1171,Layout!$B$310) -> 0 | G310: =SUMIFS(SMARTVIEW!J$5:J$1171,SMARTVIEW!$B$5:$B$1171,Layout!$B$308,SMARTVIEW!$C$5:$C$1171,Layout!$C$308,SMARTVIEW!$D$5:$D$1171,Layout!$C$310,SMARTVIEW!$F$5:$F$1171,Layout!$B$310) -> 0 | H310: =SUMIFS(SMARTVIEW!K$5:K$1171,SMARTVIEW!$B$5:$B$1171,Layout!$B$308,SMARTVIEW!$C$5:$C$1171,Layout!$C$308,SMARTVIEW!$D$5:$D$1171,Layout!$C$310,SMARTVIEW!$F$5:$F$1171,Layout!$B$310) -> 0 | I310: =SUMIFS(SMARTVIEW!L$5:L$1171,SMARTVIEW!$B$5:$B$1171,Layout!$B$308,SMARTVIEW!$C$5:$C$1171,Layout!$C$308,SMARTVIEW!$D$5:$D$1171,Layout!$C$310,SMARTVIEW!$F$5:$F$1171,Layout!$B$310) -> 0 | J310: =SUMIFS(SMARTVIEW!M$5:M$1171,SMARTVIEW!$B$5:$B$1171,Layout!$B$308,SMARTVIEW!$C$5:$C$1171,Layout!$C$308,SMARTVIEW!$D$5:$D$1171,Layout!$C$310,SMARTVIEW!$F$5:$F$1171,Layout!$B$310) -> 0 | K310: =SUMIFS(SMARTVIEW!N$5:N$1171,SMARTVIEW!$B$5:$B$1171,Layout!$B$308,SMARTVIEW!$C$5:$C$1171,Layout!$C$308,SMARTVIEW!$D$5:$D$1171,Layout!$C$310,SMARTVIEW!$F$5:$F$1171,Layout!$B$310) -> 0 | L310: =SUMIFS(SMARTVIEW!O$5:O$1171,SMARTVIEW!$B$5:$B$1171,Layout!$B$308,SMARTVIEW!$C$5:$C$1171,Layout!$C$308,SMARTVIEW!$D$5:$D$1171,Layout!$C$310,SMARTVIEW!$F$5:$F$1171,Layout!$B$310) -> 0 | M310: =SUMIFS(SMARTVIEW!P$5:P$1171,SMARTVIEW!$B$5:$B$1171,Layout!$B$308,SMARTVIEW!$C$5:$C$1171,Layout!$C$308,SMARTVIEW!$D$5:$D$1171,Layout!$C$310,SMARTVIEW!$F$5:$F$1171,Layout!$B$310) -> 0 | N310: =SUMIFS(SMARTVIEW!Q$5:Q$1171,SMARTVIEW!$B$5:$B$1171,Layout!$B$308,SMARTVIEW!$C$5:$C$1171,Layout!$C$308,SMARTVIEW!$D$5:$D$1171,Layout!$C$310,SMARTVIEW!$F$5:$F$1171,Layout!$B$310) -> 0 | O310: =SUMIFS(SMARTVIEW!R$5:R$1171,SMARTVIEW!$B$5:$B$1171,Layout!$B$308,SMARTVIEW!$C$5:$C$1171,Layout!$C$308,SMARTVIEW!$D$5:$D$1171,Layout!$C$310,SMARTVIEW!$F$5:$F$1171,Layout!$B$310) -> 0 | P310: =SUMIFS(SMARTVIEW!S$5:S$1171,SMARTVIEW!$B$5:$B$1171,Layout!$B$308,SMARTVIEW!$C$5:$C$1171,Layout!$C$308,SMARTVIEW!$D$5:$D$1171,Layout!$C$310,SMARTVIEW!$F$5:$F$1171,Layout!$B$310) -> 0 | Q310: =SUM(E310:P310) -> 0
A312: %,R,FDEPTID,V19800,FACCOUNT,V458350,LACT_USD | B312: FY18 | C312: Actual | D312: CURRENT ACTUAL | E312: =SUMIFS(SMARTVIEW!H$5:H$1171,SMARTVIEW!$B$5:$B$1171,Layout!$B$308,SMARTVIEW!$C$5:$C$1171,Layout!$C$308,SMARTVIEW!$D$5:$D$1171,Layout!$C$312,SMARTVIEW!$F$5:$F$1171,Layout!$B$312) -> 0 | F312: =SUMIFS(SMARTVIEW!I$5:I$1171,SMARTVIEW!$B$5:$B$1171,Layout!$B$308,SMARTVIEW!$C$5:$C$1171,Layout!$C$308,SMARTVIEW!$D$5:$D$1171,Layout!$C$312,SMARTVIEW!$F$5:$F$1171,Layout!$B$312) -> 0 | G312: =SUMIFS(SMARTVIEW!J$5:J$1171,SMARTVIEW!$B$5:$B$1171,Layout!$B$308,SMARTVIEW!$C$5:$C$1171,Layout!$C$308,SMARTVIEW!$D$5:$D$1171,Layout!$C$312,SMARTVIEW!$F$5:$F$1171,Layout!$B$312) -> 0 | H312: =SUMIFS(SMARTVIEW!K$5:K$1171,SMARTVIEW!$B$5:$B$1171,Layout!$B$308,SMARTVIEW!$C$5:$C$1171,Layout!$C$308,SMARTVIEW!$D$5:$D$1171,Layout!$C$312,SMARTVIEW!$F$5:$F$1171,Layout!$B$312) -> 0 | I312: =SUMIFS(SMARTVIEW!L$5:L$1171,SMARTVIEW!$B$5:$B$1171,Layout!$B$308,SMARTVIEW!$C$5:$C$1171,Layout!$C$308,SMARTVIEW!$D$5:$D$1171,Layout!$C$312,SMARTVIEW!$F$5:$F$1171,Layout!$B$312) -> 0 | J312: =SUMIFS(SMARTVIEW!M$5:M$1171,SMARTVIEW!$B$5:$B$1171,Layout!$B$308,SMARTVIEW!$C$5:$C$1171,Layout!$C$308,SMARTVIEW!$D$5:$D$1171,Layout!$C$312,SMARTVIEW!$F$5:$F$1171,Layout!$B$312) -> 0 | K312: =SUMIFS(SMARTVIEW!N$5:N$1171,SMARTVIEW!$B$5:$B$1171,Layout!$B$308,SMARTVIEW!$C$5:$C$1171,Layout!$C$308,SMARTVIEW!$D$5:$D$1171,Layout!$C$312,SMARTVIEW!$F$5:$F$1171,Layout!$B$312) -> 0 | L312: =SUMIFS(SMARTVIEW!O$5:O$1171,SMARTVIEW!$B$5:$B$1171,Layout!$B$308,SMARTVIEW!$C$5:$C$1171,Layout!$C$308,SMARTVIEW!$D$5:$D$1171,Layout!$C$312,SMARTVIEW!$F$5:$F$1171,Layout!$B$312) -> 0 | M312: =SUMIFS(SMARTVIEW!P$5:P$1171,SMARTVIEW!$B$5:$B$1171,Layout!$B$308,SMARTVIEW!$C$5:$C$1171,Layout!$C$308,SMARTVIEW!$D$5:$D$1171,Layout!$C$312,SMARTVIEW!$F$5:$F$1171,Layout!$B$312) -> 0 | N312: =SUMIFS(SMARTVIEW!Q$5:Q$1171,SMARTVIEW!$B$5:$B$1171,Layout!$B$308,SMARTVIEW!$C$5:$C$1171,Layout!$C$308,SMARTVIEW!$D$5:$D$1171,Layout!$C$312,SMARTVIEW!$F$5:$F$1171,Layout!$B$312) -> 0 | O312: =SUMIFS(SMARTVIEW!R$5:R$1171,SMARTVIEW!$B$5:$B$1171,Layout!$B$308,SMARTVIEW!$C$5:$C$1171,Layout!$C$308,SMARTVIEW!$D$5:$D$1171,Layout!$C$312,SMARTVIEW!$F$5:$F$1171,Layout!$B$312) -> 0 | P312: =SUMIFS(SMARTVIEW!S$5:S$1171,SMARTVIEW!$B$5:$B$1171,Layout!$B$308,SMARTVIEW!$C$5:$C$1171,Layout!$C$308,SMARTVIEW!$D$5:$D$1171,Layout!$C$312,SMARTVIEW!$F$5:$F$1171,Layout!$B$312) -> 0 | Q312: =SUM(E312:P312) -> 0 | R312: =Q312 -> 0
B314: FY17 | C314: Actual | D314: PRIOR YEAR ACTUALS | E314: =SUMIFS(SMARTVIEW!H$5:H$1171,SMARTVIEW!$B$5:$B$1171,Layout!$B$308,SMARTVIEW!$C$5:$C$1171,Layout!$C$308,SMARTVIEW!$D$5:$D$1171,Layout!$C$314,SMARTVIEW!$F$5:$F$1171,Layout!$B$314) -> 0 | F314: =SUMIFS(SMARTVIEW!I$5:I$1171,SMARTVIEW!$B$5:$B$1171,Layout!$B$308,SMARTVIEW!$C$5:$C$1171,Layout!$C$308,SMARTVIEW!$D$5:$D$1171,Layout!$C$314,SMARTVIEW!$F$5:$F$1171,Layout!$B$314) -> 0 | G314: =SUMIFS(SMARTVIEW!J$5:J$1171,SMARTVIEW!$B$5:$B$1171,Layout!$B$308,SMARTVIEW!$C$5:$C$1171,Layout!$C$308,SMARTVIEW!$D$5:$D$1171,Layout!$C$314,SMARTVIEW!$F$5:$F$1171,Layout!$B$314) -> 0 | H314: =SUMIFS(SMARTVIEW!K$5:K$1171,SMARTVIEW!$B$5:$B$1171,Layout!$B$308,SMARTVIEW!$C$5:$C$1171,Layout!$C$308,SMARTVIEW!$D$5:$D$1171,Layout!$C$314,SMARTVIEW!$F$5:$F$1171,Layout!$B$314) -> 0 | I314: =SUMIFS(SMARTVIEW!L$5:L$1171,SMARTVIEW!$B$5:$B$1171,Layout!$B$308,SMARTVIEW!$C$5:$C$1171,Layout!$C$308,SMARTVIEW!$D$5:$D$1171,Layout!$C$314,SMARTVIEW!$F$5:$F$1171,Layout!$B$314) -> 0 | J314: =SUMIFS(SMARTVIEW!M$5:M$1171,SMARTVIEW!$B$5:$B$1171,Layout!$B$308,SMARTVIEW!$C$5:$C$1171,Layout!$C$308,SMARTVIEW!$D$5:$D$1171,Layout!$C$314,SMARTVIEW!$F$5:$F$1171,Layout!$B$314) -> 0 | K314: =SUMIFS(SMARTVIEW!N$5:N$1171,SMARTVIEW!$B$5:$B$1171,Layout!$B$308,SMARTVIEW!$C$5:$C$1171,Layout!$C$308,SMARTVIEW!$D$5:$D$1171,Layout!$C$314,SMARTVIEW!$F$5:$F$1171,Layout!$B$314) -> 0 | L314: =SUMIFS(SMARTVIEW!O$5:O$1171,SMARTVIEW!$B$5:$B$1171,Layout!$B$308,SMARTVIEW!$C$5:$C$1171,Layout!$C$308,SMARTVIEW!$D$5:$D$1171,Layout!$C$314,SMARTVIEW!$F$5:$F$1171,Layout!$B$314) -> 0 | M314: =SUMIFS(SMARTVIEW!P$5:P$1171,SMARTVIEW!$B$5:$B$1171,Layout!$B$308,SMARTVIEW!$C$5:$C$1171,Layout!$C$308,SMARTVIEW!$D$5:$D$1171,Layout!$C$314,SMARTVIEW!$F$5:$F$1171,Layout!$B$314) -> 0 | N314: =SUMIFS(SMARTVIEW!Q$5:Q$1171,SMARTVIEW!$B$5:$B$1171,Layout!$B$308,SMARTVIEW!$C$5:$C$1171,Layout!$C$308,SMARTVIEW!$D$5:$D$1171,Layout!$C$314,SMARTVIEW!$F$5:$F$1171,Layout!$B$314) -> 0 | O314: =SUMIFS(SMARTVIEW!R$5:R$1171,SMARTVIEW!$B$5:$B$1171,Layout!$B$308,SMARTVIEW!$C$5:$C$1171,Layout!$C$308,SMARTVIEW!$D$5:$D$1171,Layout!$C$314,SMARTVIEW!$F$5:$F$1171,Layout!$B$314) -> 0 | P314: =SUMIFS(SMARTVIEW!S$5:S$1171,SMARTVIEW!$B$5:$B$1171,Layout!$B$308,SMARTVIEW!$C$5:$C$1171,Layout!$C$308,SMARTVIEW!$D$5:$D$1171,Layout!$C$314,SMARTVIEW!$F$5:$F$1171,Layout!$B$314) -> 0 | Q314: =SUM(E314:P314) -> 0
S317: Enter Notes Below
D318: FUTURE BUDGET | E318: 0 | F318: 0 | G318: 0 | H318: 0 | I318: 0 | J318: 0 | K318: 0 | L318: 0 | M318: 0 | N318: 0 | O318: 0 | P318: 0 | Q318: =SUM(E318:P318) -> 0
B322: D19800 | C322: 438305 | D322: OTHER REVENUE NON-TAX
A324: %,R,FDEPTID,V19800,FACCOUNT,V438305,LBUD_USD | B324: FY18 | C324: PLANNING | D324: CURRENT BUDGET | E324: =SUMIFS(SMARTVIEW!H$5:H$1171,SMARTVIEW!$B$5:$B$1171,Layout!$B$322,SMARTVIEW!$C$5:$C$1171,Layout!$C$322,SMARTVIEW!$D$5:$D$1171,Layout!$C$324,SMARTVIEW!$F$5:$F$1171,Layout!$B$324) -> 0 | F324: =SUMIFS(SMARTVIEW!I$5:I$1171,SMARTVIEW!$B$5:$B$1171,Layout!$B$322,SMARTVIEW!$C$5:$C$1171,Layout!$C$322,SMARTVIEW!$D$5:$D$1171,Layout!$C$324,SMARTVIEW!$F$5:$F$1171,Layout!$B$324) -> 0 | G324: =SUMIFS(SMARTVIEW!J$5:J$1171,SMARTVIEW!$B$5:$B$1171,Layout!$B$322,SMARTVIEW!$C$5:$C$1171,Layout!$C$322,SMARTVIEW!$D$5:$D$1171,Layout!$C$324,SMARTVIEW!$F$5:$F$1171,Layout!$B$324) -> 0 | H324: =SUMIFS(SMARTVIEW!K$5:K$1171,SMARTVIEW!$B$5:$B$1171,Layout!$B$322,SMARTVIEW!$C$5:$C$1171,Layout!$C$322,SMARTVIEW!$D$5:$D$1171,Layout!$C$324,SMARTVIEW!$F$5:$F$1171,Layout!$B$324) -> 0 | I324: =SUMIFS(SMARTVIEW!L$5:L$1171,SMARTVIEW!$B$5:$B$1171,Layout!$B$322,SMARTVIEW!$C$5:$C$1171,Layout!$C$322,SMARTVIEW!$D$5:$D$1171,Layout!$C$324,SMARTVIEW!$F$5:$F$1171,Layout!$B$324) -> 0 | J324: =SUMIFS(SMARTVIEW!M$5:M$1171,SMARTVIEW!$B$5:$B$1171,Layout!$B$322,SMARTVIEW!$C$5:$C$1171,Layout!$C$322,SMARTVIEW!$D$5:$D$1171,Layout!$C$324,SMARTVIEW!$F$5:$F$1171,Layout!$B$324) -> 0 | K324: =SUMIFS(SMARTVIEW!N$5:N$1171,SMARTVIEW!$B$5:$B$1171,Layout!$B$322,SMARTVIEW!$C$5:$C$1171,Layout!$C$322,SMARTVIEW!$D$5:$D$1171,Layout!$C$324,SMARTVIEW!$F$5:$F$1171,Layout!$B$324) -> 0 | L324: =SUMIFS(SMARTVIEW!O$5:O$1171,SMARTVIEW!$B$5:$B$1171,Layout!$B$322,SMARTVIEW!$C$5:$C$1171,Layout!$C$322,SMARTVIEW!$D$5:$D$1171,Layout!$C$324,SMARTVIEW!$F$5:$F$1171,Layout!$B$324) -> 0 | M324: =SUMIFS(SMARTVIEW!P$5:P$1171,SMARTVIEW!$B$5:$B$1171,Layout!$B$322,SMARTVIEW!$C$5:$C$1171,Layout!$C$322,SMARTVIEW!$D$5:$D$1171,Layout!$C$324,SMARTVIEW!$F$5:$F$1171,Layout!$B$324) -> 0 | N324: =SUMIFS(SMARTVIEW!Q$5:Q$1171,SMARTVIEW!$B$5:$B$1171,Layout!$B$322,SMARTVIEW!$C$5:$C$1171,Layout!$C$322,SMARTVIEW!$D$5:$D$1171,Layout!$C$324,SMARTVIEW!$F$5:$F$1171,Layout!$B$324) -> 0 | O324: =SUMIFS(SMARTVIEW!R$5:R$1171,SMARTVIEW!$B$5:$B$1171,Layout!$B$322,SMARTVIEW!$C$5:$C$1171,Layout!$C$322,SMARTVIEW!$D$5:$D$1171,Layout!$C$324,SMARTVIEW!$F$5:$F$1171,Layout!$B$324) -> 0 | P324: =SUMIFS(SMARTVIEW!S$5:S$1171,SMARTVIEW!$B$5:$B$1171,Layout!$B$322,SMARTVIEW!$C$5:$C$1171,Layout!$C$322,SMARTVIEW!$D$5:$D$1171,Layout!$C$324,SMARTVIEW!$F$5:$F$1171,Layout!$B$324) -> 0 | Q324: =SUM(E324:P324) -> 0
A326: %,R,FDEPTID,V19800,FACCOUNT,V438305,LACT_USD | B326: FY18 | C326: Actual | D326: CURRENT ACTUAL | E326: =SUMIFS(SMARTVIEW!H$5:H$1171,SMARTVIEW!$B$5:$B$1171,Layout!$B$322,SMARTVIEW!$C$5:$C$1171,Layout!$C$322,SMARTVIEW!$D$5:$D$1171,Layout!$C$326,SMARTVIEW!$F$5:$F$1171,Layout!$B$326) -> 1.74 | F326: =SUMIFS(SMARTVIEW!I$5:I$1171,SMARTVIEW!$B$5:$B$1171,Layout!$B$322,SMARTVIEW!$C$5:$C$1171,Layout!$C$322,SMARTVIEW!$D$5:$D$1171,Layout!$C$326,SMARTVIEW!$F$5:$F$1171,Layout!$B$326) -> 651.59 | G326: =SUMIFS(SMARTVIEW!J$5:J$1171,SMARTVIEW!$B$5:$B$1171,Layout!$B$322,SMARTVIEW!$C$5:$C$1171,Layout!$C$322,SMARTVIEW!$D$5:$D$1171,Layout!$C$326,SMARTVIEW!$F$5:$F$1171,Layout!$B$326) -> 1.52 | H326: =SUMIFS(SMARTVIEW!K$5:K$1171,SMARTVIEW!$B$5:$B$1171,Layout!$B$322,SMARTVIEW!$C$5:$C$1171,Layout!$C$322,SMARTVIEW!$D$5:$D$1171,Layout!$C$326,SMARTVIEW!$F$5:$F$1171,Layout!$B$326) -> 1.4 | I326: =SUMIFS(SMARTVIEW!L$5:L$1171,SMARTVIEW!$B$5:$B$1171,Layout!$B$322,SMARTVIEW!$C$5:$C$1171,Layout!$C$322,SMARTVIEW!$D$5:$D$1171,Layout!$C$326,SMARTVIEW!$F$5:$F$1171,Layout!$B$326) -> 1.69 | J326: =SUMIFS(SMARTVIEW!M$5:M$1171,SMARTVIEW!$B$5:$B$1171,Layout!$B$322,SMARTVIEW!$C$5:$C$1171,Layout!$C$322,SMARTVIEW!$D$5:$D$1171,Layout!$C$326,SMARTVIEW!$F$5:$F$1171,Layout!$B$326) -> 1.57 | K326: =SUMIFS(SMARTVIEW!N$5:N$1171,SMARTVIEW!$B$5:$B$1171,Layout!$B$322,SMARTVIEW!$C$5:$C$1171,Layout!$C$322,SMARTVIEW!$D$5:$D$1171,Layout!$C$326,SMARTVIEW!$F$5:$F$1171,Layout!$B$326) -> 0 | L326: 520 | M326: =SUMIFS(SMARTVIEW!P$5:P$1171,SMARTVIEW!$B$5:$B$1171,Layout!$B$322,SMARTVIEW!$C$5:$C$1171,Layout!$C$322,SMARTVIEW!$D$5:$D$1171,Layout!$C$326,SMARTVIEW!$F$5:$F$1171,Layout!$B$326) -> 0 | N326: =SUMIFS(SMARTVIEW!Q$5:Q$1171,SMARTVIEW!$B$5:$B$1171,Layout!$B$322,SMARTVIEW!$C$5:$C$1171,Layout!$C$322,SMARTVIEW!$D$5:$D$1171,Layout!$C$326,SMARTVIEW!$F$5:$F$1171,Layout!$B$326) -> 0 | O326: =SUMIFS(SMARTVIEW!R$5:R$1171,SMARTVIEW!$B$5:$B$1171,Layout!$B$322,SMARTVIEW!$C$5:$C$1171,Layout!$C$322,SMARTVIEW!$D$5:$D$1171,Layout!$C$326,SMARTVIEW!$F$5:$F$1171,Layout!$B$326) -> 0 | P326: =SUMIFS(SMARTVIEW!S$5:S$1171,SMARTVIEW!$B$5:$B$1171,Layout!$B$322,SMARTVIEW!$C$5:$C$1171,Layout!$C$322,SMARTVIEW!$D$5:$D$1171,Layout!$C$326,SMARTVIEW!$F$5:$F$1171,Layout!$B$326) -> 0 | Q326: =SUM(E326:P326) -> 1179.51 | R326: =Q326 -> 1179.51
B328: FY17 | C328: Actual | D328: PRIOR YEAR ACTUALS | E328: =SUMIFS(SMARTVIEW!H$5:H$1171,SMARTVIEW!$B$5:$B$1171,Layout!$B$322,SMARTVIEW!$C$5:$C$1171,Layout!$C$322,SMARTVIEW!$D$5:$D$1171,Layout!$C$328,SMARTVIEW!$F$5:$F$1171,Layout!$B$328) -> 1.83 | F328: =SUMIFS(SMARTVIEW!I$5:I$1171,SMARTVIEW!$B$5:$B$1171,Layout!$B$322,SMARTVIEW!$C$5:$C$1171,Layout!$C$322,SMARTVIEW!$D$5:$D$1171,Layout!$C$328,SMARTVIEW!$F$5:$F$1171,Layout!$B$328) -> 1.45 | G328: =SUMIFS(SMARTVIEW!J$5:J$1171,SMARTVIEW!$B$5:$B$1171,Layout!$B$322,SMARTVIEW!$C$5:$C$1171,Layout!$C$322,SMARTVIEW!$D$5:$D$1171,Layout!$C$328,SMARTVIEW!$F$5:$F$1171,Layout!$B$328) -> 1.17 | H328: =SUMIFS(SMARTVIEW!K$5:K$1171,SMARTVIEW!$B$5:$B$1171,Layout!$B$322,SMARTVIEW!$C$5:$C$1171,Layout!$C$322,SMARTVIEW!$D$5:$D$1171,Layout!$C$328,SMARTVIEW!$F$5:$F$1171,Layout!$B$328) -> 0 | I328: =SUMIFS(SMARTVIEW!L$5:L$1171,SMARTVIEW!$B$5:$B$1171,Layout!$B$322,SMARTVIEW!$C$5:$C$1171,Layout!$C$322,SMARTVIEW!$D$5:$D$1171,Layout!$C$328,SMARTVIEW!$F$5:$F$1171,Layout!$B$328) -> 0 | J328: =SUMIFS(SMARTVIEW!M$5:M$1171,SMARTVIEW!$B$5:$B$1171,Layout!$B$322,SMARTVIEW!$C$5:$C$1171,Layout!$C$322,SMARTVIEW!$D$5:$D$1171,Layout!$C$328,SMARTVIEW!$F$5:$F$1171,Layout!$B$328) -> 3.7 | K328: =SUMIFS(SMARTVIEW!N$5:N$1171,SMARTVIEW!$B$5:$B$1171,Layout!$B$322,SMARTVIEW!$C$5:$C$1171,Layout!$C$322,SMARTVIEW!$D$5:$D$1171,Layout!$C$328,SMARTVIEW!$F$5:$F$1171,Layout!$B$328) -> 1.91 | L328: =SUMIFS(SMARTVIEW!O$5:O$1171,SMARTVIEW!$B$5:$B$1171,Layout!$B$322,SMARTVIEW!$C$5:$C$1171,Layout!$C$322,SMARTVIEW!$D$5:$D$1171,Layout!$C$328,SMARTVIEW!$F$5:$F$1171,Layout!$B$328) -> 1.68 | M328: =SUMIFS(SMARTVIEW!P$5:P$1171,SMARTVIEW!$B$5:$B$1171,Layout!$B$322,SMARTVIEW!$C$5:$C$1171,Layout!$C$322,SMARTVIEW!$D$5:$D$1171,Layout!$C$328,SMARTVIEW!$F$5:$F$1171,Layout!$B$328) -> 1.85 | N328: =SUMIFS(SMARTVIEW!Q$5:Q$1171,SMARTVIEW!$B$5:$B$1171,Layout!$B$322,SMARTVIEW!$C$5:$C$1171,Layout!$C$322,SMARTVIEW!$D$5:$D$1171,Layout!$C$328,SMARTVIEW!$F$5:$F$1171,Layout!$B$328) -> 1.29 | O328: =SUMIFS(SMARTVIEW!R$5:R$1171,SMARTVIEW!$B$5:$B$1171,Layout!$B$322,SMARTVIEW!$C$5:$C$1171,Layout!$C$322,SMARTVIEW!$D$5:$D$1171,Layout!$C$328,SMARTVIEW!$F$5:$F$1171,Layout!$B$328) -> 1.36 | P328: =SUMIFS(SMARTVIEW!S$5:S$1171,SMARTVIEW!$B$5:$B$1171,Layout!$B$322,SMARTVIEW!$C$5:$C$1171,Layout!$C$322,SMARTVIEW!$D$5:$D$1171,Layout!$C$328,SMARTVIEW!$F$5:$F$1171,Layout!$B$328) -> 1.22 | Q328: =SUM(E328:P328) -> 17.46
S331: Enter Notes Below
D332: FUTURE BUDGET | E332: -7000 | F332: 0 | G332: 0 | H332: 0 | I332: 0 | J332: 0 | K332: 0 | L332: 0 | M332: 0 | N332: 0 | O332: 0 | P332: 0 | Q332: =SUM(E332:P332) -> -7000
B336: D19800 | C336: 452060 | D336: OTHER REVENUE - REAL ESTATE
A338: %,R,FDEPTID,V19800,FACCOUNT,V452060,LBUD_USD | B338: FY18 | C338: PLANNING | D338: CURRENT BUDGET | E338: =SUMIFS(SMARTVIEW!H$5:H$1171,SMARTVIEW!$B$5:$B$1171,Layout!$B$336,SMARTVIEW!$C$5:$C$1171,Layout!$C$336,SMARTVIEW!$D$5:$D$1171,Layout!$C$338,SMARTVIEW!$F$5:$F$1171,Layout!$B$338) -> 0 | F338: =SUMIFS(SMARTVIEW!I$5:I$1171,SMARTVIEW!$B$5:$B$1171,Layout!$B$336,SMARTVIEW!$C$5:$C$1171,Layout!$C$336,SMARTVIEW!$D$5:$D$1171,Layout!$C$338,SMARTVIEW!$F$5:$F$1171,Layout!$B$338) -> 0 | G338: =SUMIFS(SMARTVIEW!J$5:J$1171,SMARTVIEW!$B$5:$B$1171,Layout!$B$336,SMARTVIEW!$C$5:$C$1171,Layout!$C$336,SMARTVIEW!$D$5:$D$1171,Layout!$C$338,SMARTVIEW!$F$5:$F$1171,Layout!$B$338) -> 0 | H338: =SUMIFS(SMARTVIEW!K$5:K$1171,SMARTVIEW!$B$5:$B$1171,Layout!$B$336,SMARTVIEW!$C$5:$C$1171,Layout!$C$336,SMARTVIEW!$D$5:$D$1171,Layout!$C$338,SMARTVIEW!$F$5:$F$1171,Layout!$B$338) -> 0 | I338: =SUMIFS(SMARTVIEW!L$5:L$1171,SMARTVIEW!$B$5:$B$1171,Layout!$B$336,SMARTVIEW!$C$5:$C$1171,Layout!$C$336,SMARTVIEW!$D$5:$D$1171,Layout!$C$338,SMARTVIEW!$F$5:$F$1171,Layout!$B$338) -> 0 | J338: =SUMIFS(SMARTVIEW!M$5:M$1171,SMARTVIEW!$B$5:$B$1171,Layout!$B$336,SMARTVIEW!$C$5:$C$1171,Layout!$C$336,SMARTVIEW!$D$5:$D$1171,Layout!$C$338,SMARTVIEW!$F$5:$F$1171,Layout!$B$338) -> 0 | K338: =SUMIFS(SMARTVIEW!N$5:N$1171,SMARTVIEW!$B$5:$B$1171,Layout!$B$336,SMARTVIEW!$C$5:$C$1171,Layout!$C$336,SMARTVIEW!$D$5:$D$1171,Layout!$C$338,SMARTVIEW!$F$5:$F$1171,Layout!$B$338) -> 0 | L338: =SUMIFS(SMARTVIEW!O$5:O$1171,SMARTVIEW!$B$5:$B$1171,Layout!$B$336,SMARTVIEW!$C$5:$C$1171,Layout!$C$336,SMARTVIEW!$D$5:$D$1171,Layout!$C$338,SMARTVIEW!$F$5:$F$1171,Layout!$B$338) -> 0 | M338: =SUMIFS(SMARTVIEW!P$5:P$1171,SMARTVIEW!$B$5:$B$1171,Layout!$B$336,SMARTVIEW!$C$5:$C$1171,Layout!$C$336,SMARTVIEW!$D$5:$D$1171,Layout!$C$338,SMARTVIEW!$F$5:$F$1171,Layout!$B$338) -> 0 | N338: =SUMIFS(SMARTVIEW!Q$5:Q$1171,SMARTVIEW!$B$5:$B$1171,Layout!$B$336,SMARTVIEW!$C$5:$C$1171,Layout!$C$336,SMARTVIEW!$D$5:$D$1171,Layout!$C$338,SMARTVIEW!$F$5:$F$1171,Layout!$B$338) -> 0 | O338: =SUMIFS(SMARTVIEW!R$5:R$1171,SMARTVIEW!$B$5:$B$1171,Layout!$B$336,SMARTVIEW!$C$5:$C$1171,Layout!$C$336,SMARTVIEW!$D$5:$D$1171,Layout!$C$338,SMARTVIEW!$F$5:$F$1171,Layout!$B$338) -> 0 | P338: =SUMIFS(SMARTVIEW!S$5:S$1171,SMARTVIEW!$B$5:$B$1171,Layout!$B$336,SMARTVIEW!$C$5:$C$1171,Layout!$C$336,SMARTVIEW!$D$5:$D$1171,Layout!$C$338,SMARTVIEW!$F$5:$F$1171,Layout!$B$338) -> 0 | Q338: =SUM(E338:P338) -> 0
A340: %,R,FDEPTID,V19800,FACCOUNT,V452060,LACT_USD | B340: FY18 | C340: Actual | D340: CURRENT ACTUAL | E340: =SUMIFS(SMARTVIEW!H$5:H$1171,SMARTVIEW!$B$5:$B$1171,Layout!$B$336,SMARTVIEW!$C$5:$C$1171,Layout!$C$336,SMARTVIEW!$D$5:$D$1171,Layout!$C$340,SMARTVIEW!$F$5:$F$1171,Layout!$B$340) -> 0 | F340: =SUMIFS(SMARTVIEW!I$5:I$1171,SMARTVIEW!$B$5:$B$1171,Layout!$B$336,SMARTVIEW!$C$5:$C$1171,Layout!$C$336,SMARTVIEW!$D$5:$D$1171,Layout!$C$340,SMARTVIEW!$F$5:$F$1171,Layout!$B$340) -> 0 | G340: =SUMIFS(SMARTVIEW!J$5:J$1171,SMARTVIEW!$B$5:$B$1171,Layout!$B$336,SMARTVIEW!$C$5:$C$1171,Layout!$C$336,SMARTVIEW!$D$5:$D$1171,Layout!$C$340,SMARTVIEW!$F$5:$F$1171,Layout!$B$340) -> 0 | H340: =SUMIFS(SMARTVIEW!K$5:K$1171,SMARTVIEW!$B$5:$B$1171,Layout!$B$336,SMARTVIEW!$C$5:$C$1171,Layout!$C$336,SMARTVIEW!$D$5:$D$1171,Layout!$C$340,SMARTVIEW!$F$5:$F$1171,Layout!$B$340) -> 0 | I340: =SUMIFS(SMARTVIEW!L$5:L$1171,SMARTVIEW!$B$5:$B$1171,Layout!$B$336,SMARTVIEW!$C$5:$C$1171,Layout!$C$336,SMARTVIEW!$D$5:$D$1171,Layout!$C$340,SMARTVIEW!$F$5:$F$1171,Layout!$B$340) -> 0 | J340: =SUMIFS(SMARTVIEW!M$5:M$1171,SMARTVIEW!$B$5:$B$1171,Layout!$B$336,SMARTVIEW!$C$5:$C$1171,Layout!$C$336,SMARTVIEW!$D$5:$D$1171,Layout!$C$340,SMARTVIEW!$F$5:$F$1171,Layout!$B$340) -> 0 | K340: =SUMIFS(SMARTVIEW!N$5:N$1171,SMARTVIEW!$B$5:$B$1171,Layout!$B$336,SMARTVIEW!$C$5:$C$1171,Layout!$C$336,SMARTVIEW!$D$5:$D$1171,Layout!$C$340,SMARTVIEW!$F$5:$F$1171,Layout!$B$340) -> 0 | L340: =SUMIFS(SMARTVIEW!O$5:O$1171,SMARTVIEW!$B$5:$B$1171,Layout!$B$336,SMARTVIEW!$C$5:$C$1171,Layout!$C$336,SMARTVIEW!$D$5:$D$1171,Layout!$C$340,SMARTVIEW!$F$5:$F$1171,Layout!$B$340) -> 0 | M340: =SUMIFS(SMARTVIEW!P$5:P$1171,SMARTVIEW!$B$5:$B$1171,Layout!$B$336,SMARTVIEW!$C$5:$C$1171,Layout!$C$336,SMARTVIEW!$D$5:$D$1171,Layout!$C$340,SMARTVIEW!$F$5:$F$1171,Layout!$B$340) -> 0 | N340: =SUMIFS(SMARTVIEW!Q$5:Q$1171,SMARTVIEW!$B$5:$B$1171,Layout!$B$336,SMARTVIEW!$C$5:$C$1171,Layout!$C$336,SMARTVIEW!$D$5:$D$1171,Layout!$C$340,SMARTVIEW!$F$5:$F$1171,Layout!$B$340) -> 0 | O340: =SUMIFS(SMARTVIEW!R$5:R$1171,SMARTVIEW!$B$5:$B$1171,Layout!$B$336,SMARTVIEW!$C$5:$C$1171,Layout!$C$336,SMARTVIEW!$D$5:$D$1171,Layout!$C$340,SMARTVIEW!$F$5:$F$1171,Layout!$B$340) -> 0 | P340: =SUMIFS(SMARTVIEW!S$5:S$1171,SMARTVIEW!$B$5:$B$1171,Layout!$B$336,SMARTVIEW!$C$5:$C$1171,Layout!$C$336,SMARTVIEW!$D$5:$D$1171,Layout!$C$340,SMARTVIEW!$F$5:$F$1171,Layout!$B$340) -> 0 | Q340: =SUM(E340:P340) -> 0 | R340: =Q340 -> 0
B342: FY17 | C342: Actual | D342: PRIOR YEAR ACTUALS | E342: =SUMIFS(SMARTVIEW!H$5:H$1171,SMARTVIEW!$B$5:$B$1171,Layout!$B$336,SMARTVIEW!$C$5:$C$1171,Layout!$C$336,SMARTVIEW!$D$5:$D$1171,Layout!$C$342,SMARTVIEW!$F$5:$F$1171,Layout!$B$342) -> 0 | F342: =SUMIFS(SMARTVIEW!I$5:I$1171,SMARTVIEW!$B$5:$B$1171,Layout!$B$336,SMARTVIEW!$C$5:$C$1171,Layout!$C$336,SMARTVIEW!$D$5:$D$1171,Layout!$C$342,SMARTVIEW!$F$5:$F$1171,Layout!$B$342) -> 0 | G342: =SUMIFS(SMARTVIEW!J$5:J$1171,SMARTVIEW!$B$5:$B$1171,Layout!$B$336,SMARTVIEW!$C$5:$C$1171,Layout!$C$336,SMARTVIEW!$D$5:$D$1171,Layout!$C$342,SMARTVIEW!$F$5:$F$1171,Layout!$B$342) -> 0 | H342: =SUMIFS(SMARTVIEW!K$5:K$1171,SMARTVIEW!$B$5:$B$1171,Layout!$B$336,SMARTVIEW!$C$5:$C$1171,Layout!$C$336,SMARTVIEW!$D$5:$D$1171,Layout!$C$342,SMARTVIEW!$F$5:$F$1171,Layout!$B$342) -> 0 | I342: =SUMIFS(SMARTVIEW!L$5:L$1171,SMARTVIEW!$B$5:$B$1171,Layout!$B$336,SMARTVIEW!$C$5:$C$1171,Layout!$C$336,SMARTVIEW!$D$5:$D$1171,Layout!$C$342,SMARTVIEW!$F$5:$F$1171,Layout!$B$342) -> 0 | J342: =SUMIFS(SMARTVIEW!M$5:M$1171,SMARTVIEW!$B$5:$B$1171,Layout!$B$336,SMARTVIEW!$C$5:$C$1171,Layout!$C$336,SMARTVIEW!$D$5:$D$1171,Layout!$C$342,SMARTVIEW!$F$5:$F$1171,Layout!$B$342) -> 0 | K342: =SUMIFS(SMARTVIEW!N$5:N$1171,SMARTVIEW!$B$5:$B$1171,Layout!$B$336,SMARTVIEW!$C$5:$C$1171,Layout!$C$336,SMARTVIEW!$D$5:$D$1171,Layout!$C$342,SMARTVIEW!$F$5:$F$1171,Layout!$B$342) -> 0 | L342: =SUMIFS(SMARTVIEW!O$5:O$1171,SMARTVIEW!$B$5:$B$1171,Layout!$B$336,SMARTVIEW!$C$5:$C$1171,Layout!$C$336,SMARTVIEW!$D$5:$D$1171,Layout!$C$342,SMARTVIEW!$F$5:$F$1171,Layout!$B$342) -> 0 | M342: =SUMIFS(SMARTVIEW!P$5:P$1171,SMARTVIEW!$B$5:$B$1171,Layout!$B$336,SMARTVIEW!$C$5:$C$1171,Layout!$C$336,SMARTVIEW!$D$5:$D$1171,Layout!$C$342,SMARTVIEW!$F$5:$F$1171,Layout!$B$342) -> 0 | N342: =SUMIFS(SMARTVIEW!Q$5:Q$1171,SMARTVIEW!$B$5:$B$1171,Layout!$B$336,SMARTVIEW!$C$5:$C$1171,Layout!$C$336,SMARTVIEW!$D$5:$D$1171,Layout!$C$342,SMARTVIEW!$F$5:$F$1171,Layout!$B$342) -> 0 | O342: =SUMIFS(SMARTVIEW!R$5:R$1171,SMARTVIEW!$B$5:$B$1171,Layout!$B$336,SMARTVIEW!$C$5:$C$1171,Layout!$C$336,SMARTVIEW!$D$5:$D$1171,Layout!$C$342,SMARTVIEW!$F$5:$F$1171,Layout!$B$342) -> 0 | P342: =SUMIFS(SMARTVIEW!S$5:S$1171,SMARTVIEW!$B$5:$B$1171,Layout!$B$336,SMARTVIEW!$C$5:$C$1171,Layout!$C$336,SMARTVIEW!$D$5:$D$1171,Layout!$C$342,SMARTVIEW!$F$5:$F$1171,Layout!$B$342) -> 0 | Q342: =SUM(E342:P342) -> 0
S345: Enter Notes Below
D346: FUTURE BUDGET | E346: 0 | F346: 0 | G346: 0 | H346: 0 | I346: 0 | J346: 0 | K346: 0 | L346: 0 | M346: 0 | N346: 0 | O346: 0 | P346: 0 | Q346: =SUM(E346:P346) -> 0
C348: SALE OF ASSOCIATION WEEKS
B350: D19800 | C350: 458360 | D350: SALE OF ASSOCIATION WEEK
A352: %,R,FDEPTID,V19800,FACCOUNT,V458360,LBUD_USD | B352: FY18 | C352: PLANNING | D352: CURRENT BUDGET | E352: =SUMIFS(SMARTVIEW!H$5:H$1171,SMARTVIEW!$B$5:$B$1171,Layout!$B$350,SMARTVIEW!$C$5:$C$1171,Layout!$C$350,SMARTVIEW!$D$5:$D$1171,Layout!$C$352,SMARTVIEW!$F$5:$F$1171,Layout!$B$352) -> 0 | F352: =SUMIFS(SMARTVIEW!I$5:I$1171,SMARTVIEW!$B$5:$B$1171,Layout!$B$350,SMARTVIEW!$C$5:$C$1171,Layout!$C$350,SMARTVIEW!$D$5:$D$1171,Layout!$C$352,SMARTVIEW!$F$5:$F$1171,Layout!$B$352) -> 5500 | G352: =SUMIFS(SMARTVIEW!J$5:J$1171,SMARTVIEW!$B$5:$B$1171,Layout!$B$350,SMARTVIEW!$C$5:$C$1171,Layout!$C$350,SMARTVIEW!$D$5:$D$1171,Layout!$C$352,SMARTVIEW!$F$5:$F$1171,Layout!$B$352) -> 0 | H352: =SUMIFS(SMARTVIEW!K$5:K$1171,SMARTVIEW!$B$5:$B$1171,Layout!$B$350,SMARTVIEW!$C$5:$C$1171,Layout!$C$350,SMARTVIEW!$D$5:$D$1171,Layout!$C$352,SMARTVIEW!$F$5:$F$1171,Layout!$B$352) -> 2500 | I352: =SUMIFS(SMARTVIEW!L$5:L$1171,SMARTVIEW!$B$5:$B$1171,Layout!$B$350,SMARTVIEW!$C$5:$C$1171,Layout!$C$350,SMARTVIEW!$D$5:$D$1171,Layout!$C$352,SMARTVIEW!$F$5:$F$1171,Layout!$B$352) -> 5500 | J352: =SUMIFS(SMARTVIEW!M$5:M$1171,SMARTVIEW!$B$5:$B$1171,Layout!$B$350,SMARTVIEW!$C$5:$C$1171,Layout!$C$350,SMARTVIEW!$D$5:$D$1171,Layout!$C$352,SMARTVIEW!$F$5:$F$1171,Layout!$B$352) -> 0 | K352: =SUMIFS(SMARTVIEW!N$5:N$1171,SMARTVIEW!$B$5:$B$1171,Layout!$B$350,SMARTVIEW!$C$5:$C$1171,Layout!$C$350,SMARTVIEW!$D$5:$D$1171,Layout!$C$352,SMARTVIEW!$F$5:$F$1171,Layout!$B$352) -> 5500 | L352: =SUMIFS(SMARTVIEW!O$5:O$1171,SMARTVIEW!$B$5:$B$1171,Layout!$B$350,SMARTVIEW!$C$5:$C$1171,Layout!$C$350,SMARTVIEW!$D$5:$D$1171,Layout!$C$352,SMARTVIEW!$F$5:$F$1171,Layout!$B$352) -> 2500 | M352: =SUMIFS(SMARTVIEW!P$5:P$1171,SMARTVIEW!$B$5:$B$1171,Layout!$B$350,SMARTVIEW!$C$5:$C$1171,Layout!$C$350,SMARTVIEW!$D$5:$D$1171,Layout!$C$352,SMARTVIEW!$F$5:$F$1171,Layout!$B$352) -> 0 | N352: =SUMIFS(SMARTVIEW!Q$5:Q$1171,SMARTVIEW!$B$5:$B$1171,Layout!$B$350,SMARTVIEW!$C$5:$C$1171,Layout!$C$350,SMARTVIEW!$D$5:$D$1171,Layout!$C$352,SMARTVIEW!$F$5:$F$1171,Layout!$B$352) -> 4500 | O352: =SUMIFS(SMARTVIEW!R$5:R$1171,SMARTVIEW!$B$5:$B$1171,Layout!$B$350,SMARTVIEW!$C$5:$C$1171,Layout!$C$350,SMARTVIEW!$D$5:$D$1171,Layout!$C$352,SMARTVIEW!$F$5:$F$1171,Layout!$B$352) -> 2500 | P352: =SUMIFS(SMARTVIEW!S$5:S$1171,SMARTVIEW!$B$5:$B$1171,Layout!$B$350,SMARTVIEW!$C$5:$C$1171,Layout!$C$350,SMARTVIEW!$D$5:$D$1171,Layout!$C$352,SMARTVIEW!$F$5:$F$1171,Layout!$B$352) -> 0 | Q352: =SUM(E352:P352) -> 28500
A354: %,R,FDEPTID,V19800,FACCOUNT,V458360,LACT_USD | B354: FY18 | C354: Actual | D354: CURRENT ACTUAL | E354: =SUMIFS(SMARTVIEW!H$5:H$1171,SMARTVIEW!$B$5:$B$1171,Layout!$B$350,SMARTVIEW!$C$5:$C$1171,Layout!$C$350,SMARTVIEW!$D$5:$D$1171,Layout!$C$354,SMARTVIEW!$F$5:$F$1171,Layout!$B$354) -> 12500 | F354: =SUMIFS(SMARTVIEW!I$5:I$1171,SMARTVIEW!$B$5:$B$1171,Layout!$B$350,SMARTVIEW!$C$5:$C$1171,Layout!$C$350,SMARTVIEW!$D$5:$D$1171,Layout!$C$354,SMARTVIEW!$F$5:$F$1171,Layout!$B$354) -> 5600 | G354: =SUMIFS(SMARTVIEW!J$5:J$1171,SMARTVIEW!$B$5:$B$1171,Layout!$B$350,SMARTVIEW!$C$5:$C$1171,Layout!$C$350,SMARTVIEW!$D$5:$D$1171,Layout!$C$354,SMARTVIEW!$F$5:$F$1171,Layout!$B$354) -> 0 | H354: =SUMIFS(SMARTVIEW!K$5:K$1171,SMARTVIEW!$B$5:$B$1171,Layout!$B$350,SMARTVIEW!$C$5:$C$1171,Layout!$C$350,SMARTVIEW!$D$5:$D$1171,Layout!$C$354,SMARTVIEW!$F$5:$F$1171,Layout!$B$354) -> 1000 | I354: =SUMIFS(SMARTVIEW!L$5:L$1171,SMARTVIEW!$B$5:$B$1171,Layout!$B$350,SMARTVIEW!$C$5:$C$1171,Layout!$C$350,SMARTVIEW!$D$5:$D$1171,Layout!$C$354,SMARTVIEW!$F$5:$F$1171,Layout!$B$354) -> 4100 | J354: =SUMIFS(SMARTVIEW!M$5:M$1171,SMARTVIEW!$B$5:$B$1171,Layout!$B$350,SMARTVIEW!$C$5:$C$1171,Layout!$C$350,SMARTVIEW!$D$5:$D$1171,Layout!$C$354,SMARTVIEW!$F$5:$F$1171,Layout!$B$354) -> 1500 | K354: 2000 | L354: 4000 | M354: =SUMIFS(SMARTVIEW!P$5:P$1171,SMARTVIEW!$B$5:$B$1171,Layout!$B$350,SMARTVIEW!$C$5:$C$1171,Layout!$C$350,SMARTVIEW!$D$5:$D$1171,Layout!$C$354,SMARTVIEW!$F$5:$F$1171,Layout!$B$354) -> 0 | N354: 0 | O354: 0 | P354: =SUMIFS(SMARTVIEW!S$5:S$1171,SMARTVIEW!$B$5:$B$1171,Layout!$B$350,SMARTVIEW!$C$5:$C$1171,Layout!$C$350,SMARTVIEW!$D$5:$D$1171,Layout!$C$354,SMARTVIEW!$F$5:$F$1171,Layout!$B$354) -> 0 | Q354: =SUM(E354:P354) -> 30700 | R354: =Q354 -> 30700
B356: FY17 | C356: Actual | D356: PRIOR YEAR ACTUALS | E356: =SUMIFS(SMARTVIEW!H$5:H$1171,SMARTVIEW!$B$5:$B$1171,Layout!$B$350,SMARTVIEW!$C$5:$C$1171,Layout!$C$350,SMARTVIEW!$D$5:$D$1171,Layout!$C$356,SMARTVIEW!$F$5:$F$1171,Layout!$B$356) -> 9500 | F356: =SUMIFS(SMARTVIEW!I$5:I$1171,SMARTVIEW!$B$5:$B$1171,Layout!$B$350,SMARTVIEW!$C$5:$C$1171,Layout!$C$350,SMARTVIEW!$D$5:$D$1171,Layout!$C$356,SMARTVIEW!$F$5:$F$1171,Layout!$B$356) -> 11500 | G356: =SUMIFS(SMARTVIEW!J$5:J$1171,SMARTVIEW!$B$5:$B$1171,Layout!$B$350,SMARTVIEW!$C$5:$C$1171,Layout!$C$350,SMARTVIEW!$D$5:$D$1171,Layout!$C$356,SMARTVIEW!$F$5:$F$1171,Layout!$B$356) -> 2800 | H356: =SUMIFS(SMARTVIEW!K$5:K$1171,SMARTVIEW!$B$5:$B$1171,Layout!$B$350,SMARTVIEW!$C$5:$C$1171,Layout!$C$350,SMARTVIEW!$D$5:$D$1171,Layout!$C$356,SMARTVIEW!$F$5:$F$1171,Layout!$B$356) -> 0 | I356: =SUMIFS(SMARTVIEW!L$5:L$1171,SMARTVIEW!$B$5:$B$1171,Layout!$B$350,SMARTVIEW!$C$5:$C$1171,Layout!$C$350,SMARTVIEW!$D$5:$D$1171,Layout!$C$356,SMARTVIEW!$F$5:$F$1171,Layout!$B$356) -> 0 | J356: =SUMIFS(SMARTVIEW!M$5:M$1171,SMARTVIEW!$B$5:$B$1171,Layout!$B$350,SMARTVIEW!$C$5:$C$1171,Layout!$C$350,SMARTVIEW!$D$5:$D$1171,Layout!$C$356,SMARTVIEW!$F$5:$F$1171,Layout!$B$356) -> 10000 | K356: =SUMIFS(SMARTVIEW!N$5:N$1171,SMARTVIEW!$B$5:$B$1171,Layout!$B$350,SMARTVIEW!$C$5:$C$1171,Layout!$C$350,SMARTVIEW!$D$5:$D$1171,Layout!$C$356,SMARTVIEW!$F$5:$F$1171,Layout!$B$356) -> 0 | L356: =SUMIFS(SMARTVIEW!O$5:O$1171,SMARTVIEW!$B$5:$B$1171,Layout!$B$350,SMARTVIEW!$C$5:$C$1171,Layout!$C$350,SMARTVIEW!$D$5:$D$1171,Layout!$C$356,SMARTVIEW!$F$5:$F$1171,Layout!$B$356) -> 3500 | M356: =SUMIFS(SMARTVIEW!P$5:P$1171,SMARTVIEW!$B$5:$B$1171,Layout!$B$350,SMARTVIEW!$C$5:$C$1171,Layout!$C$350,SMARTVIEW!$D$5:$D$1171,Layout!$C$356,SMARTVIEW!$F$5:$F$1171,Layout!$B$356) -> 6000 | N356: =SUMIFS(SMARTVIEW!Q$5:Q$1171,SMARTVIEW!$B$5:$B$1171,Layout!$B$350,SMARTVIEW!$C$5:$C$1171,Layout!$C$350,SMARTVIEW!$D$5:$D$1171,Layout!$C$356,SMARTVIEW!$F$5:$F$1171,Layout!$B$356) -> 0 | O356: =SUMIFS(SMARTVIEW!R$5:R$1171,SMARTVIEW!$B$5:$B$1171,Layout!$B$350,SMARTVIEW!$C$5:$C$1171,Layout!$C$350,SMARTVIEW!$D$5:$D$1171,Layout!$C$356,SMARTVIEW!$F$5:$F$1171,Layout!$B$356) -> 2500 | P356: =SUMIFS(SMARTVIEW!S$5:S$1171,SMARTVIEW!$B$5:$B$1171,Layout!$B$350,SMARTVIEW!$C$5:$C$1171,Layout!$C$350,SMARTVIEW!$D$5:$D$1171,Layout!$C$356,SMARTVIEW!$F$5:$F$1171,Layout!$B$356) -> 11500 | Q356: =SUM(E356:P356) -> 57300
S359: Enter Notes Below
D360: FUTURE BUDGET | E360: =SUMIFS(SMARTVIEW!H$5:H$1171,SMARTVIEW!$B$5:$B$1171,Layout!$B$350,SMARTVIEW!$C$5:$C$1171,Layout!$C$350,SMARTVIEW!$D$5:$D$1171,Layout!$C$352,SMARTVIEW!$F$5:$F$1171,Layout!$B$352) -> 0 | F360: =SUMIFS(SMARTVIEW!I$5:I$1171,SMARTVIEW!$B$5:$B$1171,Layout!$B$350,SMARTVIEW!$C$5:$C$1171,Layout!$C$350,SMARTVIEW!$D$5:$D$1171,Layout!$C$352,SMARTVIEW!$F$5:$F$1171,Layout!$B$352) -> 5500 | G360: =SUMIFS(SMARTVIEW!J$5:J$1171,SMARTVIEW!$B$5:$B$1171,Layout!$B$350,SMARTVIEW!$C$5:$C$1171,Layout!$C$350,SMARTVIEW!$D$5:$D$1171,Layout!$C$352,SMARTVIEW!$F$5:$F$1171,Layout!$B$352) -> 0 | H360: =SUMIFS(SMARTVIEW!K$5:K$1171,SMARTVIEW!$B$5:$B$1171,Layout!$B$350,SMARTVIEW!$C$5:$C$1171,Layout!$C$350,SMARTVIEW!$D$5:$D$1171,Layout!$C$352,SMARTVIEW!$F$5:$F$1171,Layout!$B$352) -> 2500 | I360: =SUMIFS(SMARTVIEW!L$5:L$1171,SMARTVIEW!$B$5:$B$1171,Layout!$B$350,SMARTVIEW!$C$5:$C$1171,Layout!$C$350,SMARTVIEW!$D$5:$D$1171,Layout!$C$352,SMARTVIEW!$F$5:$F$1171,Layout!$B$352) -> 5500 | J360: =SUMIFS(SMARTVIEW!M$5:M$1171,SMARTVIEW!$B$5:$B$1171,Layout!$B$350,SMARTVIEW!$C$5:$C$1171,Layout!$C$350,SMARTVIEW!$D$5:$D$1171,Layout!$C$352,SMARTVIEW!$F$5:$F$1171,Layout!$B$352) -> 0 | K360: =SUMIFS(SMARTVIEW!N$5:N$1171,SMARTVIEW!$B$5:$B$1171,Layout!$B$350,SMARTVIEW!$C$5:$C$1171,Layout!$C$350,SMARTVIEW!$D$5:$D$1171,Layout!$C$352,SMARTVIEW!$F$5:$F$1171,Layout!$B$352) -> 5500 | L360: =SUMIFS(SMARTVIEW!O$5:O$1171,SMARTVIEW!$B$5:$B$1171,Layout!$B$350,SMARTVIEW!$C$5:$C$1171,Layout!$C$350,SMARTVIEW!$D$5:$D$1171,Layout!$C$352,SMARTVIEW!$F$5:$F$1171,Layout!$B$352) -> 2500 | M360: =SUMIFS(SMARTVIEW!P$5:P$1171,SMARTVIEW!$B$5:$B$1171,Layout!$B$350,SMARTVIEW!$C$5:$C$1171,Layout!$C$350,SMARTVIEW!$D$5:$D$1171,Layout!$C$352,SMARTVIEW!$F$5:$F$1171,Layout!$B$352) -> 0 | N360: =SUMIFS(SMARTVIEW!Q$5:Q$1171,SMARTVIEW!$B$5:$B$1171,Layout!$B$350,SMARTVIEW!$C$5:$C$1171,Layout!$C$350,SMARTVIEW!$D$5:$D$1171,Layout!$C$352,SMARTVIEW!$F$5:$F$1171,Layout!$B$352) -> 4500 | O360: =SUMIFS(SMARTVIEW!R$5:R$1171,SMARTVIEW!$B$5:$B$1171,Layout!$B$350,SMARTVIEW!$C$5:$C$1171,Layout!$C$350,SMARTVIEW!$D$5:$D$1171,Layout!$C$352,SMARTVIEW!$F$5:$F$1171,Layout!$B$352) -> 2500 | P360: =SUMIFS(SMARTVIEW!S$5:S$1171,SMARTVIEW!$B$5:$B$1171,Layout!$B$350,SMARTVIEW!$C$5:$C$1171,Layout!$C$350,SMARTVIEW!$D$5:$D$1171,Layout!$C$352,SMARTVIEW!$F$5:$F$1171,Layout!$B$352) -> 0 | Q360: =SUM(E360:P360) -> 28500 | S360: Same as budgeted. (Overage due to incentive cost to ass'n)
B365: D19800 | C365: 516070 | D365: COS HOA OWNED WEEKS
A367: %,FDEPTID,V19800,FACCOUNT,V516070,LBUD_USD | B367: FY18 | C367: PLANNING | D367: CURRENT BUDGET | E367: =SUMIFS(SMARTVIEW!H$5:H$1171,SMARTVIEW!$B$5:$B$1171,Layout!$B$365,SMARTVIEW!$C$5:$C$1171,Layout!$C$365,SMARTVIEW!$D$5:$D$1171,Layout!$C$367,SMARTVIEW!$F$5:$F$1171,Layout!$B$367) -> 0 | F367: =SUMIFS(SMARTVIEW!I$5:I$1171,SMARTVIEW!$B$5:$B$1171,Layout!$B$365,SMARTVIEW!$C$5:$C$1171,Layout!$C$365,SMARTVIEW!$D$5:$D$1171,Layout!$C$367,SMARTVIEW!$F$5:$F$1171,Layout!$B$367) -> 7000 | G367: =SUMIFS(SMARTVIEW!J$5:J$1171,SMARTVIEW!$B$5:$B$1171,Layout!$B$365,SMARTVIEW!$C$5:$C$1171,Layout!$C$365,SMARTVIEW!$D$5:$D$1171,Layout!$C$367,SMARTVIEW!$F$5:$F$1171,Layout!$B$367) -> 0 | H367: =SUMIFS(SMARTVIEW!K$5:K$1171,SMARTVIEW!$B$5:$B$1171,Layout!$B$365,SMARTVIEW!$C$5:$C$1171,Layout!$C$365,SMARTVIEW!$D$5:$D$1171,Layout!$C$367,SMARTVIEW!$F$5:$F$1171,Layout!$B$367) -> 3500 | I367: =SUMIFS(SMARTVIEW!L$5:L$1171,SMARTVIEW!$B$5:$B$1171,Layout!$B$365,SMARTVIEW!$C$5:$C$1171,Layout!$C$365,SMARTVIEW!$D$5:$D$1171,Layout!$C$367,SMARTVIEW!$F$5:$F$1171,Layout!$B$367) -> 6500 | J367: =SUMIFS(SMARTVIEW!M$5:M$1171,SMARTVIEW!$B$5:$B$1171,Layout!$B$365,SMARTVIEW!$C$5:$C$1171,Layout!$C$365,SMARTVIEW!$D$5:$D$1171,Layout!$C$367,SMARTVIEW!$F$5:$F$1171,Layout!$B$367) -> 0 | K367: =SUMIFS(SMARTVIEW!N$5:N$1171,SMARTVIEW!$B$5:$B$1171,Layout!$B$365,SMARTVIEW!$C$5:$C$1171,Layout!$C$365,SMARTVIEW!$D$5:$D$1171,Layout!$C$367,SMARTVIEW!$F$5:$F$1171,Layout!$B$367) -> 6500 | L367: =SUMIFS(SMARTVIEW!O$5:O$1171,SMARTVIEW!$B$5:$B$1171,Layout!$B$365,SMARTVIEW!$C$5:$C$1171,Layout!$C$365,SMARTVIEW!$D$5:$D$1171,Layout!$C$367,SMARTVIEW!$F$5:$F$1171,Layout!$B$367) -> 3500 | M367: =SUMIFS(SMARTVIEW!P$5:P$1171,SMARTVIEW!$B$5:$B$1171,Layout!$B$365,SMARTVIEW!$C$5:$C$1171,Layout!$C$365,SMARTVIEW!$D$5:$D$1171,Layout!$C$367,SMARTVIEW!$F$5:$F$1171,Layout!$B$367) -> 0 | N367: =SUMIFS(SMARTVIEW!Q$5:Q$1171,SMARTVIEW!$B$5:$B$1171,Layout!$B$365,SMARTVIEW!$C$5:$C$1171,Layout!$C$365,SMARTVIEW!$D$5:$D$1171,Layout!$C$367,SMARTVIEW!$F$5:$F$1171,Layout!$B$367) -> 5500 | O367: =SUMIFS(SMARTVIEW!R$5:R$1171,SMARTVIEW!$B$5:$B$1171,Layout!$B$365,SMARTVIEW!$C$5:$C$1171,Layout!$C$365,SMARTVIEW!$D$5:$D$1171,Layout!$C$367,SMARTVIEW!$F$5:$F$1171,Layout!$B$367) -> 3500 | P367: =SUMIFS(SMARTVIEW!S$5:S$1171,SMARTVIEW!$B$5:$B$1171,Layout!$B$365,SMARTVIEW!$C$5:$C$1171,Layout!$C$365,SMARTVIEW!$D$5:$D$1171,Layout!$C$367,SMARTVIEW!$F$5:$F$1171,Layout!$B$367) -> 0 | Q367: =SUM(E367:P367) -> 36000
A369: %,FDEPTID,V19800,FACCOUNT,V516070,LACT_USD | B369: FY18 | C369: Actual | D369: CURRENT ACTUAL | E369: =SUMIFS(SMARTVIEW!H$5:H$1171,SMARTVIEW!$B$5:$B$1171,Layout!$B$365,SMARTVIEW!$C$5:$C$1171,Layout!$C$365,SMARTVIEW!$D$5:$D$1171,Layout!$C$369,SMARTVIEW!$F$5:$F$1171,Layout!$B$369) -> 33473.04 | F369: =SUMIFS(SMARTVIEW!I$5:I$1171,SMARTVIEW!$B$5:$B$1171,Layout!$B$365,SMARTVIEW!$C$5:$C$1171,Layout!$C$365,SMARTVIEW!$D$5:$D$1171,Layout!$C$369,SMARTVIEW!$F$5:$F$1171,Layout!$B$369) -> 11132.95 | G369: =SUMIFS(SMARTVIEW!J$5:J$1171,SMARTVIEW!$B$5:$B$1171,Layout!$B$365,SMARTVIEW!$C$5:$C$1171,Layout!$C$365,SMARTVIEW!$D$5:$D$1171,Layout!$C$369,SMARTVIEW!$F$5:$F$1171,Layout!$B$369) -> 0 | H369: =SUMIFS(SMARTVIEW!K$5:K$1171,SMARTVIEW!$B$5:$B$1171,Layout!$B$365,SMARTVIEW!$C$5:$C$1171,Layout!$C$365,SMARTVIEW!$D$5:$D$1171,Layout!$C$369,SMARTVIEW!$F$5:$F$1171,Layout!$B$369) -> 1000 | I369: =SUMIFS(SMARTVIEW!L$5:L$1171,SMARTVIEW!$B$5:$B$1171,Layout!$B$365,SMARTVIEW!$C$5:$C$1171,Layout!$C$365,SMARTVIEW!$D$5:$D$1171,Layout!$C$369,SMARTVIEW!$F$5:$F$1171,Layout!$B$369) -> 7631.01 | J369: =SUMIFS(SMARTVIEW!M$5:M$1171,SMARTVIEW!$B$5:$B$1171,Layout!$B$365,SMARTVIEW!$C$5:$C$1171,Layout!$C$365,SMARTVIEW!$D$5:$D$1171,Layout!$C$369,SMARTVIEW!$F$5:$F$1171,Layout!$B$369) -> 2390.66 | K369: 8815 | L369: 9165 | M369: =SUMIFS(SMARTVIEW!P$5:P$1171,SMARTVIEW!$B$5:$B$1171,Layout!$B$365,SMARTVIEW!$C$5:$C$1171,Layout!$C$365,SMARTVIEW!$D$5:$D$1171,Layout!$C$369,SMARTVIEW!$F$5:$F$1171,Layout!$B$369) -> 0 | N369: 0 | O369: 0 | P369: =SUMIFS(SMARTVIEW!S$5:S$1171,SMARTVIEW!$B$5:$B$1171,Layout!$B$365,SMARTVIEW!$C$5:$C$1171,Layout!$C$365,SMARTVIEW!$D$5:$D$1171,Layout!$C$369,SMARTVIEW!$F$5:$F$1171,Layout!$B$369) -> 0 | Q369: =SUM(E369:P369) -> 73607.66 | R369: =Q369 -> 73607.66
B371: FY17 | C371: Actual | D371: PRIOR YEAR ACTUALS | E371: =SUMIFS(SMARTVIEW!H$5:H$1171,SMARTVIEW!$B$5:$B$1171,Layout!$B$365,SMARTVIEW!$C$5:$C$1171,Layout!$C$365,SMARTVIEW!$D$5:$D$1171,Layout!$C$371,SMARTVIEW!$F$5:$F$1171,Layout!$B$371) -> 8260.7 | F371: =SUMIFS(SMARTVIEW!I$5:I$1171,SMARTVIEW!$B$5:$B$1171,Layout!$B$365,SMARTVIEW!$C$5:$C$1171,Layout!$C$365,SMARTVIEW!$D$5:$D$1171,Layout!$C$371,SMARTVIEW!$F$5:$F$1171,Layout!$B$371) -> 10694.18 | G371: =SUMIFS(SMARTVIEW!J$5:J$1171,SMARTVIEW!$B$5:$B$1171,Layout!$B$365,SMARTVIEW!$C$5:$C$1171,Layout!$C$365,SMARTVIEW!$D$5:$D$1171,Layout!$C$371,SMARTVIEW!$F$5:$F$1171,Layout!$B$371) -> 779.76 | H371: =SUMIFS(SMARTVIEW!K$5:K$1171,SMARTVIEW!$B$5:$B$1171,Layout!$B$365,SMARTVIEW!$C$5:$C$1171,Layout!$C$365,SMARTVIEW!$D$5:$D$1171,Layout!$C$371,SMARTVIEW!$F$5:$F$1171,Layout!$B$371) -> 0 | I371: =SUMIFS(SMARTVIEW!L$5:L$1171,SMARTVIEW!$B$5:$B$1171,Layout!$B$365,SMARTVIEW!$C$5:$C$1171,Layout!$C$365,SMARTVIEW!$D$5:$D$1171,Layout!$C$371,SMARTVIEW!$F$5:$F$1171,Layout!$B$371) -> 0 | J371: =SUMIFS(SMARTVIEW!M$5:M$1171,SMARTVIEW!$B$5:$B$1171,Layout!$B$365,SMARTVIEW!$C$5:$C$1171,Layout!$C$365,SMARTVIEW!$D$5:$D$1171,Layout!$C$371,SMARTVIEW!$F$5:$F$1171,Layout!$B$371) -> 20744.28 | K371: =SUMIFS(SMARTVIEW!N$5:N$1171,SMARTVIEW!$B$5:$B$1171,Layout!$B$365,SMARTVIEW!$C$5:$C$1171,Layout!$C$365,SMARTVIEW!$D$5:$D$1171,Layout!$C$371,SMARTVIEW!$F$5:$F$1171,Layout!$B$371) -> 0 | L371: =SUMIFS(SMARTVIEW!O$5:O$1171,SMARTVIEW!$B$5:$B$1171,Layout!$B$365,SMARTVIEW!$C$5:$C$1171,Layout!$C$365,SMARTVIEW!$D$5:$D$1171,Layout!$C$371,SMARTVIEW!$F$5:$F$1171,Layout!$B$371) -> 4738.25 | M371: =SUMIFS(SMARTVIEW!P$5:P$1171,SMARTVIEW!$B$5:$B$1171,Layout!$B$365,SMARTVIEW!$C$5:$C$1171,Layout!$C$365,SMARTVIEW!$D$5:$D$1171,Layout!$C$371,SMARTVIEW!$F$5:$F$1171,Layout!$B$371) -> 10771.56 | N371: =SUMIFS(SMARTVIEW!Q$5:Q$1171,SMARTVIEW!$B$5:$B$1171,Layout!$B$365,SMARTVIEW!$C$5:$C$1171,Layout!$C$365,SMARTVIEW!$D$5:$D$1171,Layout!$C$371,SMARTVIEW!$F$5:$F$1171,Layout!$B$371) -> 0 | O371: =SUMIFS(SMARTVIEW!R$5:R$1171,SMARTVIEW!$B$5:$B$1171,Layout!$B$365,SMARTVIEW!$C$5:$C$1171,Layout!$C$365,SMARTVIEW!$D$5:$D$1171,Layout!$C$371,SMARTVIEW!$F$5:$F$1171,Layout!$B$371) -> 4819.74 | P371: =SUMIFS(SMARTVIEW!S$5:S$1171,SMARTVIEW!$B$5:$B$1171,Layout!$B$365,SMARTVIEW!$C$5:$C$1171,Layout!$C$365,SMARTVIEW!$D$5:$D$1171,Layout!$C$371,SMARTVIEW!$F$5:$F$1171,Layout!$B$371) -> 32930.1 | Q371: =SUM(E371:P371) -> 93738.57
S374: Enter Notes Below
D375: FUTURE BUDGET | E375: =SUMIFS(SMARTVIEW!H$5:H$1171,SMARTVIEW!$B$5:$B$1171,Layout!$B$365,SMARTVIEW!$C$5:$C$1171,Layout!$C$365,SMARTVIEW!$D$5:$D$1171,Layout!$C$367,SMARTVIEW!$F$5:$F$1171,Layout!$B$367) -> 0 | F375: 6500 | G375: =SUMIFS(SMARTVIEW!J$5:J$1171,SMARTVIEW!$B$5:$B$1171,Layout!$B$365,SMARTVIEW!$C$5:$C$1171,Layout!$C$365,SMARTVIEW!$D$5:$D$1171,Layout!$C$367,SMARTVIEW!$F$5:$F$1171,Layout!$B$367) -> 0 | H375: =SUMIFS(SMARTVIEW!K$5:K$1171,SMARTVIEW!$B$5:$B$1171,Layout!$B$365,SMARTVIEW!$C$5:$C$1171,Layout!$C$365,SMARTVIEW!$D$5:$D$1171,Layout!$C$367,SMARTVIEW!$F$5:$F$1171,Layout!$B$367) -> 3500 | I375: =SUMIFS(SMARTVIEW!L$5:L$1171,SMARTVIEW!$B$5:$B$1171,Layout!$B$365,SMARTVIEW!$C$5:$C$1171,Layout!$C$365,SMARTVIEW!$D$5:$D$1171,Layout!$C$367,SMARTVIEW!$F$5:$F$1171,Layout!$B$367) -> 6500 | J375: =SUMIFS(SMARTVIEW!M$5:M$1171,SMARTVIEW!$B$5:$B$1171,Layout!$B$365,SMARTVIEW!$C$5:$C$1171,Layout!$C$365,SMARTVIEW!$D$5:$D$1171,Layout!$C$367,SMARTVIEW!$F$5:$F$1171,Layout!$B$367) -> 0 | K375: =SUMIFS(SMARTVIEW!N$5:N$1171,SMARTVIEW!$B$5:$B$1171,Layout!$B$365,SMARTVIEW!$C$5:$C$1171,Layout!$C$365,SMARTVIEW!$D$5:$D$1171,Layout!$C$367,SMARTVIEW!$F$5:$F$1171,Layout!$B$367) -> 6500 | L375: =SUMIFS(SMARTVIEW!O$5:O$1171,SMARTVIEW!$B$5:$B$1171,Layout!$B$365,SMARTVIEW!$C$5:$C$1171,Layout!$C$365,SMARTVIEW!$D$5:$D$1171,Layout!$C$367,SMARTVIEW!$F$5:$F$1171,Layout!$B$367) -> 3500 | M375: =SUMIFS(SMARTVIEW!P$5:P$1171,SMARTVIEW!$B$5:$B$1171,Layout!$B$365,SMARTVIEW!$C$5:$C$1171,Layout!$C$365,SMARTVIEW!$D$5:$D$1171,Layout!$C$367,SMARTVIEW!$F$5:$F$1171,Layout!$B$367) -> 0 | N375: =SUMIFS(SMARTVIEW!Q$5:Q$1171,SMARTVIEW!$B$5:$B$1171,Layout!$B$365,SMARTVIEW!$C$5:$C$1171,Layout!$C$365,SMARTVIEW!$D$5:$D$1171,Layout!$C$367,SMARTVIEW!$F$5:$F$1171,Layout!$B$367) -> 5500 | O375: =SUMIFS(SMARTVIEW!R$5:R$1171,SMARTVIEW!$B$5:$B$1171,Layout!$B$365,SMARTVIEW!$C$5:$C$1171,Layout!$C$365,SMARTVIEW!$D$5:$D$1171,Layout!$C$367,SMARTVIEW!$F$5:$F$1171,Layout!$B$367) -> 3500 | P375: =SUMIFS(SMARTVIEW!S$5:S$1171,SMARTVIEW!$B$5:$B$1171,Layout!$B$365,SMARTVIEW!$C$5:$C$1171,Layout!$C$365,SMARTVIEW!$D$5:$D$1171,Layout!$C$367,SMARTVIEW!$F$5:$F$1171,Layout!$B$367) -> 0 | Q375: =SUM(E375:P375) -> 35500 | R375: .) | S375: Same as budgeted. (Projected actuals represent board approved incentives.)
C377: GENERAL AND ADMINISTRATIVE
B379: D19700 | C379: 431100 | D379: FAXES TELEX CABLE
A381: %,R,FDEPTID,V11700,FACCOUNT,V431100,LBUD_USD | B381: FY18 | C381: PLANNING | D381: CURRENT BUDGET | E381: =SUMIFS(SMARTVIEW!H$5:H$1171,SMARTVIEW!$B$5:$B$1171,Layout!$B$379,SMARTVIEW!$C$5:$C$1171,Layout!$C$379,SMARTVIEW!$D$5:$D$1171,Layout!$C$381,SMARTVIEW!$F$5:$F$1171,Layout!$B$381) -> 0 | F381: =SUMIFS(SMARTVIEW!I$5:I$1171,SMARTVIEW!$B$5:$B$1171,Layout!$B$379,SMARTVIEW!$C$5:$C$1171,Layout!$C$379,SMARTVIEW!$D$5:$D$1171,Layout!$C$381,SMARTVIEW!$F$5:$F$1171,Layout!$B$381) -> 0 | G381: =SUMIFS(SMARTVIEW!J$5:J$1171,SMARTVIEW!$B$5:$B$1171,Layout!$B$379,SMARTVIEW!$C$5:$C$1171,Layout!$C$379,SMARTVIEW!$D$5:$D$1171,Layout!$C$381,SMARTVIEW!$F$5:$F$1171,Layout!$B$381) -> 0 | H381: =SUMIFS(SMARTVIEW!K$5:K$1171,SMARTVIEW!$B$5:$B$1171,Layout!$B$379,SMARTVIEW!$C$5:$C$1171,Layout!$C$379,SMARTVIEW!$D$5:$D$1171,Layout!$C$381,SMARTVIEW!$F$5:$F$1171,Layout!$B$381) -> 0 | I381: =SUMIFS(SMARTVIEW!L$5:L$1171,SMARTVIEW!$B$5:$B$1171,Layout!$B$379,SMARTVIEW!$C$5:$C$1171,Layout!$C$379,SMARTVIEW!$D$5:$D$1171,Layout!$C$381,SMARTVIEW!$F$5:$F$1171,Layout!$B$381) -> 0 | J381: =SUMIFS(SMARTVIEW!M$5:M$1171,SMARTVIEW!$B$5:$B$1171,Layout!$B$379,SMARTVIEW!$C$5:$C$1171,Layout!$C$379,SMARTVIEW!$D$5:$D$1171,Layout!$C$381,SMARTVIEW!$F$5:$F$1171,Layout!$B$381) -> 0 | K381: =SUMIFS(SMARTVIEW!N$5:N$1171,SMARTVIEW!$B$5:$B$1171,Layout!$B$379,SMARTVIEW!$C$5:$C$1171,Layout!$C$379,SMARTVIEW!$D$5:$D$1171,Layout!$C$381,SMARTVIEW!$F$5:$F$1171,Layout!$B$381) -> 0 | L381: =SUMIFS(SMARTVIEW!O$5:O$1171,SMARTVIEW!$B$5:$B$1171,Layout!$B$379,SMARTVIEW!$C$5:$C$1171,Layout!$C$379,SMARTVIEW!$D$5:$D$1171,Layout!$C$381,SMARTVIEW!$F$5:$F$1171,Layout!$B$381) -> 0 | M381: =SUMIFS(SMARTVIEW!P$5:P$1171,SMARTVIEW!$B$5:$B$1171,Layout!$B$379,SMARTVIEW!$C$5:$C$1171,Layout!$C$379,SMARTVIEW!$D$5:$D$1171,Layout!$C$381,SMARTVIEW!$F$5:$F$1171,Layout!$B$381) -> 0 | N381: =SUMIFS(SMARTVIEW!Q$5:Q$1171,SMARTVIEW!$B$5:$B$1171,Layout!$B$379,SMARTVIEW!$C$5:$C$1171,Layout!$C$379,SMARTVIEW!$D$5:$D$1171,Layout!$C$381,SMARTVIEW!$F$5:$F$1171,Layout!$B$381) -> 0 | O381: =SUMIFS(SMARTVIEW!R$5:R$1171,SMARTVIEW!$B$5:$B$1171,Layout!$B$379,SMARTVIEW!$C$5:$C$1171,Layout!$C$379,SMARTVIEW!$D$5:$D$1171,Layout!$C$381,SMARTVIEW!$F$5:$F$1171,Layout!$B$381) -> 0 | P381: =SUMIFS(SMARTVIEW!S$5:S$1171,SMARTVIEW!$B$5:$B$1171,Layout!$B$379,SMARTVIEW!$C$5:$C$1171,Layout!$C$379,SMARTVIEW!$D$5:$D$1171,Layout!$C$381,SMARTVIEW!$F$5:$F$1171,Layout!$B$381) -> 0 | Q381: =SUM(E381:P381) -> 0
A383: %,R,FDEPTID,V11700,FACCOUNT,V431100,LACT_USD | B383: FY18 | C383: Actual | D383: CURRENT ACTUAL | E383: =SUMIFS(SMARTVIEW!H$5:H$1171,SMARTVIEW!$B$5:$B$1171,Layout!$B$379,SMARTVIEW!$C$5:$C$1171,Layout!$C$379,SMARTVIEW!$D$5:$D$1171,Layout!$C$383,SMARTVIEW!$F$5:$F$1171,Layout!$B$383) -> 0 | F383: =SUMIFS(SMARTVIEW!I$5:I$1171,SMARTVIEW!$B$5:$B$1171,Layout!$B$379,SMARTVIEW!$C$5:$C$1171,Layout!$C$379,SMARTVIEW!$D$5:$D$1171,Layout!$C$383,SMARTVIEW!$F$5:$F$1171,Layout!$B$383) -> 0 | G383: =SUMIFS(SMARTVIEW!J$5:J$1171,SMARTVIEW!$B$5:$B$1171,Layout!$B$379,SMARTVIEW!$C$5:$C$1171,Layout!$C$379,SMARTVIEW!$D$5:$D$1171,Layout!$C$383,SMARTVIEW!$F$5:$F$1171,Layout!$B$383) -> 0 | H383: =SUMIFS(SMARTVIEW!K$5:K$1171,SMARTVIEW!$B$5:$B$1171,Layout!$B$379,SMARTVIEW!$C$5:$C$1171,Layout!$C$379,SMARTVIEW!$D$5:$D$1171,Layout!$C$383,SMARTVIEW!$F$5:$F$1171,Layout!$B$383) -> 0 | I383: =SUMIFS(SMARTVIEW!L$5:L$1171,SMARTVIEW!$B$5:$B$1171,Layout!$B$379,SMARTVIEW!$C$5:$C$1171,Layout!$C$379,SMARTVIEW!$D$5:$D$1171,Layout!$C$383,SMARTVIEW!$F$5:$F$1171,Layout!$B$383) -> 0 | J383: =SUMIFS(SMARTVIEW!M$5:M$1171,SMARTVIEW!$B$5:$B$1171,Layout!$B$379,SMARTVIEW!$C$5:$C$1171,Layout!$C$379,SMARTVIEW!$D$5:$D$1171,Layout!$C$383,SMARTVIEW!$F$5:$F$1171,Layout!$B$383) -> 0 | K383: =SUMIFS(SMARTVIEW!N$5:N$1171,SMARTVIEW!$B$5:$B$1171,Layout!$B$379,SMARTVIEW!$C$5:$C$1171,Layout!$C$379,SMARTVIEW!$D$5:$D$1171,Layout!$C$383,SMARTVIEW!$F$5:$F$1171,Layout!$B$383) -> 0 | L383: =SUMIFS(SMARTVIEW!O$5:O$1171,SMARTVIEW!$B$5:$B$1171,Layout!$B$379,SMARTVIEW!$C$5:$C$1171,Layout!$C$379,SMARTVIEW!$D$5:$D$1171,Layout!$C$383,SMARTVIEW!$F$5:$F$1171,Layout!$B$383) -> 0 | M383: =SUMIFS(SMARTVIEW!P$5:P$1171,SMARTVIEW!$B$5:$B$1171,Layout!$B$379,SMARTVIEW!$C$5:$C$1171,Layout!$C$379,SMARTVIEW!$D$5:$D$1171,Layout!$C$383,SMARTVIEW!$F$5:$F$1171,Layout!$B$383) -> 0 | N383: =SUMIFS(SMARTVIEW!Q$5:Q$1171,SMARTVIEW!$B$5:$B$1171,Layout!$B$379,SMARTVIEW!$C$5:$C$1171,Layout!$C$379,SMARTVIEW!$D$5:$D$1171,Layout!$C$383,SMARTVIEW!$F$5:$F$1171,Layout!$B$383) -> 0 | O383: =SUMIFS(SMARTVIEW!R$5:R$1171,SMARTVIEW!$B$5:$B$1171,Layout!$B$379,SMARTVIEW!$C$5:$C$1171,Layout!$C$379,SMARTVIEW!$D$5:$D$1171,Layout!$C$383,SMARTVIEW!$F$5:$F$1171,Layout!$B$383) -> 0 | P383: =SUMIFS(SMARTVIEW!S$5:S$1171,SMARTVIEW!$B$5:$B$1171,Layout!$B$379,SMARTVIEW!$C$5:$C$1171,Layout!$C$379,SMARTVIEW!$D$5:$D$1171,Layout!$C$383,SMARTVIEW!$F$5:$F$1171,Layout!$B$383) -> 0 | Q383: =SUM(E383:P383) -> 0 | R383: =Q383 -> 0
B385: FY17 | C385: Actual | D385: PRIOR YEAR ACTUALS | E385: =SUMIFS(SMARTVIEW!H$5:H$1171,SMARTVIEW!$B$5:$B$1171,Layout!$B$379,SMARTVIEW!$C$5:$C$1171,Layout!$C$379,SMARTVIEW!$D$5:$D$1171,Layout!$C$385,SMARTVIEW!$F$5:$F$1171,Layout!$B$385) -> 0 | F385: =SUMIFS(SMARTVIEW!I$5:I$1171,SMARTVIEW!$B$5:$B$1171,Layout!$B$379,SMARTVIEW!$C$5:$C$1171,Layout!$C$379,SMARTVIEW!$D$5:$D$1171,Layout!$C$385,SMARTVIEW!$F$5:$F$1171,Layout!$B$385) -> 0 | G385: =SUMIFS(SMARTVIEW!J$5:J$1171,SMARTVIEW!$B$5:$B$1171,Layout!$B$379,SMARTVIEW!$C$5:$C$1171,Layout!$C$379,SMARTVIEW!$D$5:$D$1171,Layout!$C$385,SMARTVIEW!$F$5:$F$1171,Layout!$B$385) -> 0 | H385: =SUMIFS(SMARTVIEW!K$5:K$1171,SMARTVIEW!$B$5:$B$1171,Layout!$B$379,SMARTVIEW!$C$5:$C$1171,Layout!$C$379,SMARTVIEW!$D$5:$D$1171,Layout!$C$385,SMARTVIEW!$F$5:$F$1171,Layout!$B$385) -> 0 | I385: =SUMIFS(SMARTVIEW!L$5:L$1171,SMARTVIEW!$B$5:$B$1171,Layout!$B$379,SMARTVIEW!$C$5:$C$1171,Layout!$C$379,SMARTVIEW!$D$5:$D$1171,Layout!$C$385,SMARTVIEW!$F$5:$F$1171,Layout!$B$385) -> 0 | J385: =SUMIFS(SMARTVIEW!M$5:M$1171,SMARTVIEW!$B$5:$B$1171,Layout!$B$379,SMARTVIEW!$C$5:$C$1171,Layout!$C$379,SMARTVIEW!$D$5:$D$1171,Layout!$C$385,SMARTVIEW!$F$5:$F$1171,Layout!$B$385) -> 0 | K385: =SUMIFS(SMARTVIEW!N$5:N$1171,SMARTVIEW!$B$5:$B$1171,Layout!$B$379,SMARTVIEW!$C$5:$C$1171,Layout!$C$379,SMARTVIEW!$D$5:$D$1171,Layout!$C$385,SMARTVIEW!$F$5:$F$1171,Layout!$B$385) -> 0 | L385: =SUMIFS(SMARTVIEW!O$5:O$1171,SMARTVIEW!$B$5:$B$1171,Layout!$B$379,SMARTVIEW!$C$5:$C$1171,Layout!$C$379,SMARTVIEW!$D$5:$D$1171,Layout!$C$385,SMARTVIEW!$F$5:$F$1171,Layout!$B$385) -> 0 | M385: =SUMIFS(SMARTVIEW!P$5:P$1171,SMARTVIEW!$B$5:$B$1171,Layout!$B$379,SMARTVIEW!$C$5:$C$1171,Layout!$C$379,SMARTVIEW!$D$5:$D$1171,Layout!$C$385,SMARTVIEW!$F$5:$F$1171,Layout!$B$385) -> 0 | N385: =SUMIFS(SMARTVIEW!Q$5:Q$1171,SMARTVIEW!$B$5:$B$1171,Layout!$B$379,SMARTVIEW!$C$5:$C$1171,Layout!$C$379,SMARTVIEW!$D$5:$D$1171,Layout!$C$385,SMARTVIEW!$F$5:$F$1171,Layout!$B$385) -> 0 | O385: =SUMIFS(SMARTVIEW!R$5:R$1171,SMARTVIEW!$B$5:$B$1171,Layout!$B$379,SMARTVIEW!$C$5:$C$1171,Layout!$C$379,SMARTVIEW!$D$5:$D$1171,Layout!$C$385,SMARTVIEW!$F$5:$F$1171,Layout!$B$385) -> 0 | P385: =SUMIFS(SMARTVIEW!S$5:S$1171,SMARTVIEW!$B$5:$B$1171,Layout!$B$379,SMARTVIEW!$C$5:$C$1171,Layout!$C$379,SMARTVIEW!$D$5:$D$1171,Layout!$C$385,SMARTVIEW!$F$5:$F$1171,Layout!$B$385) -> 0 | Q385: =SUM(E385:P385) -> 0
S388: Enter Notes Below
D389: FUTURE BUDGET | E389: 0 | F389: 0 | G389: 0 | H389: 0 | I389: 0 | J389: 0 | K389: 0 | L389: 0 | M389: 0 | N389: 0 | O389: 0 | P389: 0 | Q389: =SUM(E389:P389) -> 0
B393: D19700 | C393: 452060 | D393: OTHER REVENUE - REAL ESTATE
A395: %,R,FDEPTID,V11700,FACCOUNT,V452060,LBUD_USD | B395: FY18 | C395: PLANNING | D395: CURRENT BUDGET | E395: =SUMIFS(SMARTVIEW!H$5:H$1171,SMARTVIEW!$B$5:$B$1171,Layout!$B$393,SMARTVIEW!$C$5:$C$1171,Layout!$C$393,SMARTVIEW!$D$5:$D$1171,Layout!$C$395,SMARTVIEW!$F$5:$F$1171,Layout!$B$395) -> 0 | F395: =SUMIFS(SMARTVIEW!I$5:I$1171,SMARTVIEW!$B$5:$B$1171,Layout!$B$393,SMARTVIEW!$C$5:$C$1171,Layout!$C$393,SMARTVIEW!$D$5:$D$1171,Layout!$C$395,SMARTVIEW!$F$5:$F$1171,Layout!$B$395) -> 0 | G395: =SUMIFS(SMARTVIEW!J$5:J$1171,SMARTVIEW!$B$5:$B$1171,Layout!$B$393,SMARTVIEW!$C$5:$C$1171,Layout!$C$393,SMARTVIEW!$D$5:$D$1171,Layout!$C$395,SMARTVIEW!$F$5:$F$1171,Layout!$B$395) -> 0 | H395: =SUMIFS(SMARTVIEW!K$5:K$1171,SMARTVIEW!$B$5:$B$1171,Layout!$B$393,SMARTVIEW!$C$5:$C$1171,Layout!$C$393,SMARTVIEW!$D$5:$D$1171,Layout!$C$395,SMARTVIEW!$F$5:$F$1171,Layout!$B$395) -> 0 | I395: =SUMIFS(SMARTVIEW!L$5:L$1171,SMARTVIEW!$B$5:$B$1171,Layout!$B$393,SMARTVIEW!$C$5:$C$1171,Layout!$C$393,SMARTVIEW!$D$5:$D$1171,Layout!$C$395,SMARTVIEW!$F$5:$F$1171,Layout!$B$395) -> 0 | J395: =SUMIFS(SMARTVIEW!M$5:M$1171,SMARTVIEW!$B$5:$B$1171,Layout!$B$393,SMARTVIEW!$C$5:$C$1171,Layout!$C$393,SMARTVIEW!$D$5:$D$1171,Layout!$C$395,SMARTVIEW!$F$5:$F$1171,Layout!$B$395) -> 0 | K395: =SUMIFS(SMARTVIEW!N$5:N$1171,SMARTVIEW!$B$5:$B$1171,Layout!$B$393,SMARTVIEW!$C$5:$C$1171,Layout!$C$393,SMARTVIEW!$D$5:$D$1171,Layout!$C$395,SMARTVIEW!$F$5:$F$1171,Layout!$B$395) -> 0 | L395: =SUMIFS(SMARTVIEW!O$5:O$1171,SMARTVIEW!$B$5:$B$1171,Layout!$B$393,SMARTVIEW!$C$5:$C$1171,Layout!$C$393,SMARTVIEW!$D$5:$D$1171,Layout!$C$395,SMARTVIEW!$F$5:$F$1171,Layout!$B$395) -> 0 | M395: =SUMIFS(SMARTVIEW!P$5:P$1171,SMARTVIEW!$B$5:$B$1171,Layout!$B$393,SMARTVIEW!$C$5:$C$1171,Layout!$C$393,SMARTVIEW!$D$5:$D$1171,Layout!$C$395,SMARTVIEW!$F$5:$F$1171,Layout!$B$395) -> 0 | N395: =SUMIFS(SMARTVIEW!Q$5:Q$1171,SMARTVIEW!$B$5:$B$1171,Layout!$B$393,SMARTVIEW!$C$5:$C$1171,Layout!$C$393,SMARTVIEW!$D$5:$D$1171,Layout!$C$395,SMARTVIEW!$F$5:$F$1171,Layout!$B$395) -> 0 | O395: =SUMIFS(SMARTVIEW!R$5:R$1171,SMARTVIEW!$B$5:$B$1171,Layout!$B$393,SMARTVIEW!$C$5:$C$1171,Layout!$C$393,SMARTVIEW!$D$5:$D$1171,Layout!$C$395,SMARTVIEW!$F$5:$F$1171,Layout!$B$395) -> 0 | P395: =SUMIFS(SMARTVIEW!S$5:S$1171,SMARTVIEW!$B$5:$B$1171,Layout!$B$393,SMARTVIEW!$C$5:$C$1171,Layout!$C$393,SMARTVIEW!$D$5:$D$1171,Layout!$C$395,SMARTVIEW!$F$5:$F$1171,Layout!$B$395) -> 0 | Q395: =SUM(E395:P395) -> 0
A397: %,R,FDEPTID,V11700,FACCOUNT,V452060,LACT_USD | B397: FY18 | C397: Actual | D397: CURRENT ACTUAL | E397: =SUMIFS(SMARTVIEW!H$5:H$1171,SMARTVIEW!$B$5:$B$1171,Layout!$B$393,SMARTVIEW!$C$5:$C$1171,Layout!$C$393,SMARTVIEW!$D$5:$D$1171,Layout!$C$397,SMARTVIEW!$F$5:$F$1171,Layout!$B$397) -> 0 | F397: =SUMIFS(SMARTVIEW!I$5:I$1171,SMARTVIEW!$B$5:$B$1171,Layout!$B$393,SMARTVIEW!$C$5:$C$1171,Layout!$C$393,SMARTVIEW!$D$5:$D$1171,Layout!$C$397,SMARTVIEW!$F$5:$F$1171,Layout!$B$397) -> 0 | G397: =SUMIFS(SMARTVIEW!J$5:J$1171,SMARTVIEW!$B$5:$B$1171,Layout!$B$393,SMARTVIEW!$C$5:$C$1171,Layout!$C$393,SMARTVIEW!$D$5:$D$1171,Layout!$C$397,SMARTVIEW!$F$5:$F$1171,Layout!$B$397) -> 0 | H397: =SUMIFS(SMARTVIEW!K$5:K$1171,SMARTVIEW!$B$5:$B$1171,Layout!$B$393,SMARTVIEW!$C$5:$C$1171,Layout!$C$393,SMARTVIEW!$D$5:$D$1171,Layout!$C$397,SMARTVIEW!$F$5:$F$1171,Layout!$B$397) -> 0 | I397: =SUMIFS(SMARTVIEW!L$5:L$1171,SMARTVIEW!$B$5:$B$1171,Layout!$B$393,SMARTVIEW!$C$5:$C$1171,Layout!$C$393,SMARTVIEW!$D$5:$D$1171,Layout!$C$397,SMARTVIEW!$F$5:$F$1171,Layout!$B$397) -> 0 | J397: =SUMIFS(SMARTVIEW!M$5:M$1171,SMARTVIEW!$B$5:$B$1171,Layout!$B$393,SMARTVIEW!$C$5:$C$1171,Layout!$C$393,SMARTVIEW!$D$5:$D$1171,Layout!$C$397,SMARTVIEW!$F$5:$F$1171,Layout!$B$397) -> 0 | K397: =SUMIFS(SMARTVIEW!N$5:N$1171,SMARTVIEW!$B$5:$B$1171,Layout!$B$393,SMARTVIEW!$C$5:$C$1171,Layout!$C$393,SMARTVIEW!$D$5:$D$1171,Layout!$C$397,SMARTVIEW!$F$5:$F$1171,Layout!$B$397) -> 0 | L397: =SUMIFS(SMARTVIEW!O$5:O$1171,SMARTVIEW!$B$5:$B$1171,Layout!$B$393,SMARTVIEW!$C$5:$C$1171,Layout!$C$393,SMARTVIEW!$D$5:$D$1171,Layout!$C$397,SMARTVIEW!$F$5:$F$1171,Layout!$B$397) -> 0 | M397: =SUMIFS(SMARTVIEW!P$5:P$1171,SMARTVIEW!$B$5:$B$1171,Layout!$B$393,SMARTVIEW!$C$5:$C$1171,Layout!$C$393,SMARTVIEW!$D$5:$D$1171,Layout!$C$397,SMARTVIEW!$F$5:$F$1171,Layout!$B$397) -> 0 | N397: =SUMIFS(SMARTVIEW!Q$5:Q$1171,SMARTVIEW!$B$5:$B$1171,Layout!$B$393,SMARTVIEW!$C$5:$C$1171,Layout!$C$393,SMARTVIEW!$D$5:$D$1171,Layout!$C$397,SMARTVIEW!$F$5:$F$1171,Layout!$B$397) -> 0 | O397: =SUMIFS(SMARTVIEW!R$5:R$1171,SMARTVIEW!$B$5:$B$1171,Layout!$B$393,SMARTVIEW!$C$5:$C$1171,Layout!$C$393,SMARTVIEW!$D$5:$D$1171,Layout!$C$397,SMARTVIEW!$F$5:$F$1171,Layout!$B$397) -> 0 | P397: =SUMIFS(SMARTVIEW!S$5:S$1171,SMARTVIEW!$B$5:$B$1171,Layout!$B$393,SMARTVIEW!$C$5:$C$1171,Layout!$C$393,SMARTVIEW!$D$5:$D$1171,Layout!$C$397,SMARTVIEW!$F$5:$F$1171,Layout!$B$397) -> 0 | Q397: =SUM(E397:P397) -> 0 | R397: =Q397 -> 0
B399: FY17 | C399: Actual | D399: PRIOR YEAR ACTUALS | E399: =SUMIFS(SMARTVIEW!H$5:H$1171,SMARTVIEW!$B$5:$B$1171,Layout!$B$393,SMARTVIEW!$C$5:$C$1171,Layout!$C$393,SMARTVIEW!$D$5:$D$1171,Layout!$C$399,SMARTVIEW!$F$5:$F$1171,Layout!$B$399) -> 0 | F399: =SUMIFS(SMARTVIEW!I$5:I$1171,SMARTVIEW!$B$5:$B$1171,Layout!$B$393,SMARTVIEW!$C$5:$C$1171,Layout!$C$393,SMARTVIEW!$D$5:$D$1171,Layout!$C$399,SMARTVIEW!$F$5:$F$1171,Layout!$B$399) -> 0 | G399: =SUMIFS(SMARTVIEW!J$5:J$1171,SMARTVIEW!$B$5:$B$1171,Layout!$B$393,SMARTVIEW!$C$5:$C$1171,Layout!$C$393,SMARTVIEW!$D$5:$D$1171,Layout!$C$399,SMARTVIEW!$F$5:$F$1171,Layout!$B$399) -> 0 | H399: =SUMIFS(SMARTVIEW!K$5:K$1171,SMARTVIEW!$B$5:$B$1171,Layout!$B$393,SMARTVIEW!$C$5:$C$1171,Layout!$C$393,SMARTVIEW!$D$5:$D$1171,Layout!$C$399,SMARTVIEW!$F$5:$F$1171,Layout!$B$399) -> 0 | I399: =SUMIFS(SMARTVIEW!L$5:L$1171,SMARTVIEW!$B$5:$B$1171,Layout!$B$393,SMARTVIEW!$C$5:$C$1171,Layout!$C$393,SMARTVIEW!$D$5:$D$1171,Layout!$C$399,SMARTVIEW!$F$5:$F$1171,Layout!$B$399) -> 0 | J399: =SUMIFS(SMARTVIEW!M$5:M$1171,SMARTVIEW!$B$5:$B$1171,Layout!$B$393,SMARTVIEW!$C$5:$C$1171,Layout!$C$393,SMARTVIEW!$D$5:$D$1171,Layout!$C$399,SMARTVIEW!$F$5:$F$1171,Layout!$B$399) -> 0 | K399: =SUMIFS(SMARTVIEW!N$5:N$1171,SMARTVIEW!$B$5:$B$1171,Layout!$B$393,SMARTVIEW!$C$5:$C$1171,Layout!$C$393,SMARTVIEW!$D$5:$D$1171,Layout!$C$399,SMARTVIEW!$F$5:$F$1171,Layout!$B$399) -> 0 | L399: =SUMIFS(SMARTVIEW!O$5:O$1171,SMARTVIEW!$B$5:$B$1171,Layout!$B$393,SMARTVIEW!$C$5:$C$1171,Layout!$C$393,SMARTVIEW!$D$5:$D$1171,Layout!$C$399,SMARTVIEW!$F$5:$F$1171,Layout!$B$399) -> 0 | M399: =SUMIFS(SMARTVIEW!P$5:P$1171,SMARTVIEW!$B$5:$B$1171,Layout!$B$393,SMARTVIEW!$C$5:$C$1171,Layout!$C$393,SMARTVIEW!$D$5:$D$1171,Layout!$C$399,SMARTVIEW!$F$5:$F$1171,Layout!$B$399) -> 0 | N399: =SUMIFS(SMARTVIEW!Q$5:Q$1171,SMARTVIEW!$B$5:$B$1171,Layout!$B$393,SMARTVIEW!$C$5:$C$1171,Layout!$C$393,SMARTVIEW!$D$5:$D$1171,Layout!$C$399,SMARTVIEW!$F$5:$F$1171,Layout!$B$399) -> 0 | O399: =SUMIFS(SMARTVIEW!R$5:R$1171,SMARTVIEW!$B$5:$B$1171,Layout!$B$393,SMARTVIEW!$C$5:$C$1171,Layout!$C$393,SMARTVIEW!$D$5:$D$1171,Layout!$C$399,SMARTVIEW!$F$5:$F$1171,Layout!$B$399) -> 0 | P399: =SUMIFS(SMARTVIEW!S$5:S$1171,SMARTVIEW!$B$5:$B$1171,Layout!$B$393,SMARTVIEW!$C$5:$C$1171,Layout!$C$393,SMARTVIEW!$D$5:$D$1171,Layout!$C$399,SMARTVIEW!$F$5:$F$1171,Layout!$B$399) -> 0 | Q399: =SUM(E399:P399) -> 0
S402: Enter Notes Below
D403: FUTURE BUDGET | E403: 0 | F403: 0 | G403: 0 | H403: 0 | I403: 0 | J403: 0 | K403: 0 | L403: 0 | M403: 0 | N403: 0 | O403: 0 | P403: 0 | Q403: =SUM(E403:P403) -> 0
B407: D19700 | C407: 555020 | D407: PERFORMANCE AWARDS
A409: %,FDEPTID,V11700,FACCOUNT,V555020,LBUD_USD | B409: FY18 | C409: PLANNING | D409: CURRENT BUDGET | E409: =SUMIFS(SMARTVIEW!H$5:H$1171,SMARTVIEW!$B$5:$B$1171,Layout!$B$407,SMARTVIEW!$C$5:$C$1171,Layout!$C$407,SMARTVIEW!$D$5:$D$1171,Layout!$C$409,SMARTVIEW!$F$5:$F$1171,Layout!$B$409) -> 0 | F409: =SUMIFS(SMARTVIEW!I$5:I$1171,SMARTVIEW!$B$5:$B$1171,Layout!$B$407,SMARTVIEW!$C$5:$C$1171,Layout!$C$407,SMARTVIEW!$D$5:$D$1171,Layout!$C$409,SMARTVIEW!$F$5:$F$1171,Layout!$B$409) -> 0 | G409: =SUMIFS(SMARTVIEW!J$5:J$1171,SMARTVIEW!$B$5:$B$1171,Layout!$B$407,SMARTVIEW!$C$5:$C$1171,Layout!$C$407,SMARTVIEW!$D$5:$D$1171,Layout!$C$409,SMARTVIEW!$F$5:$F$1171,Layout!$B$409) -> 0 | H409: =SUMIFS(SMARTVIEW!K$5:K$1171,SMARTVIEW!$B$5:$B$1171,Layout!$B$407,SMARTVIEW!$C$5:$C$1171,Layout!$C$407,SMARTVIEW!$D$5:$D$1171,Layout!$C$409,SMARTVIEW!$F$5:$F$1171,Layout!$B$409) -> 0 | I409: =SUMIFS(SMARTVIEW!L$5:L$1171,SMARTVIEW!$B$5:$B$1171,Layout!$B$407,SMARTVIEW!$C$5:$C$1171,Layout!$C$407,SMARTVIEW!$D$5:$D$1171,Layout!$C$409,SMARTVIEW!$F$5:$F$1171,Layout!$B$409) -> 0 | J409: =SUMIFS(SMARTVIEW!M$5:M$1171,SMARTVIEW!$B$5:$B$1171,Layout!$B$407,SMARTVIEW!$C$5:$C$1171,Layout!$C$407,SMARTVIEW!$D$5:$D$1171,Layout!$C$409,SMARTVIEW!$F$5:$F$1171,Layout!$B$409) -> 0 | K409: =SUMIFS(SMARTVIEW!N$5:N$1171,SMARTVIEW!$B$5:$B$1171,Layout!$B$407,SMARTVIEW!$C$5:$C$1171,Layout!$C$407,SMARTVIEW!$D$5:$D$1171,Layout!$C$409,SMARTVIEW!$F$5:$F$1171,Layout!$B$409) -> 0 | L409: =SUMIFS(SMARTVIEW!O$5:O$1171,SMARTVIEW!$B$5:$B$1171,Layout!$B$407,SMARTVIEW!$C$5:$C$1171,Layout!$C$407,SMARTVIEW!$D$5:$D$1171,Layout!$C$409,SMARTVIEW!$F$5:$F$1171,Layout!$B$409) -> 0 | M409: =SUMIFS(SMARTVIEW!P$5:P$1171,SMARTVIEW!$B$5:$B$1171,Layout!$B$407,SMARTVIEW!$C$5:$C$1171,Layout!$C$407,SMARTVIEW!$D$5:$D$1171,Layout!$C$409,SMARTVIEW!$F$5:$F$1171,Layout!$B$409) -> 0 | N409: =SUMIFS(SMARTVIEW!Q$5:Q$1171,SMARTVIEW!$B$5:$B$1171,Layout!$B$407,SMARTVIEW!$C$5:$C$1171,Layout!$C$407,SMARTVIEW!$D$5:$D$1171,Layout!$C$409,SMARTVIEW!$F$5:$F$1171,Layout!$B$409) -> 0 | O409: =SUMIFS(SMARTVIEW!R$5:R$1171,SMARTVIEW!$B$5:$B$1171,Layout!$B$407,SMARTVIEW!$C$5:$C$1171,Layout!$C$407,SMARTVIEW!$D$5:$D$1171,Layout!$C$409,SMARTVIEW!$F$5:$F$1171,Layout!$B$409) -> 0 | P409: =SUMIFS(SMARTVIEW!S$5:S$1171,SMARTVIEW!$B$5:$B$1171,Layout!$B$407,SMARTVIEW!$C$5:$C$1171,Layout!$C$407,SMARTVIEW!$D$5:$D$1171,Layout!$C$409,SMARTVIEW!$F$5:$F$1171,Layout!$B$409) -> 0 | Q409: =SUM(E409:P409) -> 0
A411: %,FDEPTID,V11700,FACCOUNT,V555020,LACT_USD | B411: FY18 | C411: Actual | D411: CURRENT ACTUAL | E411: =SUMIFS(SMARTVIEW!H$5:H$1171,SMARTVIEW!$B$5:$B$1171,Layout!$B$407,SMARTVIEW!$C$5:$C$1171,Layout!$C$407,SMARTVIEW!$D$5:$D$1171,Layout!$C$411,SMARTVIEW!$F$5:$F$1171,Layout!$B$411) -> 0 | F411: =SUMIFS(SMARTVIEW!I$5:I$1171,SMARTVIEW!$B$5:$B$1171,Layout!$B$407,SMARTVIEW!$C$5:$C$1171,Layout!$C$407,SMARTVIEW!$D$5:$D$1171,Layout!$C$411,SMARTVIEW!$F$5:$F$1171,Layout!$B$411) -> 0 | G411: =SUMIFS(SMARTVIEW!J$5:J$1171,SMARTVIEW!$B$5:$B$1171,Layout!$B$407,SMARTVIEW!$C$5:$C$1171,Layout!$C$407,SMARTVIEW!$D$5:$D$1171,Layout!$C$411,SMARTVIEW!$F$5:$F$1171,Layout!$B$411) -> 0 | H411: =SUMIFS(SMARTVIEW!K$5:K$1171,SMARTVIEW!$B$5:$B$1171,Layout!$B$407,SMARTVIEW!$C$5:$C$1171,Layout!$C$407,SMARTVIEW!$D$5:$D$1171,Layout!$C$411,SMARTVIEW!$F$5:$F$1171,Layout!$B$411) -> 0 | I411: =SUMIFS(SMARTVIEW!L$5:L$1171,SMARTVIEW!$B$5:$B$1171,Layout!$B$407,SMARTVIEW!$C$5:$C$1171,Layout!$C$407,SMARTVIEW!$D$5:$D$1171,Layout!$C$411,SMARTVIEW!$F$5:$F$1171,Layout!$B$411) -> 0 | J411: =SUMIFS(SMARTVIEW!M$5:M$1171,SMARTVIEW!$B$5:$B$1171,Layout!$B$407,SMARTVIEW!$C$5:$C$1171,Layout!$C$407,SMARTVIEW!$D$5:$D$1171,Layout!$C$411,SMARTVIEW!$F$5:$F$1171,Layout!$B$411) -> 0 | K411: =SUMIFS(SMARTVIEW!N$5:N$1171,SMARTVIEW!$B$5:$B$1171,Layout!$B$407,SMARTVIEW!$C$5:$C$1171,Layout!$C$407,SMARTVIEW!$D$5:$D$1171,Layout!$C$411,SMARTVIEW!$F$5:$F$1171,Layout!$B$411) -> 0 | L411: =SUMIFS(SMARTVIEW!O$5:O$1171,SMARTVIEW!$B$5:$B$1171,Layout!$B$407,SMARTVIEW!$C$5:$C$1171,Layout!$C$407,SMARTVIEW!$D$5:$D$1171,Layout!$C$411,SMARTVIEW!$F$5:$F$1171,Layout!$B$411) -> 0 | M411: =SUMIFS(SMARTVIEW!P$5:P$1171,SMARTVIEW!$B$5:$B$1171,Layout!$B$407,SMARTVIEW!$C$5:$C$1171,Layout!$C$407,SMARTVIEW!$D$5:$D$1171,Layout!$C$411,SMARTVIEW!$F$5:$F$1171,Layout!$B$411) -> 0 | N411: =SUMIFS(SMARTVIEW!Q$5:Q$1171,SMARTVIEW!$B$5:$B$1171,Layout!$B$407,SMARTVIEW!$C$5:$C$1171,Layout!$C$407,SMARTVIEW!$D$5:$D$1171,Layout!$C$411,SMARTVIEW!$F$5:$F$1171,Layout!$B$411) -> 0 | O411: =SUMIFS(SMARTVIEW!R$5:R$1171,SMARTVIEW!$B$5:$B$1171,Layout!$B$407,SMARTVIEW!$C$5:$C$1171,Layout!$C$407,SMARTVIEW!$D$5:$D$1171,Layout!$C$411,SMARTVIEW!$F$5:$F$1171,Layout!$B$411) -> 0 | P411: =SUMIFS(SMARTVIEW!S$5:S$1171,SMARTVIEW!$B$5:$B$1171,Layout!$B$407,SMARTVIEW!$C$5:$C$1171,Layout!$C$407,SMARTVIEW!$D$5:$D$1171,Layout!$C$411,SMARTVIEW!$F$5:$F$1171,Layout!$B$411) -> 0 | Q411: =SUM(E411:P411) -> 0 | R411: =Q411 -> 0
B413: FY17 | C413: Actual | D413: PRIOR YEAR ACTUALS | E413: =SUMIFS(SMARTVIEW!H$5:H$1171,SMARTVIEW!$B$5:$B$1171,Layout!$B$407,SMARTVIEW!$C$5:$C$1171,Layout!$C$407,SMARTVIEW!$D$5:$D$1171,Layout!$C$413,SMARTVIEW!$F$5:$F$1171,Layout!$B$413) -> 0 | F413: =SUMIFS(SMARTVIEW!I$5:I$1171,SMARTVIEW!$B$5:$B$1171,Layout!$B$407,SMARTVIEW!$C$5:$C$1171,Layout!$C$407,SMARTVIEW!$D$5:$D$1171,Layout!$C$413,SMARTVIEW!$F$5:$F$1171,Layout!$B$413) -> 0 | G413: =SUMIFS(SMARTVIEW!J$5:J$1171,SMARTVIEW!$B$5:$B$1171,Layout!$B$407,SMARTVIEW!$C$5:$C$1171,Layout!$C$407,SMARTVIEW!$D$5:$D$1171,Layout!$C$413,SMARTVIEW!$F$5:$F$1171,Layout!$B$413) -> 0 | H413: =SUMIFS(SMARTVIEW!K$5:K$1171,SMARTVIEW!$B$5:$B$1171,Layout!$B$407,SMARTVIEW!$C$5:$C$1171,Layout!$C$407,SMARTVIEW!$D$5:$D$1171,Layout!$C$413,SMARTVIEW!$F$5:$F$1171,Layout!$B$413) -> 0 | I413: =SUMIFS(SMARTVIEW!L$5:L$1171,SMARTVIEW!$B$5:$B$1171,Layout!$B$407,SMARTVIEW!$C$5:$C$1171,Layout!$C$407,SMARTVIEW!$D$5:$D$1171,Layout!$C$413,SMARTVIEW!$F$5:$F$1171,Layout!$B$413) -> 0 | J413: =SUMIFS(SMARTVIEW!M$5:M$1171,SMARTVIEW!$B$5:$B$1171,Layout!$B$407,SMARTVIEW!$C$5:$C$1171,Layout!$C$407,SMARTVIEW!$D$5:$D$1171,Layout!$C$413,SMARTVIEW!$F$5:$F$1171,Layout!$B$413) -> 0 | K413: =SUMIFS(SMARTVIEW!N$5:N$1171,SMARTVIEW!$B$5:$B$1171,Layout!$B$407,SMARTVIEW!$C$5:$C$1171,Layout!$C$407,SMARTVIEW!$D$5:$D$1171,Layout!$C$413,SMARTVIEW!$F$5:$F$1171,Layout!$B$413) -> 0 | L413: =SUMIFS(SMARTVIEW!O$5:O$1171,SMARTVIEW!$B$5:$B$1171,Layout!$B$407,SMARTVIEW!$C$5:$C$1171,Layout!$C$407,SMARTVIEW!$D$5:$D$1171,Layout!$C$413,SMARTVIEW!$F$5:$F$1171,Layout!$B$413) -> 0 | M413: =SUMIFS(SMARTVIEW!P$5:P$1171,SMARTVIEW!$B$5:$B$1171,Layout!$B$407,SMARTVIEW!$C$5:$C$1171,Layout!$C$407,SMARTVIEW!$D$5:$D$1171,Layout!$C$413,SMARTVIEW!$F$5:$F$1171,Layout!$B$413) -> 0 | N413: =SUMIFS(SMARTVIEW!Q$5:Q$1171,SMARTVIEW!$B$5:$B$1171,Layout!$B$407,SMARTVIEW!$C$5:$C$1171,Layout!$C$407,SMARTVIEW!$D$5:$D$1171,Layout!$C$413,SMARTVIEW!$F$5:$F$1171,Layout!$B$413) -> 0 | O413: =SUMIFS(SMARTVIEW!R$5:R$1171,SMARTVIEW!$B$5:$B$1171,Layout!$B$407,SMARTVIEW!$C$5:$C$1171,Layout!$C$407,SMARTVIEW!$D$5:$D$1171,Layout!$C$413,SMARTVIEW!$F$5:$F$1171,Layout!$B$413) -> 0 | P413: =SUMIFS(SMARTVIEW!S$5:S$1171,SMARTVIEW!$B$5:$B$1171,Layout!$B$407,SMARTVIEW!$C$5:$C$1171,Layout!$C$407,SMARTVIEW!$D$5:$D$1171,Layout!$C$413,SMARTVIEW!$F$5:$F$1171,Layout!$B$413) -> 0 | Q413: =SUM(E413:P413) -> 0
S416: Enter Notes Below
D417: FUTURE BUDGET | E417: 0 | F417: 0 | G417: 0 | H417: 0 | I417: 0 | J417: 0 | K417: 0 | L417: 0 | M417: 0 | N417: 0 | O417: 0 | P417: 0 | Q417: =SUM(E417:P417) -> 0
B421: D19700 | C421: 541002 | D421: SALARIED MANAGER
A423: %,FDEPTID,V11700,FACCOUNT,V541002,LBUD_USD | B423: FY18 | C423: PLANNING | D423: CURRENT BUDGET | E423: =SUMIFS(SMARTVIEW!H$5:H$1171,SMARTVIEW!$B$5:$B$1171,Layout!$B$421,SMARTVIEW!$C$5:$C$1171,Layout!$C$421,SMARTVIEW!$D$5:$D$1171,Layout!$C$423,SMARTVIEW!$F$5:$F$1171,Layout!$B$423) -> 5087.04 | F423: =SUMIFS(SMARTVIEW!I$5:I$1171,SMARTVIEW!$B$5:$B$1171,Layout!$B$421,SMARTVIEW!$C$5:$C$1171,Layout!$C$421,SMARTVIEW!$D$5:$D$1171,Layout!$C$423,SMARTVIEW!$F$5:$F$1171,Layout!$B$423) -> 5329.28 | G423: =SUMIFS(SMARTVIEW!J$5:J$1171,SMARTVIEW!$B$5:$B$1171,Layout!$B$421,SMARTVIEW!$C$5:$C$1171,Layout!$C$421,SMARTVIEW!$D$5:$D$1171,Layout!$C$423,SMARTVIEW!$F$5:$F$1171,Layout!$B$423) -> 5489.1584 | H423: =SUMIFS(SMARTVIEW!K$5:K$1171,SMARTVIEW!$B$5:$B$1171,Layout!$B$421,SMARTVIEW!$C$5:$C$1171,Layout!$C$421,SMARTVIEW!$D$5:$D$1171,Layout!$C$423,SMARTVIEW!$F$5:$F$1171,Layout!$B$423) -> 5239.6512 | I423: =SUMIFS(SMARTVIEW!L$5:L$1171,SMARTVIEW!$B$5:$B$1171,Layout!$B$421,SMARTVIEW!$C$5:$C$1171,Layout!$C$421,SMARTVIEW!$D$5:$D$1171,Layout!$C$423,SMARTVIEW!$F$5:$F$1171,Layout!$B$423) -> 8607.9984 | J423: =SUMIFS(SMARTVIEW!M$5:M$1171,SMARTVIEW!$B$5:$B$1171,Layout!$B$421,SMARTVIEW!$C$5:$C$1171,Layout!$C$421,SMARTVIEW!$D$5:$D$1171,Layout!$C$423,SMARTVIEW!$F$5:$F$1171,Layout!$B$423) -> 5239.6512 | K423: =SUMIFS(SMARTVIEW!N$5:N$1171,SMARTVIEW!$B$5:$B$1171,Layout!$B$421,SMARTVIEW!$C$5:$C$1171,Layout!$C$421,SMARTVIEW!$D$5:$D$1171,Layout!$C$423,SMARTVIEW!$F$5:$F$1171,Layout!$B$423) -> 2245.5648 | L423: =SUMIFS(SMARTVIEW!O$5:O$1171,SMARTVIEW!$B$5:$B$1171,Layout!$B$421,SMARTVIEW!$C$5:$C$1171,Layout!$C$421,SMARTVIEW!$D$5:$D$1171,Layout!$C$423,SMARTVIEW!$F$5:$F$1171,Layout!$B$423) -> 5239.6512 | M423: =SUMIFS(SMARTVIEW!P$5:P$1171,SMARTVIEW!$B$5:$B$1171,Layout!$B$421,SMARTVIEW!$C$5:$C$1171,Layout!$C$421,SMARTVIEW!$D$5:$D$1171,Layout!$C$423,SMARTVIEW!$F$5:$F$1171,Layout!$B$423) -> 5239.6512 | N423: =SUMIFS(SMARTVIEW!Q$5:Q$1171,SMARTVIEW!$B$5:$B$1171,Layout!$B$421,SMARTVIEW!$C$5:$C$1171,Layout!$C$421,SMARTVIEW!$D$5:$D$1171,Layout!$C$423,SMARTVIEW!$F$5:$F$1171,Layout!$B$423) -> 4740.6368 | O423: =SUMIFS(SMARTVIEW!R$5:R$1171,SMARTVIEW!$B$5:$B$1171,Layout!$B$421,SMARTVIEW!$C$5:$C$1171,Layout!$C$421,SMARTVIEW!$D$5:$D$1171,Layout!$C$423,SMARTVIEW!$F$5:$F$1171,Layout!$B$423) -> 7859.4768 | P423: =SUMIFS(SMARTVIEW!S$5:S$1171,SMARTVIEW!$B$5:$B$1171,Layout!$B$421,SMARTVIEW!$C$5:$C$1171,Layout!$C$421,SMARTVIEW!$D$5:$D$1171,Layout!$C$423,SMARTVIEW!$F$5:$F$1171,Layout!$B$423) -> 4740.6368 | Q423: =SUM(E423:P423) -> 65058.3968
A425: %,FDEPTID,V11700,FACCOUNT,V541002,LACT_USD | B425: FY18 | C425: Actual | D425: CURRENT ACTUAL | E425: =SUMIFS(SMARTVIEW!H$5:H$1171,SMARTVIEW!$B$5:$B$1171,Layout!$B$421,SMARTVIEW!$C$5:$C$1171,Layout!$C$421,SMARTVIEW!$D$5:$D$1171,Layout!$C$425,SMARTVIEW!$F$5:$F$1171,Layout!$B$425) -> 5727.06 | F425: =SUMIFS(SMARTVIEW!I$5:I$1171,SMARTVIEW!$B$5:$B$1171,Layout!$B$421,SMARTVIEW!$C$5:$C$1171,Layout!$C$421,SMARTVIEW!$D$5:$D$1171,Layout!$C$425,SMARTVIEW!$F$5:$F$1171,Layout!$B$425) -> 4758.1 | G425: =SUMIFS(SMARTVIEW!J$5:J$1171,SMARTVIEW!$B$5:$B$1171,Layout!$B$421,SMARTVIEW!$C$5:$C$1171,Layout!$C$421,SMARTVIEW!$D$5:$D$1171,Layout!$C$425,SMARTVIEW!$F$5:$F$1171,Layout!$B$425) -> 5799.73 | H425: =SUMIFS(SMARTVIEW!K$5:K$1171,SMARTVIEW!$B$5:$B$1171,Layout!$B$421,SMARTVIEW!$C$5:$C$1171,Layout!$C$421,SMARTVIEW!$D$5:$D$1171,Layout!$C$425,SMARTVIEW!$F$5:$F$1171,Layout!$B$425) -> 5872.4 | I425: =SUMIFS(SMARTVIEW!L$5:L$1171,SMARTVIEW!$B$5:$B$1171,Layout!$B$421,SMARTVIEW!$C$5:$C$1171,Layout!$C$421,SMARTVIEW!$D$5:$D$1171,Layout!$C$425,SMARTVIEW!$F$5:$F$1171,Layout!$B$425) -> 8367.47 | J425: =SUMIFS(SMARTVIEW!M$5:M$1171,SMARTVIEW!$B$5:$B$1171,Layout!$B$421,SMARTVIEW!$C$5:$C$1171,Layout!$C$421,SMARTVIEW!$D$5:$D$1171,Layout!$C$425,SMARTVIEW!$F$5:$F$1171,Layout!$B$425) -> 4443.86 | K425: 4375 | L425: 5872 | M425: 5623 | N425: 5000 | O425: 7859 | P425: 4741 | Q425: =SUM(E425:P425) -> 68438.62 | R425: =Q425 -> 68438.62
B427: FY17 | C427: Actual | D427: PRIOR YEAR ACTUALS | E427: =SUMIFS(SMARTVIEW!H$5:H$1171,SMARTVIEW!$B$5:$B$1171,Layout!$B$421,SMARTVIEW!$C$5:$C$1171,Layout!$C$421,SMARTVIEW!$D$5:$D$1171,Layout!$C$427,SMARTVIEW!$F$5:$F$1171,Layout!$B$427) -> 4798.43 | F427: =SUMIFS(SMARTVIEW!I$5:I$1171,SMARTVIEW!$B$5:$B$1171,Layout!$B$421,SMARTVIEW!$C$5:$C$1171,Layout!$C$421,SMARTVIEW!$D$5:$D$1171,Layout!$C$427,SMARTVIEW!$F$5:$F$1171,Layout!$B$427) -> 5268.83 | G427: =SUMIFS(SMARTVIEW!J$5:J$1171,SMARTVIEW!$B$5:$B$1171,Layout!$B$421,SMARTVIEW!$C$5:$C$1171,Layout!$C$421,SMARTVIEW!$D$5:$D$1171,Layout!$C$427,SMARTVIEW!$F$5:$F$1171,Layout!$B$427) -> 6608.45 | H427: =SUMIFS(SMARTVIEW!K$5:K$1171,SMARTVIEW!$B$5:$B$1171,Layout!$B$421,SMARTVIEW!$C$5:$C$1171,Layout!$C$421,SMARTVIEW!$D$5:$D$1171,Layout!$C$427,SMARTVIEW!$F$5:$F$1171,Layout!$B$427) -> 5409.63 | I427: =SUMIFS(SMARTVIEW!L$5:L$1171,SMARTVIEW!$B$5:$B$1171,Layout!$B$421,SMARTVIEW!$C$5:$C$1171,Layout!$C$421,SMARTVIEW!$D$5:$D$1171,Layout!$C$427,SMARTVIEW!$F$5:$F$1171,Layout!$B$427) -> 4925.15 | J427: =SUMIFS(SMARTVIEW!M$5:M$1171,SMARTVIEW!$B$5:$B$1171,Layout!$B$421,SMARTVIEW!$C$5:$C$1171,Layout!$C$421,SMARTVIEW!$D$5:$D$1171,Layout!$C$427,SMARTVIEW!$F$5:$F$1171,Layout!$B$427) -> 7907.03 | K427: =SUMIFS(SMARTVIEW!N$5:N$1171,SMARTVIEW!$B$5:$B$1171,Layout!$B$421,SMARTVIEW!$C$5:$C$1171,Layout!$C$421,SMARTVIEW!$D$5:$D$1171,Layout!$C$427,SMARTVIEW!$F$5:$F$1171,Layout!$B$427) -> 4682.91 | L427: =SUMIFS(SMARTVIEW!O$5:O$1171,SMARTVIEW!$B$5:$B$1171,Layout!$B$421,SMARTVIEW!$C$5:$C$1171,Layout!$C$421,SMARTVIEW!$D$5:$D$1171,Layout!$C$427,SMARTVIEW!$F$5:$F$1171,Layout!$B$427) -> 4925.15 | M427: =SUMIFS(SMARTVIEW!P$5:P$1171,SMARTVIEW!$B$5:$B$1171,Layout!$B$421,SMARTVIEW!$C$5:$C$1171,Layout!$C$421,SMARTVIEW!$D$5:$D$1171,Layout!$C$427,SMARTVIEW!$F$5:$F$1171,Layout!$B$427) -> 4349.83 | N427: =SUMIFS(SMARTVIEW!Q$5:Q$1171,SMARTVIEW!$B$5:$B$1171,Layout!$B$421,SMARTVIEW!$C$5:$C$1171,Layout!$C$421,SMARTVIEW!$D$5:$D$1171,Layout!$C$427,SMARTVIEW!$F$5:$F$1171,Layout!$B$427) -> 5538.05 | O427: =SUMIFS(SMARTVIEW!R$5:R$1171,SMARTVIEW!$B$5:$B$1171,Layout!$B$421,SMARTVIEW!$C$5:$C$1171,Layout!$C$421,SMARTVIEW!$D$5:$D$1171,Layout!$C$427,SMARTVIEW!$F$5:$F$1171,Layout!$B$427) -> 7701.86 | P427: =SUMIFS(SMARTVIEW!S$5:S$1171,SMARTVIEW!$B$5:$B$1171,Layout!$B$421,SMARTVIEW!$C$5:$C$1171,Layout!$C$421,SMARTVIEW!$D$5:$D$1171,Layout!$C$427,SMARTVIEW!$F$5:$F$1171,Layout!$B$427) -> 6941.7 | Q427: =SUM(E427:P427) -> 69057.02
S430: Enter Notes Below
D431: FUTURE BUDGET | E431: 5240 | F431: 4741 | G431: 5911 | H431: 5911 | I431: 7838 | J431: 5911 | K431: 5397 | L431: 5911 | M431: 5911 | N431: 8352 | O431: 5397 | P431: 4883 | Q431: =SUM(E431:P431) -> 71403 | S431: Increase based on Wage Template
B435: D19700 | C435: 541003 | D435: SALARIED NON-MANAGER
A437: %,FDEPTID,V11700,FACCOUNT,V541003,LBUD_USD | B437: FY18 | C437: PLANNING | D437: CURRENT BUDGET | E437: =SUMIFS(SMARTVIEW!H$5:H$1171,SMARTVIEW!$B$5:$B$1171,Layout!$B$435,SMARTVIEW!$C$5:$C$1171,Layout!$C$435,SMARTVIEW!$D$5:$D$1171,Layout!$C$437,SMARTVIEW!$F$5:$F$1171,Layout!$B$437) -> 0 | F437: =SUMIFS(SMARTVIEW!I$5:I$1171,SMARTVIEW!$B$5:$B$1171,Layout!$B$435,SMARTVIEW!$C$5:$C$1171,Layout!$C$435,SMARTVIEW!$D$5:$D$1171,Layout!$C$437,SMARTVIEW!$F$5:$F$1171,Layout!$B$437) -> 0 | G437: =SUMIFS(SMARTVIEW!J$5:J$1171,SMARTVIEW!$B$5:$B$1171,Layout!$B$435,SMARTVIEW!$C$5:$C$1171,Layout!$C$435,SMARTVIEW!$D$5:$D$1171,Layout!$C$437,SMARTVIEW!$F$5:$F$1171,Layout!$B$437) -> 0 | H437: =SUMIFS(SMARTVIEW!K$5:K$1171,SMARTVIEW!$B$5:$B$1171,Layout!$B$435,SMARTVIEW!$C$5:$C$1171,Layout!$C$435,SMARTVIEW!$D$5:$D$1171,Layout!$C$437,SMARTVIEW!$F$5:$F$1171,Layout!$B$437) -> 0 | I437: =SUMIFS(SMARTVIEW!L$5:L$1171,SMARTVIEW!$B$5:$B$1171,Layout!$B$435,SMARTVIEW!$C$5:$C$1171,Layout!$C$435,SMARTVIEW!$D$5:$D$1171,Layout!$C$437,SMARTVIEW!$F$5:$F$1171,Layout!$B$437) -> 0 | J437: =SUMIFS(SMARTVIEW!M$5:M$1171,SMARTVIEW!$B$5:$B$1171,Layout!$B$435,SMARTVIEW!$C$5:$C$1171,Layout!$C$435,SMARTVIEW!$D$5:$D$1171,Layout!$C$437,SMARTVIEW!$F$5:$F$1171,Layout!$B$437) -> 0 | K437: =SUMIFS(SMARTVIEW!N$5:N$1171,SMARTVIEW!$B$5:$B$1171,Layout!$B$435,SMARTVIEW!$C$5:$C$1171,Layout!$C$435,SMARTVIEW!$D$5:$D$1171,Layout!$C$437,SMARTVIEW!$F$5:$F$1171,Layout!$B$437) -> 0 | L437: =SUMIFS(SMARTVIEW!O$5:O$1171,SMARTVIEW!$B$5:$B$1171,Layout!$B$435,SMARTVIEW!$C$5:$C$1171,Layout!$C$435,SMARTVIEW!$D$5:$D$1171,Layout!$C$437,SMARTVIEW!$F$5:$F$1171,Layout!$B$437) -> 0 | M437: =SUMIFS(SMARTVIEW!P$5:P$1171,SMARTVIEW!$B$5:$B$1171,Layout!$B$435,SMARTVIEW!$C$5:$C$1171,Layout!$C$435,SMARTVIEW!$D$5:$D$1171,Layout!$C$437,SMARTVIEW!$F$5:$F$1171,Layout!$B$437) -> 0 | N437: =SUMIFS(SMARTVIEW!Q$5:Q$1171,SMARTVIEW!$B$5:$B$1171,Layout!$B$435,SMARTVIEW!$C$5:$C$1171,Layout!$C$435,SMARTVIEW!$D$5:$D$1171,Layout!$C$437,SMARTVIEW!$F$5:$F$1171,Layout!$B$437) -> 0 | O437: =SUMIFS(SMARTVIEW!R$5:R$1171,SMARTVIEW!$B$5:$B$1171,Layout!$B$435,SMARTVIEW!$C$5:$C$1171,Layout!$C$435,SMARTVIEW!$D$5:$D$1171,Layout!$C$437,SMARTVIEW!$F$5:$F$1171,Layout!$B$437) -> 0 | P437: =SUMIFS(SMARTVIEW!S$5:S$1171,SMARTVIEW!$B$5:$B$1171,Layout!$B$435,SMARTVIEW!$C$5:$C$1171,Layout!$C$435,SMARTVIEW!$D$5:$D$1171,Layout!$C$437,SMARTVIEW!$F$5:$F$1171,Layout!$B$437) -> 0 | Q437: =SUM(E437:P437) -> 0
A439: %,FDEPTID,V11700,FACCOUNT,V541003,LACT_USD | B439: FY18 | C439: Actual | D439: CURRENT ACTUAL | E439: =SUMIFS(SMARTVIEW!H$5:H$1171,SMARTVIEW!$B$5:$B$1171,Layout!$B$435,SMARTVIEW!$C$5:$C$1171,Layout!$C$435,SMARTVIEW!$D$5:$D$1171,Layout!$C$439,SMARTVIEW!$F$5:$F$1171,Layout!$B$439) -> 0 | F439: =SUMIFS(SMARTVIEW!I$5:I$1171,SMARTVIEW!$B$5:$B$1171,Layout!$B$435,SMARTVIEW!$C$5:$C$1171,Layout!$C$435,SMARTVIEW!$D$5:$D$1171,Layout!$C$439,SMARTVIEW!$F$5:$F$1171,Layout!$B$439) -> 0 | G439: =SUMIFS(SMARTVIEW!J$5:J$1171,SMARTVIEW!$B$5:$B$1171,Layout!$B$435,SMARTVIEW!$C$5:$C$1171,Layout!$C$435,SMARTVIEW!$D$5:$D$1171,Layout!$C$439,SMARTVIEW!$F$5:$F$1171,Layout!$B$439) -> 0 | H439: =SUMIFS(SMARTVIEW!K$5:K$1171,SMARTVIEW!$B$5:$B$1171,Layout!$B$435,SMARTVIEW!$C$5:$C$1171,Layout!$C$435,SMARTVIEW!$D$5:$D$1171,Layout!$C$439,SMARTVIEW!$F$5:$F$1171,Layout!$B$439) -> 0 | I439: =SUMIFS(SMARTVIEW!L$5:L$1171,SMARTVIEW!$B$5:$B$1171,Layout!$B$435,SMARTVIEW!$C$5:$C$1171,Layout!$C$435,SMARTVIEW!$D$5:$D$1171,Layout!$C$439,SMARTVIEW!$F$5:$F$1171,Layout!$B$439) -> 0 | J439: =SUMIFS(SMARTVIEW!M$5:M$1171,SMARTVIEW!$B$5:$B$1171,Layout!$B$435,SMARTVIEW!$C$5:$C$1171,Layout!$C$435,SMARTVIEW!$D$5:$D$1171,Layout!$C$439,SMARTVIEW!$F$5:$F$1171,Layout!$B$439) -> 0 | K439: =SUMIFS(SMARTVIEW!N$5:N$1171,SMARTVIEW!$B$5:$B$1171,Layout!$B$435,SMARTVIEW!$C$5:$C$1171,Layout!$C$435,SMARTVIEW!$D$5:$D$1171,Layout!$C$439,SMARTVIEW!$F$5:$F$1171,Layout!$B$439) -> 0 | L439: =SUMIFS(SMARTVIEW!O$5:O$1171,SMARTVIEW!$B$5:$B$1171,Layout!$B$435,SMARTVIEW!$C$5:$C$1171,Layout!$C$435,SMARTVIEW!$D$5:$D$1171,Layout!$C$439,SMARTVIEW!$F$5:$F$1171,Layout!$B$439) -> 0 | M439: =SUMIFS(SMARTVIEW!P$5:P$1171,SMARTVIEW!$B$5:$B$1171,Layout!$B$435,SMARTVIEW!$C$5:$C$1171,Layout!$C$435,SMARTVIEW!$D$5:$D$1171,Layout!$C$439,SMARTVIEW!$F$5:$F$1171,Layout!$B$439) -> 0 | N439: =SUMIFS(SMARTVIEW!Q$5:Q$1171,SMARTVIEW!$B$5:$B$1171,Layout!$B$435,SMARTVIEW!$C$5:$C$1171,Layout!$C$435,SMARTVIEW!$D$5:$D$1171,Layout!$C$439,SMARTVIEW!$F$5:$F$1171,Layout!$B$439) -> 0 | O439: =SUMIFS(SMARTVIEW!R$5:R$1171,SMARTVIEW!$B$5:$B$1171,Layout!$B$435,SMARTVIEW!$C$5:$C$1171,Layout!$C$435,SMARTVIEW!$D$5:$D$1171,Layout!$C$439,SMARTVIEW!$F$5:$F$1171,Layout!$B$439) -> 0 | P439: =SUMIFS(SMARTVIEW!S$5:S$1171,SMARTVIEW!$B$5:$B$1171,Layout!$B$435,SMARTVIEW!$C$5:$C$1171,Layout!$C$435,SMARTVIEW!$D$5:$D$1171,Layout!$C$439,SMARTVIEW!$F$5:$F$1171,Layout!$B$439) -> 0 | Q439: =SUM(E439:P439) -> 0 | R439: =Q439 -> 0
B441: FY17 | C441: Actual | D441: PRIOR YEAR ACTUALS | E441: =SUMIFS(SMARTVIEW!H$5:H$1171,SMARTVIEW!$B$5:$B$1171,Layout!$B$435,SMARTVIEW!$C$5:$C$1171,Layout!$C$435,SMARTVIEW!$D$5:$D$1171,Layout!$C$441,SMARTVIEW!$F$5:$F$1171,Layout!$B$441) -> 0 | F441: =SUMIFS(SMARTVIEW!I$5:I$1171,SMARTVIEW!$B$5:$B$1171,Layout!$B$435,SMARTVIEW!$C$5:$C$1171,Layout!$C$435,SMARTVIEW!$D$5:$D$1171,Layout!$C$441,SMARTVIEW!$F$5:$F$1171,Layout!$B$441) -> 0 | G441: =SUMIFS(SMARTVIEW!J$5:J$1171,SMARTVIEW!$B$5:$B$1171,Layout!$B$435,SMARTVIEW!$C$5:$C$1171,Layout!$C$435,SMARTVIEW!$D$5:$D$1171,Layout!$C$441,SMARTVIEW!$F$5:$F$1171,Layout!$B$441) -> 0 | H441: =SUMIFS(SMARTVIEW!K$5:K$1171,SMARTVIEW!$B$5:$B$1171,Layout!$B$435,SMARTVIEW!$C$5:$C$1171,Layout!$C$435,SMARTVIEW!$D$5:$D$1171,Layout!$C$441,SMARTVIEW!$F$5:$F$1171,Layout!$B$441) -> 0 | I441: =SUMIFS(SMARTVIEW!L$5:L$1171,SMARTVIEW!$B$5:$B$1171,Layout!$B$435,SMARTVIEW!$C$5:$C$1171,Layout!$C$435,SMARTVIEW!$D$5:$D$1171,Layout!$C$441,SMARTVIEW!$F$5:$F$1171,Layout!$B$441) -> 0 | J441: =SUMIFS(SMARTVIEW!M$5:M$1171,SMARTVIEW!$B$5:$B$1171,Layout!$B$435,SMARTVIEW!$C$5:$C$1171,Layout!$C$435,SMARTVIEW!$D$5:$D$1171,Layout!$C$441,SMARTVIEW!$F$5:$F$1171,Layout!$B$441) -> 0 | K441: =SUMIFS(SMARTVIEW!N$5:N$1171,SMARTVIEW!$B$5:$B$1171,Layout!$B$435,SMARTVIEW!$C$5:$C$1171,Layout!$C$435,SMARTVIEW!$D$5:$D$1171,Layout!$C$441,SMARTVIEW!$F$5:$F$1171,Layout!$B$441) -> 0 | L441: =SUMIFS(SMARTVIEW!O$5:O$1171,SMARTVIEW!$B$5:$B$1171,Layout!$B$435,SMARTVIEW!$C$5:$C$1171,Layout!$C$435,SMARTVIEW!$D$5:$D$1171,Layout!$C$441,SMARTVIEW!$F$5:$F$1171,Layout!$B$441) -> 0 | M441: =SUMIFS(SMARTVIEW!P$5:P$1171,SMARTVIEW!$B$5:$B$1171,Layout!$B$435,SMARTVIEW!$C$5:$C$1171,Layout!$C$435,SMARTVIEW!$D$5:$D$1171,Layout!$C$441,SMARTVIEW!$F$5:$F$1171,Layout!$B$441) -> 0 | N441: =SUMIFS(SMARTVIEW!Q$5:Q$1171,SMARTVIEW!$B$5:$B$1171,Layout!$B$435,SMARTVIEW!$C$5:$C$1171,Layout!$C$435,SMARTVIEW!$D$5:$D$1171,Layout!$C$441,SMARTVIEW!$F$5:$F$1171,Layout!$B$441) -> 0 | O441: =SUMIFS(SMARTVIEW!R$5:R$1171,SMARTVIEW!$B$5:$B$1171,Layout!$B$435,SMARTVIEW!$C$5:$C$1171,Layout!$C$435,SMARTVIEW!$D$5:$D$1171,Layout!$C$441,SMARTVIEW!$F$5:$F$1171,Layout!$B$441) -> 0 | P441: =SUMIFS(SMARTVIEW!S$5:S$1171,SMARTVIEW!$B$5:$B$1171,Layout!$B$435,SMARTVIEW!$C$5:$C$1171,Layout!$C$435,SMARTVIEW!$D$5:$D$1171,Layout!$C$441,SMARTVIEW!$F$5:$F$1171,Layout!$B$441) -> 0 | Q441: =SUM(E441:P441) -> 0
S444: Enter Notes Below
D445: FUTURE BUDGET | E445: 0 | F445: 0 | G445: 0 | H445: 0 | I445: 0 | J445: 0 | K445: 0 | L445: 0 | M445: 0 | N445: 0 | O445: 0 | P445: 0 | Q445: =SUM(E445:P445) -> 0
B449: D19700 | C449: 542305 | D449: WAGES MINIMUM DRAW
A451: %,FDEPTID,V11700,FACCOUNT,V542305,LBUD_USD | B451: FY18 | C451: PLANNING | D451: CURRENT BUDGET | E451: =SUMIFS(SMARTVIEW!H$5:H$1171,SMARTVIEW!$B$5:$B$1171,Layout!$B$449,SMARTVIEW!$C$5:$C$1171,Layout!$C$449,SMARTVIEW!$D$5:$D$1171,Layout!$C$451,SMARTVIEW!$F$5:$F$1171,Layout!$B$451) -> 0 | F451: =SUMIFS(SMARTVIEW!I$5:I$1171,SMARTVIEW!$B$5:$B$1171,Layout!$B$449,SMARTVIEW!$C$5:$C$1171,Layout!$C$449,SMARTVIEW!$D$5:$D$1171,Layout!$C$451,SMARTVIEW!$F$5:$F$1171,Layout!$B$451) -> 0 | G451: =SUMIFS(SMARTVIEW!J$5:J$1171,SMARTVIEW!$B$5:$B$1171,Layout!$B$449,SMARTVIEW!$C$5:$C$1171,Layout!$C$449,SMARTVIEW!$D$5:$D$1171,Layout!$C$451,SMARTVIEW!$F$5:$F$1171,Layout!$B$451) -> 0 | H451: =SUMIFS(SMARTVIEW!K$5:K$1171,SMARTVIEW!$B$5:$B$1171,Layout!$B$449,SMARTVIEW!$C$5:$C$1171,Layout!$C$449,SMARTVIEW!$D$5:$D$1171,Layout!$C$451,SMARTVIEW!$F$5:$F$1171,Layout!$B$451) -> 0 | I451: =SUMIFS(SMARTVIEW!L$5:L$1171,SMARTVIEW!$B$5:$B$1171,Layout!$B$449,SMARTVIEW!$C$5:$C$1171,Layout!$C$449,SMARTVIEW!$D$5:$D$1171,Layout!$C$451,SMARTVIEW!$F$5:$F$1171,Layout!$B$451) -> 0 | J451: =SUMIFS(SMARTVIEW!M$5:M$1171,SMARTVIEW!$B$5:$B$1171,Layout!$B$449,SMARTVIEW!$C$5:$C$1171,Layout!$C$449,SMARTVIEW!$D$5:$D$1171,Layout!$C$451,SMARTVIEW!$F$5:$F$1171,Layout!$B$451) -> 0 | K451: =SUMIFS(SMARTVIEW!N$5:N$1171,SMARTVIEW!$B$5:$B$1171,Layout!$B$449,SMARTVIEW!$C$5:$C$1171,Layout!$C$449,SMARTVIEW!$D$5:$D$1171,Layout!$C$451,SMARTVIEW!$F$5:$F$1171,Layout!$B$451) -> 0 | L451: =SUMIFS(SMARTVIEW!O$5:O$1171,SMARTVIEW!$B$5:$B$1171,Layout!$B$449,SMARTVIEW!$C$5:$C$1171,Layout!$C$449,SMARTVIEW!$D$5:$D$1171,Layout!$C$451,SMARTVIEW!$F$5:$F$1171,Layout!$B$451) -> 0 | M451: =SUMIFS(SMARTVIEW!P$5:P$1171,SMARTVIEW!$B$5:$B$1171,Layout!$B$449,SMARTVIEW!$C$5:$C$1171,Layout!$C$449,SMARTVIEW!$D$5:$D$1171,Layout!$C$451,SMARTVIEW!$F$5:$F$1171,Layout!$B$451) -> 0 | N451: =SUMIFS(SMARTVIEW!Q$5:Q$1171,SMARTVIEW!$B$5:$B$1171,Layout!$B$449,SMARTVIEW!$C$5:$C$1171,Layout!$C$449,SMARTVIEW!$D$5:$D$1171,Layout!$C$451,SMARTVIEW!$F$5:$F$1171,Layout!$B$451) -> 0 | O451: =SUMIFS(SMARTVIEW!R$5:R$1171,SMARTVIEW!$B$5:$B$1171,Layout!$B$449,SMARTVIEW!$C$5:$C$1171,Layout!$C$449,SMARTVIEW!$D$5:$D$1171,Layout!$C$451,SMARTVIEW!$F$5:$F$1171,Layout!$B$451) -> 0 | P451: =SUMIFS(SMARTVIEW!S$5:S$1171,SMARTVIEW!$B$5:$B$1171,Layout!$B$449,SMARTVIEW!$C$5:$C$1171,Layout!$C$449,SMARTVIEW!$D$5:$D$1171,Layout!$C$451,SMARTVIEW!$F$5:$F$1171,Layout!$B$451) -> 0 | Q451: =SUM(E451:P451) -> 0
... 1563 more rows

Sheet RESERVE (hidden)
E2: =Layout!J4 -> Seawatch On-The-Beach Condominium Association, Inc
E3: RESERVE ANALYSIS FOR THE PERIOD
E4: =Layout!J6 -> JANUARY 1, 2019 THROUGH DECEMBER 31, 2019
A6: =Layout!D6 -> 2100 | B6: Average | C6: Average | D6: Estimated | E6: =BUDGET!P6 -> 1 | F6: Estimated | G6: =E6 -> 1 | I6: Estimated
A7: unit/weeks | B7: Estimated | C7: Estimated | D7: Replacement | E7: Statutory | F7: Fund | G7: Proposed | H7: =E6 -> 1 | I7: Fund
B8: Life | C8: Remaining Life | D8: Cost | E8: Reserve | F8: Balance | G8: Reserve/Assmt. | H8: Projected | I8: Balance
A9: Replacement Fund | B9: (in years) | C9: (in years) | D9: ="("&TEXT(VLOOKUP(NV_BUV,TITLE,4),"####")&" units)" -> ( units) | E9: Funding | F9: =Layout!W7 -> 0 | G9: Contributions | H9: Expenses | I9: =Layout!X7 -> 0
A10: Interior | B10: 11.26 | C10: 7.2 | D10: 4097100 | E10: 558943 | F10: 73400 | G10: 374580 | H10: 173810 | I10: =+F10+G10-H10 -> 274170
A11: Roof | B11: 27.23 | C11: 7.03 | D11: 120000 | E11: 3279 | F11: 96953 | G11: 4406 | H11: 35000 | I11: 66359
A12: Painting | B12: 7.25 | C12: 2.73 | D12: 235100 | E12: 49578 | F12: 99523 | G12: 32428 | H12: 85100 | I12: 46851
A13: Paving | B13: 21.94 | C13: 15.17 | D13: 170000 | E13: 10501 | F13: 10723 | G13: 7750 | H13: 0 | I13: 18473
A14: Recreation | B14: 0 | C14: 0 | D14: 0 | E14: 0 | F14: 0 | G14: 0 | H14: 0 | I14: 0
A15: Capital Improvements | B15: 14.44 | C15: 7.02 | D15: 1045250 | E15: 130358 | F15: 130500 | G15: 76562 | H15: 173500 | I15: 33562
A16: Special Assessment | B16: 0 | C16: 0 | D16: 0 | E16: 0 | F16: 0 | G16: 0 | H16: 0 | I16: 0
A17: TOTAL | D17: =SUM(D10:D16) -> 5667450 | E17: 752659 | F17: 411099 | G17: 495726 | H17: 467410 | I17: 439415
B20: =E6 -> 1 | D20: =E6 -> 1
B21: Statutory | D21: Proposed | F21: =IF(D31<amount,"** The State of Florida mandates that condominium associations prepare calculations"," ") -> ** The State of Florida mandates that condominium associations prepare calculations
B22: Reserve | D22: Reserve | F22: =IF(D31<amount," to fully fund reserves. The Law also provides the reserve requirement may be"," ") -> to fully fund reserves. The Law also provides the reserve requirement may be
B23: Funding | D23: Funding | F23: =IF(D31<amount," waived or reduced, allowing the unit owners to put less money into the reserve"," ") -> waived or reduced, allowing the unit owners to put less money into the reserve
A24: Operating Fee | B24: =BUDGET!Q383 -> 682.9159333 | D24: =BUDGET!W383 -> 682.9159333 | F24: =IF(D31<amount," accounts. To meet fully funded requirements for Statutory Reserves, the "," ") -> accounts. To meet fully funded requirements for Statutory Reserves, the
A25: Capital Reserve | B25: =BUDGET!Q384 -> 334.8004762 | D25: =BUDGET!W384 -> 220.6180952 | F25: =IF(D31<amount," resulting annual maintenance fee would be "& TEXT(amount,"$##,##0.00") &". The Board of Directors"," ") -> resulting annual maintenance fee would be $1,041.32. The Board of Directors
A26: Painting Reserve | B26: =BUDGET!Q385 -> 23.60857143 | D26: =BUDGET!W385 -> 15.44190476 | F26: =IF(D31<amount," recommends a vote in favor of waiving the full funding requirements for Statutory"," ") -> recommends a vote in favor of waiving the full funding requirements for Statutory
A27: Special Assessment | B27: =BUDGET!Q386 -> 0 | D27: =BUDGET!W386 -> 0 | F27: =IF(D31<amount," Reserves at the " & TEXT(VALUE(NV_YEAR4)+1,"####0") & " annual meeting, thereby establishing the maintenance fee at"," ") -> Reserves at the 1 annual meeting, thereby establishing the maintenance fee at
A28: Total | B28: =SUM(B24:B27) -> 1041.324981 | D28: =SUM(D24:D27) -> 918.9759333 | F28: =IF(D31<amount," "&TEXT(D31,"$##,##0.00")&" for the "&TEXT(E6,"####0")&" budget year."," ") -> $918.98 for the 1 budget year.
A29: Painting Reserve Credit | B29: =BUDGET!Q390 -> 0 | D29: =BUDGET!W390 -> 0
A30: Operating Surplus Credit | B30: =BUDGET!Q391 -> 0 | D30: =BUDGET!W391 -> 0
A31: TOTAL AMOUNT BILLED | B31: =B28+B30+B29 -> 1041.324981 | D31: =D28+D30+D29 -> 918.9759333
A35: NOTE: | B35: There may be some items that require future replacement and are not reserved for, i.e.: replacement of plumbing, railings,
B36: electrical wiring, etcetera. These types of items will need to be paid from operating funds or will require a special assessment.
B38: The components' actual replacement costs and useful lives may vary from the estimated amounts. If additional funds are
B39: needed, the Association has the right, subject to Board approval, to increase regular assessments, pass special assessments,
B40: or delay major repairs and replacements until funds are available.
B42: ="There are "& TEXT(A6,"#####") &" periods of 7-day annual use availability that exist within the timeshare plan for which annual fees are required" -> There are 2100 periods of 7-day annual use availability that exist within the timeshare plan for which annual fees are required
B43: to be paid to the Division of Florida Land Sales, Condominiums, and Mobile Homes, Bureau of Timeshare, in
B44: accordance with Section 721.27, Florida Statutes.

Sheet BU (hidden)
A1: Business Unit | B1: Legal Names | C1: Units | D1: Unit Weeks
A2: 39001 | B2: Plantation House Condominium Owners Association, Inc | C2: 12 | D2: 612
A3: 39002 | B3: The Cottages at South Seas Plantation Condominium Association, Inc | C3: 14 | D3: 700
A4: 39003 | B4: The South Seas Club Condominium Association, Inc | C4: 24 | D4: 1224
A5: 39004 | B5: Plantation Bay Villas Owners Association, Inc | C5: 4 | D5: 204
A6: 39005 | B6: Plantation Beach Club Owners Association, Inc | C6: 18 | D6: 918
A7: 39006 | B7: Plantation Beach Club II Owners Association, Inc | C7: 26 | D7: 1326
A8: 39007 | B8: Plantation Beach Club III Owners Association, Inc | C8: 12 | D8: 612
A9: 39011 | B9: Hurricane House Condominium Association, Inc | C9: 15 | D9: 765
A10: 39012 | B10: The Sanibel Cottages Condominium Association, Inc | C10: 28 | D10: 1400
A11: 39013 | B11: Casa Ybel Beach and Racquet Club Condominium Association, Inc | C11: 56 | D11: 2856
A12: 39014 | B12: Casa Ybel Beach and Racquet Club, Phase IJK, Condominium Association, Inc | C12: 18 | D12: 900
A13: 39015 | B13: Tortuga Beach Club Condominium Association, Inc | C13: 54 | D13: 2700
A14: 39018 | B14: Harbourview Villas at South Seas Resort Condominium Association, Inc | C14: 10 | D14: 510
A15: 39021 | B15: Seawatch On-The-Beach Condominium Association, Inc | C15: 42 | D15: 2100
A16: 39023 | B16: Eagles Nest on Marco Beach Condominium Association, Inc | C16: 96 | D16: 4800
A17: 39024 | B17: The Surf Club of Marco, Inc | C17: 44 | D17: 2244
A18: 39025 | B18: Plantation Beach Club Condominium Association, Inc | C18: 30 | D18: 1530
A19: 39026 | B19: The Charter Club of Marco Beach Condominium Association, Inc | C19: 80 | D19: 4080
A20: 39027 | B20: Club Regency of Marco Island Condominium Association, Inc | C20: 32 | D20: 1632

Sheet SSPHGVS (hidden)
B1: =Layout!J4 -> Seawatch On-The-Beach Condominium Association, Inc
B2: ANNUAL BUDGET FOR THE PERIOD
B3: =Layout!J6 -> JANUARY 1, 2019 THROUGH DECEMBER 31, 2019
B4: SUPPLEMENTAL SCHEDULE OF ITEMS PAID TO SOUTH SEAS PLANTATION
D7: =BUDGET!P6 -> 1 | E7: =BUDGET!Q6 -> 1 | G7: =BUDGET!S6 -> 0 | H7: =BUDGET!T6 -> 0 | I7: =BUDGET!U6 -> 0 | J7: =BUDGET!V6 -> Variance $ | K7: =BUDGET!W6 -> Variance %
D8: Annual | E8: Per Unit/ | G8: Per Unit/ | H8: Annual | I8: Proj. Actuals | J8: =NV_YEAR4+1&" Budget VS "&NV_YEAR4&" YE Proj" -> 1 Budget VS YE Proj | K8: =NV_YEAR4+1&" Budget VS "&NV_YEAR4&" YE Proj" -> 1 Budget VS YE Proj
A9: DEPT | B9: ACCT | C9: Description | D9: Budget | E9: Week | G9: Week | H9: Budget | I9: For Year End
A11: 19700 | B11: =BUDGET!B110 -> 682070 | C11: Owners Coffee | D11: =BUDGET!P110 -> 600 | E11: =BUDGET!Q110 -> 0.2857142857 | G11: =BUDGET!S110 -> 0.1142857143 | H11: =BUDGET!T110 -> 240 | I11: =BUDGET!U110 -> 239.9 | J11: =D11-I11 -> 360.1 | K11: =IF(I11=0,0,J11/I11) -> 1.501042101
A12: 19700 | B12: =BUDGET!B107 -> 720490 | C12: Administrative Fees | D12: =BUDGET!P107 -> 0 | E12: =BUDGET!Q107 -> 0 | G12: =BUDGET!S107 -> 0 | H12: =BUDGET!T107 -> 0 | I12: =BUDGET!U107 -> 0 | J12: =D12-I12 -> 0 | K12: =IF(I12=0,0,J12/I12) -> 0
A13: 19700 | B13: =BUDGET!B81 -> 751010 | C13: Rent/CAM Office | D13: =BUDGET!P81 -> 0 | E13: =BUDGET!Q81 -> 0 | G13: =BUDGET!S81 -> 0 | H13: =BUDGET!T81 -> 0 | I13: =BUDGET!U81 -> 0 | J13: 0 | K13: 0
A14: 19715 | B14: =BUDGET!B193 -> 600250 | C14: Security Contract | D14: =BUDGET!P193 -> 55500 | E14: =BUDGET!Q193 -> 26.42857143 | G14: =BUDGET!S193 -> 27.14285714 | H14: =BUDGET!T193 -> 57000 | I14: =BUDGET!U193 -> 53868.44 | J14: 1631.56 | K14: 0.03028786429
A15: 19700 | B15: =BUDGET!B113 -> 705060 | C15: SSP Tram Service | D15: =BUDGET!P113 -> 0 | E15: =BUDGET!Q113 -> 0 | G15: =BUDGET!S113 -> 0 | H15: =BUDGET!T113 -> 0 | I15: =BUDGET!U113 -> 0 | J15: 0 | K15: 0
A16: 19700 | B16: =BUDGET!B102 -> 705010 | C16: AMENITY MEMBERSHIP FEE | D16: =BUDGET!P102 -> 0 | E16: =BUDGET!Q102 -> 0 | G16: =BUDGET!S102 -> 0 | H16: =BUDGET!T102 -> 0 | I16: =BUDGET!U102 -> 0 | J16: 0 | K16: 0
A17: 19745 | B17: =BUDGET!B299 -> 661110 | C17: Waste Removal | D17: =BUDGET!P299 -> 13176 | E17: =BUDGET!Q299 -> 6.274285714 | G17: =BUDGET!S299 -> 6.742857143 | H17: =BUDGET!T299 -> 14160 | I17: =BUDGET!U299 -> 11761.56 | J17: 1414.44 | K17: 0.1202595574
A18: 19201 | B18: =BUDGET!B136 -> 650010 | C18: TELEPHONE LOCAL | D18: =BUDGET!P136 -> 0 | E18: =BUDGET!Q136 -> 0 | G18: =BUDGET!S136 -> 0 | H18: =BUDGET!T136 -> 0 | I18: =BUDGET!U136 -> 0 | J18: 0 | K18: 0
A19: 19745 | B19: =BUDGET!B301 -> 661060 | C19: Cable Television | D19: =BUDGET!P301 -> 22800 | E19: =BUDGET!Q301 -> 10.85714286 | G19: =BUDGET!S301 -> 10.85714286 | H19: =BUDGET!T301 -> 22800 | I19: =BUDGET!U301 -> 24740.32 | J19: -1940.32 | K19: -0.07842744152
A20: 19610 | B20: =BUDGET!B274 -> 664160 | C20: Landscaping Contract | D20: =BUDGET!P274 -> 7800 | E20: =BUDGET!Q274 -> 3.714285714 | G20: =BUDGET!S274 -> 3.571428571 | H20: =BUDGET!T274 -> 7500 | I20: =BUDGET!U274 -> 7500 | J20: 300 | K20: 0.04
A21: 19735 | B21: =BUDGET!B257 -> 650050 | C21: SSP Maintenance Contract | D21: =BUDGET!P257 -> 0 | E21: =BUDGET!Q257 -> 0 | G21: =BUDGET!S257 -> 0 | H21: =BUDGET!T257 -> 0 | I21: =BUDGET!U257 -> 0 | J21: 0 | K21: 0
C22: Total | D22: =SUM(D11:D21) -> 99876 | E22: =SUM(E11:E21) -> 47.56 | G22: =SUM(G11:G21) -> 48.42857143 | H22: =SUM(H11:H21) -> 101700 | I22: =SUM(I11:I21) -> 98110.22 | J22: =SUM(J11:J21) -> 1765.78 | K22: =SUM(K11:K21) -> 1.613162081
B25: SUPPLEMENTAL SCHEDULE OF ITEMS PAID TO HILTON GRAND VACATIONS COMPANY
D27: =BUDGET!P6 -> 1 | E27: =BUDGET!Q6 -> 1 | G27: =BUDGET!S6 -> 0 | H27: =BUDGET!T6 -> 0 | I27: =BUDGET!U6 -> 0 | J27: =BUDGET!V6 -> Variance $ | K27: =BUDGET!W6 -> Variance %
D28: Annual | E28: Per Unit/ | G28: Per Unit/ | H28: Annual | I28: Proj. Actuals | J28: =NV_YEAR4+1&" Budget VS "&NV_YEAR4&" YE Proj" -> 1 Budget VS YE Proj | K28: =NV_YEAR4+1&" Budget VS "&NV_YEAR4&" YE Proj" -> 1 Budget VS YE Proj
C29: Description | D29: Budget | E29: Week | G29: Week | H29: Budget | I29: For Year End
A31: 19700 | B31: 678030 | C31: Financial Services Fees | D31: =BUDGET!P106 -> 34344 | E31: =BUDGET!Q106 -> 16.35428571 | G31: =BUDGET!S106 -> 16.34428571 | H31: =BUDGET!T106 -> 34323 | I31: =BUDGET!U106 -> 33360.42 | J31: =D31-I31 -> 983.58 | K31: =IF(I31=0,0,J31/I31) -> 0.02948344176
A32: 19700 | B32: 790076 | C32: Resort Services Fees Expense | D32: =BUDGET!P101 -> 0 | E32: =BUDGET!Q101 -> 0 | G32: =BUDGET!S101 -> 0 | H32: =BUDGET!T101 -> 0 | I32: =BUDGET!U101 -> 0 | J32: =D32-I32 -> 0 | K32: =IF(I32=0,0,J32/I32) -> 0
A33: 19700 | B33: 790075 | C33: HOA Management Fee Expense | D33: =BUDGET!P104 -> 98724 | E33: =BUDGET!Q104 -> 47.01142857 | G33: =BUDGET!S104 -> 46.17714286 | H33: =BUDGET!T104 -> 96972 | I33: =BUDGET!U104 -> 96972 | J33: =D33-I33 -> 1752 | K33: 0.01806707091
A34: ALL DEPTS | B34: 541002 | C34: Salaried Manager | D34: =SUMIF(BUDGET!$B:$B,SSPHGVS!$B34,BUDGET!P:P) -> 71403 | E34: =SUMIF(BUDGET!$B:$B,SSPHGVS!$B34,BUDGET!Q:Q) -> 34.00142857 | G34: =SUMIF(BUDGET!$B:$B,SSPHGVS!$B34,BUDGET!S:S) -> 30.98018895 | H34: =SUMIF(BUDGET!$B:$B,SSPHGVS!$B34,BUDGET!T:T) -> 65058.3968 | I34: =SUMIF(BUDGET!$B:$B,SSPHGVS!$B34,BUDGET!U:U) -> 68438.62 | J34: 2964.38 | K34: 0.0433144327
A35: ALL DEPTS | B35: 541003 | C35: Salaried Non-Manager | D35: =SUMIF(BUDGET!$B:$B,SSPHGVS!$B35,BUDGET!P:P) -> 0 | E35: =SUMIF(BUDGET!$B:$B,SSPHGVS!$B35,BUDGET!Q:Q) -> 0 | G35: =SUMIF(BUDGET!$B:$B,SSPHGVS!$B35,BUDGET!S:S) -> 18.01228 | H35: =SUMIF(BUDGET!$B:$B,SSPHGVS!$B35,BUDGET!T:T) -> 37825.788 | I35: =SUMIF(BUDGET!$B:$B,SSPHGVS!$B35,BUDGET!U:U) -> 18019.27 | J35: -18019.27 | K35: -1
A36: ALL DEPTS | B36: 542030 | C36: Hourly Other | D36: =SUMIF(BUDGET!$B:$B,SSPHGVS!$B36,BUDGET!P:P) -> 155167 | E36: =SUMIF(BUDGET!$B:$B,SSPHGVS!$B36,BUDGET!Q:Q) -> 73.88904762 | G36: =SUMIF(BUDGET!$B:$B,SSPHGVS!$B36,BUDGET!S:S) -> 50.14612457 | H36: =SUMIF(BUDGET!$B:$B,SSPHGVS!$B36,BUDGET!T:T) -> 105306.8616 | I36: =SUMIF(BUDGET!$B:$B,SSPHGVS!$B36,BUDGET!U:U) -> 127871.21 | J36: 27295.79 | K36: 0.21346314
A37: ALL DEPTS | B37: 543030 | C37: OT Hourly Other | D37: =SUMIF(BUDGET!$B:$B,SSPHGVS!$B37,BUDGET!P:P) -> 4700 | E37: =SUMIF(BUDGET!$B:$B,SSPHGVS!$B37,BUDGET!Q:Q) -> 2.238095238 | G37: =SUMIF(BUDGET!$B:$B,SSPHGVS!$B37,BUDGET!S:S) -> 1.707619048 | H37: =SUMIF(BUDGET!$B:$B,SSPHGVS!$B37,BUDGET!T:T) -> 3586 | I37: =SUMIF(BUDGET!$B:$B,SSPHGVS!$B37,BUDGET!U:U) -> 5519.16 | J37: -819.16 | K37: -0.1484211365
A38: ALL DEPTS | B38: 561240 | C38: Paid Time Off | D38: =SUMIF(BUDGET!$B:$B,SSPHGVS!$B38,BUDGET!P:P) -> 24884 | E38: =SUMIF(BUDGET!$B:$B,SSPHGVS!$B38,BUDGET!Q:Q) -> 11.84952381 | G38: =SUMIF(BUDGET!$B:$B,SSPHGVS!$B38,BUDGET!S:S) -> 12.30551277 | H38: =SUMIF(BUDGET!$B:$B,SSPHGVS!$B38,BUDGET!T:T) -> 25841.57682 | I38: =SUMIF(BUDGET!$B:$B,SSPHGVS!$B38,BUDGET!U:U) -> 21982.49 | J38: 2901.51 | K38: 0.1319918717
A39: ALL DEPTS | B39: 561260 | C39: Workers Compensation Exp | D39: =SUMIF(BUDGET!$B:$B,SSPHGVS!$B39,BUDGET!P:P) -> 3946 | E39: =SUMIF(BUDGET!$B:$B,SSPHGVS!$B39,BUDGET!Q:Q) -> 1.879047619 | G39: =SUMIF(BUDGET!$B:$B,SSPHGVS!$B39,BUDGET!S:S) -> 2.000319254 | H39: =SUMIF(BUDGET!$B:$B,SSPHGVS!$B39,BUDGET!T:T) -> 4200.670433 | I39: =SUMIF(BUDGET!$B:$B,SSPHGVS!$B39,BUDGET!U:U) -> 3856.19 | J39: =D39-I39 -> 89.81 | K39: =IF(I39=0,0,J39/I39) -> 0.02328982752
A40: ALL DEPTS | B40: 561490 | C40: Other Non-Union Benefit Exp | D40: =SUMIF(BUDGET!$B:$B,SSPHGVS!$B40,BUDGET!P:P) -> 22629 | E40: =SUMIF(BUDGET!$B:$B,SSPHGVS!$B40,BUDGET!Q:Q) -> 10.77571429 | G40: =SUMIF(BUDGET!$B:$B,SSPHGVS!$B40,BUDGET!S:S) -> 7.80571305 | H40: =SUMIF(BUDGET!$B:$B,SSPHGVS!$B40,BUDGET!T:T) -> 16391.9974 | I40: =SUMIF(BUDGET!$B:$B,SSPHGVS!$B40,BUDGET!U:U) -> 17362.09 | J40: 5266.91 | K40: 0.3033569115
A41: ALL DEPTS | B41: 555070 | C41: Other Incentive Compensation Exp | D41: =SUMIF(BUDGET!$B:$B,SSPHGVS!$B41,BUDGET!P:P) -> 0 | E41: =SUMIF(BUDGET!$B:$B,SSPHGVS!$B41,BUDGET!Q:Q) -> 0 | G41: =SUMIF(BUDGET!$B:$B,SSPHGVS!$B41,BUDGET!S:S) -> 0 | H41: =SUMIF(BUDGET!$B:$B,SSPHGVS!$B41,BUDGET!T:T) -> 0 | I41: =SUMIF(BUDGET!$B:$B,SSPHGVS!$B41,BUDGET!U:U) -> 0 | J41: =D41-I41 -> 0 | K41: 0
A42: ALL DEPTS | B42: 561010 | C42: Group Health Insurance Non-Union | D42: =SUMIF(BUDGET!$B:$B,SSPHGVS!$B42,BUDGET!P:P) -> 37376 | E42: =SUMIF(BUDGET!$B:$B,SSPHGVS!$B42,BUDGET!Q:Q) -> 17.79809524 | G42: =SUMIF(BUDGET!$B:$B,SSPHGVS!$B42,BUDGET!S:S) -> 17.3161883 | H42: =SUMIF(BUDGET!$B:$B,SSPHGVS!$B42,BUDGET!T:T) -> 36363.99544 | I42: =SUMIF(BUDGET!$B:$B,SSPHGVS!$B42,BUDGET!U:U) -> 35361.45 | J42: 2014.55 | K42: 0.05697023171
A43: ALL DEPTS | B43: 561170 | C43: PTO and Vacation Expense | D43: =SUMIF(BUDGET!$B:$B,SSPHGVS!$B43,BUDGET!P:P) -> 0 | E43: =SUMIF(BUDGET!$B:$B,SSPHGVS!$B43,BUDGET!Q:Q) -> 0 | G43: =SUMIF(BUDGET!$B:$B,SSPHGVS!$B43,BUDGET!S:S) -> 0 | H43: =SUMIF(BUDGET!$B:$B,SSPHGVS!$B43,BUDGET!T:T) -> 0 | I43: =SUMIF(BUDGET!$B:$B,SSPHGVS!$B43,BUDGET!U:U) -> 0 | J43: =D43-I43 -> 0 | K43: =IF(I43=0,0,J43/I43) -> 0
C44: Total | D44: =SUM(D31:D43) -> 453173 | E44: =SUM(E31:E43) -> 215.7966667 | G44: =SUM(G31:G43) -> 202.7953745 | H44: =SUM(H31:H43) -> 425870.2865 | I44: =SUM(I31:I43) -> 428742.9 | J44: =SUM(J31:J43) -> 24430.1 | K44: =SUM(K31:K43) -> -0.3284842087

Sheet MASTER SHEET DETAIL (hidden)
C1: Hilton Grand Vacations Management, LLC. | I1: Hilton Grand Vacations Company
C2: =Layout!J4 -> Seawatch On-The-Beach Condominium Association, Inc | I2: =Layout!J4 -> Seawatch On-The-Beach Condominium Association, Inc
C3: =Layout!J5 -> ANNUAL BUDGET FOR THE PERIOD | I3: =Layout!J5 -> ANNUAL BUDGET FOR THE PERIOD
C4: =Layout!J6 -> JANUARY 1, 2019 THROUGH DECEMBER 31, 2019 | I4: =Layout!J6 -> JANUARY 1, 2019 THROUGH DECEMBER 31, 2019
C7: =Layout!D6 -> 2100 | D7: (unit/weeks) | P7: =NV_YEAR4+1 -> 1 | Q7: =NV_YEAR4+1 -> 1 | S7: =NV_YEAR4 -> 0 | T7: =NV_YEAR4 -> 0 | U7: =NV_YEAR4 -> 0 | V7: Variance $ | W7: Variance % | X7: Variance $ | Y7: Variance %
P8: Annual | Q8: Per Unit/ | S8: Per Unit/ | T8: Annual | U8: Proj. Actuals | V8: =NV_YEAR4+1&" VS "&NV_YEAR4 -> 1 VS | W8: =NV_YEAR4+1&" VS "&NV_YEAR4 -> 1 VS | X8: =NV_YEAR4+1&" Budget VS "&NV_YEAR4&" YE Proj" -> 1 Budget VS YE Proj | Y8: =NV_YEAR4+1&" Budget VS "&NV_YEAR4&" YE Proj" -> 1 Budget VS YE Proj | Z8: NOTES
A9: DEPT | B9: ACCT NO | C9: Description | D9: Jan | E9: Feb | F9: Mar | G9: Apr | H9: May | I9: Jun | J9: Jul | K9: Aug | L9: Sep | M9: Oct | N9: Nov | O9: Dec | P9: Budget | Q9: Week | S9: Week | T9: Budget | U9: For Year End | V9: Budget | W9: Week
C10: OPERATING REVENUE
A11: 19800 | B11: 458010 | C11: ASSOCIATION FEES | D11: =((+$P$324-SUM($P12:$P34))/12) -> 119510.2883 | E11: 119510.2883 | F11: 119510.2883 | G11: 119510.2883 | H11: 119510.2883 | I11: 119510.2883 | J11: 119510.2883 | K11: 119510.2883 | L11: 119510.2883 | M11: 119510.2883 | N11: 119510.2883 | O11: 119510.2883 | P11: =SUM(D11:O11) -> 1434123.46 | Q11: =P11/$C$7 -> 682.9159333 | S11: =T11/$C$7 -> 656.5372541 | T11: =ACCT_19800_458010_TOT_CY_BUD -> 1378728.234 | U11: =ACCT_19800_458010_TOT_CY_PROJ -> 1378737 | V11: =P11-T11 -> 55395.2264 | W11: =IF(T11=0,0,V11/T11) -> 0.0401784957 | X11: =P11-U11 -> 55386.46 | Y11: =IF(U11=0,0,X11/U11) -> 0.04017188195 | Z11: =ACCT_19800_458010_NOTES -> 0 | AB11: =IF(AND(P11=0,T11=0,U11=0,Z11=0),"HIDE","") -> 
A12: 19800 | B12: 458030 | C12: SPECIAL ASSESSMENT REVENUE | D12: =ACCT_19800_458030_NYB_01 -> 0 | E12: =ACCT_19800_458030_NYB_02 -> 0 | F12: =ACCT_19800_458030_NYB_03 -> 0 | G12: =ACCT_19800_458030_NYB_04 -> 0 | H12: =ACCT_19800_458030_NYB_05 -> 0 | I12: =ACCT_19800_458030_NYB_06 -> 0 | J12: =ACCT_19800_458030_NYB_07 -> 0 | K12: =ACCT_19800_458030_NYB_08 -> 0 | L12: =ACCT_19800_458030_NYB_09 -> 0 | M12: =ACCT_19800_458030_NYB_10 -> 0 | N12: =ACCT_19800_458030_NYB_11 -> 0 | O12: =ACCT_19800_458030_NYB_12 -> 0 | P12: =SUM(D12:O12) -> 0 | Q12: =P12/$C$7 -> 0 | S12: =T12/$C$7 -> 0 | T12: =ACCT_19800_458030_TOT_CY_BUD -> 0 | U12: =ACCT_19800_458030_TOT_CY_PROJ -> 0 | V12: =P12-T12 -> 0 | W12: =IF(T12=0,0,V12/T12) -> 0 | X12: 0 | Y12: =IF(U12=0,0,X12/U12) -> 0 | Z12: =ACCT_19800_458030_NOTES -> 0 | AB12: HIDE
A13: 19800 | B13: 444230 | C13: OTHER REAL ESTATE REVENUE | D13: =ACCT_19800_444230_NYB_01 -> 0 | E13: =ACCT_19800_444230_NYB_02 -> 0 | F13: =ACCT_19800_444230_NYB_03 -> 0 | G13: =ACCT_19800_444230_NYB_04 -> 0 | H13: =ACCT_19800_444230_NYB_05 -> 0 | I13: =ACCT_19800_444230_NYB_06 -> 0 | J13: =ACCT_19800_444230_NYB_07 -> 0 | K13: =ACCT_19800_444230_NYB_08 -> 0 | L13: =ACCT_19800_444230_NYB_09 -> 0 | M13: =ACCT_19800_444230_NYB_10 -> 0 | N13: =ACCT_19800_444230_NYB_11 -> 0 | O13: =ACCT_19800_444230_NYB_12 -> 0 | P13: =SUM(D13:O13) -> 0 | Q13: =P13/$C$7 -> 0 | S13: =T13/$C$7 -> 0 | T13: =ACCT_19800_444230_TOT_CY_BUD -> 0 | U13: =ACCT_19800_444230_TOT_CY_PROJ -> 0 | V13: =P13-T13 -> 0 | W13: =IF(T13=0,0,V13/T13) -> 0 | X13: =P13-U13 -> 0 | Y13: =IF(U13=0,0,X13/U13) -> 0 | Z13: =ACCT_19800_444230_NOTES -> 0 | AB13: =IF(AND(P13=0,T13=0,U13=0,Z13=0),"HIDE","") -> HIDE
A14: 19800 | B14: 458060 | C14: REAL ESTATE TAX FEE | D14: =ACCT_19800_458060_NYB_01 -> 0 | E14: =ACCT_19800_458060_NYB_02 -> 0 | F14: =ACCT_19800_458060_NYB_03 -> 0 | G14: =ACCT_19800_458060_NYB_04 -> 0 | H14: =ACCT_19800_458060_NYB_05 -> 0 | I14: =ACCT_19800_458060_NYB_06 -> 0 | J14: =ACCT_19800_458060_NYB_07 -> 0 | K14: =ACCT_19800_458060_NYB_08 -> 0 | L14: =ACCT_19800_458060_NYB_09 -> 0 | M14: =ACCT_19800_458060_NYB_10 -> 0 | N14: =ACCT_19800_458060_NYB_11 -> 0 | O14: =ACCT_19800_458060_NYB_12 -> 0 | P14: 0 | Q14: 0 | S14: 0 | T14: =ACCT_19800_458060_TOT_CY_BUD -> 0 | U14: =ACCT_19800_458060_TOT_CY_PROJ -> 0 | V14: 0 | W14: 0 | X14: 0 | Y14: 0 | Z14: =ACCT_19800_458060_NOTES -> 0 | AB14: HIDE
A15: 19800 | B15: 458080 | C15: LATE FEE INCOME | D15: =ACCT_19800_458080_NYB_01 -> 0 | E15: =ACCT_19800_458080_NYB_02 -> 700 | F15: =ACCT_19800_458080_NYB_03 -> 3400 | G15: =ACCT_19800_458080_NYB_04 -> 2000 | H15: =ACCT_19800_458080_NYB_05 -> 1000 | I15: =ACCT_19800_458080_NYB_06 -> 200 | J15: =ACCT_19800_458080_NYB_07 -> 100 | K15: =ACCT_19800_458080_NYB_08 -> 200 | L15: =ACCT_19800_458080_NYB_09 -> 100 | M15: =ACCT_19800_458080_NYB_10 -> 100 | N15: =ACCT_19800_458080_NYB_11 -> 100 | O15: =ACCT_19800_458080_NYB_12 -> 100 | P15: 8000 | Q15: 3.80952381 | S15: 3.595238095 | T15: =ACCT_19800_458080_TOT_CY_BUD -> 7550 | U15: =ACCT_19800_458080_TOT_CY_PROJ -> 8245.53 | V15: 450 | W15: 0.05960264901 | X15: -245.53 | Y15: -0.02977734603 | Z15: =ACCT_19800_458080_NOTES -> Same as budgeted
A16: 19800 | B16: 458090 | C16: NSF INCOME | D16: =ACCT_19800_458090_NYB_01 -> 0 | E16: =ACCT_19800_458090_NYB_02 -> 0 | F16: =ACCT_19800_458090_NYB_03 -> 0 | G16: =ACCT_19800_458090_NYB_04 -> 0 | H16: =ACCT_19800_458090_NYB_05 -> 0 | I16: =ACCT_19800_458090_NYB_06 -> 0 | J16: =ACCT_19800_458090_NYB_07 -> 0 | K16: =ACCT_19800_458090_NYB_08 -> 0 | L16: =ACCT_19800_458090_NYB_09 -> 0 | M16: =ACCT_19800_458090_NYB_10 -> 0 | N16: =ACCT_19800_458090_NYB_11 -> 0 | O16: =ACCT_19800_458090_NYB_12 -> 0 | P16: 0 | Q16: 0 | S16: 0 | T16: =ACCT_19800_458090_TOT_CY_BUD -> 0 | U16: =ACCT_19800_458090_TOT_CY_PROJ -> 35 | V16: 0 | W16: 0 | X16: -35 | Y16: -1 | Z16: =ACCT_19800_458090_NOTES -> 0
A17: 19800 | B17: 458100 | C17: INTEREST INCOME | D17: =ACCT_19800_458100_NYB_01 -> 500 | E17: =ACCT_19800_458100_NYB_02 -> 500 | F17: =ACCT_19800_458100_NYB_03 -> 1000 | G17: =ACCT_19800_458100_NYB_04 -> 1200 | H17: =ACCT_19800_458100_NYB_05 -> 1000 | I17: =ACCT_19800_458100_NYB_06 -> 1000 | J17: =ACCT_19800_458100_NYB_07 -> 600 | K17: =ACCT_19800_458100_NYB_08 -> 500 | L17: =ACCT_19800_458100_NYB_09 -> 500 | M17: =ACCT_19800_458100_NYB_10 -> 400 | N17: =ACCT_19800_458100_NYB_11 -> 300 | O17: =ACCT_19800_458100_NYB_12 -> 500 | P17: 8000 | Q17: 3.80952381 | S17: 0 | T17: =ACCT_19800_458100_TOT_CY_BUD -> 0 | U17: =ACCT_19800_458100_TOT_CY_PROJ -> 8972.55 | V17: 8000 | W17: 0 | X17: -972.55 | Y17: -0.1083917058 | Z17: =ACCT_19800_458100_NOTES -> Budgeted based on projected actuals, but being conservative
A18: 19800 | B18: 458110 | C18: DIVIDEND INCOME | D18: =ACCT_19800_458110_NYB_01 -> 0 | E18: =ACCT_19800_458110_NYB_02 -> 0 | F18: =ACCT_19800_458110_NYB_03 -> 0 | G18: =ACCT_19800_458110_NYB_04 -> 0 | H18: =ACCT_19800_458110_NYB_05 -> 0 | I18: =ACCT_19800_458110_NYB_06 -> 0 | J18: =ACCT_19800_458110_NYB_07 -> 0 | K18: =ACCT_19800_458110_NYB_08 -> 0 | L18: =ACCT_19800_458110_NYB_09 -> 0 | M18: =ACCT_19800_458110_NYB_10 -> 0 | N18: =ACCT_19800_458110_NYB_11 -> 0 | O18: =ACCT_19800_458110_NYB_12 -> 0 | P18: 0 | Q18: 0 | S18: 0 | T18: =ACCT_19800_458110_TOT_CY_BUD -> 0 | U18: =ACCT_19800_458110_TOT_CY_PROJ -> 0 | V18: 0 | W18: 0 | X18: 0 | Y18: 0 | Z18: =ACCT_19800_458110_NOTES -> 0 | AB18: HIDE
A19: 19800 | B19: 458150 | C19: SUPPORT AREA 1 OFFICE | D19: =ACCT_19800_458150_NYB_01 -> 0 | E19: =ACCT_19800_458150_NYB_02 -> 0 | F19: =ACCT_19800_458150_NYB_03 -> 0 | G19: =ACCT_19800_458150_NYB_04 -> 0 | H19: =ACCT_19800_458150_NYB_05 -> 0 | I19: =ACCT_19800_458150_NYB_06 -> 0 | J19: =ACCT_19800_458150_NYB_07 -> 0 | K19: =ACCT_19800_458150_NYB_08 -> 0 | L19: =ACCT_19800_458150_NYB_09 -> 0 | M19: =ACCT_19800_458150_NYB_10 -> 0 | N19: =ACCT_19800_458150_NYB_11 -> 0 | O19: =ACCT_19800_458150_NYB_12 -> 0 | P19: 0 | Q19: 0 | S19: 0 | T19: =ACCT_19800_458150_TOT_CY_BUD -> 0 | U19: =ACCT_19800_458150_TOT_CY_PROJ -> 0 | V19: 0 | W19: 0 | X19: 0 | Y19: 0 | Z19: =ACCT_19800_458150_NOTES -> 0 | AB19: HIDE
A20: 19800 | B20: 458140 | C20: SALES RENT INCOME | D20: =ACCT_19800_458140_NYB_01 -> 729 | E20: =ACCT_19800_458140_NYB_02 -> 729 | F20: =ACCT_19800_458140_NYB_03 -> 729 | G20: =ACCT_19800_458140_NYB_04 -> 729 | H20: =ACCT_19800_458140_NYB_05 -> 729 | I20: =ACCT_19800_458140_NYB_06 -> 729 | J20: =ACCT_19800_458140_NYB_07 -> 729 | K20: =ACCT_19800_458140_NYB_08 -> 729 | L20: =ACCT_19800_458140_NYB_09 -> 729 | M20: =ACCT_19800_458140_NYB_10 -> 729 | N20: =ACCT_19800_458140_NYB_11 -> 729 | O20: =ACCT_19800_458140_NYB_12 -> 727 | P20: 8746 | Q20: 4.164761905 | S20: 4.164761905 | T20: =ACCT_19800_458140_TOT_CY_BUD -> 8746 | U20: =ACCT_19800_458140_TOT_CY_PROJ -> 8746 | V20: 0 | W20: 0 | X20: 0 | Y20: 0 | Z20: =ACCT_19800_458140_NOTES -> Same as budgeted
A21: 19800 | B21: 458160 | C21: SUPPORT AREA 2 RETAIL | D21: =ACCT_19800_458160_NYB_01 -> 0 | E21: =ACCT_19800_458160_NYB_02 -> 0 | F21: =ACCT_19800_458160_NYB_03 -> 0 | G21: =ACCT_19800_458160_NYB_04 -> 0 | H21: =ACCT_19800_458160_NYB_05 -> 0 | I21: =ACCT_19800_458160_NYB_06 -> 0 | J21: =ACCT_19800_458160_NYB_07 -> 0 | K21: =ACCT_19800_458160_NYB_08 -> 0 | L21: =ACCT_19800_458160_NYB_09 -> 0 | M21: =ACCT_19800_458160_NYB_10 -> 0 | N21: =ACCT_19800_458160_NYB_11 -> 0 | O21: =ACCT_19800_458160_NYB_12 -> 0 | P21: =SUM(D21:O21) -> 0 | Q21: =P21/$C$7 -> 0 | S21: =T21/$C$7 -> 0 | T21: =ACCT_19800_458160_TOT_CY_BUD -> 0 | U21: =ACCT_19800_458160_TOT_CY_PROJ -> 0 | V21: =P21-T21 -> 0 | W21: =IF(T21=0,0,V21/T21) -> 0 | X21: =P21-U21 -> 0 | Y21: =IF(U21=0,0,X21/U21) -> 0 | Z21: =ACCT_19800_458160_NOTES -> 0 | AB21: =IF(AND(P21=0,T21=0,U21=0,Z21=0),"HIDE","") -> HIDE
A22: 19800 | B22: 458170 | C22: SUPPORT AREA 3 POOL BAR | D22: =ACCT_19800_458170_NYB_01 -> 0 | E22: =ACCT_19800_458170_NYB_02 -> 0 | F22: =ACCT_19800_458170_NYB_03 -> 0 | G22: =ACCT_19800_458170_NYB_04 -> 0 | H22: =ACCT_19800_458170_NYB_05 -> 0 | I22: =ACCT_19800_458170_NYB_06 -> 0 | J22: =ACCT_19800_458170_NYB_07 -> 0 | K22: =ACCT_19800_458170_NYB_08 -> 0 | L22: =ACCT_19800_458170_NYB_09 -> 0 | M22: =ACCT_19800_458170_NYB_10 -> 0 | N22: =ACCT_19800_458170_NYB_11 -> 0 | O22: =ACCT_19800_458170_NYB_12 -> 0 | P22: =SUM(D22:O22) -> 0 | Q22: =P22/$C$7 -> 0 | S22: =T22/$C$7 -> 0 | T22: =ACCT_19800_458170_TOT_CY_BUD -> 0 | U22: =ACCT_19800_458170_TOT_CY_PROJ -> 0 | V22: =P22-T22 -> 0 | W22: =IF(T22=0,0,V22/T22) -> 0 | X22: =P22-U22 -> 0 | Y22: =IF(U22=0,0,X22/U22) -> 0 | Z22: =ACCT_19800_458170_NOTES -> 0 | AB22: =IF(AND(P22=0,T22=0,U22=0,Z22=0),"HIDE","") -> HIDE
A23: 19800 | B23: 458180 | C23: SUPPORT AREA 4 LOBBY BAR | D23: =ACCT_19800_458180_NYB_01 -> 0 | E23: =ACCT_19800_458180_NYB_02 -> 0 | F23: =ACCT_19800_458180_NYB_03 -> 0 | G23: =ACCT_19800_458180_NYB_04 -> 0 | H23: =ACCT_19800_458180_NYB_05 -> 0 | I23: =ACCT_19800_458180_NYB_06 -> 0 | J23: =ACCT_19800_458180_NYB_07 -> 0 | K23: =ACCT_19800_458180_NYB_08 -> 0 | L23: =ACCT_19800_458180_NYB_09 -> 0 | M23: =ACCT_19800_458180_NYB_10 -> 0 | N23: =ACCT_19800_458180_NYB_11 -> 0 | O23: =ACCT_19800_458180_NYB_12 -> 0 | P23: =SUM(D23:O23) -> 0 | Q23: =P23/$C$7 -> 0 | S23: =T23/$C$7 -> 0 | T23: =ACCT_19800_458180_TOT_CY_BUD -> 0 | U23: =ACCT_19800_458180_TOT_CY_PROJ -> 0 | V23: =P23-T23 -> 0 | W23: =IF(T23=0,0,V23/T23) -> 0 | X23: =P23-U23 -> 0 | Y23: =IF(U23=0,0,X23/U23) -> 0 | Z23: =ACCT_19800_458180_NOTES -> 0 | AB23: =IF(AND(P23=0,T23=0,U23=0,Z23=0),"HIDE","") -> HIDE
A24: 19800 | B24: 458190 | C24: SUPPORT AREA 5 DELI | D24: =ACCT_19800_458190_NYB_01 -> 0 | E24: =ACCT_19800_458190_NYB_02 -> 0 | F24: =ACCT_19800_458190_NYB_03 -> 0 | G24: =ACCT_19800_458190_NYB_04 -> 0 | H24: =ACCT_19800_458190_NYB_05 -> 0 | I24: =ACCT_19800_458190_NYB_06 -> 0 | J24: =ACCT_19800_458190_NYB_07 -> 0 | K24: =ACCT_19800_458190_NYB_08 -> 0 | L24: =ACCT_19800_458190_NYB_09 -> 0 | M24: =ACCT_19800_458190_NYB_10 -> 0 | N24: =ACCT_19800_458190_NYB_11 -> 0 | O24: =ACCT_19800_458190_NYB_12 -> 0 | P24: =SUM(D24:O24) -> 0 | Q24: =P24/$C$7 -> 0 | S24: =T24/$C$7 -> 0 | T24: =ACCT_19800_458190_TOT_CY_BUD -> 0 | U24: =ACCT_19800_458190_TOT_CY_PROJ -> 0 | V24: =P24-T24 -> 0 | W24: =IF(T24=0,0,V24/T24) -> 0 | X24: =P24-U24 -> 0 | Y24: =IF(U24=0,0,X24/U24) -> 0 | Z24: =ACCT_19800_458190_NOTES -> 0 | AB24: =IF(AND(P24=0,T24=0,U24=0,Z24=0),"HIDE","") -> HIDE
A25: 19800 | B25: 458200 | C25: VENDING INCOME | D25: =ACCT_19800_458200_NYB_01 -> 50 | E25: =ACCT_19800_458200_NYB_02 -> 50 | F25: =ACCT_19800_458200_NYB_03 -> 50 | G25: =ACCT_19800_458200_NYB_04 -> 50 | H25: =ACCT_19800_458200_NYB_05 -> 50 | I25: =ACCT_19800_458200_NYB_06 -> 200 | J25: =ACCT_19800_458200_NYB_07 -> 200 | K25: =ACCT_19800_458200_NYB_08 -> 150 | L25: =ACCT_19800_458200_NYB_09 -> 50 | M25: =ACCT_19800_458200_NYB_10 -> 50 | N25: =ACCT_19800_458200_NYB_11 -> 50 | O25: =ACCT_19800_458200_NYB_12 -> 50 | P25: 1000 | Q25: 0.4761904762 | S25: 0.4761904762 | T25: =ACCT_19800_458200_TOT_CY_BUD -> 1000 | U25: =ACCT_19800_458200_TOT_CY_PROJ -> 1000 | V25: 0 | W25: 0 | X25: 0 | Y25: 0 | Z25: =ACCT_19800_458200_NOTES -> Same as budgeted
A26: 19800 | B26: 458210 | C26: CONCESSION INCOME | D26: =ACCT_19800_458210_NYB_01 -> 0 | E26: =ACCT_19800_458210_NYB_02 -> 0 | F26: =ACCT_19800_458210_NYB_03 -> 0 | G26: =ACCT_19800_458210_NYB_04 -> 0 | H26: =ACCT_19800_458210_NYB_05 -> 0 | I26: =ACCT_19800_458210_NYB_06 -> 0 | J26: =ACCT_19800_458210_NYB_07 -> 0 | K26: =ACCT_19800_458210_NYB_08 -> 0 | L26: =ACCT_19800_458210_NYB_09 -> 0 | M26: =ACCT_19800_458210_NYB_10 -> 0 | N26: =ACCT_19800_458210_NYB_11 -> 0 | O26: =ACCT_19800_458210_NYB_12 -> 0 | P26: 0 | Q26: 0 | S26: 0 | T26: =ACCT_19800_458210_TOT_CY_BUD -> 0 | U26: =ACCT_19800_458210_TOT_CY_PROJ -> 0 | V26: 0 | W26: 0 | X26: 0 | Y26: 0 | Z26: =ACCT_19800_458210_NOTES -> 0 | AB26: HIDE
A27: 19800 | B27: 458380 | C27: WEEK 53 INCOME | D27: =ACCT_19800_458380_NYB_01 -> 0 | E27: =ACCT_19800_458380_NYB_02 -> 0 | F27: =ACCT_19800_458380_NYB_03 -> 0 | G27: =ACCT_19800_458380_NYB_04 -> 0 | H27: =ACCT_19800_458380_NYB_05 -> 0 | I27: =ACCT_19800_458380_NYB_06 -> 0 | J27: =ACCT_19800_458380_NYB_07 -> 0 | K27: =ACCT_19800_458380_NYB_08 -> 0 | L27: =ACCT_19800_458380_NYB_09 -> 0 | M27: =ACCT_19800_458380_NYB_10 -> 0 | N27: =ACCT_19800_458380_NYB_11 -> 0 | O27: =ACCT_19800_458380_NYB_12 -> 0 | P27: 0 | Q27: 0 | S27: 0 | T27: =ACCT_19800_458380_TOT_CY_BUD -> 0 | U27: =ACCT_19800_458380_TOT_CY_PROJ -> 0 | V27: 0 | W27: 0 | X27: 0 | Y27: 0 | Z27: =ACCT_19800_458380_NOTES -> 0 | AB27: HIDE
A28: 19800 | B28: 458230 | C28: ACTIVITIES REVENUE | D28: =ACCT_19800_458230_NYB_01 -> 0 | E28: =ACCT_19800_458230_NYB_02 -> 0 | F28: =ACCT_19800_458230_NYB_03 -> 0 | G28: =ACCT_19800_458230_NYB_04 -> 0 | H28: =ACCT_19800_458230_NYB_05 -> 0 | I28: =ACCT_19800_458230_NYB_06 -> 0 | J28: =ACCT_19800_458230_NYB_07 -> 0 | K28: =ACCT_19800_458230_NYB_08 -> 0 | L28: =ACCT_19800_458230_NYB_09 -> 0 | M28: =ACCT_19800_458230_NYB_10 -> 0 | N28: =ACCT_19800_458230_NYB_11 -> 0 | O28: =ACCT_19800_458230_NYB_12 -> 0 | P28: 0 | Q28: 0 | S28: 0 | T28: =ACCT_19800_458230_TOT_CY_BUD -> 0 | U28: =ACCT_19800_458230_TOT_CY_PROJ -> 0 | V28: 0 | W28: 0 | X28: 0 | Y28: 0 | Z28: =ACCT_19800_458230_NOTES -> 0 | AB28: HIDE
A29: 19800 | B29: 458240 | C29: SUBSIDY INCOME | D29: =ACCT_19800_458240_NYB_01 -> 0 | E29: =ACCT_19800_458240_NYB_02 -> 0 | F29: =ACCT_19800_458240_NYB_03 -> 0 | G29: =ACCT_19800_458240_NYB_04 -> 0 | H29: =ACCT_19800_458240_NYB_05 -> 0 | I29: =ACCT_19800_458240_NYB_06 -> 0 | J29: =ACCT_19800_458240_NYB_07 -> 0 | K29: =ACCT_19800_458240_NYB_08 -> 0 | L29: =ACCT_19800_458240_NYB_09 -> 0 | M29: =ACCT_19800_458240_NYB_10 -> 0 | N29: =ACCT_19800_458240_NYB_11 -> 0 | O29: =ACCT_19800_458240_NYB_12 -> 0 | P29: 0 | Q29: 0 | S29: 0 | T29: =ACCT_19800_458240_TOT_CY_BUD -> 0 | U29: =ACCT_19800_458240_TOT_CY_PROJ -> 0 | V29: 0 | W29: 0 | X29: 0 | Y29: 0 | Z29: =ACCT_19800_458240_NOTES -> 0 | AB29: HIDE
A30: 19800 | B30: 458270 | C30: FLEX RESERVATION FEES | D30: =ACCT_19800_458270_NYB_01 -> 0 | E30: =ACCT_19800_458270_NYB_02 -> 0 | F30: =ACCT_19800_458270_NYB_03 -> 0 | G30: =ACCT_19800_458270_NYB_04 -> 0 | H30: =ACCT_19800_458270_NYB_05 -> 0 | I30: =ACCT_19800_458270_NYB_06 -> 0 | J30: =ACCT_19800_458270_NYB_07 -> 0 | K30: =ACCT_19800_458270_NYB_08 -> 0 | L30: =ACCT_19800_458270_NYB_09 -> 0 | M30: =ACCT_19800_458270_NYB_10 -> 0 | N30: =ACCT_19800_458270_NYB_11 -> 0 | O30: =ACCT_19800_458270_NYB_12 -> 0 | P30: 0 | Q30: 0 | S30: 0 | T30: =ACCT_19800_458270_TOT_CY_BUD -> 0 | U30: =ACCT_19800_458270_TOT_CY_PROJ -> 0 | V30: 0 | W30: 0 | X30: 0 | Y30: 0 | Z30: =ACCT_19800_458270_NOTES -> 0 | AB30: HIDE
A31: 19800 | B31: 458340 | C31: SUPPORT AREA SPA | D31: =ACCT_19800_458340_NYB_01 -> 0 | E31: =ACCT_19800_458340_NYB_02 -> 0 | F31: =ACCT_19800_458340_NYB_03 -> 0 | G31: =ACCT_19800_458340_NYB_04 -> 0 | H31: =ACCT_19800_458340_NYB_05 -> 0 | I31: =ACCT_19800_458340_NYB_06 -> 0 | J31: =ACCT_19800_458340_NYB_07 -> 0 | K31: =ACCT_19800_458340_NYB_08 -> 0 | L31: =ACCT_19800_458340_NYB_09 -> 0 | M31: =ACCT_19800_458340_NYB_10 -> 0 | N31: =ACCT_19800_458340_NYB_11 -> 0 | O31: =ACCT_19800_458340_NYB_12 -> 0 | P31: 0 | Q31: 0 | S31: 0 | T31: =ACCT_19800_458340_TOT_CY_BUD -> 0 | U31: =ACCT_19800_458340_TOT_CY_PROJ -> 0 | V31: 0 | W31: 0 | X31: 0 | Y31: 0 | Z31: =ACCT_19800_458340_NOTES -> 0 | AB31: HIDE
A32: 19800 | B32: 458350 | C32: INSURANCE PROCEEDS | D32: =ACCT_19800_458350_NYB_01 -> 0 | E32: =ACCT_19800_458350_NYB_02 -> 0 | F32: =ACCT_19800_458350_NYB_03 -> 0 | G32: =ACCT_19800_458350_NYB_04 -> 0 | H32: =ACCT_19800_458350_NYB_05 -> 0 | I32: =ACCT_19800_458350_NYB_06 -> 0 | J32: =ACCT_19800_458350_NYB_07 -> 0 | K32: =ACCT_19800_458350_NYB_08 -> 0 | L32: =ACCT_19800_458350_NYB_09 -> 0 | M32: =ACCT_19800_458350_NYB_10 -> 0 | N32: =ACCT_19800_458350_NYB_11 -> 0 | O32: =ACCT_19800_458350_NYB_12 -> 0 | P32: 0 | Q32: 0 | S32: 0 | T32: =ACCT_19800_458350_TOT_CY_BUD -> 0 | U32: =ACCT_19800_458350_TOT_CY_PROJ -> 0 | V32: 0 | W32: 0 | X32: 0 | Y32: 0 | Z32: =ACCT_19800_458350_NOTES -> 0 | AB32: HIDE
A33: 19800 | B33: 438305 | C33: OTHER REVENUE NON-TAX | D33: =ACCT_19800_438305_NYB_01 -> -7000 | E33: =ACCT_19800_438305_NYB_02 -> 0 | F33: =ACCT_19800_438305_NYB_03 -> 0 | G33: =ACCT_19800_438305_NYB_04 -> 0 | H33: =ACCT_19800_438305_NYB_05 -> 0 | I33: =ACCT_19800_438305_NYB_06 -> 0 | J33: =ACCT_19800_438305_NYB_07 -> 0 | K33: =ACCT_19800_438305_NYB_08 -> 0 | L33: =ACCT_19800_438305_NYB_09 -> 0 | M33: =ACCT_19800_438305_NYB_10 -> 0 | N33: =ACCT_19800_438305_NYB_11 -> 0 | O33: =ACCT_19800_438305_NYB_12 -> 0 | P33: -7000 | Q33: -3.333333333 | S33: 0 | T33: =ACCT_19800_438305_TOT_CY_BUD -> 0 | U33: =ACCT_19800_438305_TOT_CY_PROJ -> 1179.51 | V33: -7000 | W33: 0 | X33: -8179.51 | Y33: -6.934667786 | Z33: =ACCT_19800_438305_NOTES -> 0
A34: 19800 | B34: 452060 | C34: OTHER REVENUE - REAL ESTATE | D34: =ACCT_19800_452060_NYB_01 -> 0 | E34: =ACCT_19800_452060_NYB_02 -> 0 | F34: =ACCT_19800_452060_NYB_03 -> 0 | G34: =ACCT_19800_452060_NYB_04 -> 0 | H34: =ACCT_19800_452060_NYB_05 -> 0 | I34: =ACCT_19800_452060_NYB_06 -> 0 | J34: =ACCT_19800_452060_NYB_07 -> 0 | K34: =ACCT_19800_452060_NYB_08 -> 0 | L34: =ACCT_19800_452060_NYB_09 -> 0 | M34: =ACCT_19800_452060_NYB_10 -> 0 | N34: =ACCT_19800_452060_NYB_11 -> 0 | O34: =ACCT_19800_452060_NYB_12 -> 0 | P34: 0 | Q34: 0 | S34: 0 | T34: =ACCT_19800_452060_TOT_CY_BUD -> 0 | U34: =ACCT_19800_452060_TOT_CY_PROJ -> 0 | V34: 0 | W34: 0 | X34: 0 | Y34: =IF(U34=0,0,X34/U34) -> 0 | Z34: =ACCT_19800_452060_NOTES -> 0 | AB34: HIDE
C36: TOTAL OPERATING REVENUE | D36: =SUM(D11:D34) -> 113789.2883 | E36: =SUM(E11:E34) -> 121489.2883 | F36: 124689.2883 | G36: 123489.2883 | H36: 122289.2883 | I36: 121639.2883 | J36: 121139.2883 | K36: 121089.2883 | L36: 120889.2883 | M36: 120789.2883 | N36: 120689.2883 | O36: 120887.2883 | P36: 1452869.46 | Q36: =P36/$C$7 -> 691.8426 | S36: 664.7734446 | T36: =SUM(T11:T34) -> 1396024.234 | U36: =SUM(U11:U34) -> 1406915.59 | V36: =P36-T36 -> 56845.2264 | W36: =IF(T36=0,0,V36/T36) -> 0.04071936936 | X36: =P36-U36 -> 45953.87 | Y36: =IF(U36=0,0,X36/U36) -> 0.03266284795
C38: HOUSEKEEPING SERVICES
A39: 19002 | B39: 458310 | C39: SECOND CLEAN REIMBURSEMENT | D39: =-ACCT_11002_458310_NYB_01 -> -600 | E39: =-ACCT_11002_458310_NYB_02 -> -600 | F39: =-ACCT_11002_458310_NYB_03 -> -600 | G39: =-ACCT_11002_458310_NYB_04 -> -800 | H39: =-ACCT_11002_458310_NYB_05 -> -800 | I39: =-ACCT_11002_458310_NYB_06 -> -700 | J39: =-ACCT_11002_458310_NYB_07 -> -800 | K39: =-ACCT_11002_458310_NYB_08 -> -800 | L39: =-ACCT_11002_458310_NYB_09 -> -600 | M39: =-ACCT_11002_458310_NYB_10 -> -800 | N39: =-ACCT_11002_458310_NYB_11 -> -600 | O39: =-ACCT_11002_458310_NYB_12 -> -300 | P39: =SUM(D39:O39) -> -8000 | Q39: =P39/$C$7 -> -3.80952381 | S39: =T39/$C$7 -> -3.80952381 | T39: =-ACCT_11002_458310_TOT_CY_BUD -> -8000 | U39: =-ACCT_11002_458310_TOT_CY_PROJ -> -8140 | V39: =P39-T39 -> 0 | W39: =IF(T39=0,0,V39/T39) -> 0 | X39: =P39-U39 -> 140 | Y39: =IF(U39=0,0,X39/U39) -> -0.0171990172 | Z39: =ACCT_11002_458310_NOTES -> Same as budgeted | AB39: =IF(AND(P39=0,T39=0,U39=0,Z39=0),"HIDE","") -> 
A40: 19002 | B40: 458320 | C40: SPLIT WEEK CLEAN REIMBURSEMENT | D40: =-ACCT_11002_458320_NYB_01 -> 0 | E40: =-ACCT_11002_458320_NYB_02 -> 0 | F40: =-ACCT_11002_458320_NYB_03 -> 0 | G40: =-ACCT_11002_458320_NYB_04 -> 0 | H40: =-ACCT_11002_458320_NYB_05 -> 0 | I40: =-ACCT_11002_458320_NYB_06 -> 0 | J40: =-ACCT_11002_458320_NYB_07 -> 0 | K40: =-ACCT_11002_458320_NYB_08 -> 0 | L40: =-ACCT_11002_458320_NYB_09 -> 0 | M40: =-ACCT_11002_458320_NYB_10 -> 0 | N40: =-ACCT_11002_458320_NYB_11 -> 0 | O40: =-ACCT_11002_458320_NYB_12 -> 0 | P40: =SUM(D40:O40) -> 0 | Q40: 0 | S40: 0 | T40: =-ACCT_11002_458320_TOT_CY_BUD -> 0 | U40: =-ACCT_11002_458320_TOT_CY_PROJ -> 0 | V40: 0 | W40: 0 | X40: 0 | Y40: =IF(U40=0,0,X40/U40) -> 0 | Z40: =ACCT_11002_458320_NOTES -> 0 | AB40: HIDE
A41: 19002 | B41: 555020 | C41: PERFORMANCE AWARDS | D41: =ACCT_11002_555020_NYB_01 -> 0 | E41: =ACCT_11002_555020_NYB_02 -> 0 | F41: =ACCT_11002_555020_NYB_03 -> 0 | G41: =ACCT_11002_555020_NYB_04 -> 0 | H41: =ACCT_11002_555020_NYB_05 -> 0 | I41: =ACCT_11002_555020_NYB_06 -> 0 | J41: =ACCT_11002_555020_NYB_07 -> 0 | K41: =ACCT_11002_555020_NYB_08 -> 0 | L41: =ACCT_11002_555020_NYB_09 -> 0 | M41: =ACCT_11002_555020_NYB_10 -> 0 | N41: =ACCT_11002_555020_NYB_11 -> 0 | O41: =ACCT_11002_555020_NYB_12 -> 0 | P41: 0 | Q41: 0 | S41: 0 | T41: =ACCT_11002_555020_TOT_CY_BUD -> 0 | U41: =ACCT_11002_555020_TOT_CY_PROJ -> 0 | V41: 0 | W41: 0 | X41: 0 | Y41: 0 | Z41: =ACCT_11002_555020_NOTES -> 0 | AB41: HIDE
A42: 19002 | B42: 541002 | C42: SALARIED MANAGER | D42: =ACCT_11002_541002_NYB_01 -> 0 | E42: =ACCT_11002_541002_NYB_02 -> 0 | F42: =ACCT_11002_541002_NYB_03 -> 0 | G42: =ACCT_11002_541002_NYB_04 -> 0 | H42: =ACCT_11002_541002_NYB_05 -> 0 | I42: =ACCT_11002_541002_NYB_06 -> 0 | J42: =ACCT_11002_541002_NYB_07 -> 0 | K42: =ACCT_11002_541002_NYB_08 -> 0 | L42: =ACCT_11002_541002_NYB_09 -> 0 | M42: =ACCT_11002_541002_NYB_10 -> 0 | N42: =ACCT_11002_541002_NYB_11 -> 0 | O42: =ACCT_11002_541002_NYB_12 -> 0 | P42: 0 | Q42: 0 | S42: 0 | T42: =ACCT_11002_541002_TOT_CY_BUD -> 0 | U42: =ACCT_11002_541002_TOT_CY_PROJ -> 0 | V42: 0 | W42: 0 | X42: 0 | Y42: 0 | Z42: =ACCT_11002_541002_NOTES -> 0 | AB42: HIDE
A43: 19002 | B43: 541003 | C43: SALARIED NON-MANAGER | D43: =ACCT_11002_541003_NYB_01 -> 0 | E43: =ACCT_11002_541003_NYB_02 -> 0 | F43: =ACCT_11002_541003_NYB_03 -> 0 | G43: =ACCT_11002_541003_NYB_04 -> 0 | H43: =ACCT_11002_541003_NYB_05 -> 0 | I43: =ACCT_11002_541003_NYB_06 -> 0 | J43: =ACCT_11002_541003_NYB_07 -> 0 | K43: =ACCT_11002_541003_NYB_08 -> 0 | L43: =ACCT_11002_541003_NYB_09 -> 0 | M43: =ACCT_11002_541003_NYB_10 -> 0 | N43: =ACCT_11002_541003_NYB_11 -> 0 | O43: =ACCT_11002_541003_NYB_12 -> 0 | P43: 0 | Q43: 0 | S43: 0 | T43: =ACCT_11002_541003_TOT_CY_BUD -> 0 | U43: =ACCT_11002_541003_TOT_CY_PROJ -> 0 | V43: 0 | W43: 0 | X43: 0 | Y43: 0 | Z43: =ACCT_11002_541003_NOTES -> 0 | AB43: HIDE
A44: 19002 | B44: 561170 | C44: PTO AND VACATION EXPENSE | D44: =ACCT_11002_561170_NYB_01 -> 0 | E44: =ACCT_11002_561170_NYB_02 -> 0 | F44: =ACCT_11002_561170_NYB_03 -> 0 | G44: =ACCT_11002_561170_NYB_04 -> 0 | H44: =ACCT_11002_561170_NYB_05 -> 0 | I44: =ACCT_11002_561170_NYB_06 -> 0 | J44: =ACCT_11002_561170_NYB_07 -> 0 | K44: =ACCT_11002_561170_NYB_08 -> 0 | L44: =ACCT_11002_561170_NYB_09 -> 0 | M44: =ACCT_11002_561170_NYB_10 -> 0 | N44: =ACCT_11002_561170_NYB_11 -> 0 | O44: =ACCT_11002_561170_NYB_12 -> 0 | P44: 0 | Q44: 0 | S44: 0 | T44: =ACCT_11002_561170_TOT_CY_BUD -> 0 | U44: =ACCT_11002_561170_TOT_CY_PROJ -> 0 | V44: 0 | W44: 0 | X44: 0 | Y44: 0 | Z44: =ACCT_11002_561170_NOTES -> 0 | AB44: HIDE
A45: 19002 | B45: 542030 | C45: HOURLY OTHER | D45: =ACCT_11002_542030_NYB_01 -> 0 | E45: =ACCT_11002_542030_NYB_02 -> 0 | F45: =ACCT_11002_542030_NYB_03 -> 0 | G45: =ACCT_11002_542030_NYB_04 -> 0 | H45: =ACCT_11002_542030_NYB_05 -> 0 | I45: =ACCT_11002_542030_NYB_06 -> 0 | J45: =ACCT_11002_542030_NYB_07 -> 0 | K45: =ACCT_11002_542030_NYB_08 -> 0 | L45: =ACCT_11002_542030_NYB_09 -> 0 | M45: =ACCT_11002_542030_NYB_10 -> 0 | N45: =ACCT_11002_542030_NYB_11 -> 0 | O45: =ACCT_11002_542030_NYB_12 -> 0 | P45: 0 | Q45: 0 | S45: 0 | T45: =ACCT_11002_542030_TOT_CY_BUD -> 0 | U45: =ACCT_11002_542030_TOT_CY_PROJ -> 0 | V45: 0 | W45: 0 | X45: 0 | Y45: 0 | Z45: =ACCT_11002_542030_NOTES -> 0 | AB45: HIDE
A46: 19002 | B46: 543030 | C46: OT HOURLY OTHER | D46: =ACCT_11002_543030_NYB_01 -> 0 | E46: =ACCT_11002_543030_NYB_02 -> 0 | F46: =ACCT_11002_543030_NYB_03 -> 0 | G46: =ACCT_11002_543030_NYB_04 -> 0 | H46: =ACCT_11002_543030_NYB_05 -> 0 | I46: =ACCT_11002_543030_NYB_06 -> 0 | J46: =ACCT_11002_543030_NYB_07 -> 0 | K46: =ACCT_11002_543030_NYB_08 -> 0 | L46: =ACCT_11002_543030_NYB_09 -> 0 | M46: =ACCT_11002_543030_NYB_10 -> 0 | N46: =ACCT_11002_543030_NYB_11 -> 0 | O46: =ACCT_11002_543030_NYB_12 -> 0 | P46: 0 | Q46: 0 | S46: 0 | T46: =ACCT_11002_543030_TOT_CY_BUD -> 0 | U46: =ACCT_11002_543030_TOT_CY_PROJ -> 0 | V46: 0 | W46: 0 | X46: 0 | Y46: 0 | Z46: =ACCT_11002_543030_NOTES -> 0 | AB46: HIDE
A47: 19002 | B47: 561240 | C47: PAID TIME OFF | D47: =ACCT_11002_561240_NYB_01 -> 0 | E47: =ACCT_11002_561240_NYB_02 -> 0 | F47: =ACCT_11002_561240_NYB_03 -> 0 | G47: =ACCT_11002_561240_NYB_04 -> 0 | H47: =ACCT_11002_561240_NYB_05 -> 0 | I47: =ACCT_11002_561240_NYB_06 -> 0 | J47: =ACCT_11002_561240_NYB_07 -> 0 | K47: =ACCT_11002_561240_NYB_08 -> 0 | L47: =ACCT_11002_561240_NYB_09 -> 0 | M47: =ACCT_11002_561240_NYB_10 -> 0 | N47: =ACCT_11002_561240_NYB_11 -> 0 | O47: =ACCT_11002_561240_NYB_12 -> 0 | P47: 0 | Q47: 0 | S47: 0 | T47: =ACCT_11002_561240_TOT_CY_BUD -> 0 | U47: =ACCT_11002_561240_TOT_CY_PROJ -> 0 | V47: 0 | W47: 0 | X47: 0 | Y47: 0 | Z47: =ACCT_11002_561240_NOTES -> 0 | AB47: HIDE
A48: 19002 | B48: 561260 | C48: WORKERS COMPENSATION EXP | D48: =ACCT_11002_561260_NYB_01 -> 0 | E48: =ACCT_11002_561260_NYB_02 -> 0 | F48: =ACCT_11002_561260_NYB_03 -> 0 | G48: =ACCT_11002_561260_NYB_04 -> 0 | H48: =ACCT_11002_561260_NYB_05 -> 0 | I48: =ACCT_11002_561260_NYB_06 -> 0 | J48: =ACCT_11002_561260_NYB_07 -> 0 | K48: =ACCT_11002_561260_NYB_08 -> 0 | L48: =ACCT_11002_561260_NYB_09 -> 0 | M48: =ACCT_11002_561260_NYB_10 -> 0 | N48: =ACCT_11002_561260_NYB_11 -> 0 | O48: =ACCT_11002_561260_NYB_12 -> 0 | P48: =SUM(D48:O48) -> 0 | Q48: =P48/$C$7 -> 0 | S48: =T48/$C$7 -> 0 | T48: =ACCT_11002_561260_TOT_CY_BUD -> 0 | U48: =ACCT_11002_561260_TOT_CY_PROJ -> 0 | V48: =P48-T48 -> 0 | W48: =IF(T48=0,0,V48/T48) -> 0 | X48: =P48-U48 -> 0 | Y48: =IF(U48=0,0,X48/U48) -> 0 | Z48: =ACCT_11002_561260_NOTES -> 0 | AB48: =IF(AND(P48=0,T48=0,U48=0,Z48=0),"HIDE","") -> HIDE
A49: 19002 | B49: 555070 | C49: OTHER INCENTIVE COMPENSATION EXP | D49: =ACCT_11002_555070_NYB_01 -> 0 | E49: =ACCT_11002_555070_NYB_02 -> 0 | F49: =ACCT_11002_555070_NYB_03 -> 0 | G49: =ACCT_11002_555070_NYB_04 -> 0 | H49: =ACCT_11002_555070_NYB_05 -> 0 | I49: =ACCT_11002_555070_NYB_06 -> 0 | J49: =ACCT_11002_555070_NYB_07 -> 0 | K49: =ACCT_11002_555070_NYB_08 -> 0 | L49: =ACCT_11002_555070_NYB_09 -> 0 | M49: =ACCT_11002_555070_NYB_10 -> 0 | N49: =ACCT_11002_555070_NYB_11 -> 0 | O49: =ACCT_11002_555070_NYB_12 -> 0 | P49: 0 | Q49: 0 | S49: 0 | T49: =ACCT_11002_555070_TOT_CY_BUD -> 0 | U49: =ACCT_11002_555070_TOT_CY_PROJ -> 0 | V49: 0 | W49: 0 | X49: 0 | Y49: 0 | Z49: =ACCT_11002_555070_NOTES -> 0 | AB49: HIDE
A50: 19002 | B50: 561020 | C50: PENSION DEFINED CONTRIBUTION | D50: =ACCT_11002_561020_NYB_01 -> 0 | E50: =ACCT_11002_561020_NYB_02 -> 0 | F50: =ACCT_11002_561020_NYB_03 -> 0 | G50: =ACCT_11002_561020_NYB_04 -> 0 | H50: =ACCT_11002_561020_NYB_05 -> 0 | I50: =ACCT_11002_561020_NYB_06 -> 0 | J50: =ACCT_11002_561020_NYB_07 -> 0 | K50: =ACCT_11002_561020_NYB_08 -> 0 | L50: =ACCT_11002_561020_NYB_09 -> 0 | M50: =ACCT_11002_561020_NYB_10 -> 0 | N50: =ACCT_11002_561020_NYB_11 -> 0 | O50: =ACCT_11002_561020_NYB_12 -> 0 | P50: 0 | Q50: 0 | S50: 0 | T50: =ACCT_11002_561020_TOT_CY_BUD -> 0 | U50: =ACCT_11002_561020_TOT_CY_PROJ -> 0 | V50: 0 | W50: 0 | X50: 0 | Y50: =IF(U50=0,0,X50/U50) -> 0 | Z50: =ACCT_11002_561020_NOTES -> 0 | AB50: HIDE
A51: 19002 | B51: 561010 | C51: GROUP HEALTH INSURANCE NON-UNION | D51: =ACCT_11002_561010_NYB_01 -> 0 | E51: =ACCT_11002_561010_NYB_02 -> 0 | F51: =ACCT_11002_561010_NYB_03 -> 0 | G51: =ACCT_11002_561010_NYB_04 -> 0 | H51: =ACCT_11002_561010_NYB_05 -> 0 | I51: =ACCT_11002_561010_NYB_06 -> 0 | J51: =ACCT_11002_561010_NYB_07 -> 0 | K51: =ACCT_11002_561010_NYB_08 -> 0 | L51: =ACCT_11002_561010_NYB_09 -> 0 | M51: =ACCT_11002_561010_NYB_10 -> 0 | N51: =ACCT_11002_561010_NYB_11 -> 0 | O51: =ACCT_11002_561010_NYB_12 -> 0 | P51: 0 | Q51: 0 | S51: 0 | T51: =ACCT_11002_561010_TOT_CY_BUD -> 0 | U51: =ACCT_11002_561010_TOT_CY_PROJ -> 0 | V51: 0 | W51: 0 | X51: 0 | Y51: 0 | Z51: =ACCT_11002_561010_NOTES -> 0 | AB51: =IF(AND(P51=0,T51=0,U51=0,Z51=0),"HIDE","") -> HIDE
A52: 19002 | B52: 561490 | C52: OTHER NON-UNION BENEFIT EXP | D52: =ACCT_11002_561490_NYB_01 -> 0 | E52: =ACCT_11002_561490_NYB_02 -> 0 | F52: =ACCT_11002_561490_NYB_03 -> 0 | G52: =ACCT_11002_561490_NYB_04 -> 0 | H52: =ACCT_11002_561490_NYB_05 -> 0 | I52: =ACCT_11002_561490_NYB_06 -> 0 | J52: =ACCT_11002_561490_NYB_07 -> 0 | K52: =ACCT_11002_561490_NYB_08 -> 0 | L52: =ACCT_11002_561490_NYB_09 -> 0 | M52: =ACCT_11002_561490_NYB_10 -> 0 | N52: =ACCT_11002_561490_NYB_11 -> 0 | O52: =ACCT_11002_561490_NYB_12 -> 0 | P52: 0 | Q52: 0 | S52: 0 | T52: =ACCT_11002_561490_TOT_CY_BUD -> 0 | U52: =ACCT_11002_561490_TOT_CY_PROJ -> 0 | V52: 0 | W52: 0 | X52: 0 | Y52: 0 | Z52: =ACCT_11002_561490_NOTES -> 0 | AB52: =IF(AND(P52=0,T52=0,U52=0,Z52=0),"HIDE","") -> HIDE
A53: 19002 | B53: 565010 | C53: SOCIAL SECURITY TAX EXPENSE | D53: =ACCT_11002_565010_NYB_01 -> 0 | E53: =ACCT_11002_565010_NYB_02 -> 0 | F53: =ACCT_11002_565010_NYB_03 -> 0 | G53: =ACCT_11002_565010_NYB_04 -> 0 | H53: =ACCT_11002_565010_NYB_05 -> 0 | I53: =ACCT_11002_565010_NYB_06 -> 0 | J53: =ACCT_11002_565010_NYB_07 -> 0 | K53: =ACCT_11002_565010_NYB_08 -> 0 | L53: =ACCT_11002_565010_NYB_09 -> 0 | M53: =ACCT_11002_565010_NYB_10 -> 0 | N53: =ACCT_11002_565010_NYB_11 -> 0 | O53: =ACCT_11002_565010_NYB_12 -> 0 | P53: 0 | Q53: 0 | S53: 0 | T53: =ACCT_11002_565010_TOT_CY_BUD -> 0 | U53: =ACCT_11002_565010_TOT_CY_PROJ -> 0 | V53: 0 | W53: 0 | X53: =P53-U53 -> 0 | Y53: =IF(U53=0,0,X53/U53) -> 0 | Z53: =ACCT_11002_565010_NOTES -> 0 | AB53: =IF(AND(P53=0,T53=0,U53=0,Z53=0),"HIDE","") -> HIDE
A54: 19002 | B54: 565040 | C54: STATE UNEMPLOYMENT TAX | D54: =ACCT_11002_565040_NYB_01 -> 0 | E54: =ACCT_11002_565040_NYB_02 -> 0 | F54: =ACCT_11002_565040_NYB_03 -> 0 | G54: =ACCT_11002_565040_NYB_04 -> 0 | H54: =ACCT_11002_565040_NYB_05 -> 0 | I54: =ACCT_11002_565040_NYB_06 -> 0 | J54: =ACCT_11002_565040_NYB_07 -> 0 | K54: =ACCT_11002_565040_NYB_08 -> 0 | L54: =ACCT_11002_565040_NYB_09 -> 0 | M54: =ACCT_11002_565040_NYB_10 -> 0 | N54: =ACCT_11002_565040_NYB_11 -> 0 | O54: =ACCT_11002_565040_NYB_12 -> 0 | P54: =SUM(D54:O54) -> 0 | Q54: =P54/$C$7 -> 0 | S54: =T54/$C$7 -> 0 | T54: =ACCT_11002_565040_TOT_CY_BUD -> 0 | U54: =ACCT_11002_565040_TOT_CY_PROJ -> 0 | V54: =P54-T54 -> 0 | W54: =IF(T54=0,0,V54/T54) -> 0 | X54: =P54-U54 -> 0 | Y54: =IF(U54=0,0,X54/U54) -> 0 | Z54: =ACCT_11002_565040_NOTES -> 0 | AB54: =IF(AND(P54=0,T54=0,U54=0,Z54=0),"HIDE","") -> HIDE
A55: 19002 | B55: 545000 | C55: LEASED LABOR - HOTEL | D55: =ACCT_11002_545000_NYB_01 -> 0 | E55: =ACCT_11002_545000_NYB_02 -> 0 | F55: =ACCT_11002_545000_NYB_03 -> 0 | G55: =ACCT_11002_545000_NYB_04 -> 0 | H55: =ACCT_11002_545000_NYB_05 -> 0 | I55: =ACCT_11002_545000_NYB_06 -> 0 | J55: =ACCT_11002_545000_NYB_07 -> 0 | K55: =ACCT_11002_545000_NYB_08 -> 0 | L55: =ACCT_11002_545000_NYB_09 -> 0 | M55: =ACCT_11002_545000_NYB_10 -> 0 | N55: =ACCT_11002_545000_NYB_11 -> 0 | O55: =ACCT_11002_545000_NYB_12 -> 0 | P55: 0 | Q55: 0 | S55: 0 | T55: =ACCT_11002_545000_TOT_CY_BUD -> 0 | U55: =ACCT_11002_545000_TOT_CY_PROJ -> 0 | V55: 0 | W55: 0 | X55: 0 | Y55: 0 | Z55: =ACCT_11002_545000_NOTES -> 0 | AB55: =IF(AND(P55=0,T55=0,U55=0,Z55=0),"HIDE","") -> HIDE
A56: 19002 | B56: 696010 | C56: UNIFORMS | D56: =ACCT_11002_696010_NYB_01 -> 0 | E56: =ACCT_11002_696010_NYB_02 -> 0 | F56: =ACCT_11002_696010_NYB_03 -> 0 | G56: =ACCT_11002_696010_NYB_04 -> 0 | H56: =ACCT_11002_696010_NYB_05 -> 0 | I56: =ACCT_11002_696010_NYB_06 -> 0 | J56: =ACCT_11002_696010_NYB_07 -> 0 | K56: =ACCT_11002_696010_NYB_08 -> 0 | L56: =ACCT_11002_696010_NYB_09 -> 0 | M56: =ACCT_11002_696010_NYB_10 -> 0 | N56: =ACCT_11002_696010_NYB_11 -> 0 | O56: =ACCT_11002_696010_NYB_12 -> 0 | P56: 0 | Q56: 0 | S56: 0 | T56: =ACCT_11002_696010_TOT_CY_BUD -> 0 | U56: =ACCT_11002_696010_TOT_CY_PROJ -> 0 | V56: 0 | W56: 0 | X56: 0 | Y56: 0 | Z56: =ACCT_11002_696010_NOTES -> 0 | AB56: HIDE
A57: 19002 | B57: 600220 | C57: CLEANING SERVICES | D57: =ACCT_11002_600220_NYB_01 -> 13500 | E57: =ACCT_11002_600220_NYB_02 -> 13500 | F57: =ACCT_11002_600220_NYB_03 -> 19550 | G57: =ACCT_11002_600220_NYB_04 -> 14000 | H57: =ACCT_11002_600220_NYB_05 -> 14000 | I57: =ACCT_11002_600220_NYB_06 -> 8320 | J57: =ACCT_11002_600220_NYB_07 -> 14000 | K57: =ACCT_11002_600220_NYB_08 -> 16000 | L57: =ACCT_11002_600220_NYB_09 -> 10400 | M57: =ACCT_11002_600220_NYB_10 -> 14050 | N57: =ACCT_11002_600220_NYB_11 -> 14000 | O57: =ACCT_11002_600220_NYB_12 -> 17000 | P57: =SUM(D57:O57) -> 168320 | Q57: =P57/$C$7 -> 80.15238095 | S57: =T57/$C$7 -> 80.27619048 | T57: =ACCT_11002_600220_TOT_CY_BUD -> 168580 | U57: =ACCT_11002_600220_TOT_CY_PROJ -> 166149.25 | V57: =P57-T57 -> -260 | W57: -0.00154229446 | X57: 2170.75 | Y57: 0.01306506048 | Z57: =ACCT_11002_600220_NOTES -> Vendor Increase
A58: 19002 | B58: 694030 | C58: GUEST SUPPLIES | D58: =ACCT_11002_694030_NYB_01 -> 1800 | E58: =ACCT_11002_694030_NYB_02 -> 1800 | F58: =ACCT_11002_694030_NYB_03 -> 1800 | G58: =ACCT_11002_694030_NYB_04 -> 1800 | H58: =ACCT_11002_694030_NYB_05 -> 1800 | I58: =ACCT_11002_694030_NYB_06 -> 1800 | J58: =ACCT_11002_694030_NYB_07 -> 1800 | K58: =ACCT_11002_694030_NYB_08 -> 1800 | L58: =ACCT_11002_694030_NYB_09 -> 1800 | M58: =ACCT_11002_694030_NYB_10 -> 1800 | N58: =ACCT_11002_694030_NYB_11 -> 1800 | O58: =ACCT_11002_694030_NYB_12 -> 1800 | P58: 21600 | Q58: 10.28571429 | S58: 14.21428571 | T58: =ACCT_11002_694030_TOT_CY_BUD -> 29850 | U58: =ACCT_11002_694030_TOT_CY_PROJ -> 20049.83 | V58: -8250 | W58: -0.2763819095 | X58: 1550.17 | Y58: 0.07731586752 | Z58: =ACCT_11002_694030_NOTES -> Anticipating Slight increase from actuals
A59: 19002 | B59: 694040 | C59: OPERATIONG SUPPLIES | D59: =ACCT_11002_694040_NYB_01 -> 0 | E59: =ACCT_11002_694040_NYB_02 -> 0 | F59: =ACCT_11002_694040_NYB_03 -> 0 | G59: =ACCT_11002_694040_NYB_04 -> 0 | H59: =ACCT_11002_694040_NYB_05 -> 0 | I59: =ACCT_11002_694040_NYB_06 -> 0 | J59: =ACCT_11002_694040_NYB_07 -> 0 | K59: =ACCT_11002_694040_NYB_08 -> 0 | L59: =ACCT_11002_694040_NYB_09 -> 0 | M59: =ACCT_11002_694040_NYB_10 -> 0 | N59: =ACCT_11002_694040_NYB_11 -> 0 | O59: =ACCT_11002_694040_NYB_12 -> 0 | P59: =SUM(D59:O59) -> 0 | Q59: =P59/$C$7 -> 0 | S59: =T59/$C$7 -> 0 | T59: =ACCT_11002_694040_TOT_CY_BUD -> 0 | U59: =ACCT_11002_694040_TOT_CY_PROJ -> 0 | V59: =P59-T59 -> 0 | W59: =IF(T59=0,0,V59/T59) -> 0 | X59: =P59-U59 -> 0 | Y59: =IF(U59=0,0,X59/U59) -> 0 | Z59: =ACCT_11002_694040_NOTES -> 0 | AB59: =IF(AND(P59=0,T59=0,U59=0,Z59=0),"HIDE","") -> HIDE
A60: 19002 | B60: 691040 | C60: LINEN EXPENSE | D60: =ACCT_11002_691040_NYB_01 -> 1500 | E60: =ACCT_11002_691040_NYB_02 -> 0 | F60: =ACCT_11002_691040_NYB_03 -> 2000 | G60: =ACCT_11002_691040_NYB_04 -> 0 | H60: =ACCT_11002_691040_NYB_05 -> 1500 | I60: =ACCT_11002_691040_NYB_06 -> 0 | J60: =ACCT_11002_691040_NYB_07 -> 1500 | K60: =ACCT_11002_691040_NYB_08 -> 0 | L60: =ACCT_11002_691040_NYB_09 -> 1500 | M60: =ACCT_11002_691040_NYB_10 -> 0 | N60: =ACCT_11002_691040_NYB_11 -> 1000 | O60: =ACCT_11002_691040_NYB_12 -> 0 | P60: 9000 | Q60: 4.285714286 | S60: 3.904761905 | T60: =ACCT_11002_691040_TOT_CY_BUD -> 8200 | U60: =ACCT_11002_691040_TOT_CY_PROJ -> 8737.19 | V60: 800 | W60: 0.09756097561 | X60: 262.81 | Y60: 0.03007946491 | Z60: =ACCT_11002_691040_NOTES -> increase from 2018 budget to maintain quality
A61: 19002 | B61: 694010 | C61: CLEANING SUPPLIES | D61: =ACCT_11002_694010_NYB_01 -> 370 | E61: =ACCT_11002_694010_NYB_02 -> 370 | F61: =ACCT_11002_694010_NYB_03 -> 370 | G61: =ACCT_11002_694010_NYB_04 -> 370 | H61: =ACCT_11002_694010_NYB_05 -> 370 | I61: =ACCT_11002_694010_NYB_06 -> 370 | J61: =ACCT_11002_694010_NYB_07 -> 370 | K61: =ACCT_11002_694010_NYB_08 -> 370 | L61: =ACCT_11002_694010_NYB_09 -> 370 | M61: =ACCT_11002_694010_NYB_10 -> 370 | N61: =ACCT_11002_694010_NYB_11 -> 370 | O61: =ACCT_11002_694010_NYB_12 -> 370 | P61: 4440 | Q61: 2.114285714 | S61: 1.571428571 | T61: =ACCT_11002_694010_TOT_CY_BUD -> 3300 | U61: =ACCT_11002_694010_TOT_CY_PROJ -> 4451.94 | V61: 1140 | W61: 0.3454545455 | X61: -11.94 | Y61: -0.002681976846 | Z61: =ACCT_11002_694010_NOTES -> increase to actuals
A62: 19002 | B62: 730370 | C62: LAUNDRY & DRY CLEANING | D62: =ACCT_11002_730370_NYB_01 -> 4300 | E62: =ACCT_11002_730370_NYB_02 -> 4300 | F62: =ACCT_11002_730370_NYB_03 -> 4300 | G62: =ACCT_11002_730370_NYB_04 -> 4300 | H62: =ACCT_11002_730370_NYB_05 -> 4300 | I62: =ACCT_11002_730370_NYB_06 -> 4300 | J62: =ACCT_11002_730370_NYB_07 -> 4000 | K62: =ACCT_11002_730370_NYB_08 -> 4300 | L62: =ACCT_11002_730370_NYB_09 -> 4300 | M62: =ACCT_11002_730370_NYB_10 -> 4000 | N62: =ACCT_11002_730370_NYB_11 -> 4300 | O62: =ACCT_11002_730370_NYB_12 -> 4300 | P62: 51000 | Q62: 24.28571429 | S62: 25.42857143 | T62: =ACCT_11002_730370_TOT_CY_BUD -> 53400 | U62: =ACCT_11002_730370_TOT_CY_PROJ -> 49608.85 | V62: -2400 | W62: -0.04494382022 | X62: 1391.15 | Y62: 0.0280423755 | Z62: =ACCT_11002_730370_NOTES -> Vendor Increase
A63: 19002 | B63: 600200 | C63: CONTRACT SERVICES | D63: =ACCT_11002_600200_NYB_01 -> 0 | E63: =ACCT_11002_600200_NYB_02 -> 0 | F63: =ACCT_11002_600200_NYB_03 -> 0 | G63: =ACCT_11002_600200_NYB_04 -> 0 | H63: =ACCT_11002_600200_NYB_05 -> 0 | I63: =ACCT_11002_600200_NYB_06 -> 0 | J63: =ACCT_11002_600200_NYB_07 -> 0 | K63: =ACCT_11002_600200_NYB_08 -> 0 | L63: =ACCT_11002_600200_NYB_09 -> 0 | M63: =ACCT_11002_600200_NYB_10 -> 0 | N63: =ACCT_11002_600200_NYB_11 -> 0 | O63: =ACCT_11002_600200_NYB_12 -> 0 | P63: =SUM(D63:O63) -> 0 | Q63: =P63/$C$7 -> 0 | S63: =T63/$C$7 -> 0 | T63: =ACCT_11002_600200_TOT_CY_BUD -> 0 | U63: =ACCT_11002_600200_TOT_CY_PROJ -> 0 | V63: =P63-T63 -> 0 | W63: =IF(T63=0,0,V63/T63) -> 0 | X63: =P63-U63 -> 0 | Y63: =IF(U63=0,0,X63/U63) -> 0 | Z63: =ACCT_11002_600200_NOTES -> 0 | AB63: =IF(AND(P63=0,T63=0,U63=0,Z63=0),"HIDE","") -> HIDE
A64: 19002 | B64: 600210 | C64: CONTRACT SERVICES MAINTENANCE | D64: =ACCT_11002_600210_NYB_01 -> 0 | E64: =ACCT_11002_600210_NYB_02 -> 0 | F64: =ACCT_11002_600210_NYB_03 -> 0 | G64: =ACCT_11002_600210_NYB_04 -> 0 | H64: =ACCT_11002_600210_NYB_05 -> 5500 | I64: =ACCT_11002_600210_NYB_06 -> 5500 | J64: =ACCT_11002_600210_NYB_07 -> 500 | K64: =ACCT_11002_600210_NYB_08 -> 500 | L64: =ACCT_11002_600210_NYB_09 -> 7500 | M64: =ACCT_11002_600210_NYB_10 -> 450 | N64: =ACCT_11002_600210_NYB_11 -> 500 | O64: =ACCT_11002_600210_NYB_12 -> 500 | P64: 20950 | Q64: 9.976190476 | S64: 9.761904762 | T64: =ACCT_11002_600210_TOT_CY_BUD -> 20500 | U64: =ACCT_11002_600210_TOT_CY_PROJ -> 20284.25 | V64: 450 | W64: 0.02195121951 | X64: 665.75 | Y64: 0.0328210311 | Z64: =ACCT_11002_600210_NOTES -> Vendor Increase
A65: 19002 | B65: 664120 | C65: BUILDING SUPPLIES | D65: =ACCT_11002_664120_NYB_01 -> 0 | E65: =ACCT_11002_664120_NYB_02 -> 0 | F65: =ACCT_11002_664120_NYB_03 -> 0 | G65: =ACCT_11002_664120_NYB_04 -> 0 | H65: =ACCT_11002_664120_NYB_05 -> 0 | I65: =ACCT_11002_664120_NYB_06 -> 0 | J65: =ACCT_11002_664120_NYB_07 -> 0 | K65: =ACCT_11002_664120_NYB_08 -> 0 | L65: =ACCT_11002_664120_NYB_09 -> 0 | M65: =ACCT_11002_664120_NYB_10 -> 0 | N65: =ACCT_11002_664120_NYB_11 -> 0 | O65: =ACCT_11002_664120_NYB_12 -> 0 | P65: 0 | Q65: 0 | S65: 0 | T65: =ACCT_11002_664120_TOT_CY_BUD -> 0 | U65: =ACCT_11002_664120_TOT_CY_PROJ -> 0 | V65: 0 | W65: 0 | X65: 0 | Y65: 0 | Z65: =ACCT_11002_664120_NOTES -> 0 | AB65: HIDE
A66: 19002 | B66: 664250 | C66: BUILDING MAINTENANCE | D66: =ACCT_11002_664250_NYB_01 -> 0 | E66: =ACCT_11002_664250_NYB_02 -> 0 | F66: =ACCT_11002_664250_NYB_03 -> 0 | G66: =ACCT_11002_664250_NYB_04 -> 0 | H66: =ACCT_11002_664250_NYB_05 -> 0 | I66: =ACCT_11002_664250_NYB_06 -> 0 | J66: =ACCT_11002_664250_NYB_07 -> 0 | K66: =ACCT_11002_664250_NYB_08 -> 0 | L66: =ACCT_11002_664250_NYB_09 -> 0 | M66: =ACCT_11002_664250_NYB_10 -> 0 | N66: =ACCT_11002_664250_NYB_11 -> 0 | O66: =ACCT_11002_664250_NYB_12 -> 0 | P66: =SUM(D66:O66) -> 0 | Q66: =P66/$C$7 -> 0 | S66: =T66/$C$7 -> 0 | T66: =ACCT_11002_664250_TOT_CY_BUD -> 0 | U66: =ACCT_11002_664250_TOT_CY_PROJ -> 0 | V66: =P66-T66 -> 0 | W66: =IF(T66=0,0,V66/T66) -> 0 | X66: =P66-U66 -> 0 | Y66: =IF(U66=0,0,X66/U66) -> 0 | Z66: =ACCT_11002_664250_NOTES -> 0 | AB66: =IF(AND(P66=0,T66=0,U66=0,Z66=0),"HIDE","") -> HIDE
A67: 19002 | B67: 692030 | C67: HOUSEWARES REPLACEMENTS | D67: =ACCT_11002_692030_NYB_01 -> 600 | E67: =ACCT_11002_692030_NYB_02 -> 500 | F67: =ACCT_11002_692030_NYB_03 -> 700 | G67: =ACCT_11002_692030_NYB_04 -> 700 | H67: =ACCT_11002_692030_NYB_05 -> 2500 | I67: =ACCT_11002_692030_NYB_06 -> 1800 | J67: =ACCT_11002_692030_NYB_07 -> 800 | K67: =ACCT_11002_692030_NYB_08 -> 800 | L67: =ACCT_11002_692030_NYB_09 -> 2250 | M67: =ACCT_11002_692030_NYB_10 -> 2100 | N67: =ACCT_11002_692030_NYB_11 -> 600 | O67: =ACCT_11002_692030_NYB_12 -> 500 | P67: 13850 | Q67: 6.595238095 | S67: 6.595238095 | T67: =ACCT_11002_692030_TOT_CY_BUD -> 13850 | U67: =ACCT_11002_692030_TOT_CY_PROJ -> 12780.5 | V67: 0 | W67: 0 | X67: 1069.5 | Y67: 0.08368217206 | Z67: =ACCT_11002_692030_NOTES -> Same as budgeted
A68: 19002 | B68: 664260 | C68: CARPET FURNITURE CLEANING | D68: =ACCT_11002_664260_NYB_01 -> 1100 | E68: =ACCT_11002_664260_NYB_02 -> 1100 | F68: =ACCT_11002_664260_NYB_03 -> 1100 | G68: =ACCT_11002_664260_NYB_04 -> 1100 | H68: =ACCT_11002_664260_NYB_05 -> 1100 | I68: =ACCT_11002_664260_NYB_06 -> 1100 | J68: =ACCT_11002_664260_NYB_07 -> 1100 | K68: =ACCT_11002_664260_NYB_08 -> 1100 | L68: =ACCT_11002_664260_NYB_09 -> 1100 | M68: =ACCT_11002_664260_NYB_10 -> 1100 | N68: =ACCT_11002_664260_NYB_11 -> 1100 | O68: =ACCT_11002_664260_NYB_12 -> 1100 | P68: 13200 | Q68: 6.285714286 | S68: 6.925714286 | T68: =ACCT_11002_664260_TOT_CY_BUD -> 14544 | U68: =ACCT_11002_664260_TOT_CY_PROJ -> 11404.45 | V68: -1344 | W68: -0.09240924092 | X68: 1795.55 | Y68: 0.157442928 | Z68: =ACCT_11002_664260_NOTES -> 0
